Workbook

Sheet Sign Off
B2: Sign Off's
B4: Accounting
C6: Name | D6: Title | E6: Date
B7: Preparer | C7: Belen Villalba | D7: Temp Analyst | E7: 2020-01-07
B8: Reviewer | C8: N/A | D8: N/A | E8: N/A
B9: Approver | C9: N/A | D9: N/A | E9: N/A
B11: Audit Services
C13: Name | D13: Title | E13: Date
B14: Preparer
B16: Energy Delivery
C18: Name | D18: Title | E18: Date
B19: Final Reviewer

Sheet A - Contractor Summary
B2: Contractor Summary
B4: Test Plan: (A) Using the drop down list, select the vendor. (B) Ensure address agrees to invoice(s). (C) Enter the distance between vendor address to Plant City, FL. (D) Determine if vendor is part of the SEE (see tab A.1 for listing). (E) Determine if other agreements exist. (F) Using the drop down list, select the Incident Base that the vendor was initially assigned. (G) If the contractor includes multiple crews with different timelines, utilize the '+' symbol at the top of columns 'H' and 'K' (if necessary) to unhide the vendor summary. (H) Click the button to populate the second (and third, if necessary) set of tabs for documentation of those expenses. (I) Complete steps (A) through (F).
F14: G | I14: G | K14: G | M14: G
C15: Vendor #11
G17: H | J17: H
B19: Contractor/Company | C19: Vendor No. 11 | D19: A | G19: A | J19: A
B20: SAP Vendor#
B21: Service Type | C21: Distribution
B23: Address | C23: 631 East Baylis Chapel | D23: B
B24: City | C24: Columbia
B25: State/Providence | C25: MS
B26: Zip | C26: 39429
B27: Country | C27: USA
B29: Distance from FL (in miles) | D29: C | H29: no mileage paid- only fuel costs
B30: Travel Days (500 m/per day)
B32: Member of the SEE | D32: D
B33: Other Agreement/Contract (Y/N) | D33: E
B34: Incident Base | D34: F
B36: Date Secured | C36: 2019-09-01
B37: Start Travel | C37: 2019-09-02
B38: Date Arrived | C38: 2019-09-02
B39: Date Released | C39: 2019-09-05
B40: Time Released | C40: 600.25
B41: Released To | C41: home
B42: Arrived Home/Utility* | C42: 2019-09-05
F47: C.1 - Rate Sheets (2) | I47: C.1 - Rate Sheets (3) | K47: C.1 - Rate Sheets (3) | M47: C.1 - Rate Sheets (3)
F48: C.2 - Timesheets - Labor (2) | I48: C.2 - Timesheets - Labor (3) | K48: C.2 - Timesheets - Labor (3) | M48: C.2 - Timesheets - Labor (3)
F49: C.4 - Timesheets - Equipmen (2) | I49: C.4 - Timesheets - Equipmen (3) | K49: C.4 - Timesheets - Equipmen (3) | M49: C.4 - Timesheets - Equipmen (3)
F50: D - Lodging (2) | I50: D - Lodging (3) | K50: D - Lodging (3) | M50: D - Lodging (3)
F51: E - Fuel (2) | I51: E - Fuel (3) | K51: E - Fuel (3) | M51: E - Fuel (3)
F52: F - Meals (2) | I52: F - Meals (3) | K52: F - Meals (3) | M52: F - Meals (3)
F53: G - Per Diem (2) | I53: G - Per Diem (3) | K53: G - Per Diem (3) | M53: G - Per Diem (3)
F54: H - Mileage (2) | I54: H - Mileage (3) | K54: H - Mileage (3) | M54: H - Mileage (3)
F55: I - Other (2) | I55: I - Other (3) | K55: I - Other (3) | M55: I - Other (3)
B59: *Estimates reasonable arrival time
B61: Tickmark Explanation:

Sheet A.1 SEE Members
A1: RMAG | B1: RESPONDING COMPANY | C1: COMPANY NAME
A2: SEE
A3: SEE
A4: SEE
A5: SEE
A6: SEE
A7: SEE
A8: SEE
A9: SEE
A10: SEE
A11: SEE
A12: SEE
A13: SEE
A14: SEE
A15: SEE
A16: SEE
A17: SEE
A18: SEE
A19: SEE
A24: SEE
A25: SEE
A26: SEE
A27: SEE
A28: SEE
A29: SEE
A31: SEE
A32: SEE
A33: SEE
A34: SEE
A35: SEE
A40: SEE
A41: SEE
A42: SEE
A43: SEE
A47: SEE
A55: SEE
A56: SEE
A57: SEE
A61: SEE
A64: SEE
A65: SEE

Sheet B - Summary Expenses
B2: Summary of Expenses
B4: Test Plan: (A) Calculate Total Amount Invoiced for each expense category. (B) Using SAP t-code FBL1N, list Vendor Invoices Paid. (C) Ensure there are no differences between the Total Expense Amount and the Total Paid Amount. (D) Ensure there are no difference between Total Invoiced Amount and Total Expense Amount. (E) If applicable, identify difference due to Foreign currency exchange rates. | N4: 20104.37
N5: 14533.78
N6: 23048.53
N7: 23046.54
N8: 18531.56
C9: A | N9: 17792.09
C10: Total Invoiced | D10: Total Calculated | E10: Allowable | F10: Reviewed - Allowed | G10: Reviewed - Not Allowable | H10: Not Allowable | N10: 20359.66
B11: Labor Expense Total | C11: =+D11 -> 436499.63 | D11: =+'C.2 - Timesheets - Labor'!ARI144 -> 436499.63 | E11: =+'C.2 - Timesheets - Labor'!ARJ144 -> 436499.63 | F11: ='C.3 - Asset by Company'!ANK976 -> 0 | G11: ='C.3 - Asset by Company'!ANL976 -> 0 | H11: =D11-(E11+F11+G11) -> 0 | N11: 17076.06
B12: Equipment Expense Total | C12: =+D12 -> 231925.72 | D12: =+'C.4 - Timesheets - Equipment'!BC1252 -> 231925.72 | E12: =+'C.4 - Timesheets - Equipment'!BD1252 -> 231925.72 | F12: ='D - Lodging'!W1183 -> 0 | G12: ='D - Lodging'!X1183 -> 0 | H12: 0 | N12: 18891.79
B13: Lodging Expense Total | C13: =+D13 -> 2192.01 | D13: ='D - Lodging'!M389 -> 2192.01 | E13: ='D - Lodging'!T389 -> 2192.01 | G13: ='E - Fuel'!W26 -> 0 | H13: 0 | N13: 17937.95
B14: Fuel/Transport Expense Total | C14: =+D14 -> 20002.77 | D14: ='E - Fuel'!J200 -> 20002.77 | E14: ='E - Fuel'!Q200 -> 20002.77 | H14: 0 | N14: 20525.82
B15: Meal Expense Total | C15: =+D15 -> 3904.69 | D15: ='F - Meals'!K71 -> 3904.69 | E15: ='F - Meals'!R71 -> 3904.69 | F15: ='I - Other'!T141 -> 0 | G15: ='I - Other'!U141 -> 0 | H15: 0 | N15: 20557.71
B16: Per Diem Expense Total | D16: =+'G - Per Diem'!I97 -> 0 | E16: =+'G - Per Diem'!N97 -> 0 | F16: ='H - Mileage'!P103 -> 0 | G16: ='H - Mileage'!Q103 -> 0 | H16: 0 | N16: 21883.5
B17: Mileage Expense Total | H17: 0
B18: Other Expense | C18: =+D18 -> 54.79 | D18: =+'I - Other'!K33 -> 54.79 | E18: =+'I - Other'!R33 -> 54.79 | F18: ='G - Per Diem'!T27 -> 0 | G18: ='G - Per Diem'!U27 -> 0 | H18: 0
B20: Total Expense per tabs | C20: =SUM(C11:C18) -> 694579.61 | D20: =SUM(D11:D18) -> 694579.61 | E20: =SUM(E11:E18) -> 694579.61 | F20: 0 | G20: 0 | H20: 0
B21: Difference | C21: =IF(D21=0,"","1") ->  | D21: =C20-D20 -> 0 | E21: D
B23: Total Expense | D23: =+D20 -> 694579.61
B24: Total Paid | D24: =+D109 -> 694579.61
B25: Difference | C25: =IF(D25=0,"",SUM(C21,1)) ->  | D25: =D24-D23 -> 0 | E25: C
B27: Exchange Rate
B28: Fx Adjusted to USD | N28: =SUM(N4:N27) -> 254289.36 | Q28: =N28-D20 -> -440290.25
B29: Difference | C29: =IF(D29=0,"","3") ->  | E29: E
B31: B
B33: Document No | C33: Doc Date | D33: Amount | E33: Reference
B34: 25-25227 | C34: 2019-09-09 | D34: 440290.25 | E34: 740183
B35: 25-25202A | C35: 2019-08-30 | D35: 254289.36 | E35: 737325
D109: =SUM(D34:D108) -> 694579.61
B111: Tickmark Explanation:

Sheet C.1 - Rate Sheets
B2: Labor Charges - Rate Sheet
B4: Test Plan: (A) Using the vendor rate sheet, ensure that a rate was provided for all Positions and Equipment types.
B6: Labor Types:
B7: ST | C7: Straight Time
B8: OT | C8: Over Time
B9: DT | C9: Double Time
B10: MOB/DMOB | C10: Mobilization/Demobilization Time
B13: Labor per Man Hour | H13: Labor per Equipment Hour
B14: A | H14: A
B15: POSITION | C15: ST | D15: OT | E15: DT | F15: MOB/DMOB | H15: Type | I15: $/HOUR
B16: Foreman | C16: 66 | D16: 100.49 | E16: 133.98 | H16: 18' Material Trailer | I16: 10
B17: Foreman-P | C17: 66 | D17: 99 | H17: 4 Wheeler | I17: 17.6
B18: General Foreman | D18: 107.42 | E18: 143.22 | H18: 4 Wheeler/UTV | I18: 17.6
B19: Groundman | C19: 43 | D19: 64.62 | E19: 86.16 | H19: Back Yard Buggy | I19: 45
B20: Groundman-P | C20: 43 | D20: 64.5 | H20: Crew Cab Pick-up | I20: 24.31
B21: Lineman | C21: 56 | D21: 84.65 | E21: 112.86 | H21: Digger Truck | I21: 47.36
B22: Lineman-P | C22: 56 | D22: 84 | H22: Dozer | I22: 71.5
B23: Mechanic | D23: 69.99 | E23: 93.32 | H23: Dump Trailer | I23: 30
B24: Operator/Truck Driver | C24: 46 | D24: 69.99 | E24: 93.32 | H24: Go Track Bucket | I24: 79.2
B25: Operator/Truck Driver-P | C25: 46 | D25: 69 | H25: Go Track Digger | I25: 79.2
B26: Safety Coordinator | D26: 100.49 | E26: 133.98 | H26: Log Skidder w/ Grapples | I26: 72.6
B27: Storm Team Leader | D27: 123.17 | E27: 143.22 | H27: LowBoy Trailer Double Axle | I27: 33.55
B28: Foreman-Flat | C28: =5600/40 -> 140 | H28: Material Handler Bucket 57' | I28: 47.36
B29: Lineman-Flat | C29: 0 | H29: Pole Trailer | I29: 17.6
H30: Rope Rig | I30: 25
H31: Service Truck | I31: 35.75
H32: Skid Steer | I32: 50
H33: Tension Trailer | I33: 25
H34: Tractor Truck | I34: 45.65
H35: Various | I35: 720
H36: Crew Cab Pickup | I36: 24.31
H37: Material Handler Bucket 57'-P | I37: 46
H38: Digger Truck-P | I38: 46
H39: Pole Trailer-P | I39: 15
H40: Crew Cab Pick-up-Flat | I40: 0
H41: Material Handler Bucket 57'-Flat | I41: 0
H42: Air Compressor | I42: 25
B54: Tickmark Explanation:
B55: 1

Sheet C.2 - Timesheets - Labor
B2: Labor Charges - Time Card
B4: Test Plan: | C4: Obtain the time cards. (A) Using the Asset by Company tab (C.3), populate the crew members names and positions (if provided). Find additional information regarding individual crew member from related invoice. (B) Enter hours worked from time card(s). (C) Confirm that the dates per the time cards fall between dates provided per 'A - Contractor Summary' tab. (D) Confirm the labor type charged agrees to the rate sheet. (E) Identify any labor charges to be reviewed (manually enter amounts based on reasonability of time period labor was charged, discrepancies between timecards and invoice, etc. (F) For charges which required further review, document review (include why it was determined to be allowed/disallowed via a tickmark).
B10: Rx | C10: Recalculated.
B11: a | C11: Provided from tab 'C.1 - Rate Sheets'.
B12: b | C12: Check figure should equal $0. Cell will appear yellow if discrepancies are noted.
C14: A | H14: Rx | J14: C | K14: a | ARB14: Rx | ARF14: Rx | ARJ14: Rx | ARL14: E | ARM14: F
B15: # | C15: Name | D15: Position | E15: Company | F15: Crew# | G15: Invoice# | H15: Start Date | I15: End Date | J15: Dates Worked Reasonable? | K15: Rates | N15: 2019-08-26 | R15: 2019-08-27 | V15: 2019-08-28 | Z15: 2019-08-29 | AD15: 2019-08-30 | AH15: 2019-08-31 | AL15: 2019-09-01 | AP15: 2019-09-02 | AT15: 2019-09-03 | AX15: 2019-09-04 | BB15: 2019-09-05 | BF15: 2019-09-06 | BJ15: 2019-09-07 | BN15: 2019-09-08 | BR15: 2019-09-09 | BV15: 2019-09-10 | BZ15: 2019-09-11 | CD15: 2019-09-12 | CH15: 2019-09-13 | CL15: 2019-09-14 | CP15: 2019-09-15 | CT15: 2019-09-16 | CX15: 2019-09-17 | DB15: 2019-09-18 | DF15: 2019-09-19 | DJ15: 2019-09-20 | DN15: 2019-09-21 | DR15: 2019-09-22 | DV15: 2019-09-23 | DZ15: 2019-09-24 | ED15: 2019-09-25 | EH15: 2019-09-26 | EL15: 2019-09-27 | EP15: 2019-09-28 | ET15: 2019-09-29 | EX15: 2019-09-30 | FB15: 2019-10-01 | FF15: 2019-10-02 | FJ15: 2019-10-03 | FN15: 2019-10-04 | FR15: 2019-10-05 | FV15: 2019-10-06 | FZ15: 2019-10-07 | GD15: 2019-10-08 | GH15: 2019-10-09 | GL15: 2019-10-10 | GP15: 2019-10-11 | GT15: 2019-10-12 | GX15: 2019-10-13 | HB15: 2019-10-14 | HF15: 2019-10-15 | HJ15: 2019-10-16 | HN15: 2019-10-17 | HR15: 2019-10-18 | HV15: 2019-10-19 | HZ15: 2019-10-20 | ID15: 2019-10-21 | IH15: 2019-10-22 | IL15: 2019-10-23 | IP15: 2019-10-24 | IT15: 2019-10-25 | IX15: 2019-10-26 | JB15: 2019-10-27 | JF15: 2019-10-28 | JJ15: 2019-10-29 | JN15: 2019-10-30 | JR15: 2019-10-31 | JV15: 2019-11-01 | JZ15: 2019-11-02 | KD15: 2019-11-03 | KH15: 2019-11-04 | KL15: 2019-11-05 | KP15: 2019-11-06 | KT15: 2019-11-07 | KX15: 2019-11-08 | LB15: 2019-11-09 | LF15: 2019-11-10 | LJ15: 2019-11-11 | LN15: 2019-11-12 | LR15: 2019-11-13 | LV15: 2019-11-14 | LZ15: 2019-11-15 | MD15: 2019-11-16 | MH15: 2019-11-17 | ML15: 2019-11-18 | MP15: 2019-11-19 | MT15: 2019-11-20 | MX15: 2019-11-21 | NB15: 2019-11-22 | NF15: 2019-11-23 | NJ15: 2019-11-24 | NN15: 2019-11-25 | NR15: 2019-11-26 | NV15: 2019-11-27 | NZ15: 2019-11-28 | OD15: 2019-11-29 | OH15: 2019-11-30 | OL15: 2019-12-01 | OP15: 2019-12-02 | OT15: 2019-12-03 | OX15: 2019-12-04 | PB15: 2019-12-05 | PF15: 2019-12-06 | PJ15: 2019-12-07 | PN15: 2019-12-08 | PR15: 2019-12-09 | PV15: 2019-12-10 | PZ15: 2019-12-11 | QD15: 2019-12-12 | QH15: 2019-12-13 | QL15: 2019-12-14 | QP15: 2019-12-15 | QT15: 2019-12-16 | QX15: 2019-12-17 | RB15: 2019-12-18 | RF15: 2019-12-19 | RJ15: 2019-12-20 | RN15: 2019-12-21 | RR15: 2019-12-22 | RV15: 2019-12-23 | RZ15: 2019-12-24 | SD15: 2019-12-25 | SH15: 2019-12-26 | SL15: 2019-12-27 | SP15: 2019-12-28 | ST15: 2019-12-29 | SX15: 2019-12-30 | TB15: 2019-12-31 | TF15: 2020-01-01 | TJ15: 2020-01-02 | TN15: 2020-01-03 | TR15: 2020-01-04 | TV15: 2020-01-05 | TZ15: 2020-01-06 | UD15: 2020-01-07 | UH15: 2020-01-08 | UL15: 2020-01-09 | UP15: 2020-01-10 | UT15: 2020-01-11 | UX15: 2020-01-12 | VB15: 2020-01-13 | VF15: 2020-01-14 | VJ15: 2020-01-15 | VN15: 2020-01-16 | VR15: 2020-01-17 | VV15: 2020-01-18 | VZ15: 2020-01-19 | WD15: 2020-01-20 | WH15: 2020-01-21 | WL15: 2020-01-22 | WP15: 2020-01-23 | WT15: 2020-01-24 | WX15: 2020-01-25 | XB15: 2020-01-26 | XF15: 2020-01-27 | XJ15: 2020-01-28 | XN15: 2020-01-29 | XR15: 2020-01-30 | XV15: 2020-01-31 | XZ15: 2020-02-01 | YD15: 2020-02-02 | YH15: 2020-02-03 | YL15: 2020-02-04 | YP15: 2020-02-05 | YT15: 2020-02-06 | YX15: 2020-02-07 | ZB15: 2020-02-08 | ZF15: 2020-02-09 | ZJ15: 2020-02-10 | ZN15: 2020-02-11 | ZR15: 2020-02-12 | ZV15: 2020-02-13 | ZZ15: 2020-02-14 | AAD15: 2020-02-15 | AAH15: 2020-02-16 | AAL15: 2020-02-17 | AAP15: 2020-02-18 | AAT15: 2020-02-19 | AAX15: 2020-02-20 | ABB15: 2020-02-21 | ABF15: 2020-02-22 | ABJ15: 2020-02-23 | ABN15: 2020-02-24 | ABR15: 2020-02-25 | ABV15: 2020-02-26 | ABZ15: 2020-02-27 | ACD15: 2020-02-28 | ACH15: 2020-02-29 | ACL15: 2020-03-01 | ACP15: 2020-03-02 | ACT15: 2020-03-03 | ACX15: 2020-03-04 | ADB15: 2020-03-05 | ADF15: 2020-03-06 | ADJ15: 2020-03-07 | ADN15: 2020-03-08 | ADR15: 2020-03-09 | ADV15: 2020-03-10 | ADZ15: 2020-03-11 | AED15: 2020-03-12 | AEH15: 2020-03-13 | AEL15: 2020-03-14 | AEP15: 2020-03-15 | AET15: 2020-03-16 | AEX15: 2020-03-17 | AFB15: 2020-03-18 | AFF15: 2020-03-19 | AFJ15: 2020-03-20 | AFN15: 2020-03-21 | AFR15: 2020-03-22 | AFV15: 2020-03-23 | AFZ15: 2020-03-24 | AGD15: 2020-03-25 | AGH15: 2020-03-26 | AGL15: 2020-03-27 | AGP15: 2020-03-28 | AGT15: 2020-03-29 | AGX15: 2020-03-30 | AHB15: 2020-03-31 | AHF15: 2020-04-01 | AHJ15: 2020-04-02 | AHN15: 2020-04-03 | AHR15: 2020-04-04 | AHV15: 2020-04-05 | AHZ15: 2020-04-06 | AID15: 2020-04-07 | AIH15: 2020-04-08 | AIL15: 2020-04-09 | AIP15: 2020-04-10 | AIT15: 2020-04-11 | AIX15: 2020-04-12 | AJB15: 2020-04-13 | AJF15: 2020-04-14 | AJJ15: 2020-04-15 | AJN15: 2020-04-16 | AJR15: 2020-04-17 | AJV15: 2020-04-18 | AJZ15: 2020-04-19 | AKD15: 2020-04-20 | AKH15: 2020-04-21 | AKL15: 2020-04-22 | AKP15: 2020-04-23 | AKT15: 2020-04-24 | AKX15: 2020-04-25 | ALB15: 2020-04-26 | ALF15: 2020-04-27 | ALJ15: 2020-04-28 | ALN15: 2020-04-29 | ALR15: 2020-04-30 | ALV15: 2020-05-01 | ALZ15: 2020-05-02 | AMD15: 2020-05-03 | AMH15: 2020-05-04 | AML15: 2020-05-05 | AMP15: 2020-05-06 | AMT15: 2020-05-07 | AMX15: 2020-05-08 | ANB15: 2020-05-09 | ANF15: 2020-05-10 | ANJ15: 2020-05-11 | ANN15: 2020-05-12 | ANR15: 2020-05-13 | ANV15: 2020-05-14 | ANZ15: 2020-05-15 | AOD15: 2020-05-16 | AOH15: 2020-05-17 | AOL15: 2020-05-18 | AOP15: 2020-05-19 | AOT15: 2020-05-20 | AOX15: 2020-05-21 | APB15: 2020-05-22 | APF15: 2020-05-23 | APJ15: 2020-05-24 | APN15: 2020-05-25 | APR15: 2020-05-26 | APV15: 2020-05-27 | APZ15: 2020-05-28 | AQD15: 2020-05-29 | AQH15: 2020-05-30 | AQL15: 2020-05-31 | AQP15: 2020-06-01 | AQT15: 2020-06-02 | AQX15: 2020-06-03 | ARB15: Total Labor Hours | ARF15: Total Labor $ | ARJ15: Allowable Charges | ARK15: Labor Type Appropriate? | ARL15: To Be Reviewed | ARM15: Reviewed - Allowable Charge | ARN15: Reviewed - Unallowable Charge | ARO15: Tickmarks
ARB16: Total ST | ARC16: OT | ARD16: DT | ARE16: Total Hours | ARF16: Total ST $ | ARG16: Total OT $ | ARH16: Total DT $ | ARI16: Total Labor $
K18: ST | L18: OT | M18: DT | N18: ST | O18: OT | P18: DT | Q18: Total | R18: ST | S18: OT | T18: DT | U18: Total | V18: ST | W18: OT | X18: DT | Y18: Total | Z18: ST | AA18: OT | AB18: DT | AC18: Total | AD18: ST | AE18: OT | AF18: DT | AG18: Total | AH18: ST | AI18: OT | AJ18: DT | AK18: Total | AL18: ST | AM18: OT | AN18: DT | AO18: Total | AP18: ST | AQ18: OT | AR18: DT | AS18: Total | AT18: ST | AU18: OT | AV18: DT | AW18: Total | AX18: ST | AY18: OT | AZ18: DT | BA18: Total | BB18: ST | BC18: OT | BD18: DT | BE18: Total | BF18: ST | BG18: OT | BH18: DT | BI18: Total | BJ18: ST | BK18: OT | BL18: DT | BM18: Total | BN18: ST | BO18: OT | BP18: DT | BQ18: Total | BR18: ST | BS18: OT | BT18: DT | BU18: Total | BV18: ST | BW18: OT | BX18: DT | BY18: Total | BZ18: ST | CA18: OT | CB18: DT | CC18: Total | CD18: ST | CE18: OT | CF18: DT | CG18: Total | CH18: ST | CI18: OT | CJ18: DT | CK18: Total | CL18: ST | CM18: OT | CN18: DT | CO18: Total | CP18: ST | CQ18: OT | CR18: DT | CS18: Total | CT18: ST | CU18: OT | CV18: DT | CW18: Total | CX18: ST | CY18: OT | CZ18: DT | DA18: Total | DB18: ST | DC18: OT | DD18: DT | DE18: Total | DF18: ST | DG18: OT | DH18: DT | DI18: Total | DJ18: ST | DK18: OT | DL18: DT | DM18: Total | DN18: ST | DO18: OT | DP18: DT | DQ18: Total | DR18: ST | DS18: OT | DT18: DT | DU18: Total | DV18: ST | DW18: OT | DX18: DT | DY18: Total | DZ18: ST | EA18: OT | EB18: DT | EC18: Total | ED18: ST | EE18: OT | EF18: DT | EG18: Total | EH18: ST | EI18: OT | EJ18: DT | EK18: Total | EL18: ST | EM18: OT | EN18: DT | EO18: Total | EP18: ST | EQ18: OT | ER18: DT | ES18: Total | ET18: ST | EU18: OT | EV18: DT | EW18: Total | EX18: ST | EY18: OT | EZ18: DT | FA18: Total | FB18: ST | FC18: OT | FD18: DT | FE18: Total | FF18: ST | FG18: OT | FH18: DT | FI18: Total | FJ18: ST | FK18: OT | FL18: DT | FM18: Total | FN18: ST | FO18: OT | FP18: DT | FQ18: Total | FR18: ST | FS18: OT | FT18: DT | FU18: Total | FV18: ST | FW18: OT | FX18: DT | FY18: Total | FZ18: ST | GA18: OT | GB18: DT | GC18: Total | GD18: ST | GE18: OT | GF18: DT | GG18: Total | GH18: ST | GI18: OT | GJ18: DT | GK18: Total | GL18: ST | GM18: OT | GN18: DT | GO18: Total | GP18: ST | GQ18: OT | GR18: DT | GS18: Total | GT18: ST | GU18: OT | GV18: DT | GW18: Total | GX18: ST | GY18: OT | GZ18: DT | HA18: Total | HB18: ST | HC18: OT | HD18: DT | HE18: Total | HF18: ST | HG18: OT | HH18: DT | HI18: Total | HJ18: ST | HK18: OT | HL18: DT | HM18: Total | HN18: ST | HO18: OT | HP18: DT | HQ18: Total | HR18: ST | HS18: OT | HT18: DT | HU18: Total | HV18: ST | HW18: OT | HX18: DT | HY18: Total | HZ18: ST | IA18: OT | IB18: DT | IC18: Total | ID18: ST | IE18: OT | IF18: DT | IG18: Total | IH18: ST | II18: OT | IJ18: DT | IK18: Total | IL18: ST | IM18: OT | IN18: DT | IO18: Total | IP18: ST | IQ18: OT | IR18: DT | IS18: Total | IT18: ST | IU18: OT | IV18: DT | IW18: Total | IX18: ST | IY18: OT | IZ18: DT | JA18: Total | JB18: ST | JC18: OT | JD18: DT | JE18: Total | JF18: ST | JG18: OT | JH18: DT | JI18: Total | JJ18: ST | JK18: OT | JL18: DT | JM18: Total | JN18: ST | JO18: OT | JP18: DT | JQ18: Total | JR18: ST | JS18: OT | JT18: DT | JU18: Total | JV18: ST | JW18: OT | JX18: DT | JY18: Total | JZ18: ST | KA18: OT | KB18: DT | KC18: Total | KD18: ST | KE18: OT | KF18: DT | KG18: Total | KH18: ST | KI18: OT | KJ18: DT | KK18: Total | KL18: ST | KM18: OT | KN18: DT | KO18: Total | KP18: ST | KQ18: OT | KR18: DT | KS18: Total | KT18: ST | KU18: OT | KV18: DT | KW18: Total | KX18: ST | KY18: OT | KZ18: DT | LA18: Total | LB18: ST | LC18: OT | LD18: DT | LE18: Total | LF18: ST | LG18: OT | LH18: DT | LI18: Total | LJ18: ST | LK18: OT | LL18: DT | LM18: Total | LN18: ST | LO18: OT | LP18: DT | LQ18: Total | LR18: ST | LS18: OT | LT18: DT | LU18: Total | LV18: ST | LW18: OT | LX18: DT | LY18: Total | LZ18: ST | MA18: OT | MB18: DT | MC18: Total | MD18: ST | ME18: OT | MF18: DT | MG18: Total | MH18: ST | MI18: OT | MJ18: DT | MK18: Total | ML18: ST | MM18: OT | MN18: DT | MO18: Total | MP18: ST | MQ18: OT | MR18: DT | MS18: Total | MT18: ST | MU18: OT | MV18: DT | MW18: Total | MX18: ST | MY18: OT | MZ18: DT | NA18: Total | NB18: ST | NC18: OT | ND18: DT | NE18: Total | NF18: ST | NG18: OT | NH18: DT | NI18: Total | NJ18: ST | NK18: OT | NL18: DT | NM18: Total | NN18: ST | NO18: OT | NP18: DT | NQ18: Total | NR18: ST | NS18: OT | NT18: DT | NU18: Total | NV18: ST | NW18: OT | NX18: DT | NY18: Total | NZ18: ST | OA18: OT | OB18: DT | OC18: Total | OD18: ST | OE18: OT | OF18: DT | OG18: Total | OH18: ST | OI18: OT | OJ18: DT | OK18: Total | OL18: ST | OM18: OT | ON18: DT | OO18: Total | OP18: ST | OQ18: OT | OR18: DT | OS18: Total | OT18: ST | OU18: OT | OV18: DT | OW18: Total | OX18: ST | OY18: OT | OZ18: DT | PA18: Total | PB18: ST | PC18: OT | PD18: DT | PE18: Total | PF18: ST | PG18: OT | PH18: DT | PI18: Total | PJ18: ST | PK18: OT | PL18: DT | PM18: Total | PN18: ST | PO18: OT | PP18: DT | PQ18: Total | PR18: ST | PS18: OT | PT18: DT | PU18: Total | PV18: ST | PW18: OT | PX18: DT | PY18: Total | PZ18: ST | QA18: OT | QB18: DT | QC18: Total | QD18: ST | QE18: OT | QF18: DT | QG18: Total | QH18: ST | QI18: OT | QJ18: DT | QK18: Total | QL18: ST | QM18: OT | QN18: DT | QO18: Total | QP18: ST | QQ18: OT | QR18: DT | QS18: Total | QT18: ST | QU18: OT | QV18: DT | QW18: Total | QX18: ST | QY18: OT | QZ18: DT | RA18: Total | RB18: ST | RC18: OT | RD18: DT | RE18: Total | RF18: ST | RG18: OT | RH18: DT | RI18: Total | RJ18: ST | RK18: OT | RL18: DT | RM18: Total | RN18: ST | RO18: OT | RP18: DT | RQ18: Total | RR18: ST | RS18: OT | RT18: DT | RU18: Total | RV18: ST | RW18: OT | RX18: DT | RY18: Total | RZ18: ST | SA18: OT | SB18: DT | SC18: Total | SD18: ST | SE18: OT | SF18: DT | SG18: Total | SH18: ST | SI18: OT | SJ18: DT | SK18: Total | SL18: ST | SM18: OT | SN18: DT | SO18: Total | SP18: ST | SQ18: OT | SR18: DT | SS18: Total | ST18: ST | SU18: OT | SV18: DT | SW18: Total | SX18: ST | SY18: OT | SZ18: DT | TA18: Total | TB18: ST | TC18: OT | TD18: DT | TE18: Total | TF18: ST | TG18: OT | TH18: DT | TI18: Total | TJ18: ST | TK18: OT | TL18: DT | TM18: Total | TN18: ST | TO18: OT | TP18: DT | TQ18: Total | TR18: ST | TS18: OT | TT18: DT | TU18: Total | TV18: ST | TW18: OT | TX18: DT | TY18: Total | TZ18: ST | UA18: OT | UB18: DT | UC18: Total | UD18: ST | UE18: OT | UF18: DT | UG18: Total | UH18: ST | UI18: OT | UJ18: DT | UK18: Total | UL18: ST | UM18: OT | UN18: DT | UO18: Total | UP18: ST | UQ18: OT | UR18: DT | US18: Total | UT18: ST | UU18: OT | UV18: DT | UW18: Total | UX18: ST | UY18: OT | UZ18: DT | VA18: Total | VB18: ST | VC18: OT | VD18: DT | VE18: Total | VF18: ST | VG18: OT | VH18: DT | VI18: Total | VJ18: ST | VK18: OT | VL18: DT | VM18: Total | VN18: ST | VO18: OT | VP18: DT | VQ18: Total | VR18: ST | VS18: OT | VT18: DT | VU18: Total | VV18: ST | VW18: OT | VX18: DT | VY18: Total | VZ18: ST | WA18: OT | WB18: DT | WC18: Total | WD18: ST | WE18: OT | WF18: DT | WG18: Total | WH18: ST | WI18: OT | WJ18: DT | WK18: Total | WL18: ST | WM18: OT | WN18: DT | WO18: Total | WP18: ST | WQ18: OT | WR18: DT | WS18: Total | WT18: ST | WU18: OT | WV18: DT | WW18: Total | WX18: ST | WY18: OT | WZ18: DT | XA18: Total | XB18: ST | XC18: OT | XD18: DT | XE18: Total | XF18: ST | XG18: OT | XH18: DT | XI18: Total | XJ18: ST | XK18: OT | XL18: DT | XM18: Total | XN18: ST | XO18: OT | XP18: DT | XQ18: Total | XR18: ST | XS18: OT | XT18: DT | XU18: Total | XV18: ST | XW18: OT | XX18: DT | XY18: Total | XZ18: ST | YA18: OT | YB18: DT | YC18: Total | YD18: ST | YE18: OT | YF18: DT | YG18: Total | YH18: ST | YI18: OT | YJ18: DT | YK18: Total | YL18: ST | YM18: OT | YN18: DT | YO18: Total | YP18: ST | YQ18: OT | YR18: DT | YS18: Total | YT18: ST | YU18: OT | YV18: DT | YW18: Total | YX18: ST | YY18: OT | YZ18: DT | ZA18: Total | ZB18: ST | ZC18: OT | ZD18: DT | ZE18: Total | ZF18: ST | ZG18: OT | ZH18: DT | ZI18: Total | ZJ18: ST | ZK18: OT | ZL18: DT | ZM18: Total | ZN18: ST | ZO18: OT | ZP18: DT | ZQ18: Total | ZR18: ST | ZS18: OT | ZT18: DT | ZU18: Total | ZV18: ST | ZW18: OT | ZX18: DT | ZY18: Total | ZZ18: ST | AAA18: OT | AAB18: DT | AAC18: Total | AAD18: ST | AAE18: OT | AAF18: DT | AAG18: Total | AAH18: ST | AAI18: OT | AAJ18: DT | AAK18: Total | AAL18: ST | AAM18: OT | AAN18: DT | AAO18: Total | AAP18: ST | AAQ18: OT | AAR18: DT | AAS18: Total | AAT18: ST | AAU18: OT | AAV18: DT | AAW18: Total | AAX18: ST | AAY18: OT | AAZ18: DT | ABA18: Total | ABB18: ST | ABC18: OT | ABD18: DT | ABE18: Total | ABF18: ST | ABG18: OT | ABH18: DT | ABI18: Total | ABJ18: ST | ABK18: OT | ABL18: DT | ABM18: Total | ABN18: ST | ABO18: OT | ABP18: DT | ABQ18: Total | ABR18: ST | ABS18: OT | ABT18: DT | ABU18: Total | ABV18: ST | ABW18: OT | ABX18: DT | ABY18: Total | ABZ18: ST | ACA18: OT | ACB18: DT | ACC18: Total | ACD18: ST | ACE18: OT | ACF18: DT | ACG18: Total | ACH18: ST | ACI18: OT | ACJ18: DT | ACK18: Total | ACL18: ST | ACM18: OT | ACN18: DT | ACO18: Total | ACP18: ST | ACQ18: OT | ACR18: DT | ACS18: Total | ACT18: ST | ACU18: OT | ACV18: DT | ACW18: Total | ACX18: ST | ACY18: OT | ACZ18: DT | ADA18: Total | ADB18: ST | ADC18: OT | ADD18: DT | ADE18: Total | ADF18: ST | ADG18: OT | ADH18: DT | ADI18: Total | ADJ18: ST | ADK18: OT | ADL18: DT | ADM18: Total | ADN18: ST | ADO18: OT | ADP18: DT | ADQ18: Total | ADR18: ST | ADS18: OT | ADT18: DT | ADU18: Total | ADV18: ST | ADW18: OT | ADX18: DT | ADY18: Total | ADZ18: ST | AEA18: OT | AEB18: DT | AEC18: Total | AED18: ST | AEE18: OT | AEF18: DT | AEG18: Total | AEH18: ST | AEI18: OT | AEJ18: DT | AEK18: Total | AEL18: ST | AEM18: OT | AEN18: DT | AEO18: Total | AEP18: ST | AEQ18: OT | AER18: DT | AES18: Total | AET18: ST | AEU18: OT | AEV18: DT | AEW18: Total | AEX18: ST | AEY18: OT | AEZ18: DT | AFA18: Total | AFB18: ST | AFC18: OT | AFD18: DT | AFE18: Total | AFF18: ST | AFG18: OT | AFH18: DT | AFI18: Total | AFJ18: ST | AFK18: OT | AFL18: DT | AFM18: Total | AFN18: ST | AFO18: OT | AFP18: DT | AFQ18: Total | AFR18: ST | AFS18: OT | AFT18: DT | AFU18: Total | AFV18: ST | AFW18: OT | AFX18: DT | AFY18: Total | AFZ18: ST | AGA18: OT | AGB18: DT | AGC18: Total | AGD18: ST | AGE18: OT | AGF18: DT | AGG18: Total | AGH18: ST | AGI18: OT | AGJ18: DT | AGK18: Total | AGL18: ST | AGM18: OT | AGN18: DT | AGO18: Total | AGP18: ST | AGQ18: OT | AGR18: DT | AGS18: Total | AGT18: ST | AGU18: OT | AGV18: DT | AGW18: Total | AGX18: ST | AGY18: OT | AGZ18: DT | AHA18: Total | AHB18: ST | AHC18: OT | AHD18: DT | AHE18: Total | AHF18: ST | AHG18: OT | AHH18: DT | AHI18: Total | AHJ18: ST | AHK18: OT | AHL18: DT | AHM18: Total | AHN18: ST | AHO18: OT | AHP18: DT | AHQ18: Total | AHR18: ST | AHS18: OT | AHT18: DT | AHU18: Total | AHV18: ST | AHW18: OT | AHX18: DT | AHY18: Total | AHZ18: ST | AIA18: OT | AIB18: DT | AIC18: Total | AID18: ST | AIE18: OT | AIF18: DT | AIG18: Total | AIH18: ST | AII18: OT | AIJ18: DT | AIK18: Total | AIL18: ST | AIM18: OT | AIN18: DT | AIO18: Total | AIP18: ST | AIQ18: OT | AIR18: DT | AIS18: Total | AIT18: ST | AIU18: OT | AIV18: DT | AIW18: Total | AIX18: ST | AIY18: OT | AIZ18: DT | AJA18: Total | AJB18: ST | AJC18: OT | AJD18: DT | AJE18: Total | AJF18: ST | AJG18: OT | AJH18: DT | AJI18: Total | AJJ18: ST | AJK18: OT | AJL18: DT | AJM18: Total | AJN18: ST | AJO18: OT | AJP18: DT | AJQ18: Total | AJR18: ST | AJS18: OT | AJT18: DT | AJU18: Total | AJV18: ST | AJW18: OT | AJX18: DT | AJY18: Total | AJZ18: ST | AKA18: OT | AKB18: DT | AKC18: Total | AKD18: ST | AKE18: OT | AKF18: DT | AKG18: Total | AKH18: ST | AKI18: OT | AKJ18: DT | AKK18: Total | AKL18: ST | AKM18: OT | AKN18: DT | AKO18: Total | AKP18: ST | AKQ18: OT | AKR18: DT | AKS18: Total | AKT18: ST | AKU18: OT | AKV18: DT | AKW18: Total | AKX18: ST | AKY18: OT | AKZ18: DT | ALA18: Total | ALB18: ST | ALC18: OT | ALD18: DT | ALE18: Total | ALF18: ST | ALG18: OT | ALH18: DT | ALI18: Total | ALJ18: ST | ALK18: OT | ALL18: DT | ALM18: Total | ALN18: ST | ALO18: OT | ALP18: DT | ALQ18: Total | ALR18: ST | ALS18: OT | ALT18: DT | ALU18: Total | ALV18: ST | ALW18: OT | ALX18: DT | ALY18: Total | ALZ18: ST | AMA18: OT | AMB18: DT | AMC18: Total | AMD18: ST | AME18: OT | AMF18: DT | AMG18: Total | AMH18: ST | AMI18: OT | AMJ18: DT | AMK18: Total | AML18: ST | AMM18: OT | AMN18: DT | AMO18: Total | AMP18: ST | AMQ18: OT | AMR18: DT | AMS18: Total | AMT18: ST | AMU18: OT | AMV18: DT | AMW18: Total | AMX18: ST | AMY18: OT | AMZ18: DT | ANA18: Total | ANB18: ST | ANC18: OT | AND18: DT | ANE18: Total | ANF18: ST | ANG18: OT | ANH18: DT | ANI18: Total | ANJ18: ST | ANK18: OT | ANL18: DT | ANM18: Total | ANN18: ST | ANO18: OT | ANP18: DT | ANQ18: Total | ANR18: ST | ANS18: OT | ANT18: DT | ANU18: Total | ANV18: ST | ANW18: OT | ANX18: DT | ANY18: Total | ANZ18: ST | AOA18: OT | AOB18: DT | AOC18: Total | AOD18: ST | AOE18: OT | AOF18: DT | AOG18: Total | AOH18: ST | AOI18: OT | AOJ18: DT | AOK18: Total | AOL18: ST | AOM18: OT | AON18: DT | AOO18: Total | AOP18: ST | AOQ18: OT | AOR18: DT | AOS18: Total | AOT18: ST | AOU18: OT | AOV18: DT | AOW18: Total | AOX18: ST | AOY18: OT | AOZ18: DT | APA18: Total | APB18: ST | APC18: OT | APD18: DT | APE18: Total | APF18: ST | APG18: OT | APH18: DT | API18: Total | APJ18: ST | APK18: OT | APL18: DT | APM18: Total | APN18: ST | APO18: OT | APP18: DT | APQ18: Total | APR18: ST | APS18: OT | APT18: DT | APU18: Total | APV18: ST | APW18: OT | APX18: DT | APY18: Total | APZ18: ST | AQA18: OT | AQB18: DT | AQC18: Total | AQD18: ST | AQE18: OT | AQF18: DT | AQG18: Total | AQH18: ST | AQI18: OT | AQJ18: DT | AQK18: Total | AQL18: ST | AQM18: OT | AQN18: DT | AQO18: Total | AQP18: ST | AQQ18: OT | AQR18: DT | AQS18: Total | AQT18: ST | AQU18: OT | AQV18: DT | AQW18: Total | AQX18: ST | AQY18: OT | AQZ18: DT | ARA18: Total
B19: 1 | C19: Troy Bigham | D19: General Foreman | E19: MDR Construction | F19: Bigham | G19: 25-25202A | H19: 2019-08-31 | I19: 2019-09-01 | J19: =IF(AND(H19>='A - Contractor Summary'!$C$36,I19<='A - Contractor Summary'!$C$42),"Yes","No") -> No | K19: =VLOOKUP($D19,'C.1 - Rate Sheets'!B:I,2,FALSE) -> 0 | L19: =VLOOKUP($D19,'C.1 - Rate Sheets'!B:I,3,FALSE) -> 107.42 | M19: =VLOOKUP($D19,'C.1 - Rate Sheets'!B:I,4,FALSE) -> 143.22 | Q19: =SUM(N19:P19) -> 0 | U19: =SUM(R19:T19) -> 0 | Y19: =SUM(V19:X19) -> 0 | AC19: =SUM(Z19:AB19) -> 0 | AG19: =SUM(AD19:AF19) -> 0 | AI19: 13 | AK19: =SUM(AH19:AJ19) -> 13 | AM19: 16 | AO19: =SUM(AL19:AN19) -> 16 | AS19: =SUM(AP19:AR19) -> 0 | AW19: =SUM(AT19:AV19) -> 0 | BA19: =SUM(AX19:AZ19) -> 0 | BE19: =SUM(BB19:BD19) -> 0 | BI19: =SUM(BF19:BH19) -> 0 | BM19: =SUM(BJ19:BL19) -> 0 | BQ19: =SUM(BN19:BP19) -> 0 | BU19: =SUM(BR19:BT19) -> 0 | BY19: =SUM(BV19:BX19) -> 0 | CC19: =SUM(BZ19:CB19) -> 0 | CG19: =SUM(CD19:CF19) -> 0 | CK19: =SUM(CH19:CJ19) -> 0 | CO19: =SUM(CL19:CN19) -> 0 | CS19: =SUM(CP19:CR19) -> 0 | CW19: =SUM(CT19:CV19) -> 0 | DA19: =SUM(CX19:CZ19) -> 0 | DE19: =SUM(DB19:DD19) -> 0 | DI19: =SUM(DF19:DH19) -> 0 | DM19: =SUM(DJ19:DL19) -> 0 | DQ19: =SUM(DN19:DP19) -> 0 | DU19: =SUM(DR19:DT19) -> 0 | DY19: =SUM(DV19:DX19) -> 0 | EC19: =SUM(DZ19:EB19) -> 0 | EG19: =SUM(ED19:EF19) -> 0 | EK19: =SUM(EH19:EJ19) -> 0 | EO19: =SUM(EL19:EN19) -> 0 | ES19: =SUM(EP19:ER19) -> 0 | EW19: =SUM(ET19:EV19) -> 0 | FA19: =SUM(EX19:EZ19) -> 0 | FE19: =SUM(FB19:FD19) -> 0 | FI19: =SUM(FF19:FH19) -> 0 | FM19: =SUM(FJ19:FL19) -> 0 | FQ19: =SUM(FN19:FP19) -> 0 | FU19: =SUM(FR19:FT19) -> 0 | FY19: =SUM(FV19:FX19) -> 0 | GC19: =SUM(FZ19:GB19) -> 0 | GG19: =SUM(GD19:GF19) -> 0 | GK19: =SUM(GH19:GJ19) -> 0 | GO19: =SUM(GL19:GN19) -> 0 | GS19: =SUM(GP19:GR19) -> 0 | GW19: =SUM(GT19:GV19) -> 0 | HA19: =SUM(GX19:GZ19) -> 0 | HE19: =SUM(HB19:HD19) -> 0 | HI19: =SUM(HF19:HH19) -> 0 | HM19: =SUM(HJ19:HL19) -> 0 | HQ19: =SUM(HN19:HP19) -> 0 | HU19: =SUM(HR19:HT19) -> 0 | HY19: =SUM(HV19:HX19) -> 0 | IC19: =SUM(HZ19:IB19) -> 0 | IG19: =SUM(ID19:IF19) -> 0 | IK19: =SUM(IH19:IJ19) -> 0 | IO19: =SUM(IL19:IN19) -> 0 | IS19: =SUM(IP19:IR19) -> 0 | IW19: =SUM(IT19:IV19) -> 0 | JA19: =SUM(IX19:IZ19) -> 0 | JE19: =SUM(JB19:JD19) -> 0 | JI19: =SUM(JF19:JH19) -> 0 | JM19: =SUM(JJ19:JL19) -> 0 | JQ19: =SUM(JN19:JP19) -> 0 | JU19: =SUM(JR19:JT19) -> 0 | JY19: =SUM(JV19:JX19) -> 0 | KC19: =SUM(JZ19:KB19) -> 0 | KG19: =SUM(KD19:KF19) -> 0 | KK19: =SUM(KH19:KJ19) -> 0 | KO19: =SUM(KL19:KN19) -> 0 | KS19: =SUM(KP19:KR19) -> 0 | KW19: =SUM(KT19:KV19) -> 0 | LA19: =SUM(KX19:KZ19) -> 0 | LE19: =SUM(LB19:LD19) -> 0 | LI19: =SUM(LF19:LH19) -> 0 | LM19: =SUM(LJ19:LL19) -> 0 | LQ19: =SUM(LN19:LP19) -> 0 | LU19: =SUM(LR19:LT19) -> 0 | LY19: =SUM(LV19:LX19) -> 0 | MC19: =SUM(LZ19:MB19) -> 0 | MG19: =SUM(MD19:MF19) -> 0 | MK19: =SUM(MH19:MJ19) -> 0 | MO19: =SUM(ML19:MN19) -> 0 | MS19: =SUM(MP19:MR19) -> 0 | MW19: =SUM(MT19:MV19) -> 0 | NA19: =SUM(MX19:MZ19) -> 0 | NE19: =SUM(NB19:ND19) -> 0 | NI19: =SUM(NF19:NH19) -> 0 | NM19: =SUM(NJ19:NL19) -> 0 | NQ19: =SUM(NN19:NP19) -> 0 | NU19: =SUM(NR19:NT19) -> 0 | NY19: =SUM(NV19:NX19) -> 0 | OC19: =SUM(NZ19:OB19) -> 0 | OG19: =SUM(OD19:OF19) -> 0 | OK19: =SUM(OH19:OJ19) -> 0 | OO19: =SUM(OL19:ON19) -> 0 | OS19: =SUM(OP19:OR19) -> 0 | OW19: =SUM(OT19:OV19) -> 0 | PA19: =SUM(OX19:OZ19) -> 0 | PE19: =SUM(PB19:PD19) -> 0 | PI19: =SUM(PF19:PH19) -> 0 | PM19: =SUM(PJ19:PL19) -> 0 | PQ19: =SUM(PN19:PP19) -> 0 | PU19: =SUM(PR19:PT19) -> 0 | PY19: =SUM(PV19:PX19) -> 0 | QC19: =SUM(PZ19:QB19) -> 0 | QG19: =SUM(QD19:QF19) -> 0 | QK19: =SUM(QH19:QJ19) -> 0 | QO19: =SUM(QL19:QN19) -> 0 | QS19: =SUM(QP19:QR19) -> 0 | QW19: =SUM(QT19:QV19) -> 0 | RA19: =SUM(QX19:QZ19) -> 0 | RE19: =SUM(RB19:RD19) -> 0 | RI19: =SUM(RF19:RH19) -> 0 | RM19: =SUM(RJ19:RL19) -> 0 | RQ19: =SUM(RN19:RP19) -> 0 | RU19: =SUM(RR19:RT19) -> 0 | RY19: =SUM(RV19:RX19) -> 0 | SC19: =SUM(RZ19:SB19) -> 0 | SG19: =SUM(SD19:SF19) -> 0 | SK19: =SUM(SH19:SJ19) -> 0 | SO19: =SUM(SL19:SN19) -> 0 | SS19: =SUM(SP19:SR19) -> 0 | SW19: =SUM(ST19:SV19) -> 0 | TA19: =SUM(SX19:SZ19) -> 0 | TE19: =SUM(TB19:TD19) -> 0 | TI19: =SUM(TF19:TH19) -> 0 | TM19: =SUM(TJ19:TL19) -> 0 | TQ19: =SUM(TN19:TP19) -> 0 | TU19: =SUM(TR19:TT19) -> 0 | TY19: =SUM(TV19:TX19) -> 0 | UC19: =SUM(TZ19:UB19) -> 0 | UG19: =SUM(UD19:UF19) -> 0 | UK19: =SUM(UH19:UJ19) -> 0 | UO19: =SUM(UL19:UN19) -> 0 | US19: =SUM(UP19:UR19) -> 0 | UW19: =SUM(UT19:UV19) -> 0 | VA19: =SUM(UX19:UZ19) -> 0 | VE19: =SUM(VB19:VD19) -> 0 | VI19: =SUM(VF19:VH19) -> 0 | VM19: =SUM(VJ19:VL19) -> 0 | VQ19: =SUM(VN19:VP19) -> 0 | VU19: =SUM(VR19:VT19) -> 0 | VY19: =SUM(VV19:VX19) -> 0 | WC19: =SUM(VZ19:WB19) -> 0 | WG19: =SUM(WD19:WF19) -> 0 | WK19: =SUM(WH19:WJ19) -> 0 | WO19: =SUM(WL19:WN19) -> 0 | WS19: =SUM(WP19:WR19) -> 0 | WW19: =SUM(WT19:WV19) -> 0 | XA19: =SUM(WX19:WZ19) -> 0 | XE19: =SUM(XB19:XD19) -> 0 | XI19: =SUM(XF19:XH19) -> 0 | XM19: =SUM(XJ19:XL19) -> 0 | XQ19: =SUM(XN19:XP19) -> 0 | XU19: =SUM(XR19:XT19) -> 0 | XY19: =SUM(XV19:XX19) -> 0 | YC19: =SUM(XZ19:YB19) -> 0 | YG19: =SUM(YD19:YF19) -> 0 | YK19: =SUM(YH19:YJ19) -> 0 | YO19: =SUM(YL19:YN19) -> 0 | YS19: =SUM(YP19:YR19) -> 0 | YW19: =SUM(YT19:YV19) -> 0 | ZA19: =SUM(YX19:YZ19) -> 0 | ZE19: =SUM(ZB19:ZD19) -> 0 | ZI19: =SUM(ZF19:ZH19) -> 0 | ZM19: =SUM(ZJ19:ZL19) -> 0 | ZQ19: =SUM(ZN19:ZP19) -> 0 | ZU19: =SUM(ZR19:ZT19) -> 0 | ZY19: =SUM(ZV19:ZX19) -> 0 | AAC19: =SUM(ZZ19:AAB19) -> 0 | AAG19: =SUM(AAD19:AAF19) -> 0 | AAK19: =SUM(AAH19:AAJ19) -> 0 | AAO19: =SUM(AAL19:AAN19) -> 0 | AAS19: =SUM(AAP19:AAR19) -> 0 | AAW19: =SUM(AAT19:AAV19) -> 0 | ABA19: =SUM(AAX19:AAZ19) -> 0 | ABE19: =SUM(ABB19:ABD19) -> 0 | ABI19: =SUM(ABF19:ABH19) -> 0 | ABM19: =SUM(ABJ19:ABL19) -> 0 | ABQ19: =SUM(ABN19:ABP19) -> 0 | ABU19: =SUM(ABR19:ABT19) -> 0 | ABY19: =SUM(ABV19:ABX19) -> 0 | ACC19: =SUM(ABZ19:ACB19) -> 0 | ACG19: =SUM(ACD19:ACF19) -> 0 | ACK19: =SUM(ACH19:ACJ19) -> 0 | ACO19: =SUM(ACL19:ACN19) -> 0 | ACS19: =SUM(ACP19:ACR19) -> 0 | ACW19: =SUM(ACT19:ACV19) -> 0 | ADA19: =SUM(ACX19:ACZ19) -> 0 | ADE19: =SUM(ADB19:ADD19) -> 0 | ADI19: =SUM(ADF19:ADH19) -> 0 | ADM19: =SUM(ADJ19:ADL19) -> 0 | ADQ19: =SUM(ADN19:ADP19) -> 0 | ADU19: =SUM(ADR19:ADT19) -> 0 | ADY19: =SUM(ADV19:ADX19) -> 0 | AEC19: =SUM(ADZ19:AEB19) -> 0 | AEG19: =SUM(AED19:AEF19) -> 0 | AEK19: =SUM(AEH19:AEJ19) -> 0 | AEO19: =SUM(AEL19:AEN19) -> 0 | AES19: =SUM(AEP19:AER19) -> 0 | AEW19: =SUM(AET19:AEV19) -> 0 | AFA19: =SUM(AEX19:AEZ19) -> 0 | AFE19: =SUM(AFB19:AFD19) -> 0 | AFI19: =SUM(AFF19:AFH19) -> 0 | AFM19: =SUM(AFJ19:AFL19) -> 0 | AFQ19: =SUM(AFN19:AFP19) -> 0 | AFU19: =SUM(AFR19:AFT19) -> 0 | AFY19: =SUM(AFV19:AFX19) -> 0 | AGC19: =SUM(AFZ19:AGB19) -> 0 | AGG19: =SUM(AGD19:AGF19) -> 0 | AGK19: =SUM(AGH19:AGJ19) -> 0 | AGO19: =SUM(AGL19:AGN19) -> 0 | AGS19: =SUM(AGP19:AGR19) -> 0 | AGW19: =SUM(AGT19:AGV19) -> 0 | AHA19: =SUM(AGX19:AGZ19) -> 0 | AHE19: =SUM(AHB19:AHD19) -> 0 | AHI19: =SUM(AHF19:AHH19) -> 0 | AHM19: =SUM(AHJ19:AHL19) -> 0 | AHQ19: =SUM(AHN19:AHP19) -> 0 | AHU19: =SUM(AHR19:AHT19) -> 0 | AHY19: =SUM(AHV19:AHX19) -> 0 | AIC19: =SUM(AHZ19:AIB19) -> 0 | AIG19: =SUM(AID19:AIF19) -> 0 | AIK19: =SUM(AIH19:AIJ19) -> 0 | AIO19: =SUM(AIL19:AIN19) -> 0 | AIS19: =SUM(AIP19:AIR19) -> 0 | AIW19: =SUM(AIT19:AIV19) -> 0 | AJA19: =SUM(AIX19:AIZ19) -> 0 | AJE19: =SUM(AJB19:AJD19) -> 0 | AJI19: =SUM(AJF19:AJH19) -> 0 | AJM19: =SUM(AJJ19:AJL19) -> 0 | AJQ19: =SUM(AJN19:AJP19) -> 0 | AJU19: =SUM(AJR19:AJT19) -> 0 | AJY19: =SUM(AJV19:AJX19) -> 0 | AKC19: =SUM(AJZ19:AKB19) -> 0 | AKG19: =SUM(AKD19:AKF19) -> 0 | AKK19: =SUM(AKH19:AKJ19) -> 0 | AKO19: =SUM(AKL19:AKN19) -> 0 | AKS19: =SUM(AKP19:AKR19) -> 0 | AKW19: =SUM(AKT19:AKV19) -> 0 | ALA19: =SUM(AKX19:AKZ19) -> 0 | ALE19: =SUM(ALB19:ALD19) -> 0 | ALI19: =SUM(ALF19:ALH19) -> 0 | ALM19: =SUM(ALJ19:ALL19) -> 0 | ALQ19: =SUM(ALN19:ALP19) -> 0 | ALU19: =SUM(ALR19:ALT19) -> 0 | ALY19: =SUM(ALV19:ALX19) -> 0 | AMC19: =SUM(ALZ19:AMB19) -> 0 | AMG19: =SUM(AMD19:AMF19) -> 0 | AMK19: =SUM(AMH19:AMJ19) -> 0 | AMO19: =SUM(AML19:AMN19) -> 0 | AMS19: =SUM(AMP19:AMR19) -> 0 | AMW19: =SUM(AMT19:AMV19) -> 0 | ANA19: =SUM(AMX19:AMZ19) -> 0 | ANE19: =SUM(ANB19:AND19) -> 0 | ANI19: =SUM(ANF19:ANH19) -> 0 | ANM19: =SUM(ANJ19:ANL19) -> 0 | ANQ19: =SUM(ANN19:ANP19) -> 0 | ANU19: =SUM(ANR19:ANT19) -> 0 | ANY19: =SUM(ANV19:ANX19) -> 0 | AOC19: =SUM(ANZ19:AOB19) -> 0 | AOG19: =SUM(AOD19:AOF19) -> 0 | AOK19: =SUM(AOH19:AOJ19) -> 0 | AOO19: =SUM(AOL19:AON19) -> 0 | AOS19: =SUM(AOP19:AOR19) -> 0 | AOW19: =SUM(AOT19:AOV19) -> 0 | APA19: =SUM(AOX19:AOZ19) -> 0 | APE19: =SUM(APB19:APD19) -> 0 | API19: =SUM(APF19:APH19) -> 0 | APM19: =SUM(APJ19:APL19) -> 0 | APQ19: =SUM(APN19:APP19) -> 0 | APU19: =SUM(APR19:APT19) -> 0 | APY19: =SUM(APV19:APX19) -> 0 | AQC19: =SUM(APZ19:AQB19) -> 0 | AQG19: =SUM(AQD19:AQF19) -> 0 | AQK19: =SUM(AQH19:AQJ19) -> 0 | AQO19: =SUM(AQL19:AQN19) -> 0 | AQS19: =SUM(AQP19:AQR19) -> 0 | AQW19: =SUM(AQT19:AQV19) -> 0 | ARA19: =SUM(AQX19:AQZ19) -> 0 | ARB19: =SUM(N19,R19,V19,Z19,AD19,AH19,AL19,AP19,AT19,AX19,BB19,BF19,BJ19,BN19,BR19,BV19,BZ19,CD19,CH19,CL19,CP19,CT19,CX19,DB19,DF19,DJ19,DN19,DR19,DV19,DZ19,ED19,EH19,EL19,EP19,ET19,EX19,FB19,FF19,FJ19,FN19,FR19,FV19,FZ19,GD19,GH19,GL19,GP19,GT19,GX19,HB19,HF19,HJ19,HN19,HR19,HV19,HZ19,ID19,IH19,IL19,IP19,IT19,IX19,JB19,JF19,JJ19,JN19,JR19,JV19,JZ19,KD19,KH19,KL19,KP19,KT19,KX19,LB19,LF19,LJ19,LN19,LR19,LV19,LZ19,MD19,MH19,ML19,MP19,MT19,MX19,NB19,NF19,NJ19,NN19,NR19,NV19,NZ19,OD19,OH19,OL19,OP19,OT19,OX19,PB19,PF19,PJ19,PN19,PR19,PV19,PZ19,QD19,QH19,QL19,QP19,QT19,QX19,RB19,RF19,RJ19,RN19,RR19,RV19,RZ19,SD19,SH19,SL19,SP19,ST19,SX19,TB19,TF19,TJ19,TN19,TR19,TV19,TZ19,UD19,UH19,UL19,UP19,UT19,UX19,VB19,VF19,VJ19,VN19,VR19,VV19,VZ19,WD19,WH19,WL19,WP19,WT19,WX19,XB19,XF19,XJ19,XN19,XR19,XV19,XZ19,YD19,YH19,YL19,YP19,YT19,YX19,ZB19,ZF19,ZJ19,ZN19,ZR19,ZV19,ZZ19,AAD19,AAH19,AAL19,AAP19,AAT19,AAX19,ABB19,ABF19,ABJ19,ABN19,ABR19,ABV19,ABZ19,ACD19,ACH19,ACL19,ACP19,ACT19,ACX19,ADB19,ADF19,ADJ19,ADN19,ADR19,ADV19,ADZ19,AED19,AEH19,AEL19,AEP19,AET19,AEX19,AFB19,AFF19,AFJ19,AFN19,AFR19,AFV19,AFZ19,AGD19,AGH19,AGL19,AGP19,AGT19,AGX19,AHB19,AHF19,AHJ19,AHN19,AHR19,AHV19,AHZ19,AID19,AIH19,AIL19,AIP19,AIT19,AIX19,AJB19,AJF19,AJJ19,AJN19,AJR19,AJV19,AJZ19,AKD19,AKH19,AKL19,AKP19,AKT19,AKX19,ALB19,ALF19,ALJ19,ALN19,ALR19,ALV19,ALZ19,AMD19,AMH19,AML19,AMP19)+AMT19+AMX19+SUM(ANB19,ANF19,ANJ19,ANN19,ANR19,ANV19,ANZ19,AOD19,AOH19,AOL19,AOP19,AOT19,AOX19,APB19,APF19,APJ19,APN19,APR19,APV19,APZ19,AQD19,AQH19,AQL19,AQP19,AQT19,AQX19) -> 0 | ARC19: =SUM(O19,S19,W19,AA19,AE19,AI19,AM19,AQ19,AU19,AY19,BC19,BG19,BK19,BO19,BS19,BW19,CA19,CE19,CI19,CM19,CQ19,CU19,CY19,DC19,DG19,DK19,DO19,DS19,DW19,EA19,EE19,EI19,EM19,EQ19,EU19,EY19,FC19,FG19,FK19,FO19,FS19,FW19,GA19,GE19,GI19,GM19,GQ19,GU19,GY19,HC19,HG19,HK19,HO19,HS19,HW19,IA19,IE19,II19,IM19,IQ19,IU19,IY19,JC19,JG19,JK19,JO19,JS19,JW19,KA19,KE19,KI19,KM19,KQ19,KU19,KY19,LC19,LG19,LK19,LO19,LS19,LW19,MA19,ME19,MI19,MM19,MQ19,MU19,MY19,NC19,NG19,NK19,NO19,NS19,NW19,OA19,OE19,OI19,OM19,OQ19,OU19,OY19,PC19,PG19,PK19,PO19,PS19,PW19,QA19,QE19,QI19,QM19,QQ19,QU19,QY19,RC19,RG19,RK19,RO19,RS19,RW19,SA19,SE19,SI19,SM19,SQ19,SU19,SY19,TC19,TG19,TK19,TO19,TS19,TW19,UA19,UE19,UI19,UM19,UQ19,UU19,UY19,VC19,VG19,VK19,VO19,VS19,VW19,WA19,WE19,WI19,WM19,WQ19,WU19,WY19,XC19,XG19,XK19,XO19,XS19,XW19,YA19,YE19,YI19,YM19,YQ19,YU19,YY19,ZC19,ZG19,ZK19,ZO19,ZS19,ZW19,AAA19,AAE19,AAI19,AAM19,AAQ19,AAU19,AAY19,ABC19,ABG19,ABK19,ABO19,ABS19,ABW19,ACA19,ACE19,ACI19,ACM19,ACQ19,ACU19,ACY19,ADC19,ADG19,ADK19,ADO19,ADS19,ADW19,AEA19,AEE19,AEI19,AEM19,AEQ19,AEU19,AEY19,AFC19,AFG19,AFK19,AFO19,AFS19,AFW19,AGA19,AGE19,AGI19,AGM19,AGQ19,AGU19,AGY19,AHC19,AHG19,AHK19,AHO19,AHS19,AHW19,AIA19,AIE19,AII19,AIM19,AIQ19,AIU19,AIY19,AJC19,AJG19,AJK19,AJO19,AJS19,AJW19,AKA19,AKE19,AKI19,AKM19,AKQ19,AKU19,AKY19,ALC19,ALG19,ALK19,ALO19,ALS19,ALW19,AMA19,AME19,AMI19,AMM19,AMQ19)+AMU19+AMY19+SUM(ANC19,ANG19,ANK19,ANO19,ANS19,ANW19,AOA19,AOE19,AOI19,AOM19,AOQ19,AOU19,AOY19,APC19,APG19,APK19,APO19,APS19,APW19,AQA19,AQE19,AQI19,AQM19,AQQ19,AQU19,AQY19) -> 29 | ARD19: =SUM(P19,T19,X19,AB19,AF19,AJ19,AN19,AR19,AV19,AZ19,BD19,BH19,BL19,BP19,BT19,BX19,CB19,CF19,CJ19,CN19,CR19,CV19,CZ19,DD19,DH19,DL19,DP19,DT19,DX19,EB19,EF19,EJ19,EN19,ER19,EV19,EZ19,FD19,FH19,FL19,FP19,FT19,FX19,GB19,GF19,GJ19,GN19,GR19,GV19,GZ19,HD19,HH19,HL19,HP19,HT19,HX19,IB19,IF19,IJ19,IN19,IR19,IV19,IZ19,JD19,JH19,JL19,JP19,JT19,JX19,KB19,KF19,KJ19,KN19,KR19,KV19,KZ19,LD19,LH19,LL19,LP19,LT19,LX19,MB19,MF19,MJ19,MN19,MR19,MV19,MZ19,ND19,NH19,NL19,NP19,NT19,NX19,OB19,OF19,OJ19,ON19,OR19,OV19,OZ19,PD19,PH19,PL19,PP19,PT19,PX19,QB19,QF19,QJ19,QN19,QR19,QV19,QZ19,RD19,RH19,RL19,RP19,RT19,RX19,SB19,SF19,SJ19,SN19,SR19,SV19,SZ19,TD19,TH19,TL19,TP19,TT19,TX19,UB19,UF19,UJ19,UN19,UR19,UV19,UZ19,VD19,VH19,VL19,VP19,VT19,VX19,WB19,WF19,WJ19,WN19,WR19,WV19,WZ19,XD19,XH19,XL19,XP19,XT19,XX19,YB19,YF19,YJ19,YN19,YR19,YV19,YZ19,ZD19,ZH19,ZL19,ZP19,ZT19,ZX19,AAB19,AAF19,AAJ19,AAN19,AAR19,AAV19,AAZ19,ABD19,ABH19,ABL19,ABP19,ABT19,ABX19,ACB19,ACF19,ACJ19,ACN19,ACR19,ACV19,ACZ19,ADD19,ADH19,ADL19,ADP19,ADT19,ADX19,AEB19,AEF19,AEJ19,AEN19,AER19,AEV19,AEZ19,AFD19,AFH19,AFL19,AFP19,AFT19,AFX19,AGB19,AGF19,AGJ19,AGN19,AGR19,AGV19,AGZ19,AHD19,AHH19,AHL19,AHP19,AHT19,AHX19,AIB19,AIF19,AIJ19,AIN19,AIR19,AIV19,AIZ19,AJD19,AJH19,AJL19,AJP19,AJT19,AJX19,AKB19,AKF19,AKJ19,AKN19,AKR19,AKV19,AKZ19,ALD19,ALH19,ALL19,ALP19,ALT19,ALX19,AMB19,AMF19,AMJ19,AMN19,AMR19)+AMV19+AMZ19+SUM(AND19,ANH19,ANL19,ANP19,ANT19,ANX19,AOB19,AOF19,AOJ19,AON19,AOR19,AOV19,AOZ19,APD19,APH19,APL19,APP19,APT19,APX19,AQB19,AQF19,AQJ19,AQN19,AQR19,AQV19,AQZ19) -> 0 | ARE19: =SUM(Q19,U19,Y19,AC19,AG19,AK19,AO19,AS19,AW19,BA19,BE19,BI19,BM19,BQ19,BU19,BY19,CC19,CG19,CK19,CO19,CS19,CW19,DA19,DE19,DI19,DM19,DQ19,DU19,DY19,EC19,EG19,EK19,EO19,ES19,EW19,FA19,FE19,FI19,FM19,FQ19,FU19,FY19,GC19,GG19,GK19,GO19,GS19,GW19,HA19,HE19,HI19,HM19,HQ19,HU19,HY19,IC19,IG19,IK19,IO19,IS19,IW19,JA19,JE19,JI19,JM19,JQ19,JU19,JY19,KC19,KG19,KK19,KO19,KS19,KW19,LA19,LE19,LI19,LM19,LQ19,LU19,LY19,MC19,MG19,MK19,MO19,MS19,MW19,NA19,NE19,NI19,NM19,NQ19,NU19,NY19,OC19,OG19,OK19,OO19,OS19,OW19,PA19,PE19,PI19,PM19,PQ19,PU19,PY19,QC19,QG19,QK19,QO19,QS19,QW19,RA19,RE19,RI19,RM19,RQ19,RU19,RY19,SC19,SG19,SK19,SO19,SS19,SW19,TA19,TE19,TI19,TM19,TQ19,TU19,TY19,UC19,UG19,UK19,UO19,US19,UW19,VA19,VE19,VI19,VM19,VQ19,VU19,VY19,WC19,WG19,WK19,WO19,WS19,WW19,XA19,XE19,XI19,XM19,XQ19,XU19,XY19,YC19,YG19,YK19,YO19,YS19,YW19,ZA19,ZE19,ZI19,ZM19,ZQ19,ZU19,ZY19,AAC19,AAG19,AAK19,AAO19,AAS19,AAW19,ABA19,ABE19,ABI19,ABM19,ABQ19,ABU19,ABY19,ACC19,ACG19,ACK19,ACO19,ACS19,ACW19,ADA19,ADE19,ADI19,ADM19,ADQ19,ADU19,ADY19,AEC19,AEG19,AEK19,AEO19,AES19,AEW19,AFA19,AFE19,AFI19,AFM19,AFQ19,AFU19,AFY19,AGC19,AGG19,AGK19,AGO19,AGS19,AGW19,AHA19,AHE19,AHI19,AHM19,AHQ19,AHU19,AHY19,AIC19,AIG19,AIK19,AIO19,AIS19,AIW19,AJA19,AJE19,AJI19,AJM19,AJQ19,AJU19,AJY19,AKC19,AKG19,AKK19,AKO19,AKS19,AKW19,ALA19,ALE19,ALI19,ALM19,ALQ19,ALU19,ALY19,AMC19,AMG19,AMK19,AMO19,AMS19)+AMW19+ANA19+SUM(ANE19,ANI19,ANM19,ANQ19,ANU19,ANY19,AOC19,AOG19,AOK19,AOO19,AOS19,AOW19,APA19,APE19,API19,APM19,APQ19,APU19,APY19,AQC19,AQG19,AQK19,AQO19,AQS19,AQW19,ARA19) -> 29 | ARF19: =ARB19*K19 -> 0 | ARG19: =ARC19*L19 -> 3115.18 | ARH19: =ARD19*M19 -> 0 | ARI19: =SUM(ARF19:ARH19) -> 3115.18 | ARJ19: =ARI19-ARL19 -> 3115.18 | ARK19: Yes | ARL19: 0 | ARM19: 0 | ARN19: 0
B20: 1 | C20: Brian Barnett | D20: General Foreman | E20: MDR Construction | F20: Bigham | G20: 25-25202A | H20: 2019-08-31 | I20: 2019-09-01 | J20: =IF(AND(H20>='A - Contractor Summary'!$C$36,I20<='A - Contractor Summary'!$C$42),"Yes","No") -> No | K20: =VLOOKUP($D20,'C.1 - Rate Sheets'!B:I,2,FALSE) -> 0 | L20: =VLOOKUP($D20,'C.1 - Rate Sheets'!B:I,3,FALSE) -> 107.42 | M20: =VLOOKUP($D20,'C.1 - Rate Sheets'!B:I,4,FALSE) -> 143.22 | Q20: =SUM(N20:P20) -> 0 | U20: =SUM(R20:T20) -> 0 | Y20: =SUM(V20:X20) -> 0 | AC20: =SUM(Z20:AB20) -> 0 | AG20: =SUM(AD20:AF20) -> 0 | AI20: 16 | AK20: =SUM(AH20:AJ20) -> 16 | AM20: 16 | AO20: =SUM(AL20:AN20) -> 16 | AS20: =SUM(AP20:AR20) -> 0 | AW20: =SUM(AT20:AV20) -> 0 | BA20: =SUM(AX20:AZ20) -> 0 | BE20: =SUM(BB20:BD20) -> 0 | BI20: =SUM(BF20:BH20) -> 0 | BM20: =SUM(BJ20:BL20) -> 0 | BQ20: =SUM(BN20:BP20) -> 0 | BU20: =SUM(BR20:BT20) -> 0 | BY20: =SUM(BV20:BX20) -> 0 | CC20: =SUM(BZ20:CB20) -> 0 | CG20: =SUM(CD20:CF20) -> 0 | CK20: =SUM(CH20:CJ20) -> 0 | CO20: =SUM(CL20:CN20) -> 0 | CS20: =SUM(CP20:CR20) -> 0 | CW20: =SUM(CT20:CV20) -> 0 | DA20: =SUM(CX20:CZ20) -> 0 | DE20: =SUM(DB20:DD20) -> 0 | DI20: =SUM(DF20:DH20) -> 0 | DM20: =SUM(DJ20:DL20) -> 0 | DQ20: =SUM(DN20:DP20) -> 0 | DU20: =SUM(DR20:DT20) -> 0 | DY20: =SUM(DV20:DX20) -> 0 | EC20: =SUM(DZ20:EB20) -> 0 | EG20: =SUM(ED20:EF20) -> 0 | EK20: =SUM(EH20:EJ20) -> 0 | EO20: =SUM(EL20:EN20) -> 0 | ES20: =SUM(EP20:ER20) -> 0 | EW20: =SUM(ET20:EV20) -> 0 | FA20: =SUM(EX20:EZ20) -> 0 | FE20: =SUM(FB20:FD20) -> 0 | FI20: =SUM(FF20:FH20) -> 0 | FM20: =SUM(FJ20:FL20) -> 0 | FQ20: =SUM(FN20:FP20) -> 0 | FU20: =SUM(FR20:FT20) -> 0 | FY20: =SUM(FV20:FX20) -> 0 | GC20: =SUM(FZ20:GB20) -> 0 | GG20: =SUM(GD20:GF20) -> 0 | GK20: =SUM(GH20:GJ20) -> 0 | GO20: =SUM(GL20:GN20) -> 0 | GS20: =SUM(GP20:GR20) -> 0 | GW20: =SUM(GT20:GV20) -> 0 | HA20: =SUM(GX20:GZ20) -> 0 | HE20: =SUM(HB20:HD20) -> 0 | HI20: =SUM(HF20:HH20) -> 0 | HM20: =SUM(HJ20:HL20) -> 0 | HQ20: =SUM(HN20:HP20) -> 0 | HU20: =SUM(HR20:HT20) -> 0 | HY20: =SUM(HV20:HX20) -> 0 | IC20: =SUM(HZ20:IB20) -> 0 | IG20: =SUM(ID20:IF20) -> 0 | IK20: =SUM(IH20:IJ20) -> 0 | IO20: =SUM(IL20:IN20) -> 0 | IS20: =SUM(IP20:IR20) -> 0 | IW20: =SUM(IT20:IV20) -> 0 | JA20: =SUM(IX20:IZ20) -> 0 | JE20: =SUM(JB20:JD20) -> 0 | JI20: =SUM(JF20:JH20) -> 0 | JM20: =SUM(JJ20:JL20) -> 0 | JQ20: =SUM(JN20:JP20) -> 0 | JU20: =SUM(JR20:JT20) -> 0 | JY20: =SUM(JV20:JX20) -> 0 | KC20: =SUM(JZ20:KB20) -> 0 | KG20: =SUM(KD20:KF20) -> 0 | KK20: =SUM(KH20:KJ20) -> 0 | KO20: =SUM(KL20:KN20) -> 0 | KS20: =SUM(KP20:KR20) -> 0 | KW20: =SUM(KT20:KV20) -> 0 | LA20: =SUM(KX20:KZ20) -> 0 | LE20: =SUM(LB20:LD20) -> 0 | LI20: =SUM(LF20:LH20) -> 0 | LM20: =SUM(LJ20:LL20) -> 0 | LQ20: =SUM(LN20:LP20) -> 0 | LU20: =SUM(LR20:LT20) -> 0 | LY20: =SUM(LV20:LX20) -> 0 | MC20: =SUM(LZ20:MB20) -> 0 | MG20: =SUM(MD20:MF20) -> 0 | MK20: =SUM(MH20:MJ20) -> 0 | MO20: =SUM(ML20:MN20) -> 0 | MS20: =SUM(MP20:MR20) -> 0 | MW20: =SUM(MT20:MV20) -> 0 | NA20: =SUM(MX20:MZ20) -> 0 | NE20: =SUM(NB20:ND20) -> 0 | NI20: =SUM(NF20:NH20) -> 0 | NM20: =SUM(NJ20:NL20) -> 0 | NQ20: =SUM(NN20:NP20) -> 0 | NU20: =SUM(NR20:NT20) -> 0 | NY20: =SUM(NV20:NX20) -> 0 | OC20: =SUM(NZ20:OB20) -> 0 | OG20: =SUM(OD20:OF20) -> 0 | OK20: =SUM(OH20:OJ20) -> 0 | OO20: =SUM(OL20:ON20) -> 0 | OS20: =SUM(OP20:OR20) -> 0 | OW20: =SUM(OT20:OV20) -> 0 | PA20: =SUM(OX20:OZ20) -> 0 | PE20: =SUM(PB20:PD20) -> 0 | PI20: =SUM(PF20:PH20) -> 0 | PM20: =SUM(PJ20:PL20) -> 0 | PQ20: =SUM(PN20:PP20) -> 0 | PU20: =SUM(PR20:PT20) -> 0 | PY20: =SUM(PV20:PX20) -> 0 | QC20: =SUM(PZ20:QB20) -> 0 | QG20: =SUM(QD20:QF20) -> 0 | QK20: =SUM(QH20:QJ20) -> 0 | QO20: =SUM(QL20:QN20) -> 0 | QS20: =SUM(QP20:QR20) -> 0 | QW20: =SUM(QT20:QV20) -> 0 | RA20: =SUM(QX20:QZ20) -> 0 | RE20: =SUM(RB20:RD20) -> 0 | RI20: =SUM(RF20:RH20) -> 0 | RM20: =SUM(RJ20:RL20) -> 0 | RQ20: =SUM(RN20:RP20) -> 0 | RU20: =SUM(RR20:RT20) -> 0 | RY20: =SUM(RV20:RX20) -> 0 | SC20: =SUM(RZ20:SB20) -> 0 | SG20: =SUM(SD20:SF20) -> 0 | SK20: =SUM(SH20:SJ20) -> 0 | SO20: =SUM(SL20:SN20) -> 0 | SS20: =SUM(SP20:SR20) -> 0 | SW20: =SUM(ST20:SV20) -> 0 | TA20: =SUM(SX20:SZ20) -> 0 | TE20: =SUM(TB20:TD20) -> 0 | TI20: =SUM(TF20:TH20) -> 0 | TM20: =SUM(TJ20:TL20) -> 0 | TQ20: =SUM(TN20:TP20) -> 0 | TU20: =SUM(TR20:TT20) -> 0 | TY20: =SUM(TV20:TX20) -> 0 | UC20: =SUM(TZ20:UB20) -> 0 | UG20: =SUM(UD20:UF20) -> 0 | UK20: =SUM(UH20:UJ20) -> 0 | UO20: =SUM(UL20:UN20) -> 0 | US20: =SUM(UP20:UR20) -> 0 | UW20: =SUM(UT20:UV20) -> 0 | VA20: =SUM(UX20:UZ20) -> 0 | VE20: =SUM(VB20:VD20) -> 0 | VI20: =SUM(VF20:VH20) -> 0 | VM20: =SUM(VJ20:VL20) -> 0 | VQ20: =SUM(VN20:VP20) -> 0 | VU20: =SUM(VR20:VT20) -> 0 | VY20: =SUM(VV20:VX20) -> 0 | WC20: =SUM(VZ20:WB20) -> 0 | WG20: =SUM(WD20:WF20) -> 0 | WK20: =SUM(WH20:WJ20) -> 0 | WO20: =SUM(WL20:WN20) -> 0 | WS20: =SUM(WP20:WR20) -> 0 | WW20: =SUM(WT20:WV20) -> 0 | XA20: =SUM(WX20:WZ20) -> 0 | XE20: =SUM(XB20:XD20) -> 0 | XI20: =SUM(XF20:XH20) -> 0 | XM20: =SUM(XJ20:XL20) -> 0 | XQ20: =SUM(XN20:XP20) -> 0 | XU20: =SUM(XR20:XT20) -> 0 | XY20: =SUM(XV20:XX20) -> 0 | YC20: =SUM(XZ20:YB20) -> 0 | YG20: =SUM(YD20:YF20) -> 0 | YK20: =SUM(YH20:YJ20) -> 0 | YO20: =SUM(YL20:YN20) -> 0 | YS20: =SUM(YP20:YR20) -> 0 | YW20: =SUM(YT20:YV20) -> 0 | ZA20: =SUM(YX20:YZ20) -> 0 | ZE20: =SUM(ZB20:ZD20) -> 0 | ZI20: =SUM(ZF20:ZH20) -> 0 | ZM20: =SUM(ZJ20:ZL20) -> 0 | ZQ20: =SUM(ZN20:ZP20) -> 0 | ZU20: =SUM(ZR20:ZT20) -> 0 | ZY20: =SUM(ZV20:ZX20) -> 0 | AAC20: =SUM(ZZ20:AAB20) -> 0 | AAG20: =SUM(AAD20:AAF20) -> 0 | AAK20: =SUM(AAH20:AAJ20) -> 0 | AAO20: =SUM(AAL20:AAN20) -> 0 | AAS20: =SUM(AAP20:AAR20) -> 0 | AAW20: =SUM(AAT20:AAV20) -> 0 | ABA20: =SUM(AAX20:AAZ20) -> 0 | ABE20: =SUM(ABB20:ABD20) -> 0 | ABI20: =SUM(ABF20:ABH20) -> 0 | ABM20: =SUM(ABJ20:ABL20) -> 0 | ABQ20: =SUM(ABN20:ABP20) -> 0 | ABU20: =SUM(ABR20:ABT20) -> 0 | ABY20: =SUM(ABV20:ABX20) -> 0 | ACC20: =SUM(ABZ20:ACB20) -> 0 | ACG20: =SUM(ACD20:ACF20) -> 0 | ACK20: =SUM(ACH20:ACJ20) -> 0 | ACO20: =SUM(ACL20:ACN20) -> 0 | ACS20: =SUM(ACP20:ACR20) -> 0 | ACW20: =SUM(ACT20:ACV20) -> 0 | ADA20: =SUM(ACX20:ACZ20) -> 0 | ADE20: =SUM(ADB20:ADD20) -> 0 | ADI20: =SUM(ADF20:ADH20) -> 0 | ADM20: =SUM(ADJ20:ADL20) -> 0 | ADQ20: =SUM(ADN20:ADP20) -> 0 | ADU20: =SUM(ADR20:ADT20) -> 0 | ADY20: =SUM(ADV20:ADX20) -> 0 | AEC20: =SUM(ADZ20:AEB20) -> 0 | AEG20: =SUM(AED20:AEF20) -> 0 | AEK20: =SUM(AEH20:AEJ20) -> 0 | AEO20: =SUM(AEL20:AEN20) -> 0 | AES20: =SUM(AEP20:AER20) -> 0 | AEW20: =SUM(AET20:AEV20) -> 0 | AFA20: =SUM(AEX20:AEZ20) -> 0 | AFE20: =SUM(AFB20:AFD20) -> 0 | AFI20: =SUM(AFF20:AFH20) -> 0 | AFM20: =SUM(AFJ20:AFL20) -> 0 | AFQ20: =SUM(AFN20:AFP20) -> 0 | AFU20: =SUM(AFR20:AFT20) -> 0 | AFY20: =SUM(AFV20:AFX20) -> 0 | AGC20: =SUM(AFZ20:AGB20) -> 0 | AGG20: =SUM(AGD20:AGF20) -> 0 | AGK20: =SUM(AGH20:AGJ20) -> 0 | AGO20: =SUM(AGL20:AGN20) -> 0 | AGS20: =SUM(AGP20:AGR20) -> 0 | AGW20: =SUM(AGT20:AGV20) -> 0 | AHA20: =SUM(AGX20:AGZ20) -> 0 | AHE20: =SUM(AHB20:AHD20) -> 0 | AHI20: =SUM(AHF20:AHH20) -> 0 | AHM20: =SUM(AHJ20:AHL20) -> 0 | AHQ20: =SUM(AHN20:AHP20) -> 0 | AHU20: =SUM(AHR20:AHT20) -> 0 | AHY20: =SUM(AHV20:AHX20) -> 0 | AIC20: =SUM(AHZ20:AIB20) -> 0 | AIG20: =SUM(AID20:AIF20) -> 0 | AIK20: =SUM(AIH20:AIJ20) -> 0 | AIO20: =SUM(AIL20:AIN20) -> 0 | AIS20: =SUM(AIP20:AIR20) -> 0 | AIW20: =SUM(AIT20:AIV20) -> 0 | AJA20: =SUM(AIX20:AIZ20) -> 0 | AJE20: =SUM(AJB20:AJD20) -> 0 | AJI20: =SUM(AJF20:AJH20) -> 0 | AJM20: =SUM(AJJ20:AJL20) -> 0 | AJQ20: =SUM(AJN20:AJP20) -> 0 | AJU20: =SUM(AJR20:AJT20) -> 0 | AJY20: =SUM(AJV20:AJX20) -> 0 | AKC20: =SUM(AJZ20:AKB20) -> 0 | AKG20: =SUM(AKD20:AKF20) -> 0 | AKK20: =SUM(AKH20:AKJ20) -> 0 | AKO20: =SUM(AKL20:AKN20) -> 0 | AKS20: =SUM(AKP20:AKR20) -> 0 | AKW20: =SUM(AKT20:AKV20) -> 0 | ALA20: =SUM(AKX20:AKZ20) -> 0 | ALE20: =SUM(ALB20:ALD20) -> 0 | ALI20: =SUM(ALF20:ALH20) -> 0 | ALM20: =SUM(ALJ20:ALL20) -> 0 | ALQ20: =SUM(ALN20:ALP20) -> 0 | ALU20: =SUM(ALR20:ALT20) -> 0 | ALY20: =SUM(ALV20:ALX20) -> 0 | AMC20: =SUM(ALZ20:AMB20) -> 0 | AMG20: =SUM(AMD20:AMF20) -> 0 | AMK20: =SUM(AMH20:AMJ20) -> 0 | AMO20: =SUM(AML20:AMN20) -> 0 | AMS20: =SUM(AMP20:AMR20) -> 0 | AMW20: =SUM(AMT20:AMV20) -> 0 | ANA20: =SUM(AMX20:AMZ20) -> 0 | ANE20: =SUM(ANB20:AND20) -> 0 | ANI20: =SUM(ANF20:ANH20) -> 0 | ANM20: =SUM(ANJ20:ANL20) -> 0 | ANQ20: =SUM(ANN20:ANP20) -> 0 | ANU20: =SUM(ANR20:ANT20) -> 0 | ANY20: =SUM(ANV20:ANX20) -> 0 | AOC20: =SUM(ANZ20:AOB20) -> 0 | AOG20: =SUM(AOD20:AOF20) -> 0 | AOK20: =SUM(AOH20:AOJ20) -> 0 | AOO20: =SUM(AOL20:AON20) -> 0 | AOS20: =SUM(AOP20:AOR20) -> 0 | AOW20: =SUM(AOT20:AOV20) -> 0 | APA20: =SUM(AOX20:AOZ20) -> 0 | APE20: =SUM(APB20:APD20) -> 0 | API20: =SUM(APF20:APH20) -> 0 | APM20: =SUM(APJ20:APL20) -> 0 | APQ20: =SUM(APN20:APP20) -> 0 | APU20: =SUM(APR20:APT20) -> 0 | APY20: =SUM(APV20:APX20) -> 0 | AQC20: =SUM(APZ20:AQB20) -> 0 | AQG20: =SUM(AQD20:AQF20) -> 0 | AQK20: =SUM(AQH20:AQJ20) -> 0 | AQO20: =SUM(AQL20:AQN20) -> 0 | AQS20: =SUM(AQP20:AQR20) -> 0 | AQW20: =SUM(AQT20:AQV20) -> 0 | ARA20: =SUM(AQX20:AQZ20) -> 0 | ARB20: =SUM(N20,R20,V20,Z20,AD20,AH20,AL20,AP20,AT20,AX20,BB20,BF20,BJ20,BN20,BR20,BV20,BZ20,CD20,CH20,CL20,CP20,CT20,CX20,DB20,DF20,DJ20,DN20,DR20,DV20,DZ20,ED20,EH20,EL20,EP20,ET20,EX20,FB20,FF20,FJ20,FN20,FR20,FV20,FZ20,GD20,GH20,GL20,GP20,GT20,GX20,HB20,HF20,HJ20,HN20,HR20,HV20,HZ20,ID20,IH20,IL20,IP20,IT20,IX20,JB20,JF20,JJ20,JN20,JR20,JV20,JZ20,KD20,KH20,KL20,KP20,KT20,KX20,LB20,LF20,LJ20,LN20,LR20,LV20,LZ20,MD20,MH20,ML20,MP20,MT20,MX20,NB20,NF20,NJ20,NN20,NR20,NV20,NZ20,OD20,OH20,OL20,OP20,OT20,OX20,PB20,PF20,PJ20,PN20,PR20,PV20,PZ20,QD20,QH20,QL20,QP20,QT20,QX20,RB20,RF20,RJ20,RN20,RR20,RV20,RZ20,SD20,SH20,SL20,SP20,ST20,SX20,TB20,TF20,TJ20,TN20,TR20,TV20,TZ20,UD20,UH20,UL20,UP20,UT20,UX20,VB20,VF20,VJ20,VN20,VR20,VV20,VZ20,WD20,WH20,WL20,WP20,WT20,WX20,XB20,XF20,XJ20,XN20,XR20,XV20,XZ20,YD20,YH20,YL20,YP20,YT20,YX20,ZB20,ZF20,ZJ20,ZN20,ZR20,ZV20,ZZ20,AAD20,AAH20,AAL20,AAP20,AAT20,AAX20,ABB20,ABF20,ABJ20,ABN20,ABR20,ABV20,ABZ20,ACD20,ACH20,ACL20,ACP20,ACT20,ACX20,ADB20,ADF20,ADJ20,ADN20,ADR20,ADV20,ADZ20,AED20,AEH20,AEL20,AEP20,AET20,AEX20,AFB20,AFF20,AFJ20,AFN20,AFR20,AFV20,AFZ20,AGD20,AGH20,AGL20,AGP20,AGT20,AGX20,AHB20,AHF20,AHJ20,AHN20,AHR20,AHV20,AHZ20,AID20,AIH20,AIL20,AIP20,AIT20,AIX20,AJB20,AJF20,AJJ20,AJN20,AJR20,AJV20,AJZ20,AKD20,AKH20,AKL20,AKP20,AKT20,AKX20,ALB20,ALF20,ALJ20,ALN20,ALR20,ALV20,ALZ20,AMD20,AMH20,AML20,AMP20)+AMT20+AMX20+SUM(ANB20,ANF20,ANJ20,ANN20,ANR20,ANV20,ANZ20,AOD20,AOH20,AOL20,AOP20,AOT20,AOX20,APB20,APF20,APJ20,APN20,APR20,APV20,APZ20,AQD20,AQH20,AQL20,AQP20,AQT20,AQX20) -> 0 | ARC20: =SUM(O20,S20,W20,AA20,AE20,AI20,AM20,AQ20,AU20,AY20,BC20,BG20,BK20,BO20,BS20,BW20,CA20,CE20,CI20,CM20,CQ20,CU20,CY20,DC20,DG20,DK20,DO20,DS20,DW20,EA20,EE20,EI20,EM20,EQ20,EU20,EY20,FC20,FG20,FK20,FO20,FS20,FW20,GA20,GE20,GI20,GM20,GQ20,GU20,GY20,HC20,HG20,HK20,HO20,HS20,HW20,IA20,IE20,II20,IM20,IQ20,IU20,IY20,JC20,JG20,JK20,JO20,JS20,JW20,KA20,KE20,KI20,KM20,KQ20,KU20,KY20,LC20,LG20,LK20,LO20,LS20,LW20,MA20,ME20,MI20,MM20,MQ20,MU20,MY20,NC20,NG20,NK20,NO20,NS20,NW20,OA20,OE20,OI20,OM20,OQ20,OU20,OY20,PC20,PG20,PK20,PO20,PS20,PW20,QA20,QE20,QI20,QM20,QQ20,QU20,QY20,RC20,RG20,RK20,RO20,RS20,RW20,SA20,SE20,SI20,SM20,SQ20,SU20,SY20,TC20,TG20,TK20,TO20,TS20,TW20,UA20,UE20,UI20,UM20,UQ20,UU20,UY20,VC20,VG20,VK20,VO20,VS20,VW20,WA20,WE20,WI20,WM20,WQ20,WU20,WY20,XC20,XG20,XK20,XO20,XS20,XW20,YA20,YE20,YI20,YM20,YQ20,YU20,YY20,ZC20,ZG20,ZK20,ZO20,ZS20,ZW20,AAA20,AAE20,AAI20,AAM20,AAQ20,AAU20,AAY20,ABC20,ABG20,ABK20,ABO20,ABS20,ABW20,ACA20,ACE20,ACI20,ACM20,ACQ20,ACU20,ACY20,ADC20,ADG20,ADK20,ADO20,ADS20,ADW20,AEA20,AEE20,AEI20,AEM20,AEQ20,AEU20,AEY20,AFC20,AFG20,AFK20,AFO20,AFS20,AFW20,AGA20,AGE20,AGI20,AGM20,AGQ20,AGU20,AGY20,AHC20,AHG20,AHK20,AHO20,AHS20,AHW20,AIA20,AIE20,AII20,AIM20,AIQ20,AIU20,AIY20,AJC20,AJG20,AJK20,AJO20,AJS20,AJW20,AKA20,AKE20,AKI20,AKM20,AKQ20,AKU20,AKY20,ALC20,ALG20,ALK20,ALO20,ALS20,ALW20,AMA20,AME20,AMI20,AMM20,AMQ20)+AMU20+AMY20+SUM(ANC20,ANG20,ANK20,ANO20,ANS20,ANW20,AOA20,AOE20,AOI20,AOM20,AOQ20,AOU20,AOY20,APC20,APG20,APK20,APO20,APS20,APW20,AQA20,AQE20,AQI20,AQM20,AQQ20,AQU20,AQY20) -> 32 | ARD20: =SUM(P20,T20,X20,AB20,AF20,AJ20,AN20,AR20,AV20,AZ20,BD20,BH20,BL20,BP20,BT20,BX20,CB20,CF20,CJ20,CN20,CR20,CV20,CZ20,DD20,DH20,DL20,DP20,DT20,DX20,EB20,EF20,EJ20,EN20,ER20,EV20,EZ20,FD20,FH20,FL20,FP20,FT20,FX20,GB20,GF20,GJ20,GN20,GR20,GV20,GZ20,HD20,HH20,HL20,HP20,HT20,HX20,IB20,IF20,IJ20,IN20,IR20,IV20,IZ20,JD20,JH20,JL20,JP20,JT20,JX20,KB20,KF20,KJ20,KN20,KR20,KV20,KZ20,LD20,LH20,LL20,LP20,LT20,LX20,MB20,MF20,MJ20,MN20,MR20,MV20,MZ20,ND20,NH20,NL20,NP20,NT20,NX20,OB20,OF20,OJ20,ON20,OR20,OV20,OZ20,PD20,PH20,PL20,PP20,PT20,PX20,QB20,QF20,QJ20,QN20,QR20,QV20,QZ20,RD20,RH20,RL20,RP20,RT20,RX20,SB20,SF20,SJ20,SN20,SR20,SV20,SZ20,TD20,TH20,TL20,TP20,TT20,TX20,UB20,UF20,UJ20,UN20,UR20,UV20,UZ20,VD20,VH20,VL20,VP20,VT20,VX20,WB20,WF20,WJ20,WN20,WR20,WV20,WZ20,XD20,XH20,XL20,XP20,XT20,XX20,YB20,YF20,YJ20,YN20,YR20,YV20,YZ20,ZD20,ZH20,ZL20,ZP20,ZT20,ZX20,AAB20,AAF20,AAJ20,AAN20,AAR20,AAV20,AAZ20,ABD20,ABH20,ABL20,ABP20,ABT20,ABX20,ACB20,ACF20,ACJ20,ACN20,ACR20,ACV20,ACZ20,ADD20,ADH20,ADL20,ADP20,ADT20,ADX20,AEB20,AEF20,AEJ20,AEN20,AER20,AEV20,AEZ20,AFD20,AFH20,AFL20,AFP20,AFT20,AFX20,AGB20,AGF20,AGJ20,AGN20,AGR20,AGV20,AGZ20,AHD20,AHH20,AHL20,AHP20,AHT20,AHX20,AIB20,AIF20,AIJ20,AIN20,AIR20,AIV20,AIZ20,AJD20,AJH20,AJL20,AJP20,AJT20,AJX20,AKB20,AKF20,AKJ20,AKN20,AKR20,AKV20,AKZ20,ALD20,ALH20,ALL20,ALP20,ALT20,ALX20,AMB20,AMF20,AMJ20,AMN20,AMR20)+AMV20+AMZ20+SUM(AND20,ANH20,ANL20,ANP20,ANT20,ANX20,AOB20,AOF20,AOJ20,AON20,AOR20,AOV20,AOZ20,APD20,APH20,APL20,APP20,APT20,APX20,AQB20,AQF20,AQJ20,AQN20,AQR20,AQV20,AQZ20) -> 0 | ARE20: =SUM(Q20,U20,Y20,AC20,AG20,AK20,AO20,AS20,AW20,BA20,BE20,BI20,BM20,BQ20,BU20,BY20,CC20,CG20,CK20,CO20,CS20,CW20,DA20,DE20,DI20,DM20,DQ20,DU20,DY20,EC20,EG20,EK20,EO20,ES20,EW20,FA20,FE20,FI20,FM20,FQ20,FU20,FY20,GC20,GG20,GK20,GO20,GS20,GW20,HA20,HE20,HI20,HM20,HQ20,HU20,HY20,IC20,IG20,IK20,IO20,IS20,IW20,JA20,JE20,JI20,JM20,JQ20,JU20,JY20,KC20,KG20,KK20,KO20,KS20,KW20,LA20,LE20,LI20,LM20,LQ20,LU20,LY20,MC20,MG20,MK20,MO20,MS20,MW20,NA20,NE20,NI20,NM20,NQ20,NU20,NY20,OC20,OG20,OK20,OO20,OS20,OW20,PA20,PE20,PI20,PM20,PQ20,PU20,PY20,QC20,QG20,QK20,QO20,QS20,QW20,RA20,RE20,RI20,RM20,RQ20,RU20,RY20,SC20,SG20,SK20,SO20,SS20,SW20,TA20,TE20,TI20,TM20,TQ20,TU20,TY20,UC20,UG20,UK20,UO20,US20,UW20,VA20,VE20,VI20,VM20,VQ20,VU20,VY20,WC20,WG20,WK20,WO20,WS20,WW20,XA20,XE20,XI20,XM20,XQ20,XU20,XY20,YC20,YG20,YK20,YO20,YS20,YW20,ZA20,ZE20,ZI20,ZM20,ZQ20,ZU20,ZY20,AAC20,AAG20,AAK20,AAO20,AAS20,AAW20,ABA20,ABE20,ABI20,ABM20,ABQ20,ABU20,ABY20,ACC20,ACG20,ACK20,ACO20,ACS20,ACW20,ADA20,ADE20,ADI20,ADM20,ADQ20,ADU20,ADY20,AEC20,AEG20,AEK20,AEO20,AES20,AEW20,AFA20,AFE20,AFI20,AFM20,AFQ20,AFU20,AFY20,AGC20,AGG20,AGK20,AGO20,AGS20,AGW20,AHA20,AHE20,AHI20,AHM20,AHQ20,AHU20,AHY20,AIC20,AIG20,AIK20,AIO20,AIS20,AIW20,AJA20,AJE20,AJI20,AJM20,AJQ20,AJU20,AJY20,AKC20,AKG20,AKK20,AKO20,AKS20,AKW20,ALA20,ALE20,ALI20,ALM20,ALQ20,ALU20,ALY20,AMC20,AMG20,AMK20,AMO20,AMS20)+AMW20+ANA20+SUM(ANE20,ANI20,ANM20,ANQ20,ANU20,ANY20,AOC20,AOG20,AOK20,AOO20,AOS20,AOW20,APA20,APE20,API20,APM20,APQ20,APU20,APY20,AQC20,AQG20,AQK20,AQO20,AQS20,AQW20,ARA20) -> 32 | ARF20: =ARB20*K20 -> 0 | ARG20: =ARC20*L20 -> 3437.44 | ARH20: =ARD20*M20 -> 0 | ARI20: =SUM(ARF20:ARH20) -> 3437.44 | ARJ20: =ARI20-ARL20 -> 3437.44 | ARK20: Yes | ARL20: 0 | ARM20: 0 | ARN20: 0
B21: 1 | C21: Al Booher | D21: Safety Coordinator | E21: MDR Construction | F21: Bigham | G21: 25-25202A | H21: 2019-08-31 | I21: 2019-09-01 | J21: =IF(AND(H21>='A - Contractor Summary'!$C$36,I21<='A - Contractor Summary'!$C$42),"Yes","No") -> No | K21: =VLOOKUP($D21,'C.1 - Rate Sheets'!B:I,2,FALSE) -> 0 | L21: =VLOOKUP($D21,'C.1 - Rate Sheets'!B:I,3,FALSE) -> 100.49 | M21: =VLOOKUP($D21,'C.1 - Rate Sheets'!B:I,4,FALSE) -> 133.98 | Q21: 0 | U21: 0 | Y21: 0 | AC21: 0 | AG21: 0 | AI21: 13 | AK21: 13 | AM21: 16 | AO21: 16 | AS21: 0 | AW21: 0 | BA21: 0 | BE21: 0 | BI21: 0 | BM21: 0 | BQ21: 0 | BU21: 0 | BY21: 0 | CC21: 0 | CG21: 0 | CK21: 0 | CO21: 0 | CS21: 0 | CW21: 0 | DA21: 0 | DE21: 0 | DI21: 0 | DM21: 0 | DQ21: 0 | DU21: 0 | DY21: 0 | EC21: 0 | EG21: 0 | EK21: 0 | EO21: 0 | ES21: 0 | EW21: 0 | FA21: 0 | FE21: 0 | FI21: 0 | FM21: 0 | FQ21: 0 | FU21: 0 | FY21: 0 | GC21: 0 | GG21: 0 | GK21: 0 | GO21: 0 | GS21: 0 | GW21: 0 | HA21: 0 | HE21: 0 | HI21: 0 | HM21: 0 | HQ21: 0 | HU21: 0 | HY21: 0 | IC21: 0 | IG21: 0 | IK21: 0 | IO21: 0 | IS21: 0 | IW21: 0 | JA21: 0 | JE21: 0 | JI21: 0 | JM21: 0 | JQ21: 0 | JU21: 0 | JY21: 0 | KC21: 0 | KG21: 0 | KK21: 0 | KO21: 0 | KS21: 0 | KW21: 0 | LA21: 0 | LE21: 0 | LI21: 0 | LM21: 0 | LQ21: 0 | LU21: 0 | LY21: 0 | MC21: 0 | MG21: 0 | MK21: 0 | MO21: 0 | MS21: 0 | MW21: 0 | NA21: 0 | NE21: 0 | NI21: 0 | NM21: 0 | NQ21: 0 | NU21: 0 | NY21: 0 | OC21: 0 | OG21: 0 | OK21: 0 | OO21: 0 | OS21: 0 | OW21: 0 | PA21: 0 | PE21: 0 | PI21: 0 | PM21: 0 | PQ21: 0 | PU21: 0 | PY21: 0 | QC21: 0 | QG21: 0 | QK21: 0 | QO21: 0 | QS21: 0 | QW21: 0 | RA21: 0 | RE21: 0 | RI21: 0 | RM21: 0 | RQ21: 0 | RU21: 0 | RY21: 0 | SC21: 0 | SG21: 0 | SK21: 0 | SO21: 0 | SS21: 0 | SW21: 0 | TA21: 0 | TE21: 0 | TI21: 0 | TM21: 0 | TQ21: 0 | TU21: 0 | TY21: 0 | UC21: 0 | UG21: 0 | UK21: 0 | UO21: 0 | US21: 0 | UW21: 0 | VA21: 0 | VE21: 0 | VI21: 0 | VM21: 0 | VQ21: 0 | VU21: 0 | VY21: 0 | WC21: 0 | WG21: 0 | WK21: 0 | WO21: 0 | WS21: 0 | WW21: 0 | XA21: 0 | XE21: 0 | XI21: 0 | XM21: 0 | XQ21: 0 | XU21: 0 | XY21: 0 | YC21: 0 | YG21: 0 | YK21: 0 | YO21: 0 | YS21: 0 | YW21: 0 | ZA21: 0 | ZE21: 0 | ZI21: 0 | ZM21: 0 | ZQ21: 0 | ZU21: 0 | ZY21: 0 | AAC21: 0 | AAG21: 0 | AAK21: 0 | AAO21: 0 | AAS21: 0 | AAW21: 0 | ABA21: 0 | ABE21: 0 | ABI21: 0 | ABM21: 0 | ABQ21: 0 | ABU21: 0 | ABY21: 0 | ACC21: 0 | ACG21: 0 | ACK21: 0 | ACO21: 0 | ACS21: 0 | ACW21: 0 | ADA21: 0 | ADE21: 0 | ADI21: 0 | ADM21: 0 | ADQ21: 0 | ADU21: 0 | ADY21: 0 | AEC21: 0 | AEG21: 0 | AEK21: 0 | AEO21: 0 | AES21: 0 | AEW21: 0 | AFA21: 0 | AFE21: 0 | AFI21: 0 | AFM21: 0 | AFQ21: 0 | AFU21: 0 | AFY21: 0 | AGC21: 0 | AGG21: 0 | AGK21: 0 | AGO21: 0 | AGS21: 0 | AGW21: 0 | AHA21: 0 | AHE21: 0 | AHI21: 0 | AHM21: 0 | AHQ21: 0 | AHU21: 0 | AHY21: 0 | AIC21: 0 | AIG21: 0 | AIK21: 0 | AIO21: 0 | AIS21: 0 | AIW21: 0 | AJA21: 0 | AJE21: 0 | AJI21: 0 | AJM21: 0 | AJQ21: 0 | AJU21: 0 | AJY21: 0 | AKC21: 0 | AKG21: 0 | AKK21: 0 | AKO21: 0 | AKS21: 0 | AKW21: 0 | ALA21: 0 | ALE21: 0 | ALI21: 0 | ALM21: 0 | ALQ21: 0 | ALU21: 0 | ALY21: 0 | AMC21: 0 | AMG21: 0 | AMK21: 0 | AMO21: 0 | AMS21: 0 | AMW21: 0 | ANA21: 0 | ANE21: 0 | ANI21: 0 | ANM21: 0 | ANQ21: 0 | ANU21: 0 | ANY21: 0 | AOC21: 0 | AOG21: 0 | AOK21: 0 | AOO21: 0 | AOS21: 0 | AOW21: 0 | APA21: 0 | APE21: 0 | API21: 0 | APM21: 0 | APQ21: 0 | APU21: 0 | APY21: 0 | AQC21: 0 | AQG21: 0 | AQK21: 0 | AQO21: 0 | AQS21: 0 | AQW21: 0 | ARA21: 0 | ARB21: 0 | ARC21: 29 | ARD21: 0 | ARE21: 29 | ARF21: 0 | ARG21: 2914.21 | ARH21: 0 | ARI21: 2914.21 | ARJ21: 2914.21 | ARK21: Yes | ARL21: 0 | ARM21: 0 | ARN21: 0
B22: 1 | C22: Peyton Miller | D22: Mechanic | E22: MDR Construction | F22: Bigham | G22: 25-25202A | H22: 2019-08-31 | I22: 2019-09-01 | J22: =IF(AND(H22>='A - Contractor Summary'!$C$36,I22<='A - Contractor Summary'!$C$42),"Yes","No") -> No | K22: =VLOOKUP($D22,'C.1 - Rate Sheets'!B:I,2,FALSE) -> 0 | L22: =VLOOKUP($D22,'C.1 - Rate Sheets'!B:I,3,FALSE) -> 69.99 | M22: =VLOOKUP($D22,'C.1 - Rate Sheets'!B:I,4,FALSE) -> 93.32 | Q22: 0 | U22: 0 | Y22: 0 | AC22: 0 | AG22: 0 | AI22: 13 | AK22: 13 | AM22: 16 | AO22: 16 | AS22: 0 | AW22: 0 | BA22: 0 | BE22: 0 | BI22: 0 | BM22: 0 | BQ22: 0 | BU22: 0 | BY22: 0 | CC22: 0 | CG22: 0 | CK22: 0 | CO22: 0 | CS22: 0 | CW22: 0 | DA22: 0 | DE22: 0 | DI22: 0 | DM22: 0 | DQ22: 0 | DU22: 0 | DY22: 0 | EC22: 0 | EG22: 0 | EK22: 0 | EO22: 0 | ES22: 0 | EW22: 0 | FA22: 0 | FE22: 0 | FI22: 0 | FM22: 0 | FQ22: 0 | FU22: 0 | FY22: 0 | GC22: 0 | GG22: 0 | GK22: 0 | GO22: 0 | GS22: 0 | GW22: 0 | HA22: 0 | HE22: 0 | HI22: 0 | HM22: 0 | HQ22: 0 | HU22: 0 | HY22: 0 | IC22: 0 | IG22: 0 | IK22: 0 | IO22: 0 | IS22: 0 | IW22: 0 | JA22: 0 | JE22: 0 | JI22: 0 | JM22: 0 | JQ22: 0 | JU22: 0 | JY22: 0 | KC22: 0 | KG22: 0 | KK22: 0 | KO22: 0 | KS22: 0 | KW22: 0 | LA22: 0 | LE22: 0 | LI22: 0 | LM22: 0 | LQ22: 0 | LU22: 0 | LY22: 0 | MC22: 0 | MG22: 0 | MK22: 0 | MO22: 0 | MS22: 0 | MW22: 0 | NA22: 0 | NE22: 0 | NI22: 0 | NM22: 0 | NQ22: 0 | NU22: 0 | NY22: 0 | OC22: 0 | OG22: 0 | OK22: 0 | OO22: 0 | OS22: 0 | OW22: 0 | PA22: 0 | PE22: 0 | PI22: 0 | PM22: 0 | PQ22: 0 | PU22: 0 | PY22: 0 | QC22: 0 | QG22: 0 | QK22: 0 | QO22: 0 | QS22: 0 | QW22: 0 | RA22: 0 | RE22: 0 | RI22: 0 | RM22: 0 | RQ22: 0 | RU22: 0 | RY22: 0 | SC22: 0 | SG22: 0 | SK22: 0 | SO22: 0 | SS22: 0 | SW22: 0 | TA22: 0 | TE22: 0 | TI22: 0 | TM22: 0 | TQ22: 0 | TU22: 0 | TY22: 0 | UC22: 0 | UG22: 0 | UK22: 0 | UO22: 0 | US22: 0 | UW22: 0 | VA22: 0 | VE22: 0 | VI22: 0 | VM22: 0 | VQ22: 0 | VU22: 0 | VY22: 0 | WC22: 0 | WG22: 0 | WK22: 0 | WO22: 0 | WS22: 0 | WW22: 0 | XA22: 0 | XE22: 0 | XI22: 0 | XM22: 0 | XQ22: 0 | XU22: 0 | XY22: 0 | YC22: 0 | YG22: 0 | YK22: 0 | YO22: 0 | YS22: 0 | YW22: 0 | ZA22: 0 | ZE22: 0 | ZI22: 0 | ZM22: 0 | ZQ22: 0 | ZU22: 0 | ZY22: 0 | AAC22: 0 | AAG22: 0 | AAK22: 0 | AAO22: 0 | AAS22: 0 | AAW22: 0 | ABA22: 0 | ABE22: 0 | ABI22: 0 | ABM22: 0 | ABQ22: 0 | ABU22: 0 | ABY22: 0 | ACC22: 0 | ACG22: 0 | ACK22: 0 | ACO22: 0 | ACS22: 0 | ACW22: 0 | ADA22: 0 | ADE22: 0 | ADI22: 0 | ADM22: 0 | ADQ22: 0 | ADU22: 0 | ADY22: 0 | AEC22: 0 | AEG22: 0 | AEK22: 0 | AEO22: 0 | AES22: 0 | AEW22: 0 | AFA22: 0 | AFE22: 0 | AFI22: 0 | AFM22: 0 | AFQ22: 0 | AFU22: 0 | AFY22: 0 | AGC22: 0 | AGG22: 0 | AGK22: 0 | AGO22: 0 | AGS22: 0 | AGW22: 0 | AHA22: 0 | AHE22: 0 | AHI22: 0 | AHM22: 0 | AHQ22: 0 | AHU22: 0 | AHY22: 0 | AIC22: 0 | AIG22: 0 | AIK22: 0 | AIO22: 0 | AIS22: 0 | AIW22: 0 | AJA22: 0 | AJE22: 0 | AJI22: 0 | AJM22: 0 | AJQ22: 0 | AJU22: 0 | AJY22: 0 | AKC22: 0 | AKG22: 0 | AKK22: 0 | AKO22: 0 | AKS22: 0 | AKW22: 0 | ALA22: 0 | ALE22: 0 | ALI22: 0 | ALM22: 0 | ALQ22: 0 | ALU22: 0 | ALY22: 0 | AMC22: 0 | AMG22: 0 | AMK22: 0 | AMO22: 0 | AMS22: 0 | AMW22: 0 | ANA22: 0 | ANE22: 0 | ANI22: 0 | ANM22: 0 | ANQ22: 0 | ANU22: 0 | ANY22: 0 | AOC22: 0 | AOG22: 0 | AOK22: 0 | AOO22: 0 | AOS22: 0 | AOW22: 0 | APA22: 0 | APE22: 0 | API22: 0 | APM22: 0 | APQ22: 0 | APU22: 0 | APY22: 0 | AQC22: 0 | AQG22: 0 | AQK22: 0 | AQO22: 0 | AQS22: 0 | AQW22: 0 | ARA22: 0 | ARB22: 0 | ARC22: 29 | ARD22: 0 | ARE22: 29 | ARF22: 0 | ARG22: 2029.71 | ARH22: 0 | ARI22: 2029.71 | ARJ22: 2029.71 | ARK22: Yes | ARL22: 0 | ARM22: 0 | ARN22: 0
B23: 1 | C23: Jonathan Baughman | D23: Safety Coordinator | E23: MDR Construction | F23: Bigham | G23: 25-25202A | H23: 2019-08-31 | I23: 2019-09-01 | J23: =IF(AND(H23>='A - Contractor Summary'!$C$36,I23<='A - Contractor Summary'!$C$42),"Yes","No") -> No | K23: =VLOOKUP($D23,'C.1 - Rate Sheets'!B:I,2,FALSE) -> 0 | L23: =VLOOKUP($D23,'C.1 - Rate Sheets'!B:I,3,FALSE) -> 100.49 | M23: =VLOOKUP($D23,'C.1 - Rate Sheets'!B:I,4,FALSE) -> 133.98 | Q23: 0 | U23: 0 | Y23: 0 | AC23: 0 | AG23: 0 | AI23: 16 | AK23: 16 | AM23: 16 | AO23: 16 | AS23: 0 | AW23: 0 | BA23: 0 | BE23: 0 | BI23: 0 | BM23: 0 | BQ23: 0 | BU23: 0 | BY23: 0 | CC23: 0 | CG23: 0 | CK23: 0 | CO23: 0 | CS23: 0 | CW23: 0 | DA23: 0 | DE23: 0 | DI23: 0 | DM23: 0 | DQ23: 0 | DU23: 0 | DY23: 0 | EC23: 0 | EG23: 0 | EK23: 0 | EO23: 0 | ES23: 0 | EW23: 0 | FA23: 0 | FE23: 0 | FI23: 0 | FM23: 0 | FQ23: 0 | FU23: 0 | FY23: 0 | GC23: 0 | GG23: 0 | GK23: 0 | GO23: 0 | GS23: 0 | GW23: 0 | HA23: 0 | HE23: 0 | HI23: 0 | HM23: 0 | HQ23: 0 | HU23: 0 | HY23: 0 | IC23: 0 | IG23: 0 | IK23: 0 | IO23: 0 | IS23: 0 | IW23: 0 | JA23: 0 | JE23: 0 | JI23: 0 | JM23: 0 | JQ23: 0 | JU23: 0 | JY23: 0 | KC23: 0 | KG23: 0 | KK23: 0 | KO23: 0 | KS23: 0 | KW23: 0 | LA23: 0 | LE23: 0 | LI23: 0 | LM23: 0 | LQ23: 0 | LU23: 0 | LY23: 0 | MC23: 0 | MG23: 0 | MK23: 0 | MO23: 0 | MS23: 0 | MW23: 0 | NA23: 0 | NE23: 0 | NI23: 0 | NM23: 0 | NQ23: 0 | NU23: 0 | NY23: 0 | OC23: 0 | OG23: 0 | OK23: 0 | OO23: 0 | OS23: 0 | OW23: 0 | PA23: 0 | PE23: 0 | PI23: 0 | PM23: 0 | PQ23: 0 | PU23: 0 | PY23: 0 | QC23: 0 | QG23: 0 | QK23: 0 | QO23: 0 | QS23: 0 | QW23: 0 | RA23: 0 | RE23: 0 | RI23: 0 | RM23: 0 | RQ23: 0 | RU23: 0 | RY23: 0 | SC23: 0 | SG23: 0 | SK23: 0 | SO23: 0 | SS23: 0 | SW23: 0 | TA23: 0 | TE23: 0 | TI23: 0 | TM23: 0 | TQ23: 0 | TU23: 0 | TY23: 0 | UC23: 0 | UG23: 0 | UK23: 0 | UO23: 0 | US23: 0 | UW23: 0 | VA23: 0 | VE23: 0 | VI23: 0 | VM23: 0 | VQ23: 0 | VU23: 0 | VY23: 0 | WC23: 0 | WG23: 0 | WK23: 0 | WO23: 0 | WS23: 0 | WW23: 0 | XA23: 0 | XE23: 0 | XI23: 0 | XM23: 0 | XQ23: 0 | XU23: 0 | XY23: 0 | YC23: 0 | YG23: 0 | YK23: 0 | YO23: 0 | YS23: 0 | YW23: 0 | ZA23: 0 | ZE23: 0 | ZI23: 0 | ZM23: 0 | ZQ23: 0 | ZU23: 0 | ZY23: 0 | AAC23: 0 | AAG23: 0 | AAK23: 0 | AAO23: 0 | AAS23: 0 | AAW23: 0 | ABA23: 0 | ABE23: 0 | ABI23: 0 | ABM23: 0 | ABQ23: 0 | ABU23: 0 | ABY23: 0 | ACC23: 0 | ACG23: 0 | ACK23: 0 | ACO23: 0 | ACS23: 0 | ACW23: 0 | ADA23: 0 | ADE23: 0 | ADI23: 0 | ADM23: 0 | ADQ23: 0 | ADU23: 0 | ADY23: 0 | AEC23: 0 | AEG23: 0 | AEK23: 0 | AEO23: 0 | AES23: 0 | AEW23: 0 | AFA23: 0 | AFE23: 0 | AFI23: 0 | AFM23: 0 | AFQ23: 0 | AFU23: 0 | AFY23: 0 | AGC23: 0 | AGG23: 0 | AGK23: 0 | AGO23: 0 | AGS23: 0 | AGW23: 0 | AHA23: 0 | AHE23: 0 | AHI23: 0 | AHM23: 0 | AHQ23: 0 | AHU23: 0 | AHY23: 0 | AIC23: 0 | AIG23: 0 | AIK23: 0 | AIO23: 0 | AIS23: 0 | AIW23: 0 | AJA23: 0 | AJE23: 0 | AJI23: 0 | AJM23: 0 | AJQ23: 0 | AJU23: 0 | AJY23: 0 | AKC23: 0 | AKG23: 0 | AKK23: 0 | AKO23: 0 | AKS23: 0 | AKW23: 0 | ALA23: 0 | ALE23: 0 | ALI23: 0 | ALM23: 0 | ALQ23: 0 | ALU23: 0 | ALY23: 0 | AMC23: 0 | AMG23: 0 | AMK23: 0 | AMO23: 0 | AMS23: 0 | AMW23: 0 | ANA23: 0 | ANE23: 0 | ANI23: 0 | ANM23: 0 | ANQ23: 0 | ANU23: 0 | ANY23: 0 | AOC23: 0 | AOG23: 0 | AOK23: 0 | AOO23: 0 | AOS23: 0 | AOW23: 0 | APA23: 0 | APE23: 0 | API23: 0 | APM23: 0 | APQ23: 0 | APU23: 0 | APY23: 0 | AQC23: 0 | AQG23: 0 | AQK23: 0 | AQO23: 0 | AQS23: 0 | AQW23: 0 | ARA23: 0 | ARB23: 0 | ARC23: 32 | ARD23: 0 | ARE23: 32 | ARF23: 0 | ARG23: 3215.68 | ARH23: 0 | ARI23: 3215.68 | ARJ23: 3215.68 | ARK23: Yes | ARL23: 0 | ARM23: 0 | ARN23: 0
B24: 1 | C24: Kerry Lee | D24: Operator/Truck Driver | E24: MDR Construction | F24: Lee | G24: 25-25202A | H24: 2019-08-31 | I24: 2019-09-01 | J24: =IF(AND(H24>='A - Contractor Summary'!$C$36,I24<='A - Contractor Summary'!$C$42),"Yes","No") -> No | K24: =VLOOKUP($D24,'C.1 - Rate Sheets'!B:I,2,FALSE) -> 46 | L24: =VLOOKUP($D24,'C.1 - Rate Sheets'!B:I,3,FALSE) -> 69.99 | M24: =VLOOKUP($D24,'C.1 - Rate Sheets'!B:I,4,FALSE) -> 93.32 | Q24: 0 | U24: 0 | Y24: 0 | AC24: 0 | AG24: 0 | AK24: 0 | AM24: 16 | AO24: 16 | AS24: 0 | AW24: 0 | BA24: 0 | BE24: 0 | BI24: 0 | BM24: 0 | BQ24: 0 | BU24: 0 | BY24: 0 | CC24: 0 | CG24: 0 | CK24: 0 | CO24: 0 | CS24: 0 | CW24: 0 | DA24: 0 | DE24: 0 | DI24: 0 | DM24: 0 | DQ24: 0 | DU24: 0 | DY24: 0 | EC24: 0 | EG24: 0 | EK24: 0 | EO24: 0 | ES24: 0 | EW24: 0 | FA24: 0 | FE24: 0 | FI24: 0 | FM24: 0 | FQ24: 0 | FU24: 0 | FY24: 0 | GC24: 0 | GG24: 0 | GK24: 0 | GO24: 0 | GS24: 0 | GW24: 0 | HA24: 0 | HE24: 0 | HI24: 0 | HM24: 0 | HQ24: 0 | HU24: 0 | HY24: 0 | IC24: 0 | IG24: 0 | IK24: 0 | IO24: 0 | IS24: 0 | IW24: 0 | JA24: 0 | JE24: 0 | JI24: 0 | JM24: 0 | JQ24: 0 | JU24: 0 | JY24: 0 | KC24: 0 | KG24: 0 | KK24: 0 | KO24: 0 | KS24: 0 | KW24: 0 | LA24: 0 | LE24: 0 | LI24: 0 | LM24: 0 | LQ24: 0 | LU24: 0 | LY24: 0 | MC24: 0 | MG24: 0 | MK24: 0 | MO24: 0 | MS24: 0 | MW24: 0 | NA24: 0 | NE24: 0 | NI24: 0 | NM24: 0 | NQ24: 0 | NU24: 0 | NY24: 0 | OC24: 0 | OG24: 0 | OK24: 0 | OO24: 0 | OS24: 0 | OW24: 0 | PA24: 0 | PE24: 0 | PI24: 0 | PM24: 0 | PQ24: 0 | PU24: 0 | PY24: 0 | QC24: 0 | QG24: 0 | QK24: 0 | QO24: 0 | QS24: 0 | QW24: 0 | RA24: 0 | RE24: 0 | RI24: 0 | RM24: 0 | RQ24: 0 | RU24: 0 | RY24: 0 | SC24: 0 | SG24: 0 | SK24: 0 | SO24: 0 | SS24: 0 | SW24: 0 | TA24: 0 | TE24: 0 | TI24: 0 | TM24: 0 | TQ24: 0 | TU24: 0 | TY24: 0 | UC24: 0 | UG24: 0 | UK24: 0 | UO24: 0 | US24: 0 | UW24: 0 | VA24: 0 | VE24: 0 | VI24: 0 | VM24: 0 | VQ24: 0 | VU24: 0 | VY24: 0 | WC24: 0 | WG24: 0 | WK24: 0 | WO24: 0 | WS24: 0 | WW24: 0 | XA24: 0 | XE24: 0 | XI24: 0 | XM24: 0 | XQ24: 0 | XU24: 0 | XY24: 0 | YC24: 0 | YG24: 0 | YK24: 0 | YO24: 0 | YS24: 0 | YW24: 0 | ZA24: 0 | ZE24: 0 | ZI24: 0 | ZM24: 0 | ZQ24: 0 | ZU24: 0 | ZY24: 0 | AAC24: 0 | AAG24: 0 | AAK24: 0 | AAO24: 0 | AAS24: 0 | AAW24: 0 | ABA24: 0 | ABE24: 0 | ABI24: 0 | ABM24: 0 | ABQ24: 0 | ABU24: 0 | ABY24: 0 | ACC24: 0 | ACG24: 0 | ACK24: 0 | ACO24: 0 | ACS24: 0 | ACW24: 0 | ADA24: 0 | ADE24: 0 | ADI24: 0 | ADM24: 0 | ADQ24: 0 | ADU24: 0 | ADY24: 0 | AEC24: 0 | AEG24: 0 | AEK24: 0 | AEO24: 0 | AES24: 0 | AEW24: 0 | AFA24: 0 | AFE24: 0 | AFI24: 0 | AFM24: 0 | AFQ24: 0 | AFU24: 0 | AFY24: 0 | AGC24: 0 | AGG24: 0 | AGK24: 0 | AGO24: 0 | AGS24: 0 | AGW24: 0 | AHA24: 0 | AHE24: 0 | AHI24: 0 | AHM24: 0 | AHQ24: 0 | AHU24: 0 | AHY24: 0 | AIC24: 0 | AIG24: 0 | AIK24: 0 | AIO24: 0 | AIS24: 0 | AIW24: 0 | AJA24: 0 | AJE24: 0 | AJI24: 0 | AJM24: 0 | AJQ24: 0 | AJU24: 0 | AJY24: 0 | AKC24: 0 | AKG24: 0 | AKK24: 0 | AKO24: 0 | AKS24: 0 | AKW24: 0 | ALA24: 0 | ALE24: 0 | ALI24: 0 | ALM24: 0 | ALQ24: 0 | ALU24: 0 | ALY24: 0 | AMC24: 0 | AMG24: 0 | AMK24: 0 | AMO24: 0 | AMS24: 0 | AMW24: 0 | ANA24: 0 | ANE24: 0 | ANI24: 0 | ANM24: 0 | ANQ24: 0 | ANU24: 0 | ANY24: 0 | AOC24: 0 | AOG24: 0 | AOK24: 0 | AOO24: 0 | AOS24: 0 | AOW24: 0 | APA24: 0 | APE24: 0 | API24: 0 | APM24: 0 | APQ24: 0 | APU24: 0 | APY24: 0 | AQC24: 0 | AQG24: 0 | AQK24: 0 | AQO24: 0 | AQS24: 0 | AQW24: 0 | ARA24: 0 | ARB24: 0 | ARC24: 16 | ARD24: 0 | ARE24: 16 | ARF24: 0 | ARG24: =ARC24*L24 -> 1119.84 | ARH24: 0 | ARI24: 1119.84 | ARJ24: 1119.84 | ARK24: Yes | ARL24: 0 | ARM24: 0 | ARN24: 0
B25: 1 | C25: Warren Lee | D25: Operator/Truck Driver | E25: MDR Construction | F25: Lee | G25: 25-25202A | H25: 2019-08-31 | I25: 2019-09-01 | J25: =IF(AND(H25>='A - Contractor Summary'!$C$36,I25<='A - Contractor Summary'!$C$42),"Yes","No") -> No | K25: =VLOOKUP($D25,'C.1 - Rate Sheets'!B:I,2,FALSE) -> 46 | L25: =VLOOKUP($D25,'C.1 - Rate Sheets'!B:I,3,FALSE) -> 69.99 | M25: =VLOOKUP($D25,'C.1 - Rate Sheets'!B:I,4,FALSE) -> 93.32 | Q25: 0 | U25: 0 | Y25: 0 | AC25: 0 | AG25: 0 | AK25: 0 | AM25: 16 | AO25: 16 | AS25: 0 | AW25: 0 | BA25: 0 | BE25: 0 | BI25: 0 | BM25: 0 | BQ25: 0 | BU25: 0 | BY25: 0 | CC25: 0 | CG25: 0 | CK25: 0 | CO25: 0 | CS25: 0 | CW25: 0 | DA25: 0 | DE25: 0 | DI25: 0 | DM25: 0 | DQ25: 0 | DU25: 0 | DY25: 0 | EC25: 0 | EG25: 0 | EK25: 0 | EO25: 0 | ES25: 0 | EW25: 0 | FA25: 0 | FE25: 0 | FI25: 0 | FM25: 0 | FQ25: 0 | FU25: 0 | FY25: 0 | GC25: 0 | GG25: 0 | GK25: 0 | GO25: 0 | GS25: 0 | GW25: 0 | HA25: 0 | HE25: 0 | HI25: 0 | HM25: 0 | HQ25: 0 | HU25: 0 | HY25: 0 | IC25: 0 | IG25: 0 | IK25: 0 | IO25: 0 | IS25: 0 | IW25: 0 | JA25: 0 | JE25: 0 | JI25: 0 | JM25: 0 | JQ25: 0 | JU25: 0 | JY25: 0 | KC25: 0 | KG25: 0 | KK25: 0 | KO25: 0 | KS25: 0 | KW25: 0 | LA25: 0 | LE25: 0 | LI25: 0 | LM25: 0 | LQ25: 0 | LU25: 0 | LY25: 0 | MC25: 0 | MG25: 0 | MK25: 0 | MO25: 0 | MS25: 0 | MW25: 0 | NA25: 0 | NE25: 0 | NI25: 0 | NM25: 0 | NQ25: 0 | NU25: 0 | NY25: 0 | OC25: 0 | OG25: 0 | OK25: 0 | OO25: 0 | OS25: 0 | OW25: 0 | PA25: 0 | PE25: 0 | PI25: 0 | PM25: 0 | PQ25: 0 | PU25: 0 | PY25: 0 | QC25: 0 | QG25: 0 | QK25: 0 | QO25: 0 | QS25: 0 | QW25: 0 | RA25: 0 | RE25: 0 | RI25: 0 | RM25: 0 | RQ25: 0 | RU25: 0 | RY25: 0 | SC25: 0 | SG25: 0 | SK25: 0 | SO25: 0 | SS25: 0 | SW25: 0 | TA25: 0 | TE25: 0 | TI25: 0 | TM25: 0 | TQ25: 0 | TU25: 0 | TY25: 0 | UC25: 0 | UG25: 0 | UK25: 0 | UO25: 0 | US25: 0 | UW25: 0 | VA25: 0 | VE25: 0 | VI25: 0 | VM25: 0 | VQ25: 0 | VU25: 0 | VY25: 0 | WC25: 0 | WG25: 0 | WK25: 0 | WO25: 0 | WS25: 0 | WW25: 0 | XA25: 0 | XE25: 0 | XI25: 0 | XM25: 0 | XQ25: 0 | XU25: 0 | XY25: 0 | YC25: 0 | YG25: 0 | YK25: 0 | YO25: 0 | YS25: 0 | YW25: 0 | ZA25: 0 | ZE25: 0 | ZI25: 0 | ZM25: 0 | ZQ25: 0 | ZU25: 0 | ZY25: 0 | AAC25: 0 | AAG25: 0 | AAK25: 0 | AAO25: 0 | AAS25: 0 | AAW25: 0 | ABA25: 0 | ABE25: 0 | ABI25: 0 | ABM25: 0 | ABQ25: 0 | ABU25: 0 | ABY25: 0 | ACC25: 0 | ACG25: 0 | ACK25: 0 | ACO25: 0 | ACS25: 0 | ACW25: 0 | ADA25: 0 | ADE25: 0 | ADI25: 0 | ADM25: 0 | ADQ25: 0 | ADU25: 0 | ADY25: 0 | AEC25: 0 | AEG25: 0 | AEK25: 0 | AEO25: 0 | AES25: 0 | AEW25: 0 | AFA25: 0 | AFE25: 0 | AFI25: 0 | AFM25: 0 | AFQ25: 0 | AFU25: 0 | AFY25: 0 | AGC25: 0 | AGG25: 0 | AGK25: 0 | AGO25: 0 | AGS25: 0 | AGW25: 0 | AHA25: 0 | AHE25: 0 | AHI25: 0 | AHM25: 0 | AHQ25: 0 | AHU25: 0 | AHY25: 0 | AIC25: 0 | AIG25: 0 | AIK25: 0 | AIO25: 0 | AIS25: 0 | AIW25: 0 | AJA25: 0 | AJE25: 0 | AJI25: 0 | AJM25: 0 | AJQ25: 0 | AJU25: 0 | AJY25: 0 | AKC25: 0 | AKG25: 0 | AKK25: 0 | AKO25: 0 | AKS25: 0 | AKW25: 0 | ALA25: 0 | ALE25: 0 | ALI25: 0 | ALM25: 0 | ALQ25: 0 | ALU25: 0 | ALY25: 0 | AMC25: 0 | AMG25: 0 | AMK25: 0 | AMO25: 0 | AMS25: 0 | AMW25: 0 | ANA25: 0 | ANE25: 0 | ANI25: 0 | ANM25: 0 | ANQ25: 0 | ANU25: 0 | ANY25: 0 | AOC25: 0 | AOG25: 0 | AOK25: 0 | AOO25: 0 | AOS25: 0 | AOW25: 0 | APA25: 0 | APE25: 0 | API25: 0 | APM25: 0 | APQ25: 0 | APU25: 0 | APY25: 0 | AQC25: 0 | AQG25: 0 | AQK25: 0 | AQO25: 0 | AQS25: 0 | AQW25: 0 | ARA25: 0 | ARB25: 0 | ARC25: 16 | ARD25: 0 | ARE25: 16 | ARF25: 0 | ARG25: 1119.84 | ARH25: 0 | ARI25: 1119.84 | ARJ25: 1119.84 | ARK25: Yes | ARL25: 0 | ARM25: 0 | ARN25: 0
B26: 1 | C26: Michael Baker | D26: Operator/Truck Driver | E26: MDR Construction | F26: Lee | G26: 25-25202A | H26: 2019-08-31 | I26: 2019-09-01 | J26: =IF(AND(H26>='A - Contractor Summary'!$C$36,I26<='A - Contractor Summary'!$C$42),"Yes","No") -> No | K26: =VLOOKUP($D26,'C.1 - Rate Sheets'!B:I,2,FALSE) -> 46 | L26: =VLOOKUP($D26,'C.1 - Rate Sheets'!B:I,3,FALSE) -> 69.99 | M26: =VLOOKUP($D26,'C.1 - Rate Sheets'!B:I,4,FALSE) -> 93.32 | Q26: 0 | U26: 0 | Y26: 0 | AC26: 0 | AG26: 0 | AK26: 0 | AM26: 16 | AO26: 16 | AS26: 0 | AW26: 0 | BA26: 0 | BE26: 0 | BI26: 0 | BM26: 0 | BQ26: 0 | BU26: 0 | BY26: 0 | CC26: 0 | CG26: 0 | CK26: 0 | CO26: 0 | CS26: 0 | CW26: 0 | DA26: 0 | DE26: 0 | DI26: 0 | DM26: 0 | DQ26: 0 | DU26: 0 | DY26: 0 | EC26: 0 | EG26: 0 | EK26: 0 | EO26: 0 | ES26: 0 | EW26: 0 | FA26: 0 | FE26: 0 | FI26: 0 | FM26: 0 | FQ26: 0 | FU26: 0 | FY26: 0 | GC26: 0 | GG26: 0 | GK26: 0 | GO26: 0 | GS26: 0 | GW26: 0 | HA26: 0 | HE26: 0 | HI26: 0 | HM26: 0 | HQ26: 0 | HU26: 0 | HY26: 0 | IC26: 0 | IG26: 0 | IK26: 0 | IO26: 0 | IS26: 0 | IW26: 0 | JA26: 0 | JE26: 0 | JI26: 0 | JM26: 0 | JQ26: 0 | JU26: 0 | JY26: 0 | KC26: 0 | KG26: 0 | KK26: 0 | KO26: 0 | KS26: 0 | KW26: 0 | LA26: 0 | LE26: 0 | LI26: 0 | LM26: 0 | LQ26: 0 | LU26: 0 | LY26: 0 | MC26: 0 | MG26: 0 | MK26: 0 | MO26: 0 | MS26: 0 | MW26: 0 | NA26: 0 | NE26: 0 | NI26: 0 | NM26: 0 | NQ26: 0 | NU26: 0 | NY26: 0 | OC26: 0 | OG26: 0 | OK26: 0 | OO26: 0 | OS26: 0 | OW26: 0 | PA26: 0 | PE26: 0 | PI26: 0 | PM26: 0 | PQ26: 0 | PU26: 0 | PY26: 0 | QC26: 0 | QG26: 0 | QK26: 0 | QO26: 0 | QS26: 0 | QW26: 0 | RA26: 0 | RE26: 0 | RI26: 0 | RM26: 0 | RQ26: 0 | RU26: 0 | RY26: 0 | SC26: 0 | SG26: 0 | SK26: 0 | SO26: 0 | SS26: 0 | SW26: 0 | TA26: 0 | TE26: 0 | TI26: 0 | TM26: 0 | TQ26: 0 | TU26: 0 | TY26: 0 | UC26: 0 | UG26: 0 | UK26: 0 | UO26: 0 | US26: 0 | UW26: 0 | VA26: 0 | VE26: 0 | VI26: 0 | VM26: 0 | VQ26: 0 | VU26: 0 | VY26: 0 | WC26: 0 | WG26: 0 | WK26: 0 | WO26: 0 | WS26: 0 | WW26: 0 | XA26: 0 | XE26: 0 | XI26: 0 | XM26: 0 | XQ26: 0 | XU26: 0 | XY26: 0 | YC26: 0 | YG26: 0 | YK26: 0 | YO26: 0 | YS26: 0 | YW26: 0 | ZA26: 0 | ZE26: 0 | ZI26: 0 | ZM26: 0 | ZQ26: 0 | ZU26: 0 | ZY26: 0 | AAC26: 0 | AAG26: 0 | AAK26: 0 | AAO26: 0 | AAS26: 0 | AAW26: 0 | ABA26: 0 | ABE26: 0 | ABI26: 0 | ABM26: 0 | ABQ26: 0 | ABU26: 0 | ABY26: 0 | ACC26: 0 | ACG26: 0 | ACK26: 0 | ACO26: 0 | ACS26: 0 | ACW26: 0 | ADA26: 0 | ADE26: 0 | ADI26: 0 | ADM26: 0 | ADQ26: 0 | ADU26: 0 | ADY26: 0 | AEC26: 0 | AEG26: 0 | AEK26: 0 | AEO26: 0 | AES26: 0 | AEW26: 0 | AFA26: 0 | AFE26: 0 | AFI26: 0 | AFM26: 0 | AFQ26: 0 | AFU26: 0 | AFY26: 0 | AGC26: 0 | AGG26: 0 | AGK26: 0 | AGO26: 0 | AGS26: 0 | AGW26: 0 | AHA26: 0 | AHE26: 0 | AHI26: 0 | AHM26: 0 | AHQ26: 0 | AHU26: 0 | AHY26: 0 | AIC26: 0 | AIG26: 0 | AIK26: 0 | AIO26: 0 | AIS26: 0 | AIW26: 0 | AJA26: 0 | AJE26: 0 | AJI26: 0 | AJM26: 0 | AJQ26: 0 | AJU26: 0 | AJY26: 0 | AKC26: 0 | AKG26: 0 | AKK26: 0 | AKO26: 0 | AKS26: 0 | AKW26: 0 | ALA26: 0 | ALE26: 0 | ALI26: 0 | ALM26: 0 | ALQ26: 0 | ALU26: 0 | ALY26: 0 | AMC26: 0 | AMG26: 0 | AMK26: 0 | AMO26: 0 | AMS26: 0 | AMW26: 0 | ANA26: 0 | ANE26: 0 | ANI26: 0 | ANM26: 0 | ANQ26: 0 | ANU26: 0 | ANY26: 0 | AOC26: 0 | AOG26: 0 | AOK26: 0 | AOO26: 0 | AOS26: 0 | AOW26: 0 | APA26: 0 | APE26: 0 | API26: 0 | APM26: 0 | APQ26: 0 | APU26: 0 | APY26: 0 | AQC26: 0 | AQG26: 0 | AQK26: 0 | AQO26: 0 | AQS26: 0 | AQW26: 0 | ARA26: 0 | ARB26: 0 | ARC26: 16 | ARD26: 0 | ARE26: 16 | ARF26: 0 | ARG26: 1119.84 | ARH26: 0 | ARI26: 1119.84 | ARJ26: 1119.84 | ARK26: Yes | ARL26: 0 | ARM26: 0 | ARN26: 0
B27: 1 | C27: Jonathan Culpepper | D27: Operator/Truck Driver | E27: MDR Construction | F27: Lee | G27: 25-25202A | H27: 2019-08-31 | I27: 2019-09-01 | J27: =IF(AND(H27>='A - Contractor Summary'!$C$36,I27<='A - Contractor Summary'!$C$42),"Yes","No") -> No | K27: =VLOOKUP($D27,'C.1 - Rate Sheets'!B:I,2,FALSE) -> 46 | L27: =VLOOKUP($D27,'C.1 - Rate Sheets'!B:I,3,FALSE) -> 69.99 | M27: =VLOOKUP($D27,'C.1 - Rate Sheets'!B:I,4,FALSE) -> 93.32 | Q27: 0 | U27: 0 | Y27: 0 | AC27: 0 | AG27: 0 | AI27: 16 | AK27: 16 | AM27: 16 | AO27: 16 | AS27: 0 | AW27: 0 | BA27: 0 | BE27: 0 | BI27: 0 | BM27: 0 | BQ27: 0 | BU27: 0 | BY27: 0 | CC27: 0 | CG27: 0 | CK27: 0 | CO27: 0 | CS27: 0 | CW27: 0 | DA27: 0 | DE27: 0 | DI27: 0 | DM27: 0 | DQ27: 0 | DU27: 0 | DY27: 0 | EC27: 0 | EG27: 0 | EK27: 0 | EO27: 0 | ES27: 0 | EW27: 0 | FA27: 0 | FE27: 0 | FI27: 0 | FM27: 0 | FQ27: 0 | FU27: 0 | FY27: 0 | GC27: 0 | GG27: 0 | GK27: 0 | GO27: 0 | GS27: 0 | GW27: 0 | HA27: 0 | HE27: 0 | HI27: 0 | HM27: 0 | HQ27: 0 | HU27: 0 | HY27: 0 | IC27: 0 | IG27: 0 | IK27: 0 | IO27: 0 | IS27: 0 | IW27: 0 | JA27: 0 | JE27: 0 | JI27: 0 | JM27: 0 | JQ27: 0 | JU27: 0 | JY27: 0 | KC27: 0 | KG27: 0 | KK27: 0 | KO27: 0 | KS27: 0 | KW27: 0 | LA27: 0 | LE27: 0 | LI27: 0 | LM27: 0 | LQ27: 0 | LU27: 0 | LY27: 0 | MC27: 0 | MG27: 0 | MK27: 0 | MO27: 0 | MS27: 0 | MW27: 0 | NA27: 0 | NE27: 0 | NI27: 0 | NM27: 0 | NQ27: 0 | NU27: 0 | NY27: 0 | OC27: 0 | OG27: 0 | OK27: 0 | OO27: 0 | OS27: 0 | OW27: 0 | PA27: 0 | PE27: 0 | PI27: 0 | PM27: 0 | PQ27: 0 | PU27: 0 | PY27: 0 | QC27: 0 | QG27: 0 | QK27: 0 | QO27: 0 | QS27: 0 | QW27: 0 | RA27: 0 | RE27: 0 | RI27: 0 | RM27: 0 | RQ27: 0 | RU27: 0 | RY27: 0 | SC27: 0 | SG27: 0 | SK27: 0 | SO27: 0 | SS27: 0 | SW27: 0 | TA27: 0 | TE27: 0 | TI27: 0 | TM27: 0 | TQ27: 0 | TU27: 0 | TY27: 0 | UC27: 0 | UG27: 0 | UK27: 0 | UO27: 0 | US27: 0 | UW27: 0 | VA27: 0 | VE27: 0 | VI27: 0 | VM27: 0 | VQ27: 0 | VU27: 0 | VY27: 0 | WC27: 0 | WG27: 0 | WK27: 0 | WO27: 0 | WS27: 0 | WW27: 0 | XA27: 0 | XE27: 0 | XI27: 0 | XM27: 0 | XQ27: 0 | XU27: 0 | XY27: 0 | YC27: 0 | YG27: 0 | YK27: 0 | YO27: 0 | YS27: 0 | YW27: 0 | ZA27: 0 | ZE27: 0 | ZI27: 0 | ZM27: 0 | ZQ27: 0 | ZU27: 0 | ZY27: 0 | AAC27: 0 | AAG27: 0 | AAK27: 0 | AAO27: 0 | AAS27: 0 | AAW27: 0 | ABA27: 0 | ABE27: 0 | ABI27: 0 | ABM27: 0 | ABQ27: 0 | ABU27: 0 | ABY27: 0 | ACC27: 0 | ACG27: 0 | ACK27: 0 | ACO27: 0 | ACS27: 0 | ACW27: 0 | ADA27: 0 | ADE27: 0 | ADI27: 0 | ADM27: 0 | ADQ27: 0 | ADU27: 0 | ADY27: 0 | AEC27: 0 | AEG27: 0 | AEK27: 0 | AEO27: 0 | AES27: 0 | AEW27: 0 | AFA27: 0 | AFE27: 0 | AFI27: 0 | AFM27: 0 | AFQ27: 0 | AFU27: 0 | AFY27: 0 | AGC27: 0 | AGG27: 0 | AGK27: 0 | AGO27: 0 | AGS27: 0 | AGW27: 0 | AHA27: 0 | AHE27: 0 | AHI27: 0 | AHM27: 0 | AHQ27: 0 | AHU27: 0 | AHY27: 0 | AIC27: 0 | AIG27: 0 | AIK27: 0 | AIO27: 0 | AIS27: 0 | AIW27: 0 | AJA27: 0 | AJE27: 0 | AJI27: 0 | AJM27: 0 | AJQ27: 0 | AJU27: 0 | AJY27: 0 | AKC27: 0 | AKG27: 0 | AKK27: 0 | AKO27: 0 | AKS27: 0 | AKW27: 0 | ALA27: 0 | ALE27: 0 | ALI27: 0 | ALM27: 0 | ALQ27: 0 | ALU27: 0 | ALY27: 0 | AMC27: 0 | AMG27: 0 | AMK27: 0 | AMO27: 0 | AMS27: 0 | AMW27: 0 | ANA27: 0 | ANE27: 0 | ANI27: 0 | ANM27: 0 | ANQ27: 0 | ANU27: 0 | ANY27: 0 | AOC27: 0 | AOG27: 0 | AOK27: 0 | AOO27: 0 | AOS27: 0 | AOW27: 0 | APA27: 0 | APE27: 0 | API27: 0 | APM27: 0 | APQ27: 0 | APU27: 0 | APY27: 0 | AQC27: 0 | AQG27: 0 | AQK27: 0 | AQO27: 0 | AQS27: 0 | AQW27: 0 | ARA27: 0 | ARB27: 0 | ARC27: 32 | ARD27: 0 | ARE27: 32 | ARF27: 0 | ARG27: 2239.68 | ARH27: 0 | ARI27: 2239.68 | ARJ27: 2239.68 | ARK27: Yes | ARL27: 0 | ARM27: 0 | ARN27: 0
B28: 1 | C28: Barry Barnett | D28: Foreman | E28: MDR Construction | F28: Barnett | G28: 25-25202A | H28: 2019-08-31 | I28: 2019-09-01 | J28: =IF(AND(H28>='A - Contractor Summary'!$C$36,I28<='A - Contractor Summary'!$C$42),"Yes","No") -> No | K28: =VLOOKUP($D28,'C.1 - Rate Sheets'!B:I,2,FALSE) -> 66 | L28: =VLOOKUP($D28,'C.1 - Rate Sheets'!B:I,3,FALSE) -> 100.49 | M28: =VLOOKUP($D28,'C.1 - Rate Sheets'!B:I,4,FALSE) -> 133.98 | Q28: 0 | U28: 0 | Y28: 0 | AC28: 0 | AG28: 0 | AI28: 16 | AK28: 16 | AM28: 16 | AO28: 16 | AS28: 0 | AW28: 0 | BA28: 0 | BE28: 0 | BI28: 0 | BM28: 0 | BQ28: 0 | BU28: 0 | BY28: 0 | CC28: 0 | CG28: 0 | CK28: 0 | CO28: 0 | CS28: 0 | CW28: 0 | DA28: 0 | DE28: 0 | DI28: 0 | DM28: 0 | DQ28: 0 | DU28: 0 | DY28: 0 | EC28: 0 | EG28: 0 | EK28: 0 | EO28: 0 | ES28: 0 | EW28: 0 | FA28: 0 | FE28: 0 | FI28: 0 | FM28: 0 | FQ28: 0 | FU28: 0 | FY28: 0 | GC28: 0 | GG28: 0 | GK28: 0 | GO28: 0 | GS28: 0 | GW28: 0 | HA28: 0 | HE28: 0 | HI28: 0 | HM28: 0 | HQ28: 0 | HU28: 0 | HY28: 0 | IC28: 0 | IG28: 0 | IK28: 0 | IO28: 0 | IS28: 0 | IW28: 0 | JA28: 0 | JE28: 0 | JI28: 0 | JM28: 0 | JQ28: 0 | JU28: 0 | JY28: 0 | KC28: 0 | KG28: 0 | KK28: 0 | KO28: 0 | KS28: 0 | KW28: 0 | LA28: 0 | LE28: 0 | LI28: 0 | LM28: 0 | LQ28: 0 | LU28: 0 | LY28: 0 | MC28: 0 | MG28: 0 | MK28: 0 | MO28: 0 | MS28: 0 | MW28: 0 | NA28: 0 | NE28: 0 | NI28: 0 | NM28: 0 | NQ28: 0 | NU28: 0 | NY28: 0 | OC28: 0 | OG28: 0 | OK28: 0 | OO28: 0 | OS28: 0 | OW28: 0 | PA28: 0 | PE28: 0 | PI28: 0 | PM28: 0 | PQ28: 0 | PU28: 0 | PY28: 0 | QC28: 0 | QG28: 0 | QK28: 0 | QO28: 0 | QS28: 0 | QW28: 0 | RA28: 0 | RE28: 0 | RI28: 0 | RM28: 0 | RQ28: 0 | RU28: 0 | RY28: 0 | SC28: 0 | SG28: 0 | SK28: 0 | SO28: 0 | SS28: 0 | SW28: 0 | TA28: 0 | TE28: 0 | TI28: 0 | TM28: 0 | TQ28: 0 | TU28: 0 | TY28: 0 | UC28: 0 | UG28: 0 | UK28: 0 | UO28: 0 | US28: 0 | UW28: 0 | VA28: 0 | VE28: 0 | VI28: 0 | VM28: 0 | VQ28: 0 | VU28: 0 | VY28: 0 | WC28: 0 | WG28: 0 | WK28: 0 | WO28: 0 | WS28: 0 | WW28: 0 | XA28: 0 | XE28: 0 | XI28: 0 | XM28: 0 | XQ28: 0 | XU28: 0 | XY28: 0 | YC28: 0 | YG28: 0 | YK28: 0 | YO28: 0 | YS28: 0 | YW28: 0 | ZA28: 0 | ZE28: 0 | ZI28: 0 | ZM28: 0 | ZQ28: 0 | ZU28: 0 | ZY28: 0 | AAC28: 0 | AAG28: 0 | AAK28: 0 | AAO28: 0 | AAS28: 0 | AAW28: 0 | ABA28: 0 | ABE28: 0 | ABI28: 0 | ABM28: 0 | ABQ28: 0 | ABU28: 0 | ABY28: 0 | ACC28: 0 | ACG28: 0 | ACK28: 0 | ACO28: 0 | ACS28: 0 | ACW28: 0 | ADA28: 0 | ADE28: 0 | ADI28: 0 | ADM28: 0 | ADQ28: 0 | ADU28: 0 | ADY28: 0 | AEC28: 0 | AEG28: 0 | AEK28: 0 | AEO28: 0 | AES28: 0 | AEW28: 0 | AFA28: 0 | AFE28: 0 | AFI28: 0 | AFM28: 0 | AFQ28: 0 | AFU28: 0 | AFY28: 0 | AGC28: 0 | AGG28: 0 | AGK28: 0 | AGO28: 0 | AGS28: 0 | AGW28: 0 | AHA28: 0 | AHE28: 0 | AHI28: 0 | AHM28: 0 | AHQ28: 0 | AHU28: 0 | AHY28: 0 | AIC28: 0 | AIG28: 0 | AIK28: 0 | AIO28: 0 | AIS28: 0 | AIW28: 0 | AJA28: 0 | AJE28: 0 | AJI28: 0 | AJM28: 0 | AJQ28: 0 | AJU28: 0 | AJY28: 0 | AKC28: 0 | AKG28: 0 | AKK28: 0 | AKO28: 0 | AKS28: 0 | AKW28: 0 | ALA28: 0 | ALE28: 0 | ALI28: 0 | ALM28: 0 | ALQ28: 0 | ALU28: 0 | ALY28: 0 | AMC28: 0 | AMG28: 0 | AMK28: 0 | AMO28: 0 | AMS28: 0 | AMW28: 0 | ANA28: 0 | ANE28: 0 | ANI28: 0 | ANM28: 0 | ANQ28: 0 | ANU28: 0 | ANY28: 0 | AOC28: 0 | AOG28: 0 | AOK28: 0 | AOO28: 0 | AOS28: 0 | AOW28: 0 | APA28: 0 | APE28: 0 | API28: 0 | APM28: 0 | APQ28: 0 | APU28: 0 | APY28: 0 | AQC28: 0 | AQG28: 0 | AQK28: 0 | AQO28: 0 | AQS28: 0 | AQW28: 0 | ARA28: 0 | ARB28: 0 | ARC28: 32 | ARD28: 0 | ARE28: 32 | ARF28: 0 | ARG28: 3215.68 | ARH28: 0 | ARI28: 3215.68 | ARJ28: 3215.68 | ARK28: Yes | ARL28: 0 | ARM28: 0 | ARN28: 0
B29: 1 | C29: Anthony Mosconi | D29: Lineman | E29: MDR Construction | F29: Barnett | G29: 25-25202A | H29: 2019-08-31 | I29: 2019-09-01 | J29: =IF(AND(H29>='A - Contractor Summary'!$C$36,I29<='A - Contractor Summary'!$C$42),"Yes","No") -> No | K29: =VLOOKUP($D29,'C.1 - Rate Sheets'!B:I,2,FALSE) -> 56 | L29: =VLOOKUP($D29,'C.1 - Rate Sheets'!B:I,3,FALSE) -> 84.65 | M29: =VLOOKUP($D29,'C.1 - Rate Sheets'!B:I,4,FALSE) -> 112.86 | Q29: 0 | U29: 0 | Y29: 0 | AC29: 0 | AG29: 0 | AI29: 16 | AK29: 16 | AM29: 16 | AO29: 16 | AS29: 0 | AW29: 0 | BA29: 0 | BE29: 0 | BI29: 0 | BM29: 0 | BQ29: 0 | BU29: 0 | BY29: 0 | CC29: 0 | CG29: 0 | CK29: 0 | CO29: 0 | CS29: 0 | CW29: 0 | DA29: 0 | DE29: 0 | DI29: 0 | DM29: 0 | DQ29: 0 | DU29: 0 | DY29: 0 | EC29: 0 | EG29: 0 | EK29: 0 | EO29: 0 | ES29: 0 | EW29: 0 | FA29: 0 | FE29: 0 | FI29: 0 | FM29: 0 | FQ29: 0 | FU29: 0 | FY29: 0 | GC29: 0 | GG29: 0 | GK29: 0 | GO29: 0 | GS29: 0 | GW29: 0 | HA29: 0 | HE29: 0 | HI29: 0 | HM29: 0 | HQ29: 0 | HU29: 0 | HY29: 0 | IC29: 0 | IG29: 0 | IK29: 0 | IO29: 0 | IS29: 0 | IW29: 0 | JA29: 0 | JE29: 0 | JI29: 0 | JM29: 0 | JQ29: 0 | JU29: 0 | JY29: 0 | KC29: 0 | KG29: 0 | KK29: 0 | KO29: 0 | KS29: 0 | KW29: 0 | LA29: 0 | LE29: 0 | LI29: 0 | LM29: 0 | LQ29: 0 | LU29: 0 | LY29: 0 | MC29: 0 | MG29: 0 | MK29: 0 | MO29: 0 | MS29: 0 | MW29: 0 | NA29: 0 | NE29: 0 | NI29: 0 | NM29: 0 | NQ29: 0 | NU29: 0 | NY29: 0 | OC29: 0 | OG29: 0 | OK29: 0 | OO29: 0 | OS29: 0 | OW29: 0 | PA29: 0 | PE29: 0 | PI29: 0 | PM29: 0 | PQ29: 0 | PU29: 0 | PY29: 0 | QC29: 0 | QG29: 0 | QK29: 0 | QO29: 0 | QS29: 0 | QW29: 0 | RA29: 0 | RE29: 0 | RI29: 0 | RM29: 0 | RQ29: 0 | RU29: 0 | RY29: 0 | SC29: 0 | SG29: 0 | SK29: 0 | SO29: 0 | SS29: 0 | SW29: 0 | TA29: 0 | TE29: 0 | TI29: 0 | TM29: 0 | TQ29: 0 | TU29: 0 | TY29: 0 | UC29: 0 | UG29: 0 | UK29: 0 | UO29: 0 | US29: 0 | UW29: 0 | VA29: 0 | VE29: 0 | VI29: 0 | VM29: 0 | VQ29: 0 | VU29: 0 | VY29: 0 | WC29: 0 | WG29: 0 | WK29: 0 | WO29: 0 | WS29: 0 | WW29: 0 | XA29: 0 | XE29: 0 | XI29: 0 | XM29: 0 | XQ29: 0 | XU29: 0 | XY29: 0 | YC29: 0 | YG29: 0 | YK29: 0 | YO29: 0 | YS29: 0 | YW29: 0 | ZA29: 0 | ZE29: 0 | ZI29: 0 | ZM29: 0 | ZQ29: 0 | ZU29: 0 | ZY29: 0 | AAC29: 0 | AAG29: 0 | AAK29: 0 | AAO29: 0 | AAS29: 0 | AAW29: 0 | ABA29: 0 | ABE29: 0 | ABI29: 0 | ABM29: 0 | ABQ29: 0 | ABU29: 0 | ABY29: 0 | ACC29: 0 | ACG29: 0 | ACK29: 0 | ACO29: 0 | ACS29: 0 | ACW29: 0 | ADA29: 0 | ADE29: 0 | ADI29: 0 | ADM29: 0 | ADQ29: 0 | ADU29: 0 | ADY29: 0 | AEC29: 0 | AEG29: 0 | AEK29: 0 | AEO29: 0 | AES29: 0 | AEW29: 0 | AFA29: 0 | AFE29: 0 | AFI29: 0 | AFM29: 0 | AFQ29: 0 | AFU29: 0 | AFY29: 0 | AGC29: 0 | AGG29: 0 | AGK29: 0 | AGO29: 0 | AGS29: 0 | AGW29: 0 | AHA29: 0 | AHE29: 0 | AHI29: 0 | AHM29: 0 | AHQ29: 0 | AHU29: 0 | AHY29: 0 | AIC29: 0 | AIG29: 0 | AIK29: 0 | AIO29: 0 | AIS29: 0 | AIW29: 0 | AJA29: 0 | AJE29: 0 | AJI29: 0 | AJM29: 0 | AJQ29: 0 | AJU29: 0 | AJY29: 0 | AKC29: 0 | AKG29: 0 | AKK29: 0 | AKO29: 0 | AKS29: 0 | AKW29: 0 | ALA29: 0 | ALE29: 0 | ALI29: 0 | ALM29: 0 | ALQ29: 0 | ALU29: 0 | ALY29: 0 | AMC29: 0 | AMG29: 0 | AMK29: 0 | AMO29: 0 | AMS29: 0 | AMW29: 0 | ANA29: 0 | ANE29: 0 | ANI29: 0 | ANM29: 0 | ANQ29: 0 | ANU29: 0 | ANY29: 0 | AOC29: 0 | AOG29: 0 | AOK29: 0 | AOO29: 0 | AOS29: 0 | AOW29: 0 | APA29: 0 | APE29: 0 | API29: 0 | APM29: 0 | APQ29: 0 | APU29: 0 | APY29: 0 | AQC29: 0 | AQG29: 0 | AQK29: 0 | AQO29: 0 | AQS29: 0 | AQW29: 0 | ARA29: 0 | ARB29: 0 | ARC29: 32 | ARD29: 0 | ARE29: 32 | ARF29: 0 | ARG29: 2708.8 | ARH29: 0 | ARI29: 2708.8 | ARJ29: 2708.8 | ARK29: Yes | ARL29: 0 | ARM29: 0 | ARN29: 0
B30: 1 | C30: John Napier | D30: Lineman | E30: MDR Construction | F30: Barnett | G30: 25-25202A | H30: 2019-08-31 | I30: 2019-09-01 | J30: =IF(AND(H30>='A - Contractor Summary'!$C$36,I30<='A - Contractor Summary'!$C$42),"Yes","No") -> No | K30: =VLOOKUP($D30,'C.1 - Rate Sheets'!B:I,2,FALSE) -> 56 | L30: =VLOOKUP($D30,'C.1 - Rate Sheets'!B:I,3,FALSE) -> 84.65 | M30: =VLOOKUP($D30,'C.1 - Rate Sheets'!B:I,4,FALSE) -> 112.86 | Q30: 0 | U30: 0 | Y30: 0 | AC30: 0 | AG30: 0 | AI30: 16 | AK30: 16 | AM30: 16 | AO30: 16 | AS30: 0 | AW30: 0 | BA30: 0 | BE30: 0 | BI30: 0 | BM30: 0 | BQ30: 0 | BU30: 0 | BY30: 0 | CC30: 0 | CG30: 0 | CK30: 0 | CO30: 0 | CS30: 0 | CW30: 0 | DA30: 0 | DE30: 0 | DI30: 0 | DM30: 0 | DQ30: 0 | DU30: 0 | DY30: 0 | EC30: 0 | EG30: 0 | EK30: 0 | EO30: 0 | ES30: 0 | EW30: 0 | FA30: 0 | FE30: 0 | FI30: 0 | FM30: 0 | FQ30: 0 | FU30: 0 | FY30: 0 | GC30: 0 | GG30: 0 | GK30: 0 | GO30: 0 | GS30: 0 | GW30: 0 | HA30: 0 | HE30: 0 | HI30: 0 | HM30: 0 | HQ30: 0 | HU30: 0 | HY30: 0 | IC30: 0 | IG30: 0 | IK30: 0 | IO30: 0 | IS30: 0 | IW30: 0 | JA30: 0 | JE30: 0 | JI30: 0 | JM30: 0 | JQ30: 0 | JU30: 0 | JY30: 0 | KC30: 0 | KG30: 0 | KK30: 0 | KO30: 0 | KS30: 0 | KW30: 0 | LA30: 0 | LE30: 0 | LI30: 0 | LM30: 0 | LQ30: 0 | LU30: 0 | LY30: 0 | MC30: 0 | MG30: 0 | MK30: 0 | MO30: 0 | MS30: 0 | MW30: 0 | NA30: 0 | NE30: 0 | NI30: 0 | NM30: 0 | NQ30: 0 | NU30: 0 | NY30: 0 | OC30: 0 | OG30: 0 | OK30: 0 | OO30: 0 | OS30: 0 | OW30: 0 | PA30: 0 | PE30: 0 | PI30: 0 | PM30: 0 | PQ30: 0 | PU30: 0 | PY30: 0 | QC30: 0 | QG30: 0 | QK30: 0 | QO30: 0 | QS30: 0 | QW30: 0 | RA30: 0 | RE30: 0 | RI30: 0 | RM30: 0 | RQ30: 0 | RU30: 0 | RY30: 0 | SC30: 0 | SG30: 0 | SK30: 0 | SO30: 0 | SS30: 0 | SW30: 0 | TA30: 0 | TE30: 0 | TI30: 0 | TM30: 0 | TQ30: 0 | TU30: 0 | TY30: 0 | UC30: 0 | UG30: 0 | UK30: 0 | UO30: 0 | US30: 0 | UW30: 0 | VA30: 0 | VE30: 0 | VI30: 0 | VM30: 0 | VQ30: 0 | VU30: 0 | VY30: 0 | WC30: 0 | WG30: 0 | WK30: 0 | WO30: 0 | WS30: 0 | WW30: 0 | XA30: 0 | XE30: 0 | XI30: 0 | XM30: 0 | XQ30: 0 | XU30: 0 | XY30: 0 | YC30: 0 | YG30: 0 | YK30: 0 | YO30: 0 | YS30: 0 | YW30: 0 | ZA30: 0 | ZE30: 0 | ZI30: 0 | ZM30: 0 | ZQ30: 0 | ZU30: 0 | ZY30: 0 | AAC30: 0 | AAG30: 0 | AAK30: 0 | AAO30: 0 | AAS30: 0 | AAW30: 0 | ABA30: 0 | ABE30: 0 | ABI30: 0 | ABM30: 0 | ABQ30: 0 | ABU30: 0 | ABY30: 0 | ACC30: 0 | ACG30: 0 | ACK30: 0 | ACO30: 0 | ACS30: 0 | ACW30: 0 | ADA30: 0 | ADE30: 0 | ADI30: 0 | ADM30: 0 | ADQ30: 0 | ADU30: 0 | ADY30: 0 | AEC30: 0 | AEG30: 0 | AEK30: 0 | AEO30: 0 | AES30: 0 | AEW30: 0 | AFA30: 0 | AFE30: 0 | AFI30: 0 | AFM30: 0 | AFQ30: 0 | AFU30: 0 | AFY30: 0 | AGC30: 0 | AGG30: 0 | AGK30: 0 | AGO30: 0 | AGS30: 0 | AGW30: 0 | AHA30: 0 | AHE30: 0 | AHI30: 0 | AHM30: 0 | AHQ30: 0 | AHU30: 0 | AHY30: 0 | AIC30: 0 | AIG30: 0 | AIK30: 0 | AIO30: 0 | AIS30: 0 | AIW30: 0 | AJA30: 0 | AJE30: 0 | AJI30: 0 | AJM30: 0 | AJQ30: 0 | AJU30: 0 | AJY30: 0 | AKC30: 0 | AKG30: 0 | AKK30: 0 | AKO30: 0 | AKS30: 0 | AKW30: 0 | ALA30: 0 | ALE30: 0 | ALI30: 0 | ALM30: 0 | ALQ30: 0 | ALU30: 0 | ALY30: 0 | AMC30: 0 | AMG30: 0 | AMK30: 0 | AMO30: 0 | AMS30: 0 | AMW30: 0 | ANA30: 0 | ANE30: 0 | ANI30: 0 | ANM30: 0 | ANQ30: 0 | ANU30: 0 | ANY30: 0 | AOC30: 0 | AOG30: 0 | AOK30: 0 | AOO30: 0 | AOS30: 0 | AOW30: 0 | APA30: 0 | APE30: 0 | API30: 0 | APM30: 0 | APQ30: 0 | APU30: 0 | APY30: 0 | AQC30: 0 | AQG30: 0 | AQK30: 0 | AQO30: 0 | AQS30: 0 | AQW30: 0 | ARA30: 0 | ARB30: 0 | ARC30: 32 | ARD30: 0 | ARE30: 32 | ARF30: 0 | ARG30: 2708.8 | ARH30: 0 | ARI30: 2708.8 | ARJ30: 2708.8 | ARK30: Yes | ARL30: 0 | ARM30: 0 | ARN30: 0
B31: 1 | C31: Kris Wooten | D31: Lineman | E31: MDR Construction | F31: Barnett | G31: 25-25202A | H31: 2019-08-31 | I31: 2019-09-01 | J31: =IF(AND(H31>='A - Contractor Summary'!$C$36,I31<='A - Contractor Summary'!$C$42),"Yes","No") -> No | K31: =VLOOKUP($D31,'C.1 - Rate Sheets'!B:I,2,FALSE) -> 56 | L31: =VLOOKUP($D31,'C.1 - Rate Sheets'!B:I,3,FALSE) -> 84.65 | M31: =VLOOKUP($D31,'C.1 - Rate Sheets'!B:I,4,FALSE) -> 112.86 | Q31: 0 | U31: 0 | Y31: 0 | AC31: 0 | AG31: 0 | AI31: 16 | AK31: 16 | AM31: 16 | AO31: 16 | AS31: 0 | AW31: 0 | BA31: 0 | BE31: 0 | BI31: 0 | BM31: 0 | BQ31: 0 | BU31: 0 | BY31: 0 | CC31: 0 | CG31: 0 | CK31: 0 | CO31: 0 | CS31: 0 | CW31: 0 | DA31: 0 | DE31: 0 | DI31: 0 | DM31: 0 | DQ31: 0 | DU31: 0 | DY31: 0 | EC31: 0 | EG31: 0 | EK31: 0 | EO31: 0 | ES31: 0 | EW31: 0 | FA31: 0 | FE31: 0 | FI31: 0 | FM31: 0 | FQ31: 0 | FU31: 0 | FY31: 0 | GC31: 0 | GG31: 0 | GK31: 0 | GO31: 0 | GS31: 0 | GW31: 0 | HA31: 0 | HE31: 0 | HI31: 0 | HM31: 0 | HQ31: 0 | HU31: 0 | HY31: 0 | IC31: 0 | IG31: 0 | IK31: 0 | IO31: 0 | IS31: 0 | IW31: 0 | JA31: 0 | JE31: 0 | JI31: 0 | JM31: 0 | JQ31: 0 | JU31: 0 | JY31: 0 | KC31: 0 | KG31: 0 | KK31: 0 | KO31: 0 | KS31: 0 | KW31: 0 | LA31: 0 | LE31: 0 | LI31: 0 | LM31: 0 | LQ31: 0 | LU31: 0 | LY31: 0 | MC31: 0 | MG31: 0 | MK31: 0 | MO31: 0 | MS31: 0 | MW31: 0 | NA31: 0 | NE31: 0 | NI31: 0 | NM31: 0 | NQ31: 0 | NU31: 0 | NY31: 0 | OC31: 0 | OG31: 0 | OK31: 0 | OO31: 0 | OS31: 0 | OW31: 0 | PA31: 0 | PE31: 0 | PI31: 0 | PM31: 0 | PQ31: 0 | PU31: 0 | PY31: 0 | QC31: 0 | QG31: 0 | QK31: 0 | QO31: 0 | QS31: 0 | QW31: 0 | RA31: 0 | RE31: 0 | RI31: 0 | RM31: 0 | RQ31: 0 | RU31: 0 | RY31: 0 | SC31: 0 | SG31: 0 | SK31: 0 | SO31: 0 | SS31: 0 | SW31: 0 | TA31: 0 | TE31: 0 | TI31: 0 | TM31: 0 | TQ31: 0 | TU31: 0 | TY31: 0 | UC31: 0 | UG31: 0 | UK31: 0 | UO31: 0 | US31: 0 | UW31: 0 | VA31: 0 | VE31: 0 | VI31: 0 | VM31: 0 | VQ31: 0 | VU31: 0 | VY31: 0 | WC31: 0 | WG31: 0 | WK31: 0 | WO31: 0 | WS31: 0 | WW31: 0 | XA31: 0 | XE31: 0 | XI31: 0 | XM31: 0 | XQ31: 0 | XU31: 0 | XY31: 0 | YC31: 0 | YG31: 0 | YK31: 0 | YO31: 0 | YS31: 0 | YW31: 0 | ZA31: 0 | ZE31: 0 | ZI31: 0 | ZM31: 0 | ZQ31: 0 | ZU31: 0 | ZY31: 0 | AAC31: 0 | AAG31: 0 | AAK31: 0 | AAO31: 0 | AAS31: 0 | AAW31: 0 | ABA31: 0 | ABE31: 0 | ABI31: 0 | ABM31: 0 | ABQ31: 0 | ABU31: 0 | ABY31: 0 | ACC31: 0 | ACG31: 0 | ACK31: 0 | ACO31: 0 | ACS31: 0 | ACW31: 0 | ADA31: 0 | ADE31: 0 | ADI31: 0 | ADM31: 0 | ADQ31: 0 | ADU31: 0 | ADY31: 0 | AEC31: 0 | AEG31: 0 | AEK31: 0 | AEO31: 0 | AES31: 0 | AEW31: 0 | AFA31: 0 | AFE31: 0 | AFI31: 0 | AFM31: 0 | AFQ31: 0 | AFU31: 0 | AFY31: 0 | AGC31: 0 | AGG31: 0 | AGK31: 0 | AGO31: 0 | AGS31: 0 | AGW31: 0 | AHA31: 0 | AHE31: 0 | AHI31: 0 | AHM31: 0 | AHQ31: 0 | AHU31: 0 | AHY31: 0 | AIC31: 0 | AIG31: 0 | AIK31: 0 | AIO31: 0 | AIS31: 0 | AIW31: 0 | AJA31: 0 | AJE31: 0 | AJI31: 0 | AJM31: 0 | AJQ31: 0 | AJU31: 0 | AJY31: 0 | AKC31: 0 | AKG31: 0 | AKK31: 0 | AKO31: 0 | AKS31: 0 | AKW31: 0 | ALA31: 0 | ALE31: 0 | ALI31: 0 | ALM31: 0 | ALQ31: 0 | ALU31: 0 | ALY31: 0 | AMC31: 0 | AMG31: 0 | AMK31: 0 | AMO31: 0 | AMS31: 0 | AMW31: 0 | ANA31: 0 | ANE31: 0 | ANI31: 0 | ANM31: 0 | ANQ31: 0 | ANU31: 0 | ANY31: 0 | AOC31: 0 | AOG31: 0 | AOK31: 0 | AOO31: 0 | AOS31: 0 | AOW31: 0 | APA31: 0 | APE31: 0 | API31: 0 | APM31: 0 | APQ31: 0 | APU31: 0 | APY31: 0 | AQC31: 0 | AQG31: 0 | AQK31: 0 | AQO31: 0 | AQS31: 0 | AQW31: 0 | ARA31: 0 | ARB31: 0 | ARC31: 32 | ARD31: 0 | ARE31: 32 | ARF31: 0 | ARG31: 2708.8 | ARH31: 0 | ARI31: 2708.8 | ARJ31: 2708.8 | ARK31: Yes | ARL31: 0 | ARM31: 0 | ARN31: 0
... 33 more rows

Sheet Sheet1
A3: Name | B3: Position | C3: Company | D3: Crew# | E3: Invoice# | F3: Total ST | G3: OT | H3: DT | I3: Total Hours | J3: Total ST $ | K3: Total OT $ | L3: Total DT $ | M3: Total Labor $
A4: =+'C.2 - Timesheets - Labor'!C19 -> Troy Bigham | B4: =+'C.2 - Timesheets - Labor'!D19 -> General Foreman | C4: =+'C.2 - Timesheets - Labor'!E19 -> MDR Construction | D4: =+'C.2 - Timesheets - Labor'!F19 -> Bigham | E4: =+'C.2 - Timesheets - Labor'!G19 -> 25-25202A | F4: =+'C.2 - Timesheets - Labor'!ARB19 -> 0 | G4: =+'C.2 - Timesheets - Labor'!ARC19 -> 29 | H4: =+'C.2 - Timesheets - Labor'!ARD19 -> 0 | I4: =+'C.2 - Timesheets - Labor'!ARE19 -> 29 | J4: =+'C.2 - Timesheets - Labor'!ARF19 -> 0 | K4: =+'C.2 - Timesheets - Labor'!ARG19 -> 3115.18 | L4: =+'C.2 - Timesheets - Labor'!ARH19 -> 0 | M4: =+'C.2 - Timesheets - Labor'!ARI19 -> 3115.18
A5: =+'C.2 - Timesheets - Labor'!C20 -> Brian Barnett | B5: =+'C.2 - Timesheets - Labor'!D20 -> General Foreman | C5: =+'C.2 - Timesheets - Labor'!E20 -> MDR Construction | D5: =+'C.2 - Timesheets - Labor'!F20 -> Bigham | E5: =+'C.2 - Timesheets - Labor'!G20 -> 25-25202A | F5: =+'C.2 - Timesheets - Labor'!ARB20 -> 0 | G5: =+'C.2 - Timesheets - Labor'!ARC20 -> 32 | H5: =+'C.2 - Timesheets - Labor'!ARD20 -> 0 | I5: =+'C.2 - Timesheets - Labor'!ARE20 -> 32 | J5: =+'C.2 - Timesheets - Labor'!ARF20 -> 0 | K5: =+'C.2 - Timesheets - Labor'!ARG20 -> 3437.44 | L5: =+'C.2 - Timesheets - Labor'!ARH20 -> 0 | M5: =+'C.2 - Timesheets - Labor'!ARI20 -> 3437.44
A6: =+'C.2 - Timesheets - Labor'!C21 -> Al Booher | B6: =+'C.2 - Timesheets - Labor'!D21 -> Safety Coordinator | C6: =+'C.2 - Timesheets - Labor'!E21 -> MDR Construction | D6: =+'C.2 - Timesheets - Labor'!F21 -> Bigham | E6: =+'C.2 - Timesheets - Labor'!G21 -> 25-25202A | F6: =+'C.2 - Timesheets - Labor'!ARB21 -> 0 | G6: =+'C.2 - Timesheets - Labor'!ARC21 -> 29 | H6: =+'C.2 - Timesheets - Labor'!ARD21 -> 0 | I6: =+'C.2 - Timesheets - Labor'!ARE21 -> 29 | J6: =+'C.2 - Timesheets - Labor'!ARF21 -> 0 | K6: =+'C.2 - Timesheets - Labor'!ARG21 -> 2914.21 | L6: =+'C.2 - Timesheets - Labor'!ARH21 -> 0 | M6: =+'C.2 - Timesheets - Labor'!ARI21 -> 2914.21
A7: =+'C.2 - Timesheets - Labor'!C22 -> Peyton Miller | B7: =+'C.2 - Timesheets - Labor'!D22 -> Mechanic | C7: =+'C.2 - Timesheets - Labor'!E22 -> MDR Construction | D7: =+'C.2 - Timesheets - Labor'!F22 -> Bigham | E7: =+'C.2 - Timesheets - Labor'!G22 -> 25-25202A | F7: =+'C.2 - Timesheets - Labor'!ARB22 -> 0 | G7: =+'C.2 - Timesheets - Labor'!ARC22 -> 29 | H7: =+'C.2 - Timesheets - Labor'!ARD22 -> 0 | I7: =+'C.2 - Timesheets - Labor'!ARE22 -> 29 | J7: =+'C.2 - Timesheets - Labor'!ARF22 -> 0 | K7: =+'C.2 - Timesheets - Labor'!ARG22 -> 2029.71 | L7: =+'C.2 - Timesheets - Labor'!ARH22 -> 0 | M7: =+'C.2 - Timesheets - Labor'!ARI22 -> 2029.71
A8: =+'C.2 - Timesheets - Labor'!C23 -> Jonathan Baughman | B8: =+'C.2 - Timesheets - Labor'!D23 -> Safety Coordinator | C8: =+'C.2 - Timesheets - Labor'!E23 -> MDR Construction | D8: =+'C.2 - Timesheets - Labor'!F23 -> Bigham | E8: =+'C.2 - Timesheets - Labor'!G23 -> 25-25202A | F8: =+'C.2 - Timesheets - Labor'!ARB23 -> 0 | G8: =+'C.2 - Timesheets - Labor'!ARC23 -> 32 | H8: =+'C.2 - Timesheets - Labor'!ARD23 -> 0 | I8: =+'C.2 - Timesheets - Labor'!ARE23 -> 32 | J8: =+'C.2 - Timesheets - Labor'!ARF23 -> 0 | K8: =+'C.2 - Timesheets - Labor'!ARG23 -> 3215.68 | L8: =+'C.2 - Timesheets - Labor'!ARH23 -> 0 | M8: =+'C.2 - Timesheets - Labor'!ARI23 -> 3215.68
A9: =+'C.2 - Timesheets - Labor'!C24 -> Kerry Lee | B9: =+'C.2 - Timesheets - Labor'!D24 -> Operator/Truck Driver | C9: =+'C.2 - Timesheets - Labor'!E24 -> MDR Construction | D9: =+'C.2 - Timesheets - Labor'!F24 -> Lee | E9: =+'C.2 - Timesheets - Labor'!G24 -> 25-25202A | F9: =+'C.2 - Timesheets - Labor'!ARB24 -> 0 | G9: =+'C.2 - Timesheets - Labor'!ARC24 -> 16 | H9: =+'C.2 - Timesheets - Labor'!ARD24 -> 0 | I9: =+'C.2 - Timesheets - Labor'!ARE24 -> 16 | J9: =+'C.2 - Timesheets - Labor'!ARF24 -> 0 | K9: =+'C.2 - Timesheets - Labor'!ARG24 -> 1119.84 | L9: =+'C.2 - Timesheets - Labor'!ARH24 -> 0 | M9: =+'C.2 - Timesheets - Labor'!ARI24 -> 1119.84
A10: =+'C.2 - Timesheets - Labor'!C25 -> Warren Lee | B10: =+'C.2 - Timesheets - Labor'!D25 -> Operator/Truck Driver | C10: =+'C.2 - Timesheets - Labor'!E25 -> MDR Construction | D10: =+'C.2 - Timesheets - Labor'!F25 -> Lee | E10: =+'C.2 - Timesheets - Labor'!G25 -> 25-25202A | F10: =+'C.2 - Timesheets - Labor'!ARB25 -> 0 | G10: =+'C.2 - Timesheets - Labor'!ARC25 -> 16 | H10: =+'C.2 - Timesheets - Labor'!ARD25 -> 0 | I10: =+'C.2 - Timesheets - Labor'!ARE25 -> 16 | J10: =+'C.2 - Timesheets - Labor'!ARF25 -> 0 | K10: =+'C.2 - Timesheets - Labor'!ARG25 -> 1119.84 | L10: =+'C.2 - Timesheets - Labor'!ARH25 -> 0 | M10: =+'C.2 - Timesheets - Labor'!ARI25 -> 1119.84
A11: =+'C.2 - Timesheets - Labor'!C26 -> Michael Baker | B11: =+'C.2 - Timesheets - Labor'!D26 -> Operator/Truck Driver | C11: =+'C.2 - Timesheets - Labor'!E26 -> MDR Construction | D11: =+'C.2 - Timesheets - Labor'!F26 -> Lee | E11: =+'C.2 - Timesheets - Labor'!G26 -> 25-25202A | F11: =+'C.2 - Timesheets - Labor'!ARB26 -> 0 | G11: =+'C.2 - Timesheets - Labor'!ARC26 -> 16 | H11: =+'C.2 - Timesheets - Labor'!ARD26 -> 0 | I11: =+'C.2 - Timesheets - Labor'!ARE26 -> 16 | J11: =+'C.2 - Timesheets - Labor'!ARF26 -> 0 | K11: =+'C.2 - Timesheets - Labor'!ARG26 -> 1119.84 | L11: =+'C.2 - Timesheets - Labor'!ARH26 -> 0 | M11: =+'C.2 - Timesheets - Labor'!ARI26 -> 1119.84
A12: =+'C.2 - Timesheets - Labor'!C27 -> Jonathan Culpepper | B12: =+'C.2 - Timesheets - Labor'!D27 -> Operator/Truck Driver | C12: =+'C.2 - Timesheets - Labor'!E27 -> MDR Construction | D12: =+'C.2 - Timesheets - Labor'!F27 -> Lee | E12: =+'C.2 - Timesheets - Labor'!G27 -> 25-25202A | F12: =+'C.2 - Timesheets - Labor'!ARB27 -> 0 | G12: =+'C.2 - Timesheets - Labor'!ARC27 -> 32 | H12: =+'C.2 - Timesheets - Labor'!ARD27 -> 0 | I12: =+'C.2 - Timesheets - Labor'!ARE27 -> 32 | J12: =+'C.2 - Timesheets - Labor'!ARF27 -> 0 | K12: =+'C.2 - Timesheets - Labor'!ARG27 -> 2239.68 | L12: =+'C.2 - Timesheets - Labor'!ARH27 -> 0 | M12: =+'C.2 - Timesheets - Labor'!ARI27 -> 2239.68
A13: =+'C.2 - Timesheets - Labor'!C28 -> Barry Barnett | B13: =+'C.2 - Timesheets - Labor'!D28 -> Foreman | C13: =+'C.2 - Timesheets - Labor'!E28 -> MDR Construction | D13: =+'C.2 - Timesheets - Labor'!F28 -> Barnett | E13: =+'C.2 - Timesheets - Labor'!G28 -> 25-25202A | F13: =+'C.2 - Timesheets - Labor'!ARB28 -> 0 | G13: =+'C.2 - Timesheets - Labor'!ARC28 -> 32 | H13: =+'C.2 - Timesheets - Labor'!ARD28 -> 0 | I13: =+'C.2 - Timesheets - Labor'!ARE28 -> 32 | J13: =+'C.2 - Timesheets - Labor'!ARF28 -> 0 | K13: =+'C.2 - Timesheets - Labor'!ARG28 -> 3215.68 | L13: =+'C.2 - Timesheets - Labor'!ARH28 -> 0 | M13: =+'C.2 - Timesheets - Labor'!ARI28 -> 3215.68
A14: =+'C.2 - Timesheets - Labor'!C29 -> Anthony Mosconi | B14: =+'C.2 - Timesheets - Labor'!D29 -> Lineman | C14: =+'C.2 - Timesheets - Labor'!E29 -> MDR Construction | D14: =+'C.2 - Timesheets - Labor'!F29 -> Barnett | E14: =+'C.2 - Timesheets - Labor'!G29 -> 25-25202A | F14: =+'C.2 - Timesheets - Labor'!ARB29 -> 0 | G14: =+'C.2 - Timesheets - Labor'!ARC29 -> 32 | H14: =+'C.2 - Timesheets - Labor'!ARD29 -> 0 | I14: =+'C.2 - Timesheets - Labor'!ARE29 -> 32 | J14: =+'C.2 - Timesheets - Labor'!ARF29 -> 0 | K14: =+'C.2 - Timesheets - Labor'!ARG29 -> 2708.8 | L14: =+'C.2 - Timesheets - Labor'!ARH29 -> 0 | M14: =+'C.2 - Timesheets - Labor'!ARI29 -> 2708.8
A15: =+'C.2 - Timesheets - Labor'!C30 -> John Napier | B15: =+'C.2 - Timesheets - Labor'!D30 -> Lineman | C15: =+'C.2 - Timesheets - Labor'!E30 -> MDR Construction | D15: =+'C.2 - Timesheets - Labor'!F30 -> Barnett | E15: =+'C.2 - Timesheets - Labor'!G30 -> 25-25202A | F15: =+'C.2 - Timesheets - Labor'!ARB30 -> 0 | G15: =+'C.2 - Timesheets - Labor'!ARC30 -> 32 | H15: =+'C.2 - Timesheets - Labor'!ARD30 -> 0 | I15: =+'C.2 - Timesheets - Labor'!ARE30 -> 32 | J15: =+'C.2 - Timesheets - Labor'!ARF30 -> 0 | K15: =+'C.2 - Timesheets - Labor'!ARG30 -> 2708.8 | L15: =+'C.2 - Timesheets - Labor'!ARH30 -> 0 | M15: =+'C.2 - Timesheets - Labor'!ARI30 -> 2708.8
A16: =+'C.2 - Timesheets - Labor'!C31 -> Kris Wooten | B16: =+'C.2 - Timesheets - Labor'!D31 -> Lineman | C16: =+'C.2 - Timesheets - Labor'!E31 -> MDR Construction | D16: =+'C.2 - Timesheets - Labor'!F31 -> Barnett | E16: =+'C.2 - Timesheets - Labor'!G31 -> 25-25202A | F16: =+'C.2 - Timesheets - Labor'!ARB31 -> 0 | G16: =+'C.2 - Timesheets - Labor'!ARC31 -> 32 | H16: =+'C.2 - Timesheets - Labor'!ARD31 -> 0 | I16: =+'C.2 - Timesheets - Labor'!ARE31 -> 32 | J16: =+'C.2 - Timesheets - Labor'!ARF31 -> 0 | K16: =+'C.2 - Timesheets - Labor'!ARG31 -> 2708.8 | L16: =+'C.2 - Timesheets - Labor'!ARH31 -> 0 | M16: =+'C.2 - Timesheets - Labor'!ARI31 -> 2708.8
A17: =+'C.2 - Timesheets - Labor'!C32 -> Zach Parham | B17: =+'C.2 - Timesheets - Labor'!D32 -> Operator/Truck Driver | C17: =+'C.2 - Timesheets - Labor'!E32 -> MDR Construction | D17: =+'C.2 - Timesheets - Labor'!F32 -> Barnett | E17: =+'C.2 - Timesheets - Labor'!G32 -> 25-25202A | F17: =+'C.2 - Timesheets - Labor'!ARB32 -> 0 | G17: =+'C.2 - Timesheets - Labor'!ARC32 -> 32 | H17: =+'C.2 - Timesheets - Labor'!ARD32 -> 0 | I17: =+'C.2 - Timesheets - Labor'!ARE32 -> 32 | J17: =+'C.2 - Timesheets - Labor'!ARF32 -> 0 | K17: =+'C.2 - Timesheets - Labor'!ARG32 -> 2239.68 | L17: =+'C.2 - Timesheets - Labor'!ARH32 -> 0 | M17: =+'C.2 - Timesheets - Labor'!ARI32 -> 2239.68
A18: =+'C.2 - Timesheets - Labor'!C33 -> Preston Goff | B18: =+'C.2 - Timesheets - Labor'!D33 -> Groundman | C18: =+'C.2 - Timesheets - Labor'!E33 -> MDR Construction | D18: =+'C.2 - Timesheets - Labor'!F33 -> Barnett | E18: =+'C.2 - Timesheets - Labor'!G33 -> 25-25202A | F18: =+'C.2 - Timesheets - Labor'!ARB33 -> 0 | G18: =+'C.2 - Timesheets - Labor'!ARC33 -> 32 | H18: =+'C.2 - Timesheets - Labor'!ARD33 -> 0 | I18: =+'C.2 - Timesheets - Labor'!ARE33 -> 32 | J18: =+'C.2 - Timesheets - Labor'!ARF33 -> 0 | K18: =+'C.2 - Timesheets - Labor'!ARG33 -> 2067.84 | L18: =+'C.2 - Timesheets - Labor'!ARH33 -> 0 | M18: =+'C.2 - Timesheets - Labor'!ARI33 -> 2067.84
A19: =+'C.2 - Timesheets - Labor'!C34 -> Terry Bland | B19: =+'C.2 - Timesheets - Labor'!D34 -> Foreman | C19: =+'C.2 - Timesheets - Labor'!E34 -> MDR Construction | D19: =+'C.2 - Timesheets - Labor'!F34 -> Bland | E19: =+'C.2 - Timesheets - Labor'!G34 -> 25-25202A | F19: =+'C.2 - Timesheets - Labor'!ARB34 -> 0 | G19: =+'C.2 - Timesheets - Labor'!ARC34 -> 19 | H19: =+'C.2 - Timesheets - Labor'!ARD34 -> 0 | I19: =+'C.2 - Timesheets - Labor'!ARE34 -> 19 | J19: =+'C.2 - Timesheets - Labor'!ARF34 -> 0 | K19: =+'C.2 - Timesheets - Labor'!ARG34 -> 1909.31 | L19: =+'C.2 - Timesheets - Labor'!ARH34 -> 0 | M19: =+'C.2 - Timesheets - Labor'!ARI34 -> 1909.31
A20: =+'C.2 - Timesheets - Labor'!C35 -> Daniel Anderson | B20: =+'C.2 - Timesheets - Labor'!D35 -> Lineman | C20: =+'C.2 - Timesheets - Labor'!E35 -> MDR Construction | D20: =+'C.2 - Timesheets - Labor'!F35 -> Bland | E20: =+'C.2 - Timesheets - Labor'!G35 -> 25-25202A | F20: =+'C.2 - Timesheets - Labor'!ARB35 -> 0 | G20: =+'C.2 - Timesheets - Labor'!ARC35 -> 29 | H20: =+'C.2 - Timesheets - Labor'!ARD35 -> 0 | I20: =+'C.2 - Timesheets - Labor'!ARE35 -> 29 | J20: =+'C.2 - Timesheets - Labor'!ARF35 -> 0 | K20: =+'C.2 - Timesheets - Labor'!ARG35 -> 2454.85 | L20: =+'C.2 - Timesheets - Labor'!ARH35 -> 0 | M20: =+'C.2 - Timesheets - Labor'!ARI35 -> 2454.85
A21: =+'C.2 - Timesheets - Labor'!C36 -> Nic Parker | B21: =+'C.2 - Timesheets - Labor'!D36 -> Lineman | C21: =+'C.2 - Timesheets - Labor'!E36 -> MDR Construction | D21: =+'C.2 - Timesheets - Labor'!F36 -> Bland | E21: =+'C.2 - Timesheets - Labor'!G36 -> 25-25202A | F21: =+'C.2 - Timesheets - Labor'!ARB36 -> 0 | G21: =+'C.2 - Timesheets - Labor'!ARC36 -> 29 | H21: =+'C.2 - Timesheets - Labor'!ARD36 -> 0 | I21: =+'C.2 - Timesheets - Labor'!ARE36 -> 29 | J21: =+'C.2 - Timesheets - Labor'!ARF36 -> 0 | K21: =+'C.2 - Timesheets - Labor'!ARG36 -> 2454.85 | L21: =+'C.2 - Timesheets - Labor'!ARH36 -> 0 | M21: =+'C.2 - Timesheets - Labor'!ARI36 -> 2454.85
A22: =+'C.2 - Timesheets - Labor'!C37 -> William Brooks | B22: =+'C.2 - Timesheets - Labor'!D37 -> Lineman | C22: =+'C.2 - Timesheets - Labor'!E37 -> MDR Construction | D22: =+'C.2 - Timesheets - Labor'!F37 -> Bland | E22: =+'C.2 - Timesheets - Labor'!G37 -> 25-25202A | F22: =+'C.2 - Timesheets - Labor'!ARB37 -> 0 | G22: =+'C.2 - Timesheets - Labor'!ARC37 -> 29 | H22: =+'C.2 - Timesheets - Labor'!ARD37 -> 0 | I22: =+'C.2 - Timesheets - Labor'!ARE37 -> 29 | J22: =+'C.2 - Timesheets - Labor'!ARF37 -> 0 | K22: =+'C.2 - Timesheets - Labor'!ARG37 -> 2454.85 | L22: =+'C.2 - Timesheets - Labor'!ARH37 -> 0 | M22: =+'C.2 - Timesheets - Labor'!ARI37 -> 2454.85
A23: =+'C.2 - Timesheets - Labor'!C38 -> Tristian Russ | B23: =+'C.2 - Timesheets - Labor'!D38 -> Operator/Truck Driver | C23: =+'C.2 - Timesheets - Labor'!E38 -> MDR Construction | D23: =+'C.2 - Timesheets - Labor'!F38 -> Bland | E23: =+'C.2 - Timesheets - Labor'!G38 -> 25-25202A | F23: =+'C.2 - Timesheets - Labor'!ARB38 -> 0 | G23: =+'C.2 - Timesheets - Labor'!ARC38 -> 29 | H23: =+'C.2 - Timesheets - Labor'!ARD38 -> 0 | I23: =+'C.2 - Timesheets - Labor'!ARE38 -> 29 | J23: =+'C.2 - Timesheets - Labor'!ARF38 -> 0 | K23: =+'C.2 - Timesheets - Labor'!ARG38 -> 2029.71 | L23: =+'C.2 - Timesheets - Labor'!ARH38 -> 0 | M23: =+'C.2 - Timesheets - Labor'!ARI38 -> 2029.71
A24: =+'C.2 - Timesheets - Labor'!C39 -> Jonathan Baker | B24: =+'C.2 - Timesheets - Labor'!D39 -> Lineman | C24: =+'C.2 - Timesheets - Labor'!E39 -> MDR Construction | D24: =+'C.2 - Timesheets - Labor'!F39 -> Bland | E24: =+'C.2 - Timesheets - Labor'!G39 -> 25-25202A | F24: =+'C.2 - Timesheets - Labor'!ARB39 -> 0 | G24: =+'C.2 - Timesheets - Labor'!ARC39 -> 29 | H24: =+'C.2 - Timesheets - Labor'!ARD39 -> 0 | I24: =+'C.2 - Timesheets - Labor'!ARE39 -> 29 | J24: =+'C.2 - Timesheets - Labor'!ARF39 -> 0 | K24: =+'C.2 - Timesheets - Labor'!ARG39 -> 2454.85 | L24: =+'C.2 - Timesheets - Labor'!ARH39 -> 0 | M24: =+'C.2 - Timesheets - Labor'!ARI39 -> 2454.85
A25: =+'C.2 - Timesheets - Labor'!C40 -> Austin Pitts | B25: =+'C.2 - Timesheets - Labor'!D40 -> Groundman | C25: =+'C.2 - Timesheets - Labor'!E40 -> MDR Construction | D25: =+'C.2 - Timesheets - Labor'!F40 -> Bland | E25: =+'C.2 - Timesheets - Labor'!G40 -> 25-25202A | F25: =+'C.2 - Timesheets - Labor'!ARB40 -> 0 | G25: =+'C.2 - Timesheets - Labor'!ARC40 -> 29 | H25: =+'C.2 - Timesheets - Labor'!ARD40 -> 0 | I25: =+'C.2 - Timesheets - Labor'!ARE40 -> 29 | J25: =+'C.2 - Timesheets - Labor'!ARF40 -> 0 | K25: =+'C.2 - Timesheets - Labor'!ARG40 -> 1873.98 | L25: =+'C.2 - Timesheets - Labor'!ARH40 -> 0 | M25: =+'C.2 - Timesheets - Labor'!ARI40 -> 1873.98
A26: =+'C.2 - Timesheets - Labor'!C41 -> Will Ford | B26: =+'C.2 - Timesheets - Labor'!D41 -> Foreman | C26: =+'C.2 - Timesheets - Labor'!E41 -> MDR Construction | D26: =+'C.2 - Timesheets - Labor'!F41 -> Ford | E26: =+'C.2 - Timesheets - Labor'!G41 -> 25-25202A | F26: =+'C.2 - Timesheets - Labor'!ARB41 -> 0 | G26: =+'C.2 - Timesheets - Labor'!ARC41 -> 29 | H26: =+'C.2 - Timesheets - Labor'!ARD41 -> 0 | I26: =+'C.2 - Timesheets - Labor'!ARE41 -> 29 | J26: =+'C.2 - Timesheets - Labor'!ARF41 -> 0 | K26: =+'C.2 - Timesheets - Labor'!ARG41 -> 2914.21 | L26: =+'C.2 - Timesheets - Labor'!ARH41 -> 0 | M26: =+'C.2 - Timesheets - Labor'!ARI41 -> 2914.21
A27: =+'C.2 - Timesheets - Labor'!C42 -> Wayne Carter | B27: =+'C.2 - Timesheets - Labor'!D42 -> Lineman | C27: =+'C.2 - Timesheets - Labor'!E42 -> MDR Construction | D27: =+'C.2 - Timesheets - Labor'!F42 -> Ford | E27: =+'C.2 - Timesheets - Labor'!G42 -> 25-25202A | F27: =+'C.2 - Timesheets - Labor'!ARB42 -> 0 | G27: =+'C.2 - Timesheets - Labor'!ARC42 -> 29 | H27: =+'C.2 - Timesheets - Labor'!ARD42 -> 0 | I27: =+'C.2 - Timesheets - Labor'!ARE42 -> 29 | J27: =+'C.2 - Timesheets - Labor'!ARF42 -> 0 | K27: =+'C.2 - Timesheets - Labor'!ARG42 -> 2454.85 | L27: =+'C.2 - Timesheets - Labor'!ARH42 -> 0 | M27: =+'C.2 - Timesheets - Labor'!ARI42 -> 2454.85
A28: =+'C.2 - Timesheets - Labor'!C43 -> Colby Holcomb | B28: =+'C.2 - Timesheets - Labor'!D43 -> Lineman | C28: =+'C.2 - Timesheets - Labor'!E43 -> MDR Construction | D28: =+'C.2 - Timesheets - Labor'!F43 -> Ford | E28: =+'C.2 - Timesheets - Labor'!G43 -> 25-25202A | F28: =+'C.2 - Timesheets - Labor'!ARB43 -> 0 | G28: =+'C.2 - Timesheets - Labor'!ARC43 -> 29 | H28: =+'C.2 - Timesheets - Labor'!ARD43 -> 0 | I28: =+'C.2 - Timesheets - Labor'!ARE43 -> 29 | J28: =+'C.2 - Timesheets - Labor'!ARF43 -> 0 | K28: =+'C.2 - Timesheets - Labor'!ARG43 -> 2454.85 | L28: =+'C.2 - Timesheets - Labor'!ARH43 -> 0 | M28: =+'C.2 - Timesheets - Labor'!ARI43 -> 2454.85
A29: =+'C.2 - Timesheets - Labor'!C44 -> Daniel Jordan | B29: =+'C.2 - Timesheets - Labor'!D44 -> Operator/Truck Driver | C29: =+'C.2 - Timesheets - Labor'!E44 -> MDR Construction | D29: =+'C.2 - Timesheets - Labor'!F44 -> Ford | E29: =+'C.2 - Timesheets - Labor'!G44 -> 25-25202A | F29: =+'C.2 - Timesheets - Labor'!ARB44 -> 0 | G29: =+'C.2 - Timesheets - Labor'!ARC44 -> 16 | H29: =+'C.2 - Timesheets - Labor'!ARD44 -> 0 | I29: =+'C.2 - Timesheets - Labor'!ARE44 -> 16 | J29: =+'C.2 - Timesheets - Labor'!ARF44 -> 0 | K29: =+'C.2 - Timesheets - Labor'!ARG44 -> 1119.84 | L29: =+'C.2 - Timesheets - Labor'!ARH44 -> 0 | M29: =+'C.2 - Timesheets - Labor'!ARI44 -> 1119.84
A30: =+'C.2 - Timesheets - Labor'!C45 -> Brandon Fuller | B30: =+'C.2 - Timesheets - Labor'!D45 -> Groundman | C30: =+'C.2 - Timesheets - Labor'!E45 -> MDR Construction | D30: =+'C.2 - Timesheets - Labor'!F45 -> Ford | E30: =+'C.2 - Timesheets - Labor'!G45 -> 25-25202A | F30: =+'C.2 - Timesheets - Labor'!ARB45 -> 0 | G30: =+'C.2 - Timesheets - Labor'!ARC45 -> 29 | H30: =+'C.2 - Timesheets - Labor'!ARD45 -> 0 | I30: =+'C.2 - Timesheets - Labor'!ARE45 -> 29 | J30: =+'C.2 - Timesheets - Labor'!ARF45 -> 0 | K30: =+'C.2 - Timesheets - Labor'!ARG45 -> 1873.98 | L30: =+'C.2 - Timesheets - Labor'!ARH45 -> 0 | M30: =+'C.2 - Timesheets - Labor'!ARI45 -> 1873.98
A31: =+'C.2 - Timesheets - Labor'!C46 -> Rex Hampton | B31: =+'C.2 - Timesheets - Labor'!D46 -> Foreman | C31: =+'C.2 - Timesheets - Labor'!E46 -> MDR Construction | D31: =+'C.2 - Timesheets - Labor'!F46 -> Hampton | E31: =+'C.2 - Timesheets - Labor'!G46 -> 25-25202A | F31: =+'C.2 - Timesheets - Labor'!ARB46 -> 0 | G31: =+'C.2 - Timesheets - Labor'!ARC46 -> 29 | H31: =+'C.2 - Timesheets - Labor'!ARD46 -> 0 | I31: =+'C.2 - Timesheets - Labor'!ARE46 -> 29 | J31: =+'C.2 - Timesheets - Labor'!ARF46 -> 0 | K31: =+'C.2 - Timesheets - Labor'!ARG46 -> 2914.21 | L31: =+'C.2 - Timesheets - Labor'!ARH46 -> 0 | M31: =+'C.2 - Timesheets - Labor'!ARI46 -> 2914.21
A32: =+'C.2 - Timesheets - Labor'!C47 -> Josh Brozynski | B32: =+'C.2 - Timesheets - Labor'!D47 -> Lineman | C32: =+'C.2 - Timesheets - Labor'!E47 -> MDR Construction | D32: =+'C.2 - Timesheets - Labor'!F47 -> Hampton | E32: =+'C.2 - Timesheets - Labor'!G47 -> 25-25202A | F32: =+'C.2 - Timesheets - Labor'!ARB47 -> 0 | G32: =+'C.2 - Timesheets - Labor'!ARC47 -> 29 | H32: =+'C.2 - Timesheets - Labor'!ARD47 -> 0 | I32: =+'C.2 - Timesheets - Labor'!ARE47 -> 29 | J32: =+'C.2 - Timesheets - Labor'!ARF47 -> 0 | K32: =+'C.2 - Timesheets - Labor'!ARG47 -> 2454.85 | L32: =+'C.2 - Timesheets - Labor'!ARH47 -> 0 | M32: =+'C.2 - Timesheets - Labor'!ARI47 -> 2454.85
A33: =+'C.2 - Timesheets - Labor'!C48 -> Jordan Evans | B33: =+'C.2 - Timesheets - Labor'!D48 -> Operator/Truck Driver | C33: =+'C.2 - Timesheets - Labor'!E48 -> MDR Construction | D33: =+'C.2 - Timesheets - Labor'!F48 -> Hampton | E33: =+'C.2 - Timesheets - Labor'!G48 -> 25-25202A | F33: =+'C.2 - Timesheets - Labor'!ARB48 -> 0 | G33: =+'C.2 - Timesheets - Labor'!ARC48 -> 29 | H33: =+'C.2 - Timesheets - Labor'!ARD48 -> 0 | I33: =+'C.2 - Timesheets - Labor'!ARE48 -> 29 | J33: =+'C.2 - Timesheets - Labor'!ARF48 -> 0 | K33: =+'C.2 - Timesheets - Labor'!ARG48 -> 2029.71 | L33: =+'C.2 - Timesheets - Labor'!ARH48 -> 0 | M33: =+'C.2 - Timesheets - Labor'!ARI48 -> 2029.71
A34: =+'C.2 - Timesheets - Labor'!C49 -> Dakota McDaniel | B34: =+'C.2 - Timesheets - Labor'!D49 -> Groundman | C34: =+'C.2 - Timesheets - Labor'!E49 -> MDR Construction | D34: =+'C.2 - Timesheets - Labor'!F49 -> Hampton | E34: =+'C.2 - Timesheets - Labor'!G49 -> 25-25202A | F34: =+'C.2 - Timesheets - Labor'!ARB49 -> 0 | G34: =+'C.2 - Timesheets - Labor'!ARC49 -> 29 | H34: =+'C.2 - Timesheets - Labor'!ARD49 -> 0 | I34: =+'C.2 - Timesheets - Labor'!ARE49 -> 29 | J34: =+'C.2 - Timesheets - Labor'!ARF49 -> 0 | K34: =+'C.2 - Timesheets - Labor'!ARG49 -> 1873.98 | L34: =+'C.2 - Timesheets - Labor'!ARH49 -> 0 | M34: =+'C.2 - Timesheets - Labor'!ARI49 -> 1873.98
A35: =+'C.2 - Timesheets - Labor'!C50 -> Jerry Brown | B35: =+'C.2 - Timesheets - Labor'!D50 -> Foreman | C35: =+'C.2 - Timesheets - Labor'!E50 -> MDR Construction | D35: =+'C.2 - Timesheets - Labor'!F50 -> Brown | E35: =+'C.2 - Timesheets - Labor'!G50 -> 25-25202A | F35: =+'C.2 - Timesheets - Labor'!ARB50 -> 0 | G35: =+'C.2 - Timesheets - Labor'!ARC50 -> 32 | H35: =+'C.2 - Timesheets - Labor'!ARD50 -> 0 | I35: =+'C.2 - Timesheets - Labor'!ARE50 -> 32 | J35: =+'C.2 - Timesheets - Labor'!ARF50 -> 0 | K35: =+'C.2 - Timesheets - Labor'!ARG50 -> 3215.68 | L35: =+'C.2 - Timesheets - Labor'!ARH50 -> 0 | M35: =+'C.2 - Timesheets - Labor'!ARI50 -> 3215.68
A36: =+'C.2 - Timesheets - Labor'!C51 -> Owen Breazeale | B36: =+'C.2 - Timesheets - Labor'!D51 -> Lineman | C36: =+'C.2 - Timesheets - Labor'!E51 -> MDR Construction | D36: =+'C.2 - Timesheets - Labor'!F51 -> Brown | E36: =+'C.2 - Timesheets - Labor'!G51 -> 25-25202A | F36: =+'C.2 - Timesheets - Labor'!ARB51 -> 0 | G36: =+'C.2 - Timesheets - Labor'!ARC51 -> 32 | H36: =+'C.2 - Timesheets - Labor'!ARD51 -> 0 | I36: =+'C.2 - Timesheets - Labor'!ARE51 -> 32 | J36: =+'C.2 - Timesheets - Labor'!ARF51 -> 0 | K36: =+'C.2 - Timesheets - Labor'!ARG51 -> 2708.8 | L36: =+'C.2 - Timesheets - Labor'!ARH51 -> 0 | M36: =+'C.2 - Timesheets - Labor'!ARI51 -> 2708.8
A37: =+'C.2 - Timesheets - Labor'!C52 -> Ramsey Beck | B37: =+'C.2 - Timesheets - Labor'!D52 -> Lineman | C37: =+'C.2 - Timesheets - Labor'!E52 -> MDR Construction | D37: =+'C.2 - Timesheets - Labor'!F52 -> Brown | E37: =+'C.2 - Timesheets - Labor'!G52 -> 25-25202A | F37: =+'C.2 - Timesheets - Labor'!ARB52 -> 0 | G37: =+'C.2 - Timesheets - Labor'!ARC52 -> 32 | H37: =+'C.2 - Timesheets - Labor'!ARD52 -> 0 | I37: =+'C.2 - Timesheets - Labor'!ARE52 -> 32 | J37: =+'C.2 - Timesheets - Labor'!ARF52 -> 0 | K37: =+'C.2 - Timesheets - Labor'!ARG52 -> 2708.8 | L37: =+'C.2 - Timesheets - Labor'!ARH52 -> 0 | M37: =+'C.2 - Timesheets - Labor'!ARI52 -> 2708.8
A38: =+'C.2 - Timesheets - Labor'!C53 -> Dakota Roberts | B38: =+'C.2 - Timesheets - Labor'!D53 -> Operator/Truck Driver | C38: =+'C.2 - Timesheets - Labor'!E53 -> MDR Construction | D38: =+'C.2 - Timesheets - Labor'!F53 -> Brown | E38: =+'C.2 - Timesheets - Labor'!G53 -> 25-25202A | F38: =+'C.2 - Timesheets - Labor'!ARB53 -> 0 | G38: =+'C.2 - Timesheets - Labor'!ARC53 -> 32 | H38: =+'C.2 - Timesheets - Labor'!ARD53 -> 0 | I38: =+'C.2 - Timesheets - Labor'!ARE53 -> 32 | J38: =+'C.2 - Timesheets - Labor'!ARF53 -> 0 | K38: =+'C.2 - Timesheets - Labor'!ARG53 -> 2239.68 | L38: =+'C.2 - Timesheets - Labor'!ARH53 -> 0 | M38: =+'C.2 - Timesheets - Labor'!ARI53 -> 2239.68
A39: =+'C.2 - Timesheets - Labor'!C54 -> Justin Guthrie | B39: =+'C.2 - Timesheets - Labor'!D54 -> Groundman | C39: =+'C.2 - Timesheets - Labor'!E54 -> MDR Construction | D39: =+'C.2 - Timesheets - Labor'!F54 -> Brown | E39: =+'C.2 - Timesheets - Labor'!G54 -> 25-25202A | F39: =+'C.2 - Timesheets - Labor'!ARB54 -> 0 | G39: =+'C.2 - Timesheets - Labor'!ARC54 -> 32 | H39: =+'C.2 - Timesheets - Labor'!ARD54 -> 0 | I39: =+'C.2 - Timesheets - Labor'!ARE54 -> 32 | J39: =+'C.2 - Timesheets - Labor'!ARF54 -> 0 | K39: =+'C.2 - Timesheets - Labor'!ARG54 -> 2067.84 | L39: =+'C.2 - Timesheets - Labor'!ARH54 -> 0 | M39: =+'C.2 - Timesheets - Labor'!ARI54 -> 2067.84
A40: =+'C.2 - Timesheets - Labor'!C55 -> Clint Cullum | B40: =+'C.2 - Timesheets - Labor'!D55 -> Foreman | C40: =+'C.2 - Timesheets - Labor'!E55 -> MDR Construction | D40: =+'C.2 - Timesheets - Labor'!F55 -> Cullum | E40: =+'C.2 - Timesheets - Labor'!G55 -> 25-25202A | F40: =+'C.2 - Timesheets - Labor'!ARB55 -> 0 | G40: =+'C.2 - Timesheets - Labor'!ARC55 -> 29 | H40: =+'C.2 - Timesheets - Labor'!ARD55 -> 0 | I40: =+'C.2 - Timesheets - Labor'!ARE55 -> 29 | J40: =+'C.2 - Timesheets - Labor'!ARF55 -> 0 | K40: =+'C.2 - Timesheets - Labor'!ARG55 -> 2914.21 | L40: =+'C.2 - Timesheets - Labor'!ARH55 -> 0 | M40: =+'C.2 - Timesheets - Labor'!ARI55 -> 2914.21
A41: =+'C.2 - Timesheets - Labor'!C56 -> Bryce Gelger | B41: =+'C.2 - Timesheets - Labor'!D56 -> Lineman | C41: =+'C.2 - Timesheets - Labor'!E56 -> MDR Construction | D41: =+'C.2 - Timesheets - Labor'!F56 -> Cullum | E41: =+'C.2 - Timesheets - Labor'!G56 -> 25-25202A | F41: =+'C.2 - Timesheets - Labor'!ARB56 -> 0 | G41: =+'C.2 - Timesheets - Labor'!ARC56 -> 29 | H41: =+'C.2 - Timesheets - Labor'!ARD56 -> 0 | I41: =+'C.2 - Timesheets - Labor'!ARE56 -> 29 | J41: =+'C.2 - Timesheets - Labor'!ARF56 -> 0 | K41: =+'C.2 - Timesheets - Labor'!ARG56 -> 2454.85 | L41: =+'C.2 - Timesheets - Labor'!ARH56 -> 0 | M41: =+'C.2 - Timesheets - Labor'!ARI56 -> 2454.85
A42: =+'C.2 - Timesheets - Labor'!C57 -> Dalton Hjelden | B42: =+'C.2 - Timesheets - Labor'!D57 -> Operator/Truck Driver | C42: =+'C.2 - Timesheets - Labor'!E57 -> MDR Construction | D42: =+'C.2 - Timesheets - Labor'!F57 -> Cullum | E42: =+'C.2 - Timesheets - Labor'!G57 -> 25-25202A | F42: =+'C.2 - Timesheets - Labor'!ARB57 -> 0 | G42: =+'C.2 - Timesheets - Labor'!ARC57 -> 29 | H42: =+'C.2 - Timesheets - Labor'!ARD57 -> 0 | I42: =+'C.2 - Timesheets - Labor'!ARE57 -> 29 | J42: =+'C.2 - Timesheets - Labor'!ARF57 -> 0 | K42: =+'C.2 - Timesheets - Labor'!ARG57 -> 2029.71 | L42: =+'C.2 - Timesheets - Labor'!ARH57 -> 0 | M42: =+'C.2 - Timesheets - Labor'!ARI57 -> 2029.71
A43: =+'C.2 - Timesheets - Labor'!C58 -> Hunter Pennington | B43: =+'C.2 - Timesheets - Labor'!D58 -> Groundman | C43: =+'C.2 - Timesheets - Labor'!E58 -> MDR Construction | D43: =+'C.2 - Timesheets - Labor'!F58 -> Cullum | E43: =+'C.2 - Timesheets - Labor'!G58 -> 25-25202A | F43: =+'C.2 - Timesheets - Labor'!ARB58 -> 0 | G43: =+'C.2 - Timesheets - Labor'!ARC58 -> 29 | H43: =+'C.2 - Timesheets - Labor'!ARD58 -> 0 | I43: =+'C.2 - Timesheets - Labor'!ARE58 -> 29 | J43: =+'C.2 - Timesheets - Labor'!ARF58 -> 0 | K43: =+'C.2 - Timesheets - Labor'!ARG58 -> 1873.98 | L43: =+'C.2 - Timesheets - Labor'!ARH58 -> 0 | M43: =+'C.2 - Timesheets - Labor'!ARI58 -> 1873.98
A44: =+'C.2 - Timesheets - Labor'!C59 -> Cole Wyatt | B44: =+'C.2 - Timesheets - Labor'!D59 -> Foreman | C44: =+'C.2 - Timesheets - Labor'!E59 -> MDR Construction | D44: =+'C.2 - Timesheets - Labor'!F59 -> Wyatt | E44: =+'C.2 - Timesheets - Labor'!G59 -> 25-25202A | F44: =+'C.2 - Timesheets - Labor'!ARB59 -> 0 | G44: =+'C.2 - Timesheets - Labor'!ARC59 -> 29 | H44: =+'C.2 - Timesheets - Labor'!ARD59 -> 0 | I44: =+'C.2 - Timesheets - Labor'!ARE59 -> 29 | J44: =+'C.2 - Timesheets - Labor'!ARF59 -> 0 | K44: =+'C.2 - Timesheets - Labor'!ARG59 -> 2914.21 | L44: =+'C.2 - Timesheets - Labor'!ARH59 -> 0 | M44: =+'C.2 - Timesheets - Labor'!ARI59 -> 2914.21
A45: =+'C.2 - Timesheets - Labor'!C60 -> Delbert Helton | B45: =+'C.2 - Timesheets - Labor'!D60 -> Lineman | C45: =+'C.2 - Timesheets - Labor'!E60 -> MDR Construction | D45: =+'C.2 - Timesheets - Labor'!F60 -> Wyatt | E45: =+'C.2 - Timesheets - Labor'!G60 -> 25-25202A | F45: =+'C.2 - Timesheets - Labor'!ARB60 -> 0 | G45: =+'C.2 - Timesheets - Labor'!ARC60 -> 29 | H45: =+'C.2 - Timesheets - Labor'!ARD60 -> 0 | I45: =+'C.2 - Timesheets - Labor'!ARE60 -> 29 | J45: =+'C.2 - Timesheets - Labor'!ARF60 -> 0 | K45: =+'C.2 - Timesheets - Labor'!ARG60 -> 2454.85 | L45: =+'C.2 - Timesheets - Labor'!ARH60 -> 0 | M45: =+'C.2 - Timesheets - Labor'!ARI60 -> 2454.85
A46: =+'C.2 - Timesheets - Labor'!C61 -> Justin Weston | B46: =+'C.2 - Timesheets - Labor'!D61 -> Operator/Truck Driver | C46: =+'C.2 - Timesheets - Labor'!E61 -> MDR Construction | D46: =+'C.2 - Timesheets - Labor'!F61 -> Wyatt | E46: =+'C.2 - Timesheets - Labor'!G61 -> 25-25202A | F46: =+'C.2 - Timesheets - Labor'!ARB61 -> 0 | G46: =+'C.2 - Timesheets - Labor'!ARC61 -> 29 | H46: =+'C.2 - Timesheets - Labor'!ARD61 -> 0 | I46: =+'C.2 - Timesheets - Labor'!ARE61 -> 29 | J46: =+'C.2 - Timesheets - Labor'!ARF61 -> 0 | K46: =+'C.2 - Timesheets - Labor'!ARG61 -> 2029.71 | L46: =+'C.2 - Timesheets - Labor'!ARH61 -> 0 | M46: =+'C.2 - Timesheets - Labor'!ARI61 -> 2029.71
A47: =+'C.2 - Timesheets - Labor'!C62 -> Anthony York | B47: =+'C.2 - Timesheets - Labor'!D62 -> Groundman | C47: =+'C.2 - Timesheets - Labor'!E62 -> MDR Construction | D47: =+'C.2 - Timesheets - Labor'!F62 -> Wyatt | E47: =+'C.2 - Timesheets - Labor'!G62 -> 25-25202A | F47: =+'C.2 - Timesheets - Labor'!ARB62 -> 0 | G47: =+'C.2 - Timesheets - Labor'!ARC62 -> 29 | H47: =+'C.2 - Timesheets - Labor'!ARD62 -> 0 | I47: =+'C.2 - Timesheets - Labor'!ARE62 -> 29 | J47: =+'C.2 - Timesheets - Labor'!ARF62 -> 0 | K47: =+'C.2 - Timesheets - Labor'!ARG62 -> 1873.98 | L47: =+'C.2 - Timesheets - Labor'!ARH62 -> 0 | M47: =+'C.2 - Timesheets - Labor'!ARI62 -> 1873.98
A48: =+'C.2 - Timesheets - Labor'!C63 -> Chris McKee | B48: =+'C.2 - Timesheets - Labor'!D63 -> Foreman | C48: =+'C.2 - Timesheets - Labor'!E63 -> MDR Construction | D48: =+'C.2 - Timesheets - Labor'!F63 -> McKee | E48: =+'C.2 - Timesheets - Labor'!G63 -> 25-25202A | F48: =+'C.2 - Timesheets - Labor'!ARB63 -> 0 | G48: =+'C.2 - Timesheets - Labor'!ARC63 -> 29 | H48: =+'C.2 - Timesheets - Labor'!ARD63 -> 0 | I48: =+'C.2 - Timesheets - Labor'!ARE63 -> 29 | J48: =+'C.2 - Timesheets - Labor'!ARF63 -> 0 | K48: =+'C.2 - Timesheets - Labor'!ARG63 -> 2914.21 | L48: =+'C.2 - Timesheets - Labor'!ARH63 -> 0 | M48: =+'C.2 - Timesheets - Labor'!ARI63 -> 2914.21
A49: =+'C.2 - Timesheets - Labor'!C64 -> Justin Keathley | B49: =+'C.2 - Timesheets - Labor'!D64 -> Lineman | C49: =+'C.2 - Timesheets - Labor'!E64 -> MDR Construction | D49: =+'C.2 - Timesheets - Labor'!F64 -> McKee | E49: =+'C.2 - Timesheets - Labor'!G64 -> 25-25202A | F49: =+'C.2 - Timesheets - Labor'!ARB64 -> 0 | G49: =+'C.2 - Timesheets - Labor'!ARC64 -> 29 | H49: =+'C.2 - Timesheets - Labor'!ARD64 -> 0 | I49: =+'C.2 - Timesheets - Labor'!ARE64 -> 29 | J49: =+'C.2 - Timesheets - Labor'!ARF64 -> 0 | K49: =+'C.2 - Timesheets - Labor'!ARG64 -> 2454.85 | L49: =+'C.2 - Timesheets - Labor'!ARH64 -> 0 | M49: =+'C.2 - Timesheets - Labor'!ARI64 -> 2454.85
A50: =+'C.2 - Timesheets - Labor'!C65 -> Drew Pratt | B50: =+'C.2 - Timesheets - Labor'!D65 -> Operator/Truck Driver | C50: =+'C.2 - Timesheets - Labor'!E65 -> MDR Construction | D50: =+'C.2 - Timesheets - Labor'!F65 -> McKee | E50: =+'C.2 - Timesheets - Labor'!G65 -> 25-25202A | F50: =+'C.2 - Timesheets - Labor'!ARB65 -> 0 | G50: =+'C.2 - Timesheets - Labor'!ARC65 -> 29 | H50: =+'C.2 - Timesheets - Labor'!ARD65 -> 0 | I50: =+'C.2 - Timesheets - Labor'!ARE65 -> 29 | J50: =+'C.2 - Timesheets - Labor'!ARF65 -> 0 | K50: =+'C.2 - Timesheets - Labor'!ARG65 -> 2029.71 | L50: =+'C.2 - Timesheets - Labor'!ARH65 -> 0 | M50: =+'C.2 - Timesheets - Labor'!ARI65 -> 2029.71
A51: =+'C.2 - Timesheets - Labor'!C66 -> Deway Morton | B51: =+'C.2 - Timesheets - Labor'!D66 -> Groundman | C51: =+'C.2 - Timesheets - Labor'!E66 -> MDR Construction | D51: =+'C.2 - Timesheets - Labor'!F66 -> McKee | E51: =+'C.2 - Timesheets - Labor'!G66 -> 25-25202A | F51: =+'C.2 - Timesheets - Labor'!ARB66 -> 0 | G51: =+'C.2 - Timesheets - Labor'!ARC66 -> 29 | H51: =+'C.2 - Timesheets - Labor'!ARD66 -> 0 | I51: =+'C.2 - Timesheets - Labor'!ARE66 -> 29 | J51: =+'C.2 - Timesheets - Labor'!ARF66 -> 0 | K51: =+'C.2 - Timesheets - Labor'!ARG66 -> 1873.98 | L51: =+'C.2 - Timesheets - Labor'!ARH66 -> 0 | M51: =+'C.2 - Timesheets - Labor'!ARI66 -> 1873.98
A52: =+'C.2 - Timesheets - Labor'!C67 -> Chris Wells | B52: =+'C.2 - Timesheets - Labor'!D67 -> Foreman | C52: =+'C.2 - Timesheets - Labor'!E67 -> MDR Construction | D52: =+'C.2 - Timesheets - Labor'!F67 -> Wells | E52: =+'C.2 - Timesheets - Labor'!G67 -> 25-25202A | F52: =+'C.2 - Timesheets - Labor'!ARB67 -> 0 | G52: =+'C.2 - Timesheets - Labor'!ARC67 -> 29 | H52: =+'C.2 - Timesheets - Labor'!ARD67 -> 0 | I52: =+'C.2 - Timesheets - Labor'!ARE67 -> 29 | J52: =+'C.2 - Timesheets - Labor'!ARF67 -> 0 | K52: =+'C.2 - Timesheets - Labor'!ARG67 -> 2914.21 | L52: =+'C.2 - Timesheets - Labor'!ARH67 -> 0 | M52: =+'C.2 - Timesheets - Labor'!ARI67 -> 2914.21
A53: =+'C.2 - Timesheets - Labor'!C68 -> Andy Gallaway | B53: =+'C.2 - Timesheets - Labor'!D68 -> Lineman | C53: =+'C.2 - Timesheets - Labor'!E68 -> MDR Construction | D53: =+'C.2 - Timesheets - Labor'!F68 -> Wells | E53: =+'C.2 - Timesheets - Labor'!G68 -> 25-25202A | F53: =+'C.2 - Timesheets - Labor'!ARB68 -> 0 | G53: =+'C.2 - Timesheets - Labor'!ARC68 -> 29 | H53: =+'C.2 - Timesheets - Labor'!ARD68 -> 0 | I53: =+'C.2 - Timesheets - Labor'!ARE68 -> 29 | J53: =+'C.2 - Timesheets - Labor'!ARF68 -> 0 | K53: =+'C.2 - Timesheets - Labor'!ARG68 -> 2454.85 | L53: =+'C.2 - Timesheets - Labor'!ARH68 -> 0 | M53: =+'C.2 - Timesheets - Labor'!ARI68 -> 2454.85
A54: =+'C.2 - Timesheets - Labor'!C69 -> Justin Liles | B54: =+'C.2 - Timesheets - Labor'!D69 -> Lineman | C54: =+'C.2 - Timesheets - Labor'!E69 -> MDR Construction | D54: =+'C.2 - Timesheets - Labor'!F69 -> Wells | E54: =+'C.2 - Timesheets - Labor'!G69 -> 25-25202A | F54: =+'C.2 - Timesheets - Labor'!ARB69 -> 0 | G54: =+'C.2 - Timesheets - Labor'!ARC69 -> 29 | H54: =+'C.2 - Timesheets - Labor'!ARD69 -> 0 | I54: =+'C.2 - Timesheets - Labor'!ARE69 -> 29 | J54: =+'C.2 - Timesheets - Labor'!ARF69 -> 0 | K54: =+'C.2 - Timesheets - Labor'!ARG69 -> 2454.85 | L54: =+'C.2 - Timesheets - Labor'!ARH69 -> 0 | M54: =+'C.2 - Timesheets - Labor'!ARI69 -> 2454.85
A55: =+'C.2 - Timesheets - Labor'!C70 -> Cole Oaks | B55: =+'C.2 - Timesheets - Labor'!D70 -> Operator/Truck Driver | C55: =+'C.2 - Timesheets - Labor'!E70 -> MDR Construction | D55: =+'C.2 - Timesheets - Labor'!F70 -> Wells | E55: =+'C.2 - Timesheets - Labor'!G70 -> 25-25202A | F55: =+'C.2 - Timesheets - Labor'!ARB70 -> 0 | G55: =+'C.2 - Timesheets - Labor'!ARC70 -> 29 | H55: =+'C.2 - Timesheets - Labor'!ARD70 -> 0 | I55: =+'C.2 - Timesheets - Labor'!ARE70 -> 29 | J55: =+'C.2 - Timesheets - Labor'!ARF70 -> 0 | K55: =+'C.2 - Timesheets - Labor'!ARG70 -> 2029.71 | L55: =+'C.2 - Timesheets - Labor'!ARH70 -> 0 | M55: =+'C.2 - Timesheets - Labor'!ARI70 -> 2029.71
A56: =+'C.2 - Timesheets - Labor'!C71 -> Jusin Drain | B56: =+'C.2 - Timesheets - Labor'!D71 -> Groundman | C56: =+'C.2 - Timesheets - Labor'!E71 -> MDR Construction | D56: =+'C.2 - Timesheets - Labor'!F71 -> Wells | E56: =+'C.2 - Timesheets - Labor'!G71 -> 25-25202A | F56: =+'C.2 - Timesheets - Labor'!ARB71 -> 0 | G56: =+'C.2 - Timesheets - Labor'!ARC71 -> 29 | H56: =+'C.2 - Timesheets - Labor'!ARD71 -> 0 | I56: =+'C.2 - Timesheets - Labor'!ARE71 -> 29 | J56: =+'C.2 - Timesheets - Labor'!ARF71 -> 0 | K56: =+'C.2 - Timesheets - Labor'!ARG71 -> 1873.98 | L56: =+'C.2 - Timesheets - Labor'!ARH71 -> 0 | M56: =+'C.2 - Timesheets - Labor'!ARI71 -> 1873.98
A57: =+'C.2 - Timesheets - Labor'!C72 -> Derrick Hare | B57: =+'C.2 - Timesheets - Labor'!D72 -> Foreman | C57: =+'C.2 - Timesheets - Labor'!E72 -> MDR Construction | D57: =+'C.2 - Timesheets - Labor'!F72 -> Hare | E57: =+'C.2 - Timesheets - Labor'!G72 -> 25-25202A | F57: =+'C.2 - Timesheets - Labor'!ARB72 -> 0 | G57: =+'C.2 - Timesheets - Labor'!ARC72 -> 29 | H57: =+'C.2 - Timesheets - Labor'!ARD72 -> 0 | I57: =+'C.2 - Timesheets - Labor'!ARE72 -> 29 | J57: =+'C.2 - Timesheets - Labor'!ARF72 -> 0 | K57: =+'C.2 - Timesheets - Labor'!ARG72 -> 2914.21 | L57: =+'C.2 - Timesheets - Labor'!ARH72 -> 0 | M57: =+'C.2 - Timesheets - Labor'!ARI72 -> 2914.21
A58: =+'C.2 - Timesheets - Labor'!C73 -> Brad Cathey | B58: =+'C.2 - Timesheets - Labor'!D73 -> Lineman | C58: =+'C.2 - Timesheets - Labor'!E73 -> MDR Construction | D58: =+'C.2 - Timesheets - Labor'!F73 -> Hare | E58: =+'C.2 - Timesheets - Labor'!G73 -> 25-25202A | F58: =+'C.2 - Timesheets - Labor'!ARB73 -> 0 | G58: =+'C.2 - Timesheets - Labor'!ARC73 -> 29 | H58: =+'C.2 - Timesheets - Labor'!ARD73 -> 0 | I58: =+'C.2 - Timesheets - Labor'!ARE73 -> 29 | J58: =+'C.2 - Timesheets - Labor'!ARF73 -> 0 | K58: =+'C.2 - Timesheets - Labor'!ARG73 -> 2454.85 | L58: =+'C.2 - Timesheets - Labor'!ARH73 -> 0 | M58: =+'C.2 - Timesheets - Labor'!ARI73 -> 2454.85
A59: =+'C.2 - Timesheets - Labor'!C74 -> Benny Riegel | B59: =+'C.2 - Timesheets - Labor'!D74 -> Lineman | C59: =+'C.2 - Timesheets - Labor'!E74 -> MDR Construction | D59: =+'C.2 - Timesheets - Labor'!F74 -> Hare | E59: =+'C.2 - Timesheets - Labor'!G74 -> 25-25202A | F59: =+'C.2 - Timesheets - Labor'!ARB74 -> 0 | G59: =+'C.2 - Timesheets - Labor'!ARC74 -> 29 | H59: =+'C.2 - Timesheets - Labor'!ARD74 -> 0 | I59: =+'C.2 - Timesheets - Labor'!ARE74 -> 29 | J59: =+'C.2 - Timesheets - Labor'!ARF74 -> 0 | K59: =+'C.2 - Timesheets - Labor'!ARG74 -> 2454.85 | L59: =+'C.2 - Timesheets - Labor'!ARH74 -> 0 | M59: =+'C.2 - Timesheets - Labor'!ARI74 -> 2454.85
A60: =+'C.2 - Timesheets - Labor'!C75 -> Brandon Barron | B60: =+'C.2 - Timesheets - Labor'!D75 -> Operator/Truck Driver | C60: =+'C.2 - Timesheets - Labor'!E75 -> MDR Construction | D60: =+'C.2 - Timesheets - Labor'!F75 -> Hare | E60: =+'C.2 - Timesheets - Labor'!G75 -> 25-25202A | F60: =+'C.2 - Timesheets - Labor'!ARB75 -> 0 | G60: =+'C.2 - Timesheets - Labor'!ARC75 -> 29 | H60: =+'C.2 - Timesheets - Labor'!ARD75 -> 0 | I60: =+'C.2 - Timesheets - Labor'!ARE75 -> 29 | J60: =+'C.2 - Timesheets - Labor'!ARF75 -> 0 | K60: =+'C.2 - Timesheets - Labor'!ARG75 -> 2029.71 | L60: =+'C.2 - Timesheets - Labor'!ARH75 -> 0 | M60: =+'C.2 - Timesheets - Labor'!ARI75 -> 2029.71
A61: =+'C.2 - Timesheets - Labor'!C76 -> Jack Land | B61: =+'C.2 - Timesheets - Labor'!D76 -> Groundman | C61: =+'C.2 - Timesheets - Labor'!E76 -> MDR Construction | D61: =+'C.2 - Timesheets - Labor'!F76 -> Hare | E61: =+'C.2 - Timesheets - Labor'!G76 -> 25-25202A | F61: =+'C.2 - Timesheets - Labor'!ARB76 -> 0 | G61: =+'C.2 - Timesheets - Labor'!ARC76 -> 29 | H61: =+'C.2 - Timesheets - Labor'!ARD76 -> 0 | I61: =+'C.2 - Timesheets - Labor'!ARE76 -> 29 | J61: =+'C.2 - Timesheets - Labor'!ARF76 -> 0 | K61: =+'C.2 - Timesheets - Labor'!ARG76 -> 1873.98 | L61: =+'C.2 - Timesheets - Labor'!ARH76 -> 0 | M61: =+'C.2 - Timesheets - Labor'!ARI76 -> 1873.98
A62: =+'C.2 - Timesheets - Labor'!C77 -> Brian Chambley | B62: =+'C.2 - Timesheets - Labor'!D77 -> Foreman | C62: =+'C.2 - Timesheets - Labor'!E77 -> MDR Construction | D62: =+'C.2 - Timesheets - Labor'!F77 -> Champley | E62: =+'C.2 - Timesheets - Labor'!G77 -> 25-25202A | F62: =+'C.2 - Timesheets - Labor'!ARB77 -> 0 | G62: =+'C.2 - Timesheets - Labor'!ARC77 -> 32 | H62: =+'C.2 - Timesheets - Labor'!ARD77 -> 0 | I62: =+'C.2 - Timesheets - Labor'!ARE77 -> 32 | J62: =+'C.2 - Timesheets - Labor'!ARF77 -> 0 | K62: =+'C.2 - Timesheets - Labor'!ARG77 -> 3215.68 | L62: =+'C.2 - Timesheets - Labor'!ARH77 -> 0 | M62: =+'C.2 - Timesheets - Labor'!ARI77 -> 3215.68
A63: =+'C.2 - Timesheets - Labor'!C78 -> Hunter Burford | B63: =+'C.2 - Timesheets - Labor'!D78 -> Lineman | C63: =+'C.2 - Timesheets - Labor'!E78 -> MDR Construction | D63: =+'C.2 - Timesheets - Labor'!F78 -> Champley | E63: =+'C.2 - Timesheets - Labor'!G78 -> 25-25202A | F63: =+'C.2 - Timesheets - Labor'!ARB78 -> 0 | G63: =+'C.2 - Timesheets - Labor'!ARC78 -> 32 | H63: =+'C.2 - Timesheets - Labor'!ARD78 -> 0 | I63: =+'C.2 - Timesheets - Labor'!ARE78 -> 32 | J63: =+'C.2 - Timesheets - Labor'!ARF78 -> 0 | K63: =+'C.2 - Timesheets - Labor'!ARG78 -> 2708.8 | L63: =+'C.2 - Timesheets - Labor'!ARH78 -> 0 | M63: =+'C.2 - Timesheets - Labor'!ARI78 -> 2708.8
A64: =+'C.2 - Timesheets - Labor'!C79 -> Charles Freeman | B64: =+'C.2 - Timesheets - Labor'!D79 -> Lineman | C64: =+'C.2 - Timesheets - Labor'!E79 -> MDR Construction | D64: =+'C.2 - Timesheets - Labor'!F79 -> Champley | E64: =+'C.2 - Timesheets - Labor'!G79 -> 25-25202A | F64: =+'C.2 - Timesheets - Labor'!ARB79 -> 0 | G64: =+'C.2 - Timesheets - Labor'!ARC79 -> 32 | H64: =+'C.2 - Timesheets - Labor'!ARD79 -> 0 | I64: =+'C.2 - Timesheets - Labor'!ARE79 -> 32 | J64: =+'C.2 - Timesheets - Labor'!ARF79 -> 0 | K64: =+'C.2 - Timesheets - Labor'!ARG79 -> 2708.8 | L64: =+'C.2 - Timesheets - Labor'!ARH79 -> 0 | M64: =+'C.2 - Timesheets - Labor'!ARI79 -> 2708.8
A65: =+'C.2 - Timesheets - Labor'!C80 -> Hunter Guthrie | B65: =+'C.2 - Timesheets - Labor'!D80 -> Operator/Truck Driver | C65: =+'C.2 - Timesheets - Labor'!E80 -> MDR Construction | D65: =+'C.2 - Timesheets - Labor'!F80 -> Champley | E65: =+'C.2 - Timesheets - Labor'!G80 -> 25-25202A | F65: =+'C.2 - Timesheets - Labor'!ARB80 -> 0 | G65: =+'C.2 - Timesheets - Labor'!ARC80 -> 32 | H65: =+'C.2 - Timesheets - Labor'!ARD80 -> 0 | I65: =+'C.2 - Timesheets - Labor'!ARE80 -> 32 | J65: =+'C.2 - Timesheets - Labor'!ARF80 -> 0 | K65: =+'C.2 - Timesheets - Labor'!ARG80 -> 2239.68 | L65: =+'C.2 - Timesheets - Labor'!ARH80 -> 0 | M65: =+'C.2 - Timesheets - Labor'!ARI80 -> 2239.68
A66: =+'C.2 - Timesheets - Labor'!C81 -> Shane Mitchell | B66: =+'C.2 - Timesheets - Labor'!D81 -> Groundman | C66: =+'C.2 - Timesheets - Labor'!E81 -> MDR Construction | D66: =+'C.2 - Timesheets - Labor'!F81 -> Champley | E66: =+'C.2 - Timesheets - Labor'!G81 -> 25-25202A | F66: =+'C.2 - Timesheets - Labor'!ARB81 -> 0 | G66: =+'C.2 - Timesheets - Labor'!ARC81 -> 32 | H66: =+'C.2 - Timesheets - Labor'!ARD81 -> 0 | I66: =+'C.2 - Timesheets - Labor'!ARE81 -> 32 | J66: =+'C.2 - Timesheets - Labor'!ARF81 -> 0 | K66: =+'C.2 - Timesheets - Labor'!ARG81 -> 2067.84 | L66: =+'C.2 - Timesheets - Labor'!ARH81 -> 0 | M66: =+'C.2 - Timesheets - Labor'!ARI81 -> 2067.84
A67: =+'C.2 - Timesheets - Labor'!C82 -> Troy Bigham | B67: =+'C.2 - Timesheets - Labor'!D82 -> Storm Team Leader | C67: =+'C.2 - Timesheets - Labor'!E82 -> MDR Construction | D67: =+'C.2 - Timesheets - Labor'!F82 -> Bigham | E67: =+'C.2 - Timesheets - Labor'!G82 -> 25-25227 | F67: =+'C.2 - Timesheets - Labor'!ARB82 -> 0 | G67: =+'C.2 - Timesheets - Labor'!ARC82 -> 36 | H67: =+'C.2 - Timesheets - Labor'!ARD82 -> 16 | I67: =+'C.2 - Timesheets - Labor'!ARE82 -> 52 | J67: =+'C.2 - Timesheets - Labor'!ARF82 -> 0 | K67: =+'C.2 - Timesheets - Labor'!ARG82 -> 4434.12 | L67: =+'C.2 - Timesheets - Labor'!ARH82 -> 2291.52 | M67: =+'C.2 - Timesheets - Labor'!ARI82 -> 6725.64
A68: =+'C.2 - Timesheets - Labor'!C83 -> Brian Barnett | B68: =+'C.2 - Timesheets - Labor'!D83 -> Storm Team Leader | C68: =+'C.2 - Timesheets - Labor'!E83 -> MDR Construction | D68: =+'C.2 - Timesheets - Labor'!F83 -> Bigham | E68: =+'C.2 - Timesheets - Labor'!G83 -> 25-25227 | F68: =+'C.2 - Timesheets - Labor'!ARB83 -> 0 | G68: =+'C.2 - Timesheets - Labor'!ARC83 -> 36 | H68: =+'C.2 - Timesheets - Labor'!ARD83 -> 16 | I68: =+'C.2 - Timesheets - Labor'!ARE83 -> 52 | J68: =+'C.2 - Timesheets - Labor'!ARF83 -> 0 | K68: =+'C.2 - Timesheets - Labor'!ARG83 -> 4434.12 | L68: =+'C.2 - Timesheets - Labor'!ARH83 -> 2291.52 | M68: =+'C.2 - Timesheets - Labor'!ARI83 -> 6725.64
A69: =+'C.2 - Timesheets - Labor'!C84 -> Al Booher | B69: =+'C.2 - Timesheets - Labor'!D84 -> Safety Coordinator | C69: =+'C.2 - Timesheets - Labor'!E84 -> MDR Construction | D69: =+'C.2 - Timesheets - Labor'!F84 -> Bigham | E69: =+'C.2 - Timesheets - Labor'!G84 -> 25-25227 | F69: =+'C.2 - Timesheets - Labor'!ARB84 -> 0 | G69: =+'C.2 - Timesheets - Labor'!ARC84 -> 36 | H69: =+'C.2 - Timesheets - Labor'!ARD84 -> 16 | I69: =+'C.2 - Timesheets - Labor'!ARE84 -> 52 | J69: =+'C.2 - Timesheets - Labor'!ARF84 -> 0 | K69: =+'C.2 - Timesheets - Labor'!ARG84 -> 3617.64 | L69: =+'C.2 - Timesheets - Labor'!ARH84 -> 2143.68 | M69: =+'C.2 - Timesheets - Labor'!ARI84 -> 5761.32
A70: =+'C.2 - Timesheets - Labor'!C85 -> Peyton Miller | B70: =+'C.2 - Timesheets - Labor'!D85 -> Mechanic | C70: =+'C.2 - Timesheets - Labor'!E85 -> MDR Construction | D70: =+'C.2 - Timesheets - Labor'!F85 -> Bigham | E70: =+'C.2 - Timesheets - Labor'!G85 -> 25-25227 | F70: =+'C.2 - Timesheets - Labor'!ARB85 -> 0 | G70: =+'C.2 - Timesheets - Labor'!ARC85 -> 36 | H70: =+'C.2 - Timesheets - Labor'!ARD85 -> 16 | I70: =+'C.2 - Timesheets - Labor'!ARE85 -> 52 | J70: =+'C.2 - Timesheets - Labor'!ARF85 -> 0 | K70: =+'C.2 - Timesheets - Labor'!ARG85 -> 2519.64 | L70: =+'C.2 - Timesheets - Labor'!ARH85 -> 1493.12 | M70: =+'C.2 - Timesheets - Labor'!ARI85 -> 4012.76
A71: =+'C.2 - Timesheets - Labor'!C86 -> Jonathan Baughman | B71: =+'C.2 - Timesheets - Labor'!D86 -> Safety Coordinator | C71: =+'C.2 - Timesheets - Labor'!E86 -> MDR Construction | D71: =+'C.2 - Timesheets - Labor'!F86 -> Bigham | E71: =+'C.2 - Timesheets - Labor'!G86 -> 25-25227 | F71: =+'C.2 - Timesheets - Labor'!ARB86 -> 0 | G71: =+'C.2 - Timesheets - Labor'!ARC86 -> 36 | H71: =+'C.2 - Timesheets - Labor'!ARD86 -> 16 | I71: =+'C.2 - Timesheets - Labor'!ARE86 -> 52 | J71: =+'C.2 - Timesheets - Labor'!ARF86 -> 0 | K71: =+'C.2 - Timesheets - Labor'!ARG86 -> 3617.64 | L71: =+'C.2 - Timesheets - Labor'!ARH86 -> 2143.68 | M71: =+'C.2 - Timesheets - Labor'!ARI86 -> 5761.32
A72: =+'C.2 - Timesheets - Labor'!C87 -> Kerry Lee | B72: =+'C.2 - Timesheets - Labor'!D87 -> Operator/Truck Driver | C72: =+'C.2 - Timesheets - Labor'!E87 -> MDR Construction | D72: =+'C.2 - Timesheets - Labor'!F87 -> Lee | E72: =+'C.2 - Timesheets - Labor'!G87 -> 25-25227 | F72: =+'C.2 - Timesheets - Labor'!ARB87 -> 0 | G72: =+'C.2 - Timesheets - Labor'!ARC87 -> 36 | H72: =+'C.2 - Timesheets - Labor'!ARD87 -> 16 | I72: =+'C.2 - Timesheets - Labor'!ARE87 -> 52 | J72: =+'C.2 - Timesheets - Labor'!ARF87 -> 0 | K72: =+'C.2 - Timesheets - Labor'!ARG87 -> 2519.64 | L72: =+'C.2 - Timesheets - Labor'!ARH87 -> 1493.12 | M72: =+'C.2 - Timesheets - Labor'!ARI87 -> 4012.76
A73: =+'C.2 - Timesheets - Labor'!C88 -> Warren Lee | B73: =+'C.2 - Timesheets - Labor'!D88 -> Operator/Truck Driver | C73: =+'C.2 - Timesheets - Labor'!E88 -> MDR Construction | D73: =+'C.2 - Timesheets - Labor'!F88 -> Lee | E73: =+'C.2 - Timesheets - Labor'!G88 -> 25-25227 | F73: =+'C.2 - Timesheets - Labor'!ARB88 -> 0 | G73: =+'C.2 - Timesheets - Labor'!ARC88 -> 36 | H73: =+'C.2 - Timesheets - Labor'!ARD88 -> 16 | I73: =+'C.2 - Timesheets - Labor'!ARE88 -> 52 | J73: =+'C.2 - Timesheets - Labor'!ARF88 -> 0 | K73: =+'C.2 - Timesheets - Labor'!ARG88 -> 2519.64 | L73: =+'C.2 - Timesheets - Labor'!ARH88 -> 1493.12 | M73: =+'C.2 - Timesheets - Labor'!ARI88 -> 4012.76
A74: =+'C.2 - Timesheets - Labor'!C89 -> Michael Baker | B74: =+'C.2 - Timesheets - Labor'!D89 -> Operator/Truck Driver | C74: =+'C.2 - Timesheets - Labor'!E89 -> MDR Construction | D74: =+'C.2 - Timesheets - Labor'!F89 -> Lee | E74: =+'C.2 - Timesheets - Labor'!G89 -> 25-25227 | F74: =+'C.2 - Timesheets - Labor'!ARB89 -> 0 | G74: =+'C.2 - Timesheets - Labor'!ARC89 -> 36 | H74: =+'C.2 - Timesheets - Labor'!ARD89 -> 16 | I74: =+'C.2 - Timesheets - Labor'!ARE89 -> 52 | J74: =+'C.2 - Timesheets - Labor'!ARF89 -> 0 | K74: =+'C.2 - Timesheets - Labor'!ARG89 -> 2519.64 | L74: =+'C.2 - Timesheets - Labor'!ARH89 -> 1493.12 | M74: =+'C.2 - Timesheets - Labor'!ARI89 -> 4012.76
A75: =+'C.2 - Timesheets - Labor'!C90 -> Jonathan Culpepper | B75: =+'C.2 - Timesheets - Labor'!D90 -> Operator/Truck Driver | C75: =+'C.2 - Timesheets - Labor'!E90 -> MDR Construction | D75: =+'C.2 - Timesheets - Labor'!F90 -> Lee | E75: =+'C.2 - Timesheets - Labor'!G90 -> 25-25227 | F75: =+'C.2 - Timesheets - Labor'!ARB90 -> 0 | G75: =+'C.2 - Timesheets - Labor'!ARC90 -> 36 | H75: =+'C.2 - Timesheets - Labor'!ARD90 -> 16 | I75: =+'C.2 - Timesheets - Labor'!ARE90 -> 52 | J75: =+'C.2 - Timesheets - Labor'!ARF90 -> 0 | K75: =+'C.2 - Timesheets - Labor'!ARG90 -> 2519.64 | L75: =+'C.2 - Timesheets - Labor'!ARH90 -> 1493.12 | M75: =+'C.2 - Timesheets - Labor'!ARI90 -> 4012.76
A76: =+'C.2 - Timesheets - Labor'!C91 -> Barry Barnett | B76: =+'C.2 - Timesheets - Labor'!D91 -> Foreman | C76: =+'C.2 - Timesheets - Labor'!E91 -> MDR Construction | D76: =+'C.2 - Timesheets - Labor'!F91 -> Barnett | E76: =+'C.2 - Timesheets - Labor'!G91 -> 25-25227 | F76: =+'C.2 - Timesheets - Labor'!ARB91 -> 0 | G76: =+'C.2 - Timesheets - Labor'!ARC91 -> 36 | H76: =+'C.2 - Timesheets - Labor'!ARD91 -> 16 | I76: =+'C.2 - Timesheets - Labor'!ARE91 -> 52 | J76: =+'C.2 - Timesheets - Labor'!ARF91 -> 0 | K76: =+'C.2 - Timesheets - Labor'!ARG91 -> 3617.64 | L76: =+'C.2 - Timesheets - Labor'!ARH91 -> 2143.68 | M76: =+'C.2 - Timesheets - Labor'!ARI91 -> 5761.32
A77: =+'C.2 - Timesheets - Labor'!C92 -> Anthony Mosconi | B77: =+'C.2 - Timesheets - Labor'!D92 -> Lineman | C77: =+'C.2 - Timesheets - Labor'!E92 -> MDR Construction | D77: =+'C.2 - Timesheets - Labor'!F92 -> Barnett | E77: =+'C.2 - Timesheets - Labor'!G92 -> 25-25227 | F77: =+'C.2 - Timesheets - Labor'!ARB92 -> 0 | G77: =+'C.2 - Timesheets - Labor'!ARC92 -> 36 | H77: =+'C.2 - Timesheets - Labor'!ARD92 -> 16 | I77: =+'C.2 - Timesheets - Labor'!ARE92 -> 52 | J77: =+'C.2 - Timesheets - Labor'!ARF92 -> 0 | K77: =+'C.2 - Timesheets - Labor'!ARG92 -> 3047.4 | L77: =+'C.2 - Timesheets - Labor'!ARH92 -> 1805.76 | M77: =+'C.2 - Timesheets - Labor'!ARI92 -> 4853.16
A78: =+'C.2 - Timesheets - Labor'!C93 -> John Napier | B78: =+'C.2 - Timesheets - Labor'!D93 -> Lineman | C78: =+'C.2 - Timesheets - Labor'!E93 -> MDR Construction | D78: =+'C.2 - Timesheets - Labor'!F93 -> Barnett | E78: =+'C.2 - Timesheets - Labor'!G93 -> 25-25227 | F78: =+'C.2 - Timesheets - Labor'!ARB93 -> 0 | G78: =+'C.2 - Timesheets - Labor'!ARC93 -> 36 | H78: =+'C.2 - Timesheets - Labor'!ARD93 -> 16 | I78: =+'C.2 - Timesheets - Labor'!ARE93 -> 52 | J78: =+'C.2 - Timesheets - Labor'!ARF93 -> 0 | K78: =+'C.2 - Timesheets - Labor'!ARG93 -> 3047.4 | L78: =+'C.2 - Timesheets - Labor'!ARH93 -> 1805.76 | M78: =+'C.2 - Timesheets - Labor'!ARI93 -> 4853.16
A79: =+'C.2 - Timesheets - Labor'!C94 -> Kris Wooten | B79: =+'C.2 - Timesheets - Labor'!D94 -> Lineman | C79: =+'C.2 - Timesheets - Labor'!E94 -> MDR Construction | D79: =+'C.2 - Timesheets - Labor'!F94 -> Barnett | E79: =+'C.2 - Timesheets - Labor'!G94 -> 25-25227 | F79: =+'C.2 - Timesheets - Labor'!ARB94 -> 0 | G79: =+'C.2 - Timesheets - Labor'!ARC94 -> 36 | H79: =+'C.2 - Timesheets - Labor'!ARD94 -> 16 | I79: =+'C.2 - Timesheets - Labor'!ARE94 -> 52 | J79: =+'C.2 - Timesheets - Labor'!ARF94 -> 0 | K79: =+'C.2 - Timesheets - Labor'!ARG94 -> 3047.4 | L79: =+'C.2 - Timesheets - Labor'!ARH94 -> 1805.76 | M79: =+'C.2 - Timesheets - Labor'!ARI94 -> 4853.16
A80: =+'C.2 - Timesheets - Labor'!C95 -> Zach Parham | B80: =+'C.2 - Timesheets - Labor'!D95 -> Operator/Truck Driver | C80: =+'C.2 - Timesheets - Labor'!E95 -> MDR Construction | D80: =+'C.2 - Timesheets - Labor'!F95 -> Barnett | E80: =+'C.2 - Timesheets - Labor'!G95 -> 25-25227 | F80: =+'C.2 - Timesheets - Labor'!ARB95 -> 0 | G80: =+'C.2 - Timesheets - Labor'!ARC95 -> 36 | H80: =+'C.2 - Timesheets - Labor'!ARD95 -> 16 | I80: =+'C.2 - Timesheets - Labor'!ARE95 -> 52 | J80: =+'C.2 - Timesheets - Labor'!ARF95 -> 0 | K80: =+'C.2 - Timesheets - Labor'!ARG95 -> 2519.64 | L80: =+'C.2 - Timesheets - Labor'!ARH95 -> 1493.12 | M80: =+'C.2 - Timesheets - Labor'!ARI95 -> 4012.76
A81: =+'C.2 - Timesheets - Labor'!C96 -> Preston Goff | B81: =+'C.2 - Timesheets - Labor'!D96 -> Groundman | C81: =+'C.2 - Timesheets - Labor'!E96 -> MDR Construction | D81: =+'C.2 - Timesheets - Labor'!F96 -> Barnett | E81: =+'C.2 - Timesheets - Labor'!G96 -> 25-25227 | F81: =+'C.2 - Timesheets - Labor'!ARB96 -> 0 | G81: =+'C.2 - Timesheets - Labor'!ARC96 -> 36 | H81: =+'C.2 - Timesheets - Labor'!ARD96 -> 16 | I81: =+'C.2 - Timesheets - Labor'!ARE96 -> 52 | J81: =+'C.2 - Timesheets - Labor'!ARF96 -> 0 | K81: =+'C.2 - Timesheets - Labor'!ARG96 -> 2326.32 | L81: =+'C.2 - Timesheets - Labor'!ARH96 -> 1378.56 | M81: =+'C.2 - Timesheets - Labor'!ARI96 -> 3704.88
A82: =+'C.2 - Timesheets - Labor'!C97 -> Jonathan Baker | B82: =+'C.2 - Timesheets - Labor'!D97 -> Foreman | C82: =+'C.2 - Timesheets - Labor'!E97 -> MDR Construction | D82: =+'C.2 - Timesheets - Labor'!F97 -> Baker | E82: =+'C.2 - Timesheets - Labor'!G97 -> 25-25227 | F82: =+'C.2 - Timesheets - Labor'!ARB97 -> 0 | G82: =+'C.2 - Timesheets - Labor'!ARC97 -> 36 | H82: =+'C.2 - Timesheets - Labor'!ARD97 -> 16 | I82: =+'C.2 - Timesheets - Labor'!ARE97 -> 52 | J82: =+'C.2 - Timesheets - Labor'!ARF97 -> 0 | K82: =+'C.2 - Timesheets - Labor'!ARG97 -> 3617.64 | L82: =+'C.2 - Timesheets - Labor'!ARH97 -> 2143.68 | M82: =+'C.2 - Timesheets - Labor'!ARI97 -> 5761.32
A83: =+'C.2 - Timesheets - Labor'!C98 -> Daniel Anderson | B83: =+'C.2 - Timesheets - Labor'!D98 -> Lineman | C83: =+'C.2 - Timesheets - Labor'!E98 -> MDR Construction | D83: =+'C.2 - Timesheets - Labor'!F98 -> Baker | E83: =+'C.2 - Timesheets - Labor'!G98 -> 25-25227 | F83: =+'C.2 - Timesheets - Labor'!ARB98 -> 0 | G83: =+'C.2 - Timesheets - Labor'!ARC98 -> 36 | H83: =+'C.2 - Timesheets - Labor'!ARD98 -> 16 | I83: =+'C.2 - Timesheets - Labor'!ARE98 -> 52 | J83: =+'C.2 - Timesheets - Labor'!ARF98 -> 0 | K83: =+'C.2 - Timesheets - Labor'!ARG98 -> 3047.4 | L83: =+'C.2 - Timesheets - Labor'!ARH98 -> 1805.76 | M83: =+'C.2 - Timesheets - Labor'!ARI98 -> 4853.16
A84: =+'C.2 - Timesheets - Labor'!C99 -> Nic Parker | B84: =+'C.2 - Timesheets - Labor'!D99 -> Lineman | C84: =+'C.2 - Timesheets - Labor'!E99 -> MDR Construction | D84: =+'C.2 - Timesheets - Labor'!F99 -> Baker | E84: =+'C.2 - Timesheets - Labor'!G99 -> 25-25227 | F84: =+'C.2 - Timesheets - Labor'!ARB99 -> 0 | G84: =+'C.2 - Timesheets - Labor'!ARC99 -> 36 | H84: =+'C.2 - Timesheets - Labor'!ARD99 -> 16 | I84: =+'C.2 - Timesheets - Labor'!ARE99 -> 52 | J84: =+'C.2 - Timesheets - Labor'!ARF99 -> 0 | K84: =+'C.2 - Timesheets - Labor'!ARG99 -> 3047.4 | L84: =+'C.2 - Timesheets - Labor'!ARH99 -> 1805.76 | M84: =+'C.2 - Timesheets - Labor'!ARI99 -> 4853.16
A85: =+'C.2 - Timesheets - Labor'!C100 -> William Brooks | B85: =+'C.2 - Timesheets - Labor'!D100 -> Lineman | C85: =+'C.2 - Timesheets - Labor'!E100 -> MDR Construction | D85: =+'C.2 - Timesheets - Labor'!F100 -> Baker | E85: =+'C.2 - Timesheets - Labor'!G100 -> 25-25227 | F85: =+'C.2 - Timesheets - Labor'!ARB100 -> 0 | G85: =+'C.2 - Timesheets - Labor'!ARC100 -> 36 | H85: =+'C.2 - Timesheets - Labor'!ARD100 -> 16 | I85: =+'C.2 - Timesheets - Labor'!ARE100 -> 52 | J85: =+'C.2 - Timesheets - Labor'!ARF100 -> 0 | K85: =+'C.2 - Timesheets - Labor'!ARG100 -> 3047.4 | L85: =+'C.2 - Timesheets - Labor'!ARH100 -> 1805.76 | M85: =+'C.2 - Timesheets - Labor'!ARI100 -> 4853.16
A86: =+'C.2 - Timesheets - Labor'!C101 -> Tristian Russ | B86: =+'C.2 - Timesheets - Labor'!D101 -> Operator/Truck Driver | C86: =+'C.2 - Timesheets - Labor'!E101 -> MDR Construction | D86: =+'C.2 - Timesheets - Labor'!F101 -> Baker | E86: =+'C.2 - Timesheets - Labor'!G101 -> 25-25227 | F86: =+'C.2 - Timesheets - Labor'!ARB101 -> 0 | G86: =+'C.2 - Timesheets - Labor'!ARC101 -> 36 | H86: =+'C.2 - Timesheets - Labor'!ARD101 -> 16 | I86: =+'C.2 - Timesheets - Labor'!ARE101 -> 52 | J86: =+'C.2 - Timesheets - Labor'!ARF101 -> 0 | K86: =+'C.2 - Timesheets - Labor'!ARG101 -> 2519.64 | L86: =+'C.2 - Timesheets - Labor'!ARH101 -> 1493.12 | M86: =+'C.2 - Timesheets - Labor'!ARI101 -> 4012.76
A87: =+'C.2 - Timesheets - Labor'!#REF! ->  | B87: =+'C.2 - Timesheets - Labor'!#REF! ->  | C87: =+'C.2 - Timesheets - Labor'!#REF! ->  | D87: =+'C.2 - Timesheets - Labor'!#REF! ->  | E87: =+'C.2 - Timesheets - Labor'!#REF! ->  | F87: =+'C.2 - Timesheets - Labor'!#REF! ->  | G87: =+'C.2 - Timesheets - Labor'!#REF! ->  | H87: =+'C.2 - Timesheets - Labor'!#REF! ->  | I87: =+'C.2 - Timesheets - Labor'!#REF! ->  | J87: =+'C.2 - Timesheets - Labor'!#REF! ->  | K87: =+'C.2 - Timesheets - Labor'!#REF! ->  | L87: =+'C.2 - Timesheets - Labor'!#REF! ->  | M87: =+'C.2 - Timesheets - Labor'!#REF! -> 
A88: =+'C.2 - Timesheets - Labor'!C102 -> Austin Pitts | B88: =+'C.2 - Timesheets - Labor'!D102 -> Groundman | C88: =+'C.2 - Timesheets - Labor'!E102 -> MDR Construction | D88: =+'C.2 - Timesheets - Labor'!F102 -> Baker | E88: =+'C.2 - Timesheets - Labor'!G102 -> 25-25227 | F88: =+'C.2 - Timesheets - Labor'!ARB102 -> 0 | G88: =+'C.2 - Timesheets - Labor'!ARC102 -> 36 | H88: =+'C.2 - Timesheets - Labor'!ARD102 -> 16 | I88: =+'C.2 - Timesheets - Labor'!ARE102 -> 52 | J88: =+'C.2 - Timesheets - Labor'!ARF102 -> 0 | K88: =+'C.2 - Timesheets - Labor'!ARG102 -> 2326.32 | L88: =+'C.2 - Timesheets - Labor'!ARH102 -> 1378.56 | M88: =+'C.2 - Timesheets - Labor'!ARI102 -> 3704.88
A89: =+'C.2 - Timesheets - Labor'!C103 -> Will Ford | B89: =+'C.2 - Timesheets - Labor'!D103 -> Foreman | C89: =+'C.2 - Timesheets - Labor'!E103 -> MDR Construction | D89: =+'C.2 - Timesheets - Labor'!F103 -> Ford | E89: =+'C.2 - Timesheets - Labor'!G103 -> 25-25227 | F89: =+'C.2 - Timesheets - Labor'!ARB103 -> 0 | G89: =+'C.2 - Timesheets - Labor'!ARC103 -> 36 | H89: =+'C.2 - Timesheets - Labor'!ARD103 -> 16 | I89: =+'C.2 - Timesheets - Labor'!ARE103 -> 52 | J89: =+'C.2 - Timesheets - Labor'!ARF103 -> 0 | K89: =+'C.2 - Timesheets - Labor'!ARG103 -> 3617.64 | L89: =+'C.2 - Timesheets - Labor'!ARH103 -> 2143.68 | M89: =+'C.2 - Timesheets - Labor'!ARI103 -> 5761.32
A90: =+'C.2 - Timesheets - Labor'!C104 -> Wayne Carter | B90: =+'C.2 - Timesheets - Labor'!D104 -> Lineman | C90: =+'C.2 - Timesheets - Labor'!E104 -> MDR Construction | D90: =+'C.2 - Timesheets - Labor'!F104 -> Ford | E90: =+'C.2 - Timesheets - Labor'!G104 -> 25-25227 | F90: =+'C.2 - Timesheets - Labor'!ARB104 -> 0 | G90: =+'C.2 - Timesheets - Labor'!ARC104 -> 4 | H90: =+'C.2 - Timesheets - Labor'!ARD104 -> 16 | I90: =+'C.2 - Timesheets - Labor'!ARE104 -> 20 | J90: =+'C.2 - Timesheets - Labor'!ARF104 -> 0 | K90: =+'C.2 - Timesheets - Labor'!ARG104 -> 338.6 | L90: =+'C.2 - Timesheets - Labor'!ARH104 -> 1805.76 | M90: =+'C.2 - Timesheets - Labor'!ARI104 -> 2144.36
A91: =+'C.2 - Timesheets - Labor'!C105 -> Colby Holcomb | B91: =+'C.2 - Timesheets - Labor'!D105 -> Lineman | C91: =+'C.2 - Timesheets - Labor'!E105 -> MDR Construction | D91: =+'C.2 - Timesheets - Labor'!F105 -> Ford | E91: =+'C.2 - Timesheets - Labor'!G105 -> 25-25227 | F91: =+'C.2 - Timesheets - Labor'!ARB105 -> 0 | G91: =+'C.2 - Timesheets - Labor'!ARC105 -> 36 | H91: =+'C.2 - Timesheets - Labor'!ARD105 -> 16 | I91: =+'C.2 - Timesheets - Labor'!ARE105 -> 52 | J91: =+'C.2 - Timesheets - Labor'!ARF105 -> 0 | K91: =+'C.2 - Timesheets - Labor'!ARG105 -> 3047.4 | L91: =+'C.2 - Timesheets - Labor'!ARH105 -> 1805.76 | M91: =+'C.2 - Timesheets - Labor'!ARI105 -> 4853.16
A92: =+'C.2 - Timesheets - Labor'!C106 -> Daniel Jordan | B92: =+'C.2 - Timesheets - Labor'!D106 -> Operator/Truck Driver | C92: =+'C.2 - Timesheets - Labor'!E106 -> MDR Construction | D92: =+'C.2 - Timesheets - Labor'!F106 -> Ford | E92: =+'C.2 - Timesheets - Labor'!G106 -> 25-25227 | F92: =+'C.2 - Timesheets - Labor'!ARB106 -> 0 | G92: =+'C.2 - Timesheets - Labor'!ARC106 -> 36 | H92: =+'C.2 - Timesheets - Labor'!ARD106 -> 16 | I92: =+'C.2 - Timesheets - Labor'!ARE106 -> 52 | J92: =+'C.2 - Timesheets - Labor'!ARF106 -> 0 | K92: =+'C.2 - Timesheets - Labor'!ARG106 -> 2519.64 | L92: =+'C.2 - Timesheets - Labor'!ARH106 -> 1493.12 | M92: =+'C.2 - Timesheets - Labor'!ARI106 -> 4012.76
A93: =+'C.2 - Timesheets - Labor'!C107 -> Brandon Fuller | B93: =+'C.2 - Timesheets - Labor'!D107 -> Groundman | C93: =+'C.2 - Timesheets - Labor'!E107 -> MDR Construction | D93: =+'C.2 - Timesheets - Labor'!F107 -> Ford | E93: =+'C.2 - Timesheets - Labor'!G107 -> 25-25227 | F93: =+'C.2 - Timesheets - Labor'!ARB107 -> 0 | G93: =+'C.2 - Timesheets - Labor'!ARC107 -> 36 | H93: =+'C.2 - Timesheets - Labor'!ARD107 -> 16 | I93: =+'C.2 - Timesheets - Labor'!ARE107 -> 52 | J93: =+'C.2 - Timesheets - Labor'!ARF107 -> 0 | K93: =+'C.2 - Timesheets - Labor'!ARG107 -> 2326.32 | L93: =+'C.2 - Timesheets - Labor'!ARH107 -> 1378.56 | M93: =+'C.2 - Timesheets - Labor'!ARI107 -> 3704.88
A94: =+'C.2 - Timesheets - Labor'!C108 -> Rex Hampton | B94: =+'C.2 - Timesheets - Labor'!D108 -> Foreman | C94: =+'C.2 - Timesheets - Labor'!E108 -> MDR Construction | D94: =+'C.2 - Timesheets - Labor'!F108 -> Hampton | E94: =+'C.2 - Timesheets - Labor'!G108 -> 25-25227 | F94: =+'C.2 - Timesheets - Labor'!ARB108 -> 0 | G94: =+'C.2 - Timesheets - Labor'!ARC108 -> 36 | H94: =+'C.2 - Timesheets - Labor'!ARD108 -> 16 | I94: =+'C.2 - Timesheets - Labor'!ARE108 -> 52 | J94: =+'C.2 - Timesheets - Labor'!ARF108 -> 0 | K94: =+'C.2 - Timesheets - Labor'!ARG108 -> 3617.64 | L94: =+'C.2 - Timesheets - Labor'!ARH108 -> 2143.68 | M94: =+'C.2 - Timesheets - Labor'!ARI108 -> 5761.32
A95: =+'C.2 - Timesheets - Labor'!C109 -> Josh Brozynski | B95: =+'C.2 - Timesheets - Labor'!D109 -> Lineman | C95: =+'C.2 - Timesheets - Labor'!E109 -> MDR Construction | D95: =+'C.2 - Timesheets - Labor'!F109 -> Hampton | E95: =+'C.2 - Timesheets - Labor'!G109 -> 25-25227 | F95: =+'C.2 - Timesheets - Labor'!ARB109 -> 0 | G95: =+'C.2 - Timesheets - Labor'!ARC109 -> 36 | H95: =+'C.2 - Timesheets - Labor'!ARD109 -> 16 | I95: =+'C.2 - Timesheets - Labor'!ARE109 -> 52 | J95: =+'C.2 - Timesheets - Labor'!ARF109 -> 0 | K95: =+'C.2 - Timesheets - Labor'!ARG109 -> 3047.4 | L95: =+'C.2 - Timesheets - Labor'!ARH109 -> 1805.76 | M95: =+'C.2 - Timesheets - Labor'!ARI109 -> 4853.16
A96: =+'C.2 - Timesheets - Labor'!C110 -> Jordan Evans | B96: =+'C.2 - Timesheets - Labor'!D110 -> Operator/Truck Driver | C96: =+'C.2 - Timesheets - Labor'!E110 -> MDR Construction | D96: =+'C.2 - Timesheets - Labor'!F110 -> Hampton | E96: =+'C.2 - Timesheets - Labor'!G110 -> 25-25227 | F96: =+'C.2 - Timesheets - Labor'!ARB110 -> 0 | G96: =+'C.2 - Timesheets - Labor'!ARC110 -> 36 | H96: =+'C.2 - Timesheets - Labor'!ARD110 -> 16 | I96: =+'C.2 - Timesheets - Labor'!ARE110 -> 52 | J96: =+'C.2 - Timesheets - Labor'!ARF110 -> 0 | K96: =+'C.2 - Timesheets - Labor'!ARG110 -> 2519.64 | L96: =+'C.2 - Timesheets - Labor'!ARH110 -> 1493.12 | M96: =+'C.2 - Timesheets - Labor'!ARI110 -> 4012.76
A97: =+'C.2 - Timesheets - Labor'!C111 -> Dakota McDaniel | B97: =+'C.2 - Timesheets - Labor'!D111 -> Groundman | C97: =+'C.2 - Timesheets - Labor'!E111 -> MDR Construction | D97: =+'C.2 - Timesheets - Labor'!F111 -> Hampton | E97: =+'C.2 - Timesheets - Labor'!G111 -> 25-25227 | F97: =+'C.2 - Timesheets - Labor'!ARB111 -> 0 | G97: =+'C.2 - Timesheets - Labor'!ARC111 -> 36 | H97: =+'C.2 - Timesheets - Labor'!ARD111 -> 16 | I97: =+'C.2 - Timesheets - Labor'!ARE111 -> 52 | J97: =+'C.2 - Timesheets - Labor'!ARF111 -> 0 | K97: =+'C.2 - Timesheets - Labor'!ARG111 -> 2326.32 | L97: =+'C.2 - Timesheets - Labor'!ARH111 -> 1378.56 | M97: =+'C.2 - Timesheets - Labor'!ARI111 -> 3704.88
A98: =+'C.2 - Timesheets - Labor'!C112 -> Jerry Brown | B98: =+'C.2 - Timesheets - Labor'!D112 -> Foreman | C98: =+'C.2 - Timesheets - Labor'!E112 -> MDR Construction | D98: =+'C.2 - Timesheets - Labor'!F112 -> Brown | E98: =+'C.2 - Timesheets - Labor'!G112 -> 25-25227 | F98: =+'C.2 - Timesheets - Labor'!ARB112 -> 0 | G98: =+'C.2 - Timesheets - Labor'!ARC112 -> 36 | H98: =+'C.2 - Timesheets - Labor'!ARD112 -> 16 | I98: =+'C.2 - Timesheets - Labor'!ARE112 -> 52 | J98: =+'C.2 - Timesheets - Labor'!ARF112 -> 0 | K98: =+'C.2 - Timesheets - Labor'!ARG112 -> 3617.64 | L98: =+'C.2 - Timesheets - Labor'!ARH112 -> 2143.68 | M98: =+'C.2 - Timesheets - Labor'!ARI112 -> 5761.32
A99: =+'C.2 - Timesheets - Labor'!C113 -> Owen Breazeale | B99: =+'C.2 - Timesheets - Labor'!D113 -> Lineman | C99: =+'C.2 - Timesheets - Labor'!E113 -> MDR Construction | D99: =+'C.2 - Timesheets - Labor'!F113 -> Brown | E99: =+'C.2 - Timesheets - Labor'!G113 -> 25-25227 | F99: =+'C.2 - Timesheets - Labor'!ARB113 -> 0 | G99: =+'C.2 - Timesheets - Labor'!ARC113 -> 36 | H99: =+'C.2 - Timesheets - Labor'!ARD113 -> 16 | I99: =+'C.2 - Timesheets - Labor'!ARE113 -> 52 | J99: =+'C.2 - Timesheets - Labor'!ARF113 -> 0 | K99: =+'C.2 - Timesheets - Labor'!ARG113 -> 3047.4 | L99: =+'C.2 - Timesheets - Labor'!ARH113 -> 1805.76 | M99: =+'C.2 - Timesheets - Labor'!ARI113 -> 4853.16
A100: =+'C.2 - Timesheets - Labor'!C114 -> Ramsey Beck | B100: =+'C.2 - Timesheets - Labor'!D114 -> Lineman | C100: =+'C.2 - Timesheets - Labor'!E114 -> MDR Construction | D100: =+'C.2 - Timesheets - Labor'!F114 -> Brown | E100: =+'C.2 - Timesheets - Labor'!G114 -> 25-25227 | F100: =+'C.2 - Timesheets - Labor'!ARB114 -> 0 | G100: =+'C.2 - Timesheets - Labor'!ARC114 -> 36 | H100: =+'C.2 - Timesheets - Labor'!ARD114 -> 16 | I100: =+'C.2 - Timesheets - Labor'!ARE114 -> 52 | J100: =+'C.2 - Timesheets - Labor'!ARF114 -> 0 | K100: =+'C.2 - Timesheets - Labor'!ARG114 -> 3047.4 | L100: =+'C.2 - Timesheets - Labor'!ARH114 -> 1805.76 | M100: =+'C.2 - Timesheets - Labor'!ARI114 -> 4853.16
A101: =+'C.2 - Timesheets - Labor'!C115 -> Dakota Roberts | B101: =+'C.2 - Timesheets - Labor'!D115 -> Operator/Truck Driver | C101: =+'C.2 - Timesheets - Labor'!E115 -> MDR Construction | D101: =+'C.2 - Timesheets - Labor'!F115 -> Brown | E101: =+'C.2 - Timesheets - Labor'!G115 -> 25-25227 | F101: =+'C.2 - Timesheets - Labor'!ARB115 -> 0 | G101: =+'C.2 - Timesheets - Labor'!ARC115 -> 36 | H101: =+'C.2 - Timesheets - Labor'!ARD115 -> 16 | I101: =+'C.2 - Timesheets - Labor'!ARE115 -> 52 | J101: =+'C.2 - Timesheets - Labor'!ARF115 -> 0 | K101: =+'C.2 - Timesheets - Labor'!ARG115 -> 2519.64 | L101: =+'C.2 - Timesheets - Labor'!ARH115 -> 1493.12 | M101: =+'C.2 - Timesheets - Labor'!ARI115 -> 4012.76
A102: =+'C.2 - Timesheets - Labor'!C116 -> Justin Guthrie | B102: =+'C.2 - Timesheets - Labor'!D116 -> Groundman | C102: =+'C.2 - Timesheets - Labor'!E116 -> MDR Construction | D102: =+'C.2 - Timesheets - Labor'!F116 -> Brown | E102: =+'C.2 - Timesheets - Labor'!G116 -> 25-25227 | F102: =+'C.2 - Timesheets - Labor'!ARB116 -> 0 | G102: =+'C.2 - Timesheets - Labor'!ARC116 -> 36 | H102: =+'C.2 - Timesheets - Labor'!ARD116 -> 16 | I102: =+'C.2 - Timesheets - Labor'!ARE116 -> 52 | J102: =+'C.2 - Timesheets - Labor'!ARF116 -> 0 | K102: =+'C.2 - Timesheets - Labor'!ARG116 -> 2326.32 | L102: =+'C.2 - Timesheets - Labor'!ARH116 -> 1378.56 | M102: =+'C.2 - Timesheets - Labor'!ARI116 -> 3704.88
A103: =+'C.2 - Timesheets - Labor'!C117 -> Clint Cullum | B103: =+'C.2 - Timesheets - Labor'!D117 -> Foreman | C103: =+'C.2 - Timesheets - Labor'!E117 -> MDR Construction | D103: =+'C.2 - Timesheets - Labor'!F117 -> Cullum | E103: =+'C.2 - Timesheets - Labor'!G117 -> 25-25227 | F103: =+'C.2 - Timesheets - Labor'!ARB117 -> 0 | G103: =+'C.2 - Timesheets - Labor'!ARC117 -> 36 | H103: =+'C.2 - Timesheets - Labor'!ARD117 -> 16 | I103: =+'C.2 - Timesheets - Labor'!ARE117 -> 52 | J103: =+'C.2 - Timesheets - Labor'!ARF117 -> 0 | K103: =+'C.2 - Timesheets - Labor'!ARG117 -> 3617.64 | L103: =+'C.2 - Timesheets - Labor'!ARH117 -> 2143.68 | M103: =+'C.2 - Timesheets - Labor'!ARI117 -> 5761.32
A104: =+'C.2 - Timesheets - Labor'!C118 -> Bryce Gelger | B104: =+'C.2 - Timesheets - Labor'!D118 -> Lineman | C104: =+'C.2 - Timesheets - Labor'!E118 -> MDR Construction | D104: =+'C.2 - Timesheets - Labor'!F118 -> Cullum | E104: =+'C.2 - Timesheets - Labor'!G118 -> 25-25227 | F104: =+'C.2 - Timesheets - Labor'!ARB118 -> 0 | G104: =+'C.2 - Timesheets - Labor'!ARC118 -> 36 | H104: =+'C.2 - Timesheets - Labor'!ARD118 -> 16 | I104: =+'C.2 - Timesheets - Labor'!ARE118 -> 52 | J104: =+'C.2 - Timesheets - Labor'!ARF118 -> 0 | K104: =+'C.2 - Timesheets - Labor'!ARG118 -> 3047.4 | L104: =+'C.2 - Timesheets - Labor'!ARH118 -> 1805.76 | M104: =+'C.2 - Timesheets - Labor'!ARI118 -> 4853.16
A105: =+'C.2 - Timesheets - Labor'!C119 -> Dalton Hjelden | B105: =+'C.2 - Timesheets - Labor'!D119 -> Operator/Truck Driver | C105: =+'C.2 - Timesheets - Labor'!E119 -> MDR Construction | D105: =+'C.2 - Timesheets - Labor'!F119 -> Cullum | E105: =+'C.2 - Timesheets - Labor'!G119 -> 25-25227 | F105: =+'C.2 - Timesheets - Labor'!ARB119 -> 0 | G105: =+'C.2 - Timesheets - Labor'!ARC119 -> 36 | H105: =+'C.2 - Timesheets - Labor'!ARD119 -> 16 | I105: =+'C.2 - Timesheets - Labor'!ARE119 -> 52 | J105: =+'C.2 - Timesheets - Labor'!ARF119 -> 0 | K105: =+'C.2 - Timesheets - Labor'!ARG119 -> 2519.64 | L105: =+'C.2 - Timesheets - Labor'!ARH119 -> 1493.12 | M105: =+'C.2 - Timesheets - Labor'!ARI119 -> 4012.76
A106: =+'C.2 - Timesheets - Labor'!C120 -> Hunter Pennington | B106: =+'C.2 - Timesheets - Labor'!D120 -> Groundman | C106: =+'C.2 - Timesheets - Labor'!E120 -> MDR Construction | D106: =+'C.2 - Timesheets - Labor'!F120 -> Cullum | E106: =+'C.2 - Timesheets - Labor'!G120 -> 25-25227 | F106: =+'C.2 - Timesheets - Labor'!ARB120 -> 0 | G106: =+'C.2 - Timesheets - Labor'!ARC120 -> 36 | H106: =+'C.2 - Timesheets - Labor'!ARD120 -> 16 | I106: =+'C.2 - Timesheets - Labor'!ARE120 -> 52 | J106: =+'C.2 - Timesheets - Labor'!ARF120 -> 0 | K106: =+'C.2 - Timesheets - Labor'!ARG120 -> 2326.32 | L106: =+'C.2 - Timesheets - Labor'!ARH120 -> 1378.56 | M106: =+'C.2 - Timesheets - Labor'!ARI120 -> 3704.88
A107: =+'C.2 - Timesheets - Labor'!C121 -> Cole Wyatt | B107: =+'C.2 - Timesheets - Labor'!D121 -> Foreman | C107: =+'C.2 - Timesheets - Labor'!E121 -> MDR Construction | D107: =+'C.2 - Timesheets - Labor'!F121 -> Wyatt | E107: =+'C.2 - Timesheets - Labor'!G121 -> 25-25227 | F107: =+'C.2 - Timesheets - Labor'!ARB121 -> 0 | G107: =+'C.2 - Timesheets - Labor'!ARC121 -> 36 | H107: =+'C.2 - Timesheets - Labor'!ARD121 -> 16 | I107: =+'C.2 - Timesheets - Labor'!ARE121 -> 52 | J107: =+'C.2 - Timesheets - Labor'!ARF121 -> 0 | K107: =+'C.2 - Timesheets - Labor'!ARG121 -> 3617.64 | L107: =+'C.2 - Timesheets - Labor'!ARH121 -> 2143.68 | M107: =+'C.2 - Timesheets - Labor'!ARI121 -> 5761.32
A108: =+'C.2 - Timesheets - Labor'!C122 -> Delbert Helton | B108: =+'C.2 - Timesheets - Labor'!D122 -> Lineman | C108: =+'C.2 - Timesheets - Labor'!E122 -> MDR Construction | D108: =+'C.2 - Timesheets - Labor'!F122 -> Wyatt | E108: =+'C.2 - Timesheets - Labor'!G122 -> 25-25227 | F108: =+'C.2 - Timesheets - Labor'!ARB122 -> 0 | G108: =+'C.2 - Timesheets - Labor'!ARC122 -> 36 | H108: =+'C.2 - Timesheets - Labor'!ARD122 -> 16 | I108: =+'C.2 - Timesheets - Labor'!ARE122 -> 52 | J108: =+'C.2 - Timesheets - Labor'!ARF122 -> 0 | K108: =+'C.2 - Timesheets - Labor'!ARG122 -> 3047.4 | L108: =+'C.2 - Timesheets - Labor'!ARH122 -> 1805.76 | M108: =+'C.2 - Timesheets - Labor'!ARI122 -> 4853.16
A109: =+'C.2 - Timesheets - Labor'!C123 -> Justin Weston | B109: =+'C.2 - Timesheets - Labor'!D123 -> Operator/Truck Driver | C109: =+'C.2 - Timesheets - Labor'!E123 -> MDR Construction | D109: =+'C.2 - Timesheets - Labor'!F123 -> Wyatt | E109: =+'C.2 - Timesheets - Labor'!G123 -> 25-25227 | F109: =+'C.2 - Timesheets - Labor'!ARB123 -> 0 | G109: =+'C.2 - Timesheets - Labor'!ARC123 -> 36 | H109: =+'C.2 - Timesheets - Labor'!ARD123 -> 16 | I109: =+'C.2 - Timesheets - Labor'!ARE123 -> 52 | J109: =+'C.2 - Timesheets - Labor'!ARF123 -> 0 | K109: =+'C.2 - Timesheets - Labor'!ARG123 -> 2519.64 | L109: =+'C.2 - Timesheets - Labor'!ARH123 -> 1493.12 | M109: =+'C.2 - Timesheets - Labor'!ARI123 -> 4012.76
A110: =+'C.2 - Timesheets - Labor'!C124 -> Anthony York | B110: =+'C.2 - Timesheets - Labor'!D124 -> Groundman | C110: =+'C.2 - Timesheets - Labor'!E124 -> MDR Construction | D110: =+'C.2 - Timesheets - Labor'!F124 -> Wyatt | E110: =+'C.2 - Timesheets - Labor'!G124 -> 25-25227 | F110: =+'C.2 - Timesheets - Labor'!ARB124 -> 0 | G110: =+'C.2 - Timesheets - Labor'!ARC124 -> 36 | H110: =+'C.2 - Timesheets - Labor'!ARD124 -> 16 | I110: =+'C.2 - Timesheets - Labor'!ARE124 -> 52 | J110: =+'C.2 - Timesheets - Labor'!ARF124 -> 0 | K110: =+'C.2 - Timesheets - Labor'!ARG124 -> 2326.32 | L110: =+'C.2 - Timesheets - Labor'!ARH124 -> 1378.56 | M110: =+'C.2 - Timesheets - Labor'!ARI124 -> 3704.88
A111: =+'C.2 - Timesheets - Labor'!C125 -> Chris McKee | B111: =+'C.2 - Timesheets - Labor'!D125 -> Foreman | C111: =+'C.2 - Timesheets - Labor'!E125 -> MDR Construction | D111: =+'C.2 - Timesheets - Labor'!F125 -> McKee | E111: =+'C.2 - Timesheets - Labor'!G125 -> 25-25227 | F111: =+'C.2 - Timesheets - Labor'!ARB125 -> 0 | G111: =+'C.2 - Timesheets - Labor'!ARC125 -> 36 | H111: =+'C.2 - Timesheets - Labor'!ARD125 -> 16 | I111: =+'C.2 - Timesheets - Labor'!ARE125 -> 52 | J111: =+'C.2 - Timesheets - Labor'!ARF125 -> 0 | K111: =+'C.2 - Timesheets - Labor'!ARG125 -> 3617.64 | L111: =+'C.2 - Timesheets - Labor'!ARH125 -> 2143.68 | M111: =+'C.2 - Timesheets - Labor'!ARI125 -> 5761.32
A112: =+'C.2 - Timesheets - Labor'!C126 -> Justin Keathley | B112: =+'C.2 - Timesheets - Labor'!D126 -> Lineman | C112: =+'C.2 - Timesheets - Labor'!E126 -> MDR Construction | D112: =+'C.2 - Timesheets - Labor'!F126 -> McKee | E112: =+'C.2 - Timesheets - Labor'!G126 -> 25-25227 | F112: =+'C.2 - Timesheets - Labor'!ARB126 -> 0 | G112: =+'C.2 - Timesheets - Labor'!ARC126 -> 36 | H112: =+'C.2 - Timesheets - Labor'!ARD126 -> 16 | I112: =+'C.2 - Timesheets - Labor'!ARE126 -> 52 | J112: =+'C.2 - Timesheets - Labor'!ARF126 -> 0 | K112: =+'C.2 - Timesheets - Labor'!ARG126 -> 3047.4 | L112: =+'C.2 - Timesheets - Labor'!ARH126 -> 1805.76 | M112: =+'C.2 - Timesheets - Labor'!ARI126 -> 4853.16
A113: =+'C.2 - Timesheets - Labor'!C127 -> Drew Pratt | B113: =+'C.2 - Timesheets - Labor'!D127 -> Operator/Truck Driver | C113: =+'C.2 - Timesheets - Labor'!E127 -> MDR Construction | D113: =+'C.2 - Timesheets - Labor'!F127 -> McKee | E113: =+'C.2 - Timesheets - Labor'!G127 -> 25-25227 | F113: =+'C.2 - Timesheets - Labor'!ARB127 -> 0 | G113: =+'C.2 - Timesheets - Labor'!ARC127 -> 36 | H113: =+'C.2 - Timesheets - Labor'!ARD127 -> 16 | I113: =+'C.2 - Timesheets - Labor'!ARE127 -> 52 | J113: =+'C.2 - Timesheets - Labor'!ARF127 -> 0 | K113: =+'C.2 - Timesheets - Labor'!ARG127 -> 2519.64 | L113: =+'C.2 - Timesheets - Labor'!ARH127 -> 1493.12 | M113: =+'C.2 - Timesheets - Labor'!ARI127 -> 4012.76
A114: =+'C.2 - Timesheets - Labor'!C128 -> Deway Morton | B114: =+'C.2 - Timesheets - Labor'!D128 -> Groundman | C114: =+'C.2 - Timesheets - Labor'!E128 -> MDR Construction | D114: =+'C.2 - Timesheets - Labor'!F128 -> McKee | E114: =+'C.2 - Timesheets - Labor'!G128 -> 25-25227 | F114: =+'C.2 - Timesheets - Labor'!ARB128 -> 0 | G114: =+'C.2 - Timesheets - Labor'!ARC128 -> 36 | H114: =+'C.2 - Timesheets - Labor'!ARD128 -> 16 | I114: =+'C.2 - Timesheets - Labor'!ARE128 -> 52 | J114: =+'C.2 - Timesheets - Labor'!ARF128 -> 0 | K114: =+'C.2 - Timesheets - Labor'!ARG128 -> 2326.32 | L114: =+'C.2 - Timesheets - Labor'!ARH128 -> 1378.56 | M114: =+'C.2 - Timesheets - Labor'!ARI128 -> 3704.88
A115: =+'C.2 - Timesheets - Labor'!C129 -> Chris Wells | B115: =+'C.2 - Timesheets - Labor'!D129 -> Foreman | C115: =+'C.2 - Timesheets - Labor'!E129 -> MDR Construction | D115: =+'C.2 - Timesheets - Labor'!F129 -> Wells | E115: =+'C.2 - Timesheets - Labor'!G129 -> 25-25227 | F115: =+'C.2 - Timesheets - Labor'!ARB129 -> 0 | G115: =+'C.2 - Timesheets - Labor'!ARC129 -> 36 | H115: =+'C.2 - Timesheets - Labor'!ARD129 -> 16 | I115: =+'C.2 - Timesheets - Labor'!ARE129 -> 52 | J115: =+'C.2 - Timesheets - Labor'!ARF129 -> 0 | K115: =+'C.2 - Timesheets - Labor'!ARG129 -> 3617.64 | L115: =+'C.2 - Timesheets - Labor'!ARH129 -> 2143.68 | M115: =+'C.2 - Timesheets - Labor'!ARI129 -> 5761.32
A116: =+'C.2 - Timesheets - Labor'!C130 -> Andy Gallaway | B116: =+'C.2 - Timesheets - Labor'!D130 -> Lineman | C116: =+'C.2 - Timesheets - Labor'!E130 -> MDR Construction | D116: =+'C.2 - Timesheets - Labor'!F130 -> Wells | E116: =+'C.2 - Timesheets - Labor'!G130 -> 25-25227 | F116: =+'C.2 - Timesheets - Labor'!ARB130 -> 0 | G116: =+'C.2 - Timesheets - Labor'!ARC130 -> 36 | H116: =+'C.2 - Timesheets - Labor'!ARD130 -> 16 | I116: =+'C.2 - Timesheets - Labor'!ARE130 -> 52 | J116: =+'C.2 - Timesheets - Labor'!ARF130 -> 0 | K116: =+'C.2 - Timesheets - Labor'!ARG130 -> 3047.4 | L116: =+'C.2 - Timesheets - Labor'!ARH130 -> 1805.76 | M116: =+'C.2 - Timesheets - Labor'!ARI130 -> 4853.16
A117: =+'C.2 - Timesheets - Labor'!C131 -> Justin Liles | B117: =+'C.2 - Timesheets - Labor'!D131 -> Lineman | C117: =+'C.2 - Timesheets - Labor'!E131 -> MDR Construction | D117: =+'C.2 - Timesheets - Labor'!F131 -> Wells | E117: =+'C.2 - Timesheets - Labor'!G131 -> 25-25227 | F117: =+'C.2 - Timesheets - Labor'!ARB131 -> 0 | G117: =+'C.2 - Timesheets - Labor'!ARC131 -> 36 | H117: =+'C.2 - Timesheets - Labor'!ARD131 -> 16 | I117: =+'C.2 - Timesheets - Labor'!ARE131 -> 52 | J117: =+'C.2 - Timesheets - Labor'!ARF131 -> 0 | K117: =+'C.2 - Timesheets - Labor'!ARG131 -> 3047.4 | L117: =+'C.2 - Timesheets - Labor'!ARH131 -> 1805.76 | M117: =+'C.2 - Timesheets - Labor'!ARI131 -> 4853.16
A118: =+'C.2 - Timesheets - Labor'!C132 -> Cole Oaks | B118: =+'C.2 - Timesheets - Labor'!D132 -> Operator/Truck Driver | C118: =+'C.2 - Timesheets - Labor'!E132 -> MDR Construction | D118: =+'C.2 - Timesheets - Labor'!F132 -> Wells | E118: =+'C.2 - Timesheets - Labor'!G132 -> 25-25227 | F118: =+'C.2 - Timesheets - Labor'!ARB132 -> 0 | G118: =+'C.2 - Timesheets - Labor'!ARC132 -> 36 | H118: =+'C.2 - Timesheets - Labor'!ARD132 -> 16 | I118: =+'C.2 - Timesheets - Labor'!ARE132 -> 52 | J118: =+'C.2 - Timesheets - Labor'!ARF132 -> 0 | K118: =+'C.2 - Timesheets - Labor'!ARG132 -> 2519.64 | L118: =+'C.2 - Timesheets - Labor'!ARH132 -> 1493.12 | M118: =+'C.2 - Timesheets - Labor'!ARI132 -> 4012.76
A119: =+'C.2 - Timesheets - Labor'!C133 -> Jusin Drain | B119: =+'C.2 - Timesheets - Labor'!D133 -> Groundman | C119: =+'C.2 - Timesheets - Labor'!E133 -> MDR Construction | D119: =+'C.2 - Timesheets - Labor'!F133 -> Wells | E119: =+'C.2 - Timesheets - Labor'!G133 -> 25-25227 | F119: =+'C.2 - Timesheets - Labor'!ARB133 -> 0 | G119: =+'C.2 - Timesheets - Labor'!ARC133 -> 36 | H119: =+'C.2 - Timesheets - Labor'!ARD133 -> 16 | I119: =+'C.2 - Timesheets - Labor'!ARE133 -> 52 | J119: =+'C.2 - Timesheets - Labor'!ARF133 -> 0 | K119: =+'C.2 - Timesheets - Labor'!ARG133 -> 2326.32 | L119: =+'C.2 - Timesheets - Labor'!ARH133 -> 1378.56 | M119: =+'C.2 - Timesheets - Labor'!ARI133 -> 3704.88
A120: =+'C.2 - Timesheets - Labor'!C134 -> Derrick Hare | B120: =+'C.2 - Timesheets - Labor'!D134 -> Foreman | C120: =+'C.2 - Timesheets - Labor'!E134 -> MDR Construction | D120: =+'C.2 - Timesheets - Labor'!F134 -> Hare | E120: =+'C.2 - Timesheets - Labor'!G134 -> 25-25227 | F120: =+'C.2 - Timesheets - Labor'!ARB134 -> 0 | G120: =+'C.2 - Timesheets - Labor'!ARC134 -> 36 | H120: =+'C.2 - Timesheets - Labor'!ARD134 -> 16 | I120: =+'C.2 - Timesheets - Labor'!ARE134 -> 52 | J120: =+'C.2 - Timesheets - Labor'!ARF134 -> 0 | K120: =+'C.2 - Timesheets - Labor'!ARG134 -> 3617.64 | L120: =+'C.2 - Timesheets - Labor'!ARH134 -> 2143.68 | M120: =+'C.2 - Timesheets - Labor'!ARI134 -> 5761.32
A121: =+'C.2 - Timesheets - Labor'!C135 -> Brad Cathey | B121: =+'C.2 - Timesheets - Labor'!D135 -> Lineman | C121: =+'C.2 - Timesheets - Labor'!E135 -> MDR Construction | D121: =+'C.2 - Timesheets - Labor'!F135 -> Hare | E121: =+'C.2 - Timesheets - Labor'!G135 -> 25-25227 | F121: =+'C.2 - Timesheets - Labor'!ARB135 -> 0 | G121: =+'C.2 - Timesheets - Labor'!ARC135 -> 36 | H121: =+'C.2 - Timesheets - Labor'!ARD135 -> 16 | I121: =+'C.2 - Timesheets - Labor'!ARE135 -> 52 | J121: =+'C.2 - Timesheets - Labor'!ARF135 -> 0 | K121: =+'C.2 - Timesheets - Labor'!ARG135 -> 3047.4 | L121: =+'C.2 - Timesheets - Labor'!ARH135 -> 1805.76 | M121: =+'C.2 - Timesheets - Labor'!ARI135 -> 4853.16
A122: =+'C.2 - Timesheets - Labor'!C136 -> Benny Riegel | B122: =+'C.2 - Timesheets - Labor'!D136 -> Lineman | C122: =+'C.2 - Timesheets - Labor'!E136 -> MDR Construction | D122: =+'C.2 - Timesheets - Labor'!F136 -> Hare | E122: =+'C.2 - Timesheets - Labor'!G136 -> 25-25227 | F122: =+'C.2 - Timesheets - Labor'!ARB136 -> 0 | G122: =+'C.2 - Timesheets - Labor'!ARC136 -> 36 | H122: =+'C.2 - Timesheets - Labor'!ARD136 -> 16 | I122: =+'C.2 - Timesheets - Labor'!ARE136 -> 52 | J122: =+'C.2 - Timesheets - Labor'!ARF136 -> 0 | K122: =+'C.2 - Timesheets - Labor'!ARG136 -> 3047.4 | L122: =+'C.2 - Timesheets - Labor'!ARH136 -> 1805.76 | M122: =+'C.2 - Timesheets - Labor'!ARI136 -> 4853.16
A123: =+'C.2 - Timesheets - Labor'!C137 -> Brandon Barron | B123: =+'C.2 - Timesheets - Labor'!D137 -> Operator/Truck Driver | C123: =+'C.2 - Timesheets - Labor'!E137 -> MDR Construction | D123: =+'C.2 - Timesheets - Labor'!F137 -> Hare | E123: =+'C.2 - Timesheets - Labor'!G137 -> 25-25227 | F123: =+'C.2 - Timesheets - Labor'!ARB137 -> 0 | G123: =+'C.2 - Timesheets - Labor'!ARC137 -> 36 | H123: =+'C.2 - Timesheets - Labor'!ARD137 -> 16 | I123: =+'C.2 - Timesheets - Labor'!ARE137 -> 52 | J123: =+'C.2 - Timesheets - Labor'!ARF137 -> 0 | K123: =+'C.2 - Timesheets - Labor'!ARG137 -> 2519.64 | L123: =+'C.2 - Timesheets - Labor'!ARH137 -> 1493.12 | M123: =+'C.2 - Timesheets - Labor'!ARI137 -> 4012.76
A124: =+'C.2 - Timesheets - Labor'!C138 -> Jack Land | B124: =+'C.2 - Timesheets - Labor'!D138 -> Groundman | C124: =+'C.2 - Timesheets - Labor'!E138 -> MDR Construction | D124: =+'C.2 - Timesheets - Labor'!F138 -> Hare | E124: =+'C.2 - Timesheets - Labor'!G138 -> 25-25227 | F124: =+'C.2 - Timesheets - Labor'!ARB138 -> 0 | G124: =+'C.2 - Timesheets - Labor'!ARC138 -> 36 | H124: =+'C.2 - Timesheets - Labor'!ARD138 -> 16 | I124: =+'C.2 - Timesheets - Labor'!ARE138 -> 52 | J124: =+'C.2 - Timesheets - Labor'!ARF138 -> 0 | K124: =+'C.2 - Timesheets - Labor'!ARG138 -> 2326.32 | L124: =+'C.2 - Timesheets - Labor'!ARH138 -> 1378.56 | M124: =+'C.2 - Timesheets - Labor'!ARI138 -> 3704.88
A125: =+'C.2 - Timesheets - Labor'!C139 -> Brian Chambley | B125: =+'C.2 - Timesheets - Labor'!D139 -> Foreman | C125: =+'C.2 - Timesheets - Labor'!E139 -> MDR Construction | D125: =+'C.2 - Timesheets - Labor'!F139 -> Champley | E125: =+'C.2 - Timesheets - Labor'!G139 -> 25-25227 | F125: =+'C.2 - Timesheets - Labor'!ARB139 -> 0 | G125: =+'C.2 - Timesheets - Labor'!ARC139 -> 36 | H125: =+'C.2 - Timesheets - Labor'!ARD139 -> 16 | I125: =+'C.2 - Timesheets - Labor'!ARE139 -> 52 | J125: =+'C.2 - Timesheets - Labor'!ARF139 -> 0 | K125: =+'C.2 - Timesheets - Labor'!ARG139 -> 3617.64 | L125: =+'C.2 - Timesheets - Labor'!ARH139 -> 2143.68 | M125: =+'C.2 - Timesheets - Labor'!ARI139 -> 5761.32
A126: =+'C.2 - Timesheets - Labor'!C140 -> Hunter Burford | B126: =+'C.2 - Timesheets - Labor'!D140 -> Lineman | C126: =+'C.2 - Timesheets - Labor'!E140 -> MDR Construction | D126: =+'C.2 - Timesheets - Labor'!F140 -> Champley | E126: =+'C.2 - Timesheets - Labor'!G140 -> 25-25227 | F126: =+'C.2 - Timesheets - Labor'!ARB140 -> 0 | G126: =+'C.2 - Timesheets - Labor'!ARC140 -> 36 | H126: =+'C.2 - Timesheets - Labor'!ARD140 -> 16 | I126: =+'C.2 - Timesheets - Labor'!ARE140 -> 52 | J126: =+'C.2 - Timesheets - Labor'!ARF140 -> 0 | K126: =+'C.2 - Timesheets - Labor'!ARG140 -> 3047.4 | L126: =+'C.2 - Timesheets - Labor'!ARH140 -> 1805.76 | M126: =+'C.2 - Timesheets - Labor'!ARI140 -> 4853.16
A127: =+'C.2 - Timesheets - Labor'!C141 -> Charles Freeman | B127: =+'C.2 - Timesheets - Labor'!D141 -> Lineman | C127: =+'C.2 - Timesheets - Labor'!E141 -> MDR Construction | D127: =+'C.2 - Timesheets - Labor'!F141 -> Champley | E127: =+'C.2 - Timesheets - Labor'!G141 -> 25-25227 | F127: =+'C.2 - Timesheets - Labor'!ARB141 -> 0 | G127: =+'C.2 - Timesheets - Labor'!ARC141 -> 36 | H127: =+'C.2 - Timesheets - Labor'!ARD141 -> 16 | I127: =+'C.2 - Timesheets - Labor'!ARE141 -> 52 | J127: =+'C.2 - Timesheets - Labor'!ARF141 -> 0 | K127: =+'C.2 - Timesheets - Labor'!ARG141 -> 3047.4 | L127: =+'C.2 - Timesheets - Labor'!ARH141 -> 1805.76 | M127: =+'C.2 - Timesheets - Labor'!ARI141 -> 4853.16
A128: =+'C.2 - Timesheets - Labor'!C142 -> Hunter Guthrie | B128: =+'C.2 - Timesheets - Labor'!D142 -> Operator/Truck Driver | C128: =+'C.2 - Timesheets - Labor'!E142 -> MDR Construction | D128: =+'C.2 - Timesheets - Labor'!F142 -> Champley | E128: =+'C.2 - Timesheets - Labor'!G142 -> 25-25227 | F128: =+'C.2 - Timesheets - Labor'!ARB142 -> 0 | G128: =+'C.2 - Timesheets - Labor'!ARC142 -> 36 | H128: =+'C.2 - Timesheets - Labor'!ARD142 -> 16 | I128: =+'C.2 - Timesheets - Labor'!ARE142 -> 52 | J128: =+'C.2 - Timesheets - Labor'!ARF142 -> 0 | K128: =+'C.2 - Timesheets - Labor'!ARG142 -> 2519.64 | L128: =+'C.2 - Timesheets - Labor'!ARH142 -> 1493.12 | M128: =+'C.2 - Timesheets - Labor'!ARI142 -> 4012.76
A129: =+'C.2 - Timesheets - Labor'!C143 -> Shane Mitchell | B129: =+'C.2 - Timesheets - Labor'!D143 -> Groundman | C129: =+'C.2 - Timesheets - Labor'!E143 -> MDR Construction | D129: =+'C.2 - Timesheets - Labor'!F143 -> Champley | E129: =+'C.2 - Timesheets - Labor'!G143 -> 25-25227 | F129: =+'C.2 - Timesheets - Labor'!ARB143 -> 0 | G129: =+'C.2 - Timesheets - Labor'!ARC143 -> 36 | H129: =+'C.2 - Timesheets - Labor'!ARD143 -> 16 | I129: =+'C.2 - Timesheets - Labor'!ARE143 -> 52 | J129: =+'C.2 - Timesheets - Labor'!ARF143 -> 0 | K129: =+'C.2 - Timesheets - Labor'!ARG143 -> 2326.32 | L129: =+'C.2 - Timesheets - Labor'!ARH143 -> 1378.56 | M129: =+'C.2 - Timesheets - Labor'!ARI143 -> 3704.88
A130: =+'C.2 - Timesheets - Labor'!#REF! ->  | B130: =+'C.2 - Timesheets - Labor'!#REF! ->  | C130: =+'C.2 - Timesheets - Labor'!#REF! ->  | D130: =+'C.2 - Timesheets - Labor'!#REF! ->  | E130: =+'C.2 - Timesheets - Labor'!#REF! ->  | F130: =+'C.2 - Timesheets - Labor'!#REF! ->  | G130: =+'C.2 - Timesheets - Labor'!#REF! ->  | H130: =+'C.2 - Timesheets - Labor'!#REF! ->  | I130: =+'C.2 - Timesheets - Labor'!#REF! ->  | J130: =+'C.2 - Timesheets - Labor'!#REF! ->  | K130: =+'C.2 - Timesheets - Labor'!#REF! ->  | L130: =+'C.2 - Timesheets - Labor'!#REF! ->  | M130: =+'C.2 - Timesheets - Labor'!#REF! -> 
A131: =+'C.2 - Timesheets - Labor'!#REF! ->  | B131: =+'C.2 - Timesheets - Labor'!#REF! ->  | C131: =+'C.2 - Timesheets - Labor'!#REF! ->  | D131: =+'C.2 - Timesheets - Labor'!#REF! ->  | E131: =+'C.2 - Timesheets - Labor'!#REF! ->  | F131: =+'C.2 - Timesheets - Labor'!#REF! ->  | G131: =+'C.2 - Timesheets - Labor'!#REF! ->  | H131: =+'C.2 - Timesheets - Labor'!#REF! ->  | I131: =+'C.2 - Timesheets - Labor'!#REF! ->  | J131: =+'C.2 - Timesheets - Labor'!#REF! ->  | K131: =+'C.2 - Timesheets - Labor'!#REF! ->  | L131: =+'C.2 - Timesheets - Labor'!#REF! ->  | M131: =+'C.2 - Timesheets - Labor'!#REF! -> 
A132: =+'C.2 - Timesheets - Labor'!#REF! ->  | B132: =+'C.2 - Timesheets - Labor'!#REF! ->  | C132: =+'C.2 - Timesheets - Labor'!#REF! ->  | D132: =+'C.2 - Timesheets - Labor'!#REF! ->  | E132: =+'C.2 - Timesheets - Labor'!#REF! ->  | F132: =+'C.2 - Timesheets - Labor'!#REF! ->  | G132: =+'C.2 - Timesheets - Labor'!#REF! ->  | H132: =+'C.2 - Timesheets - Labor'!#REF! ->  | I132: =+'C.2 - Timesheets - Labor'!#REF! ->  | J132: =+'C.2 - Timesheets - Labor'!#REF! ->  | K132: =+'C.2 - Timesheets - Labor'!#REF! ->  | L132: =+'C.2 - Timesheets - Labor'!#REF! ->  | M132: =+'C.2 - Timesheets - Labor'!#REF! -> 
A133: =+'C.2 - Timesheets - Labor'!#REF! ->  | B133: =+'C.2 - Timesheets - Labor'!#REF! ->  | C133: =+'C.2 - Timesheets - Labor'!#REF! ->  | D133: =+'C.2 - Timesheets - Labor'!#REF! ->  | E133: =+'C.2 - Timesheets - Labor'!#REF! ->  | F133: =+'C.2 - Timesheets - Labor'!#REF! ->  | G133: =+'C.2 - Timesheets - Labor'!#REF! ->  | H133: =+'C.2 - Timesheets - Labor'!#REF! ->  | I133: =+'C.2 - Timesheets - Labor'!#REF! ->  | J133: =+'C.2 - Timesheets - Labor'!#REF! ->  | K133: =+'C.2 - Timesheets - Labor'!#REF! ->  | L133: =+'C.2 - Timesheets - Labor'!#REF! ->  | M133: =+'C.2 - Timesheets - Labor'!#REF! -> 
A134: =+'C.2 - Timesheets - Labor'!#REF! ->  | B134: =+'C.2 - Timesheets - Labor'!#REF! ->  | C134: =+'C.2 - Timesheets - Labor'!#REF! ->  | D134: =+'C.2 - Timesheets - Labor'!#REF! ->  | E134: =+'C.2 - Timesheets - Labor'!#REF! ->  | F134: =+'C.2 - Timesheets - Labor'!#REF! ->  | G134: =+'C.2 - Timesheets - Labor'!#REF! ->  | H134: =+'C.2 - Timesheets - Labor'!#REF! ->  | I134: =+'C.2 - Timesheets - Labor'!#REF! ->  | J134: =+'C.2 - Timesheets - Labor'!#REF! ->  | K134: =+'C.2 - Timesheets - Labor'!#REF! ->  | L134: =+'C.2 - Timesheets - Labor'!#REF! ->  | M134: =+'C.2 - Timesheets - Labor'!#REF! -> 
A135: =+'C.2 - Timesheets - Labor'!#REF! ->  | B135: =+'C.2 - Timesheets - Labor'!#REF! ->  | C135: =+'C.2 - Timesheets - Labor'!#REF! ->  | D135: =+'C.2 - Timesheets - Labor'!#REF! ->  | E135: =+'C.2 - Timesheets - Labor'!#REF! ->  | F135: =+'C.2 - Timesheets - Labor'!#REF! ->  | G135: =+'C.2 - Timesheets - Labor'!#REF! ->  | H135: =+'C.2 - Timesheets - Labor'!#REF! ->  | I135: =+'C.2 - Timesheets - Labor'!#REF! ->  | J135: =+'C.2 - Timesheets - Labor'!#REF! ->  | K135: =+'C.2 - Timesheets - Labor'!#REF! ->  | L135: =+'C.2 - Timesheets - Labor'!#REF! ->  | M135: =+'C.2 - Timesheets - Labor'!#REF! -> 
A136: =+'C.2 - Timesheets - Labor'!#REF! ->  | B136: =+'C.2 - Timesheets - Labor'!#REF! ->  | C136: =+'C.2 - Timesheets - Labor'!#REF! ->  | D136: =+'C.2 - Timesheets - Labor'!#REF! ->  | E136: =+'C.2 - Timesheets - Labor'!#REF! ->  | F136: =+'C.2 - Timesheets - Labor'!#REF! ->  | G136: =+'C.2 - Timesheets - Labor'!#REF! ->  | H136: =+'C.2 - Timesheets - Labor'!#REF! ->  | I136: =+'C.2 - Timesheets - Labor'!#REF! ->  | J136: =+'C.2 - Timesheets - Labor'!#REF! ->  | K136: =+'C.2 - Timesheets - Labor'!#REF! ->  | L136: =+'C.2 - Timesheets - Labor'!#REF! ->  | M136: =+'C.2 - Timesheets - Labor'!#REF! -> 
A137: =+'C.2 - Timesheets - Labor'!#REF! ->  | B137: =+'C.2 - Timesheets - Labor'!#REF! ->  | C137: =+'C.2 - Timesheets - Labor'!#REF! ->  | D137: =+'C.2 - Timesheets - Labor'!#REF! ->  | E137: =+'C.2 - Timesheets - Labor'!#REF! ->  | F137: =+'C.2 - Timesheets - Labor'!#REF! ->  | G137: =+'C.2 - Timesheets - Labor'!#REF! ->  | H137: =+'C.2 - Timesheets - Labor'!#REF! ->  | I137: =+'C.2 - Timesheets - Labor'!#REF! ->  | J137: =+'C.2 - Timesheets - Labor'!#REF! ->  | K137: =+'C.2 - Timesheets - Labor'!#REF! ->  | L137: =+'C.2 - Timesheets - Labor'!#REF! ->  | M137: =+'C.2 - Timesheets - Labor'!#REF! -> 
A138: =+'C.2 - Timesheets - Labor'!#REF! ->  | B138: =+'C.2 - Timesheets - Labor'!#REF! ->  | C138: =+'C.2 - Timesheets - Labor'!#REF! ->  | D138: =+'C.2 - Timesheets - Labor'!#REF! ->  | E138: =+'C.2 - Timesheets - Labor'!#REF! ->  | F138: =+'C.2 - Timesheets - Labor'!#REF! ->  | G138: =+'C.2 - Timesheets - Labor'!#REF! ->  | H138: =+'C.2 - Timesheets - Labor'!#REF! ->  | I138: =+'C.2 - Timesheets - Labor'!#REF! ->  | J138: =+'C.2 - Timesheets - Labor'!#REF! ->  | K138: =+'C.2 - Timesheets - Labor'!#REF! ->  | L138: =+'C.2 - Timesheets - Labor'!#REF! ->  | M138: =+'C.2 - Timesheets - Labor'!#REF! -> 
A139: =+'C.2 - Timesheets - Labor'!#REF! ->  | B139: =+'C.2 - Timesheets - Labor'!#REF! ->  | C139: =+'C.2 - Timesheets - Labor'!#REF! ->  | D139: =+'C.2 - Timesheets - Labor'!#REF! ->  | E139: =+'C.2 - Timesheets - Labor'!#REF! ->  | F139: =+'C.2 - Timesheets - Labor'!#REF! ->  | G139: =+'C.2 - Timesheets - Labor'!#REF! ->  | H139: =+'C.2 - Timesheets - Labor'!#REF! ->  | I139: =+'C.2 - Timesheets - Labor'!#REF! ->  | J139: =+'C.2 - Timesheets - Labor'!#REF! ->  | K139: =+'C.2 - Timesheets - Labor'!#REF! ->  | L139: =+'C.2 - Timesheets - Labor'!#REF! ->  | M139: =+'C.2 - Timesheets - Labor'!#REF! -> 
A140: =+'C.2 - Timesheets - Labor'!#REF! ->  | B140: =+'C.2 - Timesheets - Labor'!#REF! ->  | C140: =+'C.2 - Timesheets - Labor'!#REF! ->  | D140: =+'C.2 - Timesheets - Labor'!#REF! ->  | E140: =+'C.2 - Timesheets - Labor'!#REF! ->  | F140: =+'C.2 - Timesheets - Labor'!#REF! ->  | G140: =+'C.2 - Timesheets - Labor'!#REF! ->  | H140: =+'C.2 - Timesheets - Labor'!#REF! ->  | I140: =+'C.2 - Timesheets - Labor'!#REF! ->  | J140: =+'C.2 - Timesheets - Labor'!#REF! ->  | K140: =+'C.2 - Timesheets - Labor'!#REF! ->  | L140: =+'C.2 - Timesheets - Labor'!#REF! ->  | M140: =+'C.2 - Timesheets - Labor'!#REF! -> 
A141: =+'C.2 - Timesheets - Labor'!#REF! ->  | B141: =+'C.2 - Timesheets - Labor'!#REF! ->  | C141: =+'C.2 - Timesheets - Labor'!#REF! ->  | D141: =+'C.2 - Timesheets - Labor'!#REF! ->  | E141: =+'C.2 - Timesheets - Labor'!#REF! ->  | F141: =+'C.2 - Timesheets - Labor'!#REF! ->  | G141: =+'C.2 - Timesheets - Labor'!#REF! ->  | H141: =+'C.2 - Timesheets - Labor'!#REF! ->  | I141: =+'C.2 - Timesheets - Labor'!#REF! ->  | J141: =+'C.2 - Timesheets - Labor'!#REF! ->  | K141: =+'C.2 - Timesheets - Labor'!#REF! ->  | L141: =+'C.2 - Timesheets - Labor'!#REF! ->  | M141: =+'C.2 - Timesheets - Labor'!#REF! -> 
A142: =+'C.2 - Timesheets - Labor'!#REF! ->  | B142: =+'C.2 - Timesheets - Labor'!#REF! ->  | C142: =+'C.2 - Timesheets - Labor'!#REF! ->  | D142: =+'C.2 - Timesheets - Labor'!#REF! ->  | E142: =+'C.2 - Timesheets - Labor'!#REF! ->  | F142: =+'C.2 - Timesheets - Labor'!#REF! ->  | G142: =+'C.2 - Timesheets - Labor'!#REF! ->  | H142: =+'C.2 - Timesheets - Labor'!#REF! ->  | I142: =+'C.2 - Timesheets - Labor'!#REF! ->  | J142: =+'C.2 - Timesheets - Labor'!#REF! ->  | K142: =+'C.2 - Timesheets - Labor'!#REF! ->  | L142: =+'C.2 - Timesheets - Labor'!#REF! ->  | M142: =+'C.2 - Timesheets - Labor'!#REF! -> 
A143: =+'C.2 - Timesheets - Labor'!#REF! ->  | B143: =+'C.2 - Timesheets - Labor'!#REF! ->  | C143: =+'C.2 - Timesheets - Labor'!#REF! ->  | D143: =+'C.2 - Timesheets - Labor'!#REF! ->  | E143: =+'C.2 - Timesheets - Labor'!#REF! ->  | F143: =+'C.2 - Timesheets - Labor'!#REF! ->  | G143: =+'C.2 - Timesheets - Labor'!#REF! ->  | H143: =+'C.2 - Timesheets - Labor'!#REF! ->  | I143: =+'C.2 - Timesheets - Labor'!#REF! ->  | J143: =+'C.2 - Timesheets - Labor'!#REF! ->  | K143: =+'C.2 - Timesheets - Labor'!#REF! ->  | L143: =+'C.2 - Timesheets - Labor'!#REF! ->  | M143: =+'C.2 - Timesheets - Labor'!#REF! -> 
A144: =+'C.2 - Timesheets - Labor'!#REF! ->  | B144: =+'C.2 - Timesheets - Labor'!#REF! ->  | C144: =+'C.2 - Timesheets - Labor'!#REF! ->  | D144: =+'C.2 - Timesheets - Labor'!#REF! ->  | E144: =+'C.2 - Timesheets - Labor'!#REF! ->  | F144: =+'C.2 - Timesheets - Labor'!#REF! ->  | G144: =+'C.2 - Timesheets - Labor'!#REF! ->  | H144: =+'C.2 - Timesheets - Labor'!#REF! ->  | I144: =+'C.2 - Timesheets - Labor'!#REF! ->  | J144: =+'C.2 - Timesheets - Labor'!#REF! ->  | K144: =+'C.2 - Timesheets - Labor'!#REF! ->  | L144: =+'C.2 - Timesheets - Labor'!#REF! ->  | M144: =+'C.2 - Timesheets - Labor'!#REF! -> 
A145: =+'C.2 - Timesheets - Labor'!#REF! ->  | B145: =+'C.2 - Timesheets - Labor'!#REF! ->  | C145: =+'C.2 - Timesheets - Labor'!#REF! ->  | D145: =+'C.2 - Timesheets - Labor'!#REF! ->  | E145: =+'C.2 - Timesheets - Labor'!#REF! ->  | F145: =+'C.2 - Timesheets - Labor'!#REF! ->  | G145: =+'C.2 - Timesheets - Labor'!#REF! ->  | H145: =+'C.2 - Timesheets - Labor'!#REF! ->  | I145: =+'C.2 - Timesheets - Labor'!#REF! ->  | J145: =+'C.2 - Timesheets - Labor'!#REF! ->  | K145: =+'C.2 - Timesheets - Labor'!#REF! ->  | L145: =+'C.2 - Timesheets - Labor'!#REF! ->  | M145: =+'C.2 - Timesheets - Labor'!#REF! -> 
A146: =+'C.2 - Timesheets - Labor'!#REF! ->  | B146: =+'C.2 - Timesheets - Labor'!#REF! ->  | C146: =+'C.2 - Timesheets - Labor'!#REF! ->  | D146: =+'C.2 - Timesheets - Labor'!#REF! ->  | E146: =+'C.2 - Timesheets - Labor'!#REF! ->  | F146: =+'C.2 - Timesheets - Labor'!#REF! ->  | G146: =+'C.2 - Timesheets - Labor'!#REF! ->  | H146: =+'C.2 - Timesheets - Labor'!#REF! ->  | I146: =+'C.2 - Timesheets - Labor'!#REF! ->  | J146: =+'C.2 - Timesheets - Labor'!#REF! ->  | K146: =+'C.2 - Timesheets - Labor'!#REF! ->  | L146: =+'C.2 - Timesheets - Labor'!#REF! ->  | M146: =+'C.2 - Timesheets - Labor'!#REF! -> 
A147: =+'C.2 - Timesheets - Labor'!#REF! ->  | B147: =+'C.2 - Timesheets - Labor'!#REF! ->  | C147: =+'C.2 - Timesheets - Labor'!#REF! ->  | D147: =+'C.2 - Timesheets - Labor'!#REF! ->  | E147: =+'C.2 - Timesheets - Labor'!#REF! ->  | F147: =+'C.2 - Timesheets - Labor'!#REF! ->  | G147: =+'C.2 - Timesheets - Labor'!#REF! ->  | H147: =+'C.2 - Timesheets - Labor'!#REF! ->  | I147: =+'C.2 - Timesheets - Labor'!#REF! ->  | J147: =+'C.2 - Timesheets - Labor'!#REF! ->  | K147: =+'C.2 - Timesheets - Labor'!#REF! ->  | L147: =+'C.2 - Timesheets - Labor'!#REF! ->  | M147: =+'C.2 - Timesheets - Labor'!#REF! -> 
A148: =+'C.2 - Timesheets - Labor'!#REF! ->  | B148: =+'C.2 - Timesheets - Labor'!#REF! ->  | C148: =+'C.2 - Timesheets - Labor'!#REF! ->  | D148: =+'C.2 - Timesheets - Labor'!#REF! ->  | E148: =+'C.2 - Timesheets - Labor'!#REF! ->  | F148: =+'C.2 - Timesheets - Labor'!#REF! ->  | G148: =+'C.2 - Timesheets - Labor'!#REF! ->  | H148: =+'C.2 - Timesheets - Labor'!#REF! ->  | I148: =+'C.2 - Timesheets - Labor'!#REF! ->  | J148: =+'C.2 - Timesheets - Labor'!#REF! ->  | K148: =+'C.2 - Timesheets - Labor'!#REF! ->  | L148: =+'C.2 - Timesheets - Labor'!#REF! ->  | M148: =+'C.2 - Timesheets - Labor'!#REF! -> 
A149: =+'C.2 - Timesheets - Labor'!#REF! ->  | B149: =+'C.2 - Timesheets - Labor'!#REF! ->  | C149: =+'C.2 - Timesheets - Labor'!#REF! ->  | D149: =+'C.2 - Timesheets - Labor'!#REF! ->  | E149: =+'C.2 - Timesheets - Labor'!#REF! ->  | F149: =+'C.2 - Timesheets - Labor'!#REF! ->  | G149: =+'C.2 - Timesheets - Labor'!#REF! ->  | H149: =+'C.2 - Timesheets - Labor'!#REF! ->  | I149: =+'C.2 - Timesheets - Labor'!#REF! ->  | J149: =+'C.2 - Timesheets - Labor'!#REF! ->  | K149: =+'C.2 - Timesheets - Labor'!#REF! ->  | L149: =+'C.2 - Timesheets - Labor'!#REF! ->  | M149: =+'C.2 - Timesheets - Labor'!#REF! -> 
A150: =+'C.2 - Timesheets - Labor'!#REF! ->  | B150: =+'C.2 - Timesheets - Labor'!#REF! ->  | C150: =+'C.2 - Timesheets - Labor'!#REF! ->  | D150: =+'C.2 - Timesheets - Labor'!#REF! ->  | E150: =+'C.2 - Timesheets - Labor'!#REF! ->  | F150: =+'C.2 - Timesheets - Labor'!#REF! ->  | G150: =+'C.2 - Timesheets - Labor'!#REF! ->  | H150: =+'C.2 - Timesheets - Labor'!#REF! ->  | I150: =+'C.2 - Timesheets - Labor'!#REF! ->  | J150: =+'C.2 - Timesheets - Labor'!#REF! ->  | K150: =+'C.2 - Timesheets - Labor'!#REF! ->  | L150: =+'C.2 - Timesheets - Labor'!#REF! ->  | M150: =+'C.2 - Timesheets - Labor'!#REF! -> 
A151: =+'C.2 - Timesheets - Labor'!#REF! ->  | B151: =+'C.2 - Timesheets - Labor'!#REF! ->  | C151: =+'C.2 - Timesheets - Labor'!#REF! ->  | D151: =+'C.2 - Timesheets - Labor'!#REF! ->  | E151: =+'C.2 - Timesheets - Labor'!#REF! ->  | F151: =+'C.2 - Timesheets - Labor'!#REF! ->  | G151: =+'C.2 - Timesheets - Labor'!#REF! ->  | H151: =+'C.2 - Timesheets - Labor'!#REF! ->  | I151: =+'C.2 - Timesheets - Labor'!#REF! ->  | J151: =+'C.2 - Timesheets - Labor'!#REF! ->  | K151: =+'C.2 - Timesheets - Labor'!#REF! ->  | L151: =+'C.2 - Timesheets - Labor'!#REF! ->  | M151: =+'C.2 - Timesheets - Labor'!#REF! -> 
A152: =+'C.2 - Timesheets - Labor'!#REF! ->  | B152: =+'C.2 - Timesheets - Labor'!#REF! ->  | C152: =+'C.2 - Timesheets - Labor'!#REF! ->  | D152: =+'C.2 - Timesheets - Labor'!#REF! ->  | E152: =+'C.2 - Timesheets - Labor'!#REF! ->  | F152: =+'C.2 - Timesheets - Labor'!#REF! ->  | G152: =+'C.2 - Timesheets - Labor'!#REF! ->  | H152: =+'C.2 - Timesheets - Labor'!#REF! ->  | I152: =+'C.2 - Timesheets - Labor'!#REF! ->  | J152: =+'C.2 - Timesheets - Labor'!#REF! ->  | K152: =+'C.2 - Timesheets - Labor'!#REF! ->  | L152: =+'C.2 - Timesheets - Labor'!#REF! ->  | M152: =+'C.2 - Timesheets - Labor'!#REF! -> 
A153: =+'C.2 - Timesheets - Labor'!#REF! ->  | B153: =+'C.2 - Timesheets - Labor'!#REF! ->  | C153: =+'C.2 - Timesheets - Labor'!#REF! ->  | D153: =+'C.2 - Timesheets - Labor'!#REF! ->  | E153: =+'C.2 - Timesheets - Labor'!#REF! ->  | F153: =+'C.2 - Timesheets - Labor'!#REF! ->  | G153: =+'C.2 - Timesheets - Labor'!#REF! ->  | H153: =+'C.2 - Timesheets - Labor'!#REF! ->  | I153: =+'C.2 - Timesheets - Labor'!#REF! ->  | J153: =+'C.2 - Timesheets - Labor'!#REF! ->  | K153: =+'C.2 - Timesheets - Labor'!#REF! ->  | L153: =+'C.2 - Timesheets - Labor'!#REF! ->  | M153: =+'C.2 - Timesheets - Labor'!#REF! -> 
A154: =+'C.2 - Timesheets - Labor'!#REF! ->  | B154: =+'C.2 - Timesheets - Labor'!#REF! ->  | C154: =+'C.2 - Timesheets - Labor'!#REF! ->  | D154: =+'C.2 - Timesheets - Labor'!#REF! ->  | E154: =+'C.2 - Timesheets - Labor'!#REF! ->  | F154: =+'C.2 - Timesheets - Labor'!#REF! ->  | G154: =+'C.2 - Timesheets - Labor'!#REF! ->  | H154: =+'C.2 - Timesheets - Labor'!#REF! ->  | I154: =+'C.2 - Timesheets - Labor'!#REF! ->  | J154: =+'C.2 - Timesheets - Labor'!#REF! ->  | K154: =+'C.2 - Timesheets - Labor'!#REF! ->  | L154: =+'C.2 - Timesheets - Labor'!#REF! ->  | M154: =+'C.2 - Timesheets - Labor'!#REF! -> 
A155: =+'C.2 - Timesheets - Labor'!#REF! ->  | B155: =+'C.2 - Timesheets - Labor'!#REF! ->  | C155: =+'C.2 - Timesheets - Labor'!#REF! ->  | D155: =+'C.2 - Timesheets - Labor'!#REF! ->  | E155: =+'C.2 - Timesheets - Labor'!#REF! ->  | F155: =+'C.2 - Timesheets - Labor'!#REF! ->  | G155: =+'C.2 - Timesheets - Labor'!#REF! ->  | H155: =+'C.2 - Timesheets - Labor'!#REF! ->  | I155: =+'C.2 - Timesheets - Labor'!#REF! ->  | J155: =+'C.2 - Timesheets - Labor'!#REF! ->  | K155: =+'C.2 - Timesheets - Labor'!#REF! ->  | L155: =+'C.2 - Timesheets - Labor'!#REF! ->  | M155: =+'C.2 - Timesheets - Labor'!#REF! -> 
A156: =+'C.2 - Timesheets - Labor'!#REF! ->  | B156: =+'C.2 - Timesheets - Labor'!#REF! ->  | C156: =+'C.2 - Timesheets - Labor'!#REF! ->  | D156: =+'C.2 - Timesheets - Labor'!#REF! ->  | E156: =+'C.2 - Timesheets - Labor'!#REF! ->  | F156: =+'C.2 - Timesheets - Labor'!#REF! ->  | G156: =+'C.2 - Timesheets - Labor'!#REF! ->  | H156: =+'C.2 - Timesheets - Labor'!#REF! ->  | I156: =+'C.2 - Timesheets - Labor'!#REF! ->  | J156: =+'C.2 - Timesheets - Labor'!#REF! ->  | K156: =+'C.2 - Timesheets - Labor'!#REF! ->  | L156: =+'C.2 - Timesheets - Labor'!#REF! ->  | M156: =+'C.2 - Timesheets - Labor'!#REF! -> 
A157: =+'C.2 - Timesheets - Labor'!#REF! ->  | B157: =+'C.2 - Timesheets - Labor'!#REF! ->  | C157: =+'C.2 - Timesheets - Labor'!#REF! ->  | D157: =+'C.2 - Timesheets - Labor'!#REF! ->  | E157: =+'C.2 - Timesheets - Labor'!#REF! ->  | F157: =+'C.2 - Timesheets - Labor'!#REF! ->  | G157: =+'C.2 - Timesheets - Labor'!#REF! ->  | H157: =+'C.2 - Timesheets - Labor'!#REF! ->  | I157: =+'C.2 - Timesheets - Labor'!#REF! ->  | J157: =+'C.2 - Timesheets - Labor'!#REF! ->  | K157: =+'C.2 - Timesheets - Labor'!#REF! ->  | L157: =+'C.2 - Timesheets - Labor'!#REF! ->  | M157: =+'C.2 - Timesheets - Labor'!#REF! -> 
A158: =+'C.2 - Timesheets - Labor'!#REF! ->  | B158: =+'C.2 - Timesheets - Labor'!#REF! ->  | C158: =+'C.2 - Timesheets - Labor'!#REF! ->  | D158: =+'C.2 - Timesheets - Labor'!#REF! ->  | E158: =+'C.2 - Timesheets - Labor'!#REF! ->  | F158: =+'C.2 - Timesheets - Labor'!#REF! ->  | G158: =+'C.2 - Timesheets - Labor'!#REF! ->  | H158: =+'C.2 - Timesheets - Labor'!#REF! ->  | I158: =+'C.2 - Timesheets - Labor'!#REF! ->  | J158: =+'C.2 - Timesheets - Labor'!#REF! ->  | K158: =+'C.2 - Timesheets - Labor'!#REF! ->  | L158: =+'C.2 - Timesheets - Labor'!#REF! ->  | M158: =+'C.2 - Timesheets - Labor'!#REF! -> 
A159: =+'C.2 - Timesheets - Labor'!#REF! ->  | B159: =+'C.2 - Timesheets - Labor'!#REF! ->  | C159: =+'C.2 - Timesheets - Labor'!#REF! ->  | D159: =+'C.2 - Timesheets - Labor'!#REF! ->  | E159: =+'C.2 - Timesheets - Labor'!#REF! ->  | F159: =+'C.2 - Timesheets - Labor'!#REF! ->  | G159: =+'C.2 - Timesheets - Labor'!#REF! ->  | H159: =+'C.2 - Timesheets - Labor'!#REF! ->  | I159: =+'C.2 - Timesheets - Labor'!#REF! ->  | J159: =+'C.2 - Timesheets - Labor'!#REF! ->  | K159: =+'C.2 - Timesheets - Labor'!#REF! ->  | L159: =+'C.2 - Timesheets - Labor'!#REF! ->  | M159: =+'C.2 - Timesheets - Labor'!#REF! -> 
A160: =+'C.2 - Timesheets - Labor'!#REF! ->  | B160: =+'C.2 - Timesheets - Labor'!#REF! ->  | C160: =+'C.2 - Timesheets - Labor'!#REF! ->  | D160: =+'C.2 - Timesheets - Labor'!#REF! ->  | E160: =+'C.2 - Timesheets - Labor'!#REF! ->  | F160: =+'C.2 - Timesheets - Labor'!#REF! ->  | G160: =+'C.2 - Timesheets - Labor'!#REF! ->  | H160: =+'C.2 - Timesheets - Labor'!#REF! ->  | I160: =+'C.2 - Timesheets - Labor'!#REF! ->  | J160: =+'C.2 - Timesheets - Labor'!#REF! ->  | K160: =+'C.2 - Timesheets - Labor'!#REF! ->  | L160: =+'C.2 - Timesheets - Labor'!#REF! ->  | M160: =+'C.2 - Timesheets - Labor'!#REF! -> 
A161: =+'C.2 - Timesheets - Labor'!#REF! ->  | B161: =+'C.2 - Timesheets - Labor'!#REF! ->  | C161: =+'C.2 - Timesheets - Labor'!#REF! ->  | D161: =+'C.2 - Timesheets - Labor'!#REF! ->  | E161: =+'C.2 - Timesheets - Labor'!#REF! ->  | F161: =+'C.2 - Timesheets - Labor'!#REF! ->  | G161: =+'C.2 - Timesheets - Labor'!#REF! ->  | H161: =+'C.2 - Timesheets - Labor'!#REF! ->  | I161: =+'C.2 - Timesheets - Labor'!#REF! ->  | J161: =+'C.2 - Timesheets - Labor'!#REF! ->  | K161: =+'C.2 - Timesheets - Labor'!#REF! ->  | L161: =+'C.2 - Timesheets - Labor'!#REF! ->  | M161: =+'C.2 - Timesheets - Labor'!#REF! -> 
A162: =+'C.2 - Timesheets - Labor'!#REF! ->  | B162: =+'C.2 - Timesheets - Labor'!#REF! ->  | C162: =+'C.2 - Timesheets - Labor'!#REF! ->  | D162: =+'C.2 - Timesheets - Labor'!#REF! ->  | E162: =+'C.2 - Timesheets - Labor'!#REF! ->  | F162: =+'C.2 - Timesheets - Labor'!#REF! ->  | G162: =+'C.2 - Timesheets - Labor'!#REF! ->  | H162: =+'C.2 - Timesheets - Labor'!#REF! ->  | I162: =+'C.2 - Timesheets - Labor'!#REF! ->  | J162: =+'C.2 - Timesheets - Labor'!#REF! ->  | K162: =+'C.2 - Timesheets - Labor'!#REF! ->  | L162: =+'C.2 - Timesheets - Labor'!#REF! ->  | M162: =+'C.2 - Timesheets - Labor'!#REF! -> 
A163: =+'C.2 - Timesheets - Labor'!#REF! ->  | B163: =+'C.2 - Timesheets - Labor'!#REF! ->  | C163: =+'C.2 - Timesheets - Labor'!#REF! ->  | D163: =+'C.2 - Timesheets - Labor'!#REF! ->  | E163: =+'C.2 - Timesheets - Labor'!#REF! ->  | F163: =+'C.2 - Timesheets - Labor'!#REF! ->  | G163: =+'C.2 - Timesheets - Labor'!#REF! ->  | H163: =+'C.2 - Timesheets - Labor'!#REF! ->  | I163: =+'C.2 - Timesheets - Labor'!#REF! ->  | J163: =+'C.2 - Timesheets - Labor'!#REF! ->  | K163: =+'C.2 - Timesheets - Labor'!#REF! ->  | L163: =+'C.2 - Timesheets - Labor'!#REF! ->  | M163: =+'C.2 - Timesheets - Labor'!#REF! -> 
A164: =+'C.2 - Timesheets - Labor'!#REF! ->  | B164: =+'C.2 - Timesheets - Labor'!#REF! ->  | C164: =+'C.2 - Timesheets - Labor'!#REF! ->  | D164: =+'C.2 - Timesheets - Labor'!#REF! ->  | E164: =+'C.2 - Timesheets - Labor'!#REF! ->  | F164: =+'C.2 - Timesheets - Labor'!#REF! ->  | G164: =+'C.2 - Timesheets - Labor'!#REF! ->  | H164: =+'C.2 - Timesheets - Labor'!#REF! ->  | I164: =+'C.2 - Timesheets - Labor'!#REF! ->  | J164: =+'C.2 - Timesheets - Labor'!#REF! ->  | K164: =+'C.2 - Timesheets - Labor'!#REF! ->  | L164: =+'C.2 - Timesheets - Labor'!#REF! ->  | M164: =+'C.2 - Timesheets - Labor'!#REF! -> 
A165: =+'C.2 - Timesheets - Labor'!#REF! ->  | B165: =+'C.2 - Timesheets - Labor'!#REF! ->  | C165: =+'C.2 - Timesheets - Labor'!#REF! ->  | D165: =+'C.2 - Timesheets - Labor'!#REF! ->  | E165: =+'C.2 - Timesheets - Labor'!#REF! ->  | F165: =+'C.2 - Timesheets - Labor'!#REF! ->  | G165: =+'C.2 - Timesheets - Labor'!#REF! ->  | H165: =+'C.2 - Timesheets - Labor'!#REF! ->  | I165: =+'C.2 - Timesheets - Labor'!#REF! ->  | J165: =+'C.2 - Timesheets - Labor'!#REF! ->  | K165: =+'C.2 - Timesheets - Labor'!#REF! ->  | L165: =+'C.2 - Timesheets - Labor'!#REF! ->  | M165: =+'C.2 - Timesheets - Labor'!#REF! -> 
A166: =+'C.2 - Timesheets - Labor'!#REF! ->  | B166: =+'C.2 - Timesheets - Labor'!#REF! ->  | C166: =+'C.2 - Timesheets - Labor'!#REF! ->  | D166: =+'C.2 - Timesheets - Labor'!#REF! ->  | E166: =+'C.2 - Timesheets - Labor'!#REF! ->  | F166: =+'C.2 - Timesheets - Labor'!#REF! ->  | G166: =+'C.2 - Timesheets - Labor'!#REF! ->  | H166: =+'C.2 - Timesheets - Labor'!#REF! ->  | I166: =+'C.2 - Timesheets - Labor'!#REF! ->  | J166: =+'C.2 - Timesheets - Labor'!#REF! ->  | K166: =+'C.2 - Timesheets - Labor'!#REF! ->  | L166: =+'C.2 - Timesheets - Labor'!#REF! ->  | M166: =+'C.2 - Timesheets - Labor'!#REF! -> 
A167: =+'C.2 - Timesheets - Labor'!#REF! ->  | B167: =+'C.2 - Timesheets - Labor'!#REF! ->  | C167: =+'C.2 - Timesheets - Labor'!#REF! ->  | D167: =+'C.2 - Timesheets - Labor'!#REF! ->  | E167: =+'C.2 - Timesheets - Labor'!#REF! ->  | F167: =+'C.2 - Timesheets - Labor'!#REF! ->  | G167: =+'C.2 - Timesheets - Labor'!#REF! ->  | H167: =+'C.2 - Timesheets - Labor'!#REF! ->  | I167: =+'C.2 - Timesheets - Labor'!#REF! ->  | J167: =+'C.2 - Timesheets - Labor'!#REF! ->  | K167: =+'C.2 - Timesheets - Labor'!#REF! ->  | L167: =+'C.2 - Timesheets - Labor'!#REF! ->  | M167: =+'C.2 - Timesheets - Labor'!#REF! -> 
A168: =+'C.2 - Timesheets - Labor'!#REF! ->  | B168: =+'C.2 - Timesheets - Labor'!#REF! ->  | C168: =+'C.2 - Timesheets - Labor'!#REF! ->  | D168: =+'C.2 - Timesheets - Labor'!#REF! ->  | E168: =+'C.2 - Timesheets - Labor'!#REF! ->  | F168: =+'C.2 - Timesheets - Labor'!#REF! ->  | G168: =+'C.2 - Timesheets - Labor'!#REF! ->  | H168: =+'C.2 - Timesheets - Labor'!#REF! ->  | I168: =+'C.2 - Timesheets - Labor'!#REF! ->  | J168: =+'C.2 - Timesheets - Labor'!#REF! ->  | K168: =+'C.2 - Timesheets - Labor'!#REF! ->  | L168: =+'C.2 - Timesheets - Labor'!#REF! ->  | M168: =+'C.2 - Timesheets - Labor'!#REF! -> 
A169: =+'C.2 - Timesheets - Labor'!#REF! ->  | B169: =+'C.2 - Timesheets - Labor'!#REF! ->  | C169: =+'C.2 - Timesheets - Labor'!#REF! ->  | D169: =+'C.2 - Timesheets - Labor'!#REF! ->  | E169: =+'C.2 - Timesheets - Labor'!#REF! ->  | F169: =+'C.2 - Timesheets - Labor'!#REF! ->  | G169: =+'C.2 - Timesheets - Labor'!#REF! ->  | H169: =+'C.2 - Timesheets - Labor'!#REF! ->  | I169: =+'C.2 - Timesheets - Labor'!#REF! ->  | J169: =+'C.2 - Timesheets - Labor'!#REF! ->  | K169: =+'C.2 - Timesheets - Labor'!#REF! ->  | L169: =+'C.2 - Timesheets - Labor'!#REF! ->  | M169: =+'C.2 - Timesheets - Labor'!#REF! -> 
A170: =+'C.2 - Timesheets - Labor'!#REF! ->  | B170: =+'C.2 - Timesheets - Labor'!#REF! ->  | C170: =+'C.2 - Timesheets - Labor'!#REF! ->  | D170: =+'C.2 - Timesheets - Labor'!#REF! ->  | E170: =+'C.2 - Timesheets - Labor'!#REF! ->  | F170: =+'C.2 - Timesheets - Labor'!#REF! ->  | G170: =+'C.2 - Timesheets - Labor'!#REF! ->  | H170: =+'C.2 - Timesheets - Labor'!#REF! ->  | I170: =+'C.2 - Timesheets - Labor'!#REF! ->  | J170: =+'C.2 - Timesheets - Labor'!#REF! ->  | K170: =+'C.2 - Timesheets - Labor'!#REF! ->  | L170: =+'C.2 - Timesheets - Labor'!#REF! ->  | M170: =+'C.2 - Timesheets - Labor'!#REF! -> 
A171: =+'C.2 - Timesheets - Labor'!#REF! ->  | B171: =+'C.2 - Timesheets - Labor'!#REF! ->  | C171: =+'C.2 - Timesheets - Labor'!#REF! ->  | D171: =+'C.2 - Timesheets - Labor'!#REF! ->  | E171: =+'C.2 - Timesheets - Labor'!#REF! ->  | F171: =+'C.2 - Timesheets - Labor'!#REF! ->  | G171: =+'C.2 - Timesheets - Labor'!#REF! ->  | H171: =+'C.2 - Timesheets - Labor'!#REF! ->  | I171: =+'C.2 - Timesheets - Labor'!#REF! ->  | J171: =+'C.2 - Timesheets - Labor'!#REF! ->  | K171: =+'C.2 - Timesheets - Labor'!#REF! ->  | L171: =+'C.2 - Timesheets - Labor'!#REF! ->  | M171: =+'C.2 - Timesheets - Labor'!#REF! -> 
A172: =+'C.2 - Timesheets - Labor'!#REF! ->  | B172: =+'C.2 - Timesheets - Labor'!#REF! ->  | C172: =+'C.2 - Timesheets - Labor'!#REF! ->  | D172: =+'C.2 - Timesheets - Labor'!#REF! ->  | E172: =+'C.2 - Timesheets - Labor'!#REF! ->  | F172: =+'C.2 - Timesheets - Labor'!#REF! ->  | G172: =+'C.2 - Timesheets - Labor'!#REF! ->  | H172: =+'C.2 - Timesheets - Labor'!#REF! ->  | I172: =+'C.2 - Timesheets - Labor'!#REF! ->  | J172: =+'C.2 - Timesheets - Labor'!#REF! ->  | K172: =+'C.2 - Timesheets - Labor'!#REF! ->  | L172: =+'C.2 - Timesheets - Labor'!#REF! ->  | M172: =+'C.2 - Timesheets - Labor'!#REF! -> 
A173: =+'C.2 - Timesheets - Labor'!#REF! ->  | B173: =+'C.2 - Timesheets - Labor'!#REF! ->  | C173: =+'C.2 - Timesheets - Labor'!#REF! ->  | D173: =+'C.2 - Timesheets - Labor'!#REF! ->  | E173: =+'C.2 - Timesheets - Labor'!#REF! ->  | F173: =+'C.2 - Timesheets - Labor'!#REF! ->  | G173: =+'C.2 - Timesheets - Labor'!#REF! ->  | H173: =+'C.2 - Timesheets - Labor'!#REF! ->  | I173: =+'C.2 - Timesheets - Labor'!#REF! ->  | J173: =+'C.2 - Timesheets - Labor'!#REF! ->  | K173: =+'C.2 - Timesheets - Labor'!#REF! ->  | L173: =+'C.2 - Timesheets - Labor'!#REF! ->  | M173: =+'C.2 - Timesheets - Labor'!#REF! -> 
A174: =+'C.2 - Timesheets - Labor'!#REF! ->  | B174: =+'C.2 - Timesheets - Labor'!#REF! ->  | C174: =+'C.2 - Timesheets - Labor'!#REF! ->  | D174: =+'C.2 - Timesheets - Labor'!#REF! ->  | E174: =+'C.2 - Timesheets - Labor'!#REF! ->  | F174: =+'C.2 - Timesheets - Labor'!#REF! ->  | G174: =+'C.2 - Timesheets - Labor'!#REF! ->  | H174: =+'C.2 - Timesheets - Labor'!#REF! ->  | I174: =+'C.2 - Timesheets - Labor'!#REF! ->  | J174: =+'C.2 - Timesheets - Labor'!#REF! ->  | K174: =+'C.2 - Timesheets - Labor'!#REF! ->  | L174: =+'C.2 - Timesheets - Labor'!#REF! ->  | M174: =+'C.2 - Timesheets - Labor'!#REF! -> 
A175: =+'C.2 - Timesheets - Labor'!#REF! ->  | B175: =+'C.2 - Timesheets - Labor'!#REF! ->  | C175: =+'C.2 - Timesheets - Labor'!#REF! ->  | D175: =+'C.2 - Timesheets - Labor'!#REF! ->  | E175: =+'C.2 - Timesheets - Labor'!#REF! ->  | F175: =+'C.2 - Timesheets - Labor'!#REF! ->  | G175: =+'C.2 - Timesheets - Labor'!#REF! ->  | H175: =+'C.2 - Timesheets - Labor'!#REF! ->  | I175: =+'C.2 - Timesheets - Labor'!#REF! ->  | J175: =+'C.2 - Timesheets - Labor'!#REF! ->  | K175: =+'C.2 - Timesheets - Labor'!#REF! ->  | L175: =+'C.2 - Timesheets - Labor'!#REF! ->  | M175: =+'C.2 - Timesheets - Labor'!#REF! -> 
A176: =+'C.2 - Timesheets - Labor'!#REF! ->  | B176: =+'C.2 - Timesheets - Labor'!#REF! ->  | C176: =+'C.2 - Timesheets - Labor'!#REF! ->  | D176: =+'C.2 - Timesheets - Labor'!#REF! ->  | E176: =+'C.2 - Timesheets - Labor'!#REF! ->  | F176: =+'C.2 - Timesheets - Labor'!#REF! ->  | G176: =+'C.2 - Timesheets - Labor'!#REF! ->  | H176: =+'C.2 - Timesheets - Labor'!#REF! ->  | I176: =+'C.2 - Timesheets - Labor'!#REF! ->  | J176: =+'C.2 - Timesheets - Labor'!#REF! ->  | K176: =+'C.2 - Timesheets - Labor'!#REF! ->  | L176: =+'C.2 - Timesheets - Labor'!#REF! ->  | M176: =+'C.2 - Timesheets - Labor'!#REF! -> 
A177: =+'C.2 - Timesheets - Labor'!#REF! ->  | B177: =+'C.2 - Timesheets - Labor'!#REF! ->  | C177: =+'C.2 - Timesheets - Labor'!#REF! ->  | D177: =+'C.2 - Timesheets - Labor'!#REF! ->  | E177: =+'C.2 - Timesheets - Labor'!#REF! ->  | F177: =+'C.2 - Timesheets - Labor'!#REF! ->  | G177: =+'C.2 - Timesheets - Labor'!#REF! ->  | H177: =+'C.2 - Timesheets - Labor'!#REF! ->  | I177: =+'C.2 - Timesheets - Labor'!#REF! ->  | J177: =+'C.2 - Timesheets - Labor'!#REF! ->  | K177: =+'C.2 - Timesheets - Labor'!#REF! ->  | L177: =+'C.2 - Timesheets - Labor'!#REF! ->  | M177: =+'C.2 - Timesheets - Labor'!#REF! -> 
A178: =+'C.2 - Timesheets - Labor'!#REF! ->  | B178: =+'C.2 - Timesheets - Labor'!#REF! ->  | C178: =+'C.2 - Timesheets - Labor'!#REF! ->  | D178: =+'C.2 - Timesheets - Labor'!#REF! ->  | E178: =+'C.2 - Timesheets - Labor'!#REF! ->  | F178: =+'C.2 - Timesheets - Labor'!#REF! ->  | G178: =+'C.2 - Timesheets - Labor'!#REF! ->  | H178: =+'C.2 - Timesheets - Labor'!#REF! ->  | I178: =+'C.2 - Timesheets - Labor'!#REF! ->  | J178: =+'C.2 - Timesheets - Labor'!#REF! ->  | K178: =+'C.2 - Timesheets - Labor'!#REF! ->  | L178: =+'C.2 - Timesheets - Labor'!#REF! ->  | M178: =+'C.2 - Timesheets - Labor'!#REF! -> 
A179: =+'C.2 - Timesheets - Labor'!#REF! ->  | B179: =+'C.2 - Timesheets - Labor'!#REF! ->  | C179: =+'C.2 - Timesheets - Labor'!#REF! ->  | D179: =+'C.2 - Timesheets - Labor'!#REF! ->  | E179: =+'C.2 - Timesheets - Labor'!#REF! ->  | F179: =+'C.2 - Timesheets - Labor'!#REF! ->  | G179: =+'C.2 - Timesheets - Labor'!#REF! ->  | H179: =+'C.2 - Timesheets - Labor'!#REF! ->  | I179: =+'C.2 - Timesheets - Labor'!#REF! ->  | J179: =+'C.2 - Timesheets - Labor'!#REF! ->  | K179: =+'C.2 - Timesheets - Labor'!#REF! ->  | L179: =+'C.2 - Timesheets - Labor'!#REF! ->  | M179: =+'C.2 - Timesheets - Labor'!#REF! -> 
A180: =+'C.2 - Timesheets - Labor'!#REF! ->  | B180: =+'C.2 - Timesheets - Labor'!#REF! ->  | C180: =+'C.2 - Timesheets - Labor'!#REF! ->  | D180: =+'C.2 - Timesheets - Labor'!#REF! ->  | E180: =+'C.2 - Timesheets - Labor'!#REF! ->  | F180: =+'C.2 - Timesheets - Labor'!#REF! ->  | G180: =+'C.2 - Timesheets - Labor'!#REF! ->  | H180: =+'C.2 - Timesheets - Labor'!#REF! ->  | I180: =+'C.2 - Timesheets - Labor'!#REF! ->  | J180: =+'C.2 - Timesheets - Labor'!#REF! ->  | K180: =+'C.2 - Timesheets - Labor'!#REF! ->  | L180: =+'C.2 - Timesheets - Labor'!#REF! ->  | M180: =+'C.2 - Timesheets - Labor'!#REF! -> 
A181: =+'C.2 - Timesheets - Labor'!#REF! ->  | B181: =+'C.2 - Timesheets - Labor'!#REF! ->  | C181: =+'C.2 - Timesheets - Labor'!#REF! ->  | D181: =+'C.2 - Timesheets - Labor'!#REF! ->  | E181: =+'C.2 - Timesheets - Labor'!#REF! ->  | F181: =+'C.2 - Timesheets - Labor'!#REF! ->  | G181: =+'C.2 - Timesheets - Labor'!#REF! ->  | H181: =+'C.2 - Timesheets - Labor'!#REF! ->  | I181: =+'C.2 - Timesheets - Labor'!#REF! ->  | J181: =+'C.2 - Timesheets - Labor'!#REF! ->  | K181: =+'C.2 - Timesheets - Labor'!#REF! ->  | L181: =+'C.2 - Timesheets - Labor'!#REF! ->  | M181: =+'C.2 - Timesheets - Labor'!#REF! -> 
A182: =+'C.2 - Timesheets - Labor'!#REF! ->  | B182: =+'C.2 - Timesheets - Labor'!#REF! ->  | C182: =+'C.2 - Timesheets - Labor'!#REF! ->  | D182: =+'C.2 - Timesheets - Labor'!#REF! ->  | E182: =+'C.2 - Timesheets - Labor'!#REF! ->  | F182: =+'C.2 - Timesheets - Labor'!#REF! ->  | G182: =+'C.2 - Timesheets - Labor'!#REF! ->  | H182: =+'C.2 - Timesheets - Labor'!#REF! ->  | I182: =+'C.2 - Timesheets - Labor'!#REF! ->  | J182: =+'C.2 - Timesheets - Labor'!#REF! ->  | K182: =+'C.2 - Timesheets - Labor'!#REF! ->  | L182: =+'C.2 - Timesheets - Labor'!#REF! ->  | M182: =+'C.2 - Timesheets - Labor'!#REF! -> 
A183: =+'C.2 - Timesheets - Labor'!#REF! ->  | B183: =+'C.2 - Timesheets - Labor'!#REF! ->  | C183: =+'C.2 - Timesheets - Labor'!#REF! ->  | D183: =+'C.2 - Timesheets - Labor'!#REF! ->  | E183: =+'C.2 - Timesheets - Labor'!#REF! ->  | F183: =+'C.2 - Timesheets - Labor'!#REF! ->  | G183: =+'C.2 - Timesheets - Labor'!#REF! ->  | H183: =+'C.2 - Timesheets - Labor'!#REF! ->  | I183: =+'C.2 - Timesheets - Labor'!#REF! ->  | J183: =+'C.2 - Timesheets - Labor'!#REF! ->  | K183: =+'C.2 - Timesheets - Labor'!#REF! ->  | L183: =+'C.2 - Timesheets - Labor'!#REF! ->  | M183: =+'C.2 - Timesheets - Labor'!#REF! -> 
A184: =+'C.2 - Timesheets - Labor'!#REF! ->  | B184: =+'C.2 - Timesheets - Labor'!#REF! ->  | C184: =+'C.2 - Timesheets - Labor'!#REF! ->  | D184: =+'C.2 - Timesheets - Labor'!#REF! ->  | E184: =+'C.2 - Timesheets - Labor'!#REF! ->  | F184: =+'C.2 - Timesheets - Labor'!#REF! ->  | G184: =+'C.2 - Timesheets - Labor'!#REF! ->  | H184: =+'C.2 - Timesheets - Labor'!#REF! ->  | I184: =+'C.2 - Timesheets - Labor'!#REF! ->  | J184: =+'C.2 - Timesheets - Labor'!#REF! ->  | K184: =+'C.2 - Timesheets - Labor'!#REF! ->  | L184: =+'C.2 - Timesheets - Labor'!#REF! ->  | M184: =+'C.2 - Timesheets - Labor'!#REF! -> 
A185: =+'C.2 - Timesheets - Labor'!#REF! ->  | B185: =+'C.2 - Timesheets - Labor'!#REF! ->  | C185: =+'C.2 - Timesheets - Labor'!#REF! ->  | D185: =+'C.2 - Timesheets - Labor'!#REF! ->  | E185: =+'C.2 - Timesheets - Labor'!#REF! ->  | F185: =+'C.2 - Timesheets - Labor'!#REF! ->  | G185: =+'C.2 - Timesheets - Labor'!#REF! ->  | H185: =+'C.2 - Timesheets - Labor'!#REF! ->  | I185: =+'C.2 - Timesheets - Labor'!#REF! ->  | J185: =+'C.2 - Timesheets - Labor'!#REF! ->  | K185: =+'C.2 - Timesheets - Labor'!#REF! ->  | L185: =+'C.2 - Timesheets - Labor'!#REF! ->  | M185: =+'C.2 - Timesheets - Labor'!#REF! -> 
A186: =+'C.2 - Timesheets - Labor'!#REF! ->  | B186: =+'C.2 - Timesheets - Labor'!#REF! ->  | C186: =+'C.2 - Timesheets - Labor'!#REF! ->  | D186: =+'C.2 - Timesheets - Labor'!#REF! ->  | E186: =+'C.2 - Timesheets - Labor'!#REF! ->  | F186: =+'C.2 - Timesheets - Labor'!#REF! ->  | G186: =+'C.2 - Timesheets - Labor'!#REF! ->  | H186: =+'C.2 - Timesheets - Labor'!#REF! ->  | I186: =+'C.2 - Timesheets - Labor'!#REF! ->  | J186: =+'C.2 - Timesheets - Labor'!#REF! ->  | K186: =+'C.2 - Timesheets - Labor'!#REF! ->  | L186: =+'C.2 - Timesheets - Labor'!#REF! ->  | M186: =+'C.2 - Timesheets - Labor'!#REF! -> 
A187: =+'C.2 - Timesheets - Labor'!#REF! ->  | B187: =+'C.2 - Timesheets - Labor'!#REF! ->  | C187: =+'C.2 - Timesheets - Labor'!#REF! ->  | D187: =+'C.2 - Timesheets - Labor'!#REF! ->  | E187: =+'C.2 - Timesheets - Labor'!#REF! ->  | F187: =+'C.2 - Timesheets - Labor'!#REF! ->  | G187: =+'C.2 - Timesheets - Labor'!#REF! ->  | H187: =+'C.2 - Timesheets - Labor'!#REF! ->  | I187: =+'C.2 - Timesheets - Labor'!#REF! ->  | J187: =+'C.2 - Timesheets - Labor'!#REF! ->  | K187: =+'C.2 - Timesheets - Labor'!#REF! ->  | L187: =+'C.2 - Timesheets - Labor'!#REF! ->  | M187: =+'C.2 - Timesheets - Labor'!#REF! -> 
A188: =+'C.2 - Timesheets - Labor'!#REF! ->  | B188: =+'C.2 - Timesheets - Labor'!#REF! ->  | C188: =+'C.2 - Timesheets - Labor'!#REF! ->  | D188: =+'C.2 - Timesheets - Labor'!#REF! ->  | E188: =+'C.2 - Timesheets - Labor'!#REF! ->  | F188: =+'C.2 - Timesheets - Labor'!#REF! ->  | G188: =+'C.2 - Timesheets - Labor'!#REF! ->  | H188: =+'C.2 - Timesheets - Labor'!#REF! ->  | I188: =+'C.2 - Timesheets - Labor'!#REF! ->  | J188: =+'C.2 - Timesheets - Labor'!#REF! ->  | K188: =+'C.2 - Timesheets - Labor'!#REF! ->  | L188: =+'C.2 - Timesheets - Labor'!#REF! ->  | M188: =+'C.2 - Timesheets - Labor'!#REF! -> 
A189: =+'C.2 - Timesheets - Labor'!#REF! ->  | B189: =+'C.2 - Timesheets - Labor'!#REF! ->  | C189: =+'C.2 - Timesheets - Labor'!#REF! ->  | D189: =+'C.2 - Timesheets - Labor'!#REF! ->  | E189: =+'C.2 - Timesheets - Labor'!#REF! ->  | F189: =+'C.2 - Timesheets - Labor'!#REF! ->  | G189: =+'C.2 - Timesheets - Labor'!#REF! ->  | H189: =+'C.2 - Timesheets - Labor'!#REF! ->  | I189: =+'C.2 - Timesheets - Labor'!#REF! ->  | J189: =+'C.2 - Timesheets - Labor'!#REF! ->  | K189: =+'C.2 - Timesheets - Labor'!#REF! ->  | L189: =+'C.2 - Timesheets - Labor'!#REF! ->  | M189: =+'C.2 - Timesheets - Labor'!#REF! -> 
A190: =+'C.2 - Timesheets - Labor'!#REF! ->  | B190: =+'C.2 - Timesheets - Labor'!#REF! ->  | C190: =+'C.2 - Timesheets - Labor'!#REF! ->  | D190: =+'C.2 - Timesheets - Labor'!#REF! ->  | E190: =+'C.2 - Timesheets - Labor'!#REF! ->  | F190: =+'C.2 - Timesheets - Labor'!#REF! ->  | G190: =+'C.2 - Timesheets - Labor'!#REF! ->  | H190: =+'C.2 - Timesheets - Labor'!#REF! ->  | I190: =+'C.2 - Timesheets - Labor'!#REF! ->  | J190: =+'C.2 - Timesheets - Labor'!#REF! ->  | K190: =+'C.2 - Timesheets - Labor'!#REF! ->  | L190: =+'C.2 - Timesheets - Labor'!#REF! ->  | M190: =+'C.2 - Timesheets - Labor'!#REF! -> 
A191: =+'C.2 - Timesheets - Labor'!#REF! ->  | B191: =+'C.2 - Timesheets - Labor'!#REF! ->  | C191: =+'C.2 - Timesheets - Labor'!#REF! ->  | D191: =+'C.2 - Timesheets - Labor'!#REF! ->  | E191: =+'C.2 - Timesheets - Labor'!#REF! ->  | F191: =+'C.2 - Timesheets - Labor'!#REF! ->  | G191: =+'C.2 - Timesheets - Labor'!#REF! ->  | H191: =+'C.2 - Timesheets - Labor'!#REF! ->  | I191: =+'C.2 - Timesheets - Labor'!#REF! ->  | J191: =+'C.2 - Timesheets - Labor'!#REF! ->  | K191: =+'C.2 - Timesheets - Labor'!#REF! ->  | L191: =+'C.2 - Timesheets - Labor'!#REF! ->  | M191: =+'C.2 - Timesheets - Labor'!#REF! -> 
A192: =+'C.2 - Timesheets - Labor'!#REF! ->  | B192: =+'C.2 - Timesheets - Labor'!#REF! ->  | C192: =+'C.2 - Timesheets - Labor'!#REF! ->  | D192: =+'C.2 - Timesheets - Labor'!#REF! ->  | E192: =+'C.2 - Timesheets - Labor'!#REF! ->  | F192: =+'C.2 - Timesheets - Labor'!#REF! ->  | G192: =+'C.2 - Timesheets - Labor'!#REF! ->  | H192: =+'C.2 - Timesheets - Labor'!#REF! ->  | I192: =+'C.2 - Timesheets - Labor'!#REF! ->  | J192: =+'C.2 - Timesheets - Labor'!#REF! ->  | K192: =+'C.2 - Timesheets - Labor'!#REF! ->  | L192: =+'C.2 - Timesheets - Labor'!#REF! ->  | M192: =+'C.2 - Timesheets - Labor'!#REF! -> 
A193: =+'C.2 - Timesheets - Labor'!#REF! ->  | B193: =+'C.2 - Timesheets - Labor'!#REF! ->  | C193: =+'C.2 - Timesheets - Labor'!#REF! ->  | D193: =+'C.2 - Timesheets - Labor'!#REF! ->  | E193: =+'C.2 - Timesheets - Labor'!#REF! ->  | F193: =+'C.2 - Timesheets - Labor'!#REF! ->  | G193: =+'C.2 - Timesheets - Labor'!#REF! ->  | H193: =+'C.2 - Timesheets - Labor'!#REF! ->  | I193: =+'C.2 - Timesheets - Labor'!#REF! ->  | J193: =+'C.2 - Timesheets - Labor'!#REF! ->  | K193: =+'C.2 - Timesheets - Labor'!#REF! ->  | L193: =+'C.2 - Timesheets - Labor'!#REF! ->  | M193: =+'C.2 - Timesheets - Labor'!#REF! -> 
A194: =+'C.2 - Timesheets - Labor'!#REF! ->  | B194: =+'C.2 - Timesheets - Labor'!#REF! ->  | C194: =+'C.2 - Timesheets - Labor'!#REF! ->  | D194: =+'C.2 - Timesheets - Labor'!#REF! ->  | E194: =+'C.2 - Timesheets - Labor'!#REF! ->  | F194: =+'C.2 - Timesheets - Labor'!#REF! ->  | G194: =+'C.2 - Timesheets - Labor'!#REF! ->  | H194: =+'C.2 - Timesheets - Labor'!#REF! ->  | I194: =+'C.2 - Timesheets - Labor'!#REF! ->  | J194: =+'C.2 - Timesheets - Labor'!#REF! ->  | K194: =+'C.2 - Timesheets - Labor'!#REF! ->  | L194: =+'C.2 - Timesheets - Labor'!#REF! ->  | M194: =+'C.2 - Timesheets - Labor'!#REF! -> 
A195: =+'C.2 - Timesheets - Labor'!#REF! ->  | B195: =+'C.2 - Timesheets - Labor'!#REF! ->  | C195: =+'C.2 - Timesheets - Labor'!#REF! ->  | D195: =+'C.2 - Timesheets - Labor'!#REF! ->  | E195: =+'C.2 - Timesheets - Labor'!#REF! ->  | F195: =+'C.2 - Timesheets - Labor'!#REF! ->  | G195: =+'C.2 - Timesheets - Labor'!#REF! ->  | H195: =+'C.2 - Timesheets - Labor'!#REF! ->  | I195: =+'C.2 - Timesheets - Labor'!#REF! ->  | J195: =+'C.2 - Timesheets - Labor'!#REF! ->  | K195: =+'C.2 - Timesheets - Labor'!#REF! ->  | L195: =+'C.2 - Timesheets - Labor'!#REF! ->  | M195: =+'C.2 - Timesheets - Labor'!#REF! -> 
A196: =+'C.2 - Timesheets - Labor'!#REF! ->  | B196: =+'C.2 - Timesheets - Labor'!#REF! ->  | C196: =+'C.2 - Timesheets - Labor'!#REF! ->  | D196: =+'C.2 - Timesheets - Labor'!#REF! ->  | E196: =+'C.2 - Timesheets - Labor'!#REF! ->  | F196: =+'C.2 - Timesheets - Labor'!#REF! ->  | G196: =+'C.2 - Timesheets - Labor'!#REF! ->  | H196: =+'C.2 - Timesheets - Labor'!#REF! ->  | I196: =+'C.2 - Timesheets - Labor'!#REF! ->  | J196: =+'C.2 - Timesheets - Labor'!#REF! ->  | K196: =+'C.2 - Timesheets - Labor'!#REF! ->  | L196: =+'C.2 - Timesheets - Labor'!#REF! ->  | M196: =+'C.2 - Timesheets - Labor'!#REF! -> 
A197: =+'C.2 - Timesheets - Labor'!#REF! ->  | B197: =+'C.2 - Timesheets - Labor'!#REF! ->  | C197: =+'C.2 - Timesheets - Labor'!#REF! ->  | D197: =+'C.2 - Timesheets - Labor'!#REF! ->  | E197: =+'C.2 - Timesheets - Labor'!#REF! ->  | F197: =+'C.2 - Timesheets - Labor'!#REF! ->  | G197: =+'C.2 - Timesheets - Labor'!#REF! ->  | H197: =+'C.2 - Timesheets - Labor'!#REF! ->  | I197: =+'C.2 - Timesheets - Labor'!#REF! ->  | J197: =+'C.2 - Timesheets - Labor'!#REF! ->  | K197: =+'C.2 - Timesheets - Labor'!#REF! ->  | L197: =+'C.2 - Timesheets - Labor'!#REF! ->  | M197: =+'C.2 - Timesheets - Labor'!#REF! -> 
A198: =+'C.2 - Timesheets - Labor'!#REF! ->  | B198: =+'C.2 - Timesheets - Labor'!#REF! ->  | C198: =+'C.2 - Timesheets - Labor'!#REF! ->  | D198: =+'C.2 - Timesheets - Labor'!#REF! ->  | E198: =+'C.2 - Timesheets - Labor'!#REF! ->  | F198: =+'C.2 - Timesheets - Labor'!#REF! ->  | G198: =+'C.2 - Timesheets - Labor'!#REF! ->  | H198: =+'C.2 - Timesheets - Labor'!#REF! ->  | I198: =+'C.2 - Timesheets - Labor'!#REF! ->  | J198: =+'C.2 - Timesheets - Labor'!#REF! ->  | K198: =+'C.2 - Timesheets - Labor'!#REF! ->  | L198: =+'C.2 - Timesheets - Labor'!#REF! ->  | M198: =+'C.2 - Timesheets - Labor'!#REF! -> 
A199: =+'C.2 - Timesheets - Labor'!#REF! ->  | B199: =+'C.2 - Timesheets - Labor'!#REF! ->  | C199: =+'C.2 - Timesheets - Labor'!#REF! ->  | D199: =+'C.2 - Timesheets - Labor'!#REF! ->  | E199: =+'C.2 - Timesheets - Labor'!#REF! ->  | F199: =+'C.2 - Timesheets - Labor'!#REF! ->  | G199: =+'C.2 - Timesheets - Labor'!#REF! ->  | H199: =+'C.2 - Timesheets - Labor'!#REF! ->  | I199: =+'C.2 - Timesheets - Labor'!#REF! ->  | J199: =+'C.2 - Timesheets - Labor'!#REF! ->  | K199: =+'C.2 - Timesheets - Labor'!#REF! ->  | L199: =+'C.2 - Timesheets - Labor'!#REF! ->  | M199: =+'C.2 - Timesheets - Labor'!#REF! -> 
A200: =+'C.2 - Timesheets - Labor'!#REF! ->  | B200: =+'C.2 - Timesheets - Labor'!#REF! ->  | C200: =+'C.2 - Timesheets - Labor'!#REF! ->  | D200: =+'C.2 - Timesheets - Labor'!#REF! ->  | E200: =+'C.2 - Timesheets - Labor'!#REF! ->  | F200: =+'C.2 - Timesheets - Labor'!#REF! ->  | G200: =+'C.2 - Timesheets - Labor'!#REF! ->  | H200: =+'C.2 - Timesheets - Labor'!#REF! ->  | I200: =+'C.2 - Timesheets - Labor'!#REF! ->  | J200: =+'C.2 - Timesheets - Labor'!#REF! ->  | K200: =+'C.2 - Timesheets - Labor'!#REF! ->  | L200: =+'C.2 - Timesheets - Labor'!#REF! ->  | M200: =+'C.2 - Timesheets - Labor'!#REF! -> 
A201: =+'C.2 - Timesheets - Labor'!#REF! ->  | B201: =+'C.2 - Timesheets - Labor'!#REF! ->  | C201: =+'C.2 - Timesheets - Labor'!#REF! ->  | D201: =+'C.2 - Timesheets - Labor'!#REF! ->  | E201: =+'C.2 - Timesheets - Labor'!#REF! ->  | F201: =+'C.2 - Timesheets - Labor'!#REF! ->  | G201: =+'C.2 - Timesheets - Labor'!#REF! ->  | H201: =+'C.2 - Timesheets - Labor'!#REF! ->  | I201: =+'C.2 - Timesheets - Labor'!#REF! ->  | J201: =+'C.2 - Timesheets - Labor'!#REF! ->  | K201: =+'C.2 - Timesheets - Labor'!#REF! ->  | L201: =+'C.2 - Timesheets - Labor'!#REF! ->  | M201: =+'C.2 - Timesheets - Labor'!#REF! -> 
A202: =+'C.2 - Timesheets - Labor'!#REF! ->  | B202: =+'C.2 - Timesheets - Labor'!#REF! ->  | C202: =+'C.2 - Timesheets - Labor'!#REF! ->  | D202: =+'C.2 - Timesheets - Labor'!#REF! ->  | E202: =+'C.2 - Timesheets - Labor'!#REF! ->  | F202: =+'C.2 - Timesheets - Labor'!#REF! ->  | G202: =+'C.2 - Timesheets - Labor'!#REF! ->  | H202: =+'C.2 - Timesheets - Labor'!#REF! ->  | I202: =+'C.2 - Timesheets - Labor'!#REF! ->  | J202: =+'C.2 - Timesheets - Labor'!#REF! ->  | K202: =+'C.2 - Timesheets - Labor'!#REF! ->  | L202: =+'C.2 - Timesheets - Labor'!#REF! ->  | M202: =+'C.2 - Timesheets - Labor'!#REF! -> 
... 859 more rows

Sheet C.3 - Asset by Company
A1: Asset Tag | B1: Position | C1: Name

Sheet C.4 - Timesheets - Equipment
B2: Equipment Charges - Time Card
B4: Test Plan: | C4: Obtain the time cards. (A) Populate the equipment names and types (if provided). Find additional information regarding individual equipment charge from related invoice. (B) Enter hours worked from time card(s). (C) Confirm that the dates per the time cards fall between dates provided per 'A - Contractor Summary' tab. (D) Identify any equipment charges to be reviewed. (E) For charges which required further review, document review (include why it was determined to be allowed/disallowed via a tickmark).
B10: Rx | C10: Recalculated.
B11: a | C11: Provided from tab 'C.1 - Rate Sheets'.
B12: b | C12: Check figure should equal $0. Cell will appear yellow if discrepancies are noted.
C14: A | H14: Rx | J14: C | K14: a | L14: B | R14: B | Y14: B | AK14: B | AU14: B | BB14: Rx | BE14: D | BF14: E
B15: # | C15: Equipment Name | D15: Equipment ID | E15: Company | F15: Crew# | G15: Invoice | H15: Start Date | I15: End Date | J15: Dates Worked Reasonable? | K15: Rates | L15: Week Ending | M15: Week Ending | N15: Week Ending | O15: Week Ending | P15: Week Ending | Q15: Week Ending | R15: Week Ending | S15: Week Ending | T15: Week Ending | U15: Week Ending | V15: Week Ending | W15: Week Ending | X15: Week Ending | Y15: Week Ending | Z15: Week Ending | AA15: Week Ending | AB15: Week Ending | AC15: Week Ending | AD15: Week Ending | AE15: Week Ending | AF15: Week Ending | AG15: Week Ending | AH15: Week Ending | AI15: Week Ending | AJ15: Week Ending | AK15: Week Ending | AL15: Week Ending | AM15: Week Ending | AN15: Week Ending | AO15: Week Ending | AP15: Week Ending | AQ15: Week Ending | AR15: Week Ending | AS15: Week Ending | AT15: Week Ending | AU15: Week Ending | AV15: Week Ending | AW15: Week Ending | AX15: Week Ending | AY15: Week Ending | AZ15: Week Ending | BA15: Week Ending | BB15: Total Hours | BC15: Total Equipment $ | BD15: Allowable Charges | BE15: To Be Reviewed | BF15: Reviewed - Allowable Charge | BG15: Reviewed - Unallowable Charge | BH15: Tickmarks
L16: 2019-09-01 | M16: 2019-09-08 | N16: 2018-10-28 | O16: 2018-11-04 | P16: 2018-11-11 | Q16: 2018-11-18 | R16: 2018-11-25 | S16: 2018-12-02 | T16: 2018-12-09 | U16: 2018-12-16 | V16: 2018-12-23 | W16: 2018-12-30 | X16: 2019-01-06 | Y16: 2019-01-13 | Z16: 2019-01-20 | AA16: 2019-01-27 | AB16: 2019-02-03 | AC16: 2019-02-10 | AD16: 2019-02-17 | AE16: 2019-02-24 | AF16: 2019-03-03 | AG16: 2019-03-10 | AH16: 2019-03-17 | AI16: 2019-03-24 | AJ16: 2019-03-31 | AK16: 2019-04-07 | AL16: 2019-04-14 | AM16: 2019-04-21 | AN16: 2019-04-28 | AO16: 2019-05-05 | AP16: 2019-05-12 | AQ16: 2019-05-19 | AR16: 2019-05-26 | AS16: 2019-06-02 | AT16: 2019-06-09 | AU16: 2019-06-16 | AV16: 2019-06-23 | AW16: 2019-06-30 | AX16: 2019-07-07 | AY16: 2019-07-14 | AZ16: 2019-07-21 | BA16: 2019-07-28
L17: Hours | M17: Hours | N17: Hours | O17: Hours | P17: Hours | Q17: Hours | R17: Hours | S17: Hours | T17: Hours | U17: Hours | V17: Hours | W17: Hours | X17: Hours | Y17: Hours | Z17: Hours | AA17: Hours | AB17: Hours | AC17: Hours | AD17: Hours | AE17: Hours | AF17: Hours | AG17: Hours | AH17: Hours | AI17: Hours | AJ17: Hours | AK17: Hours | AL17: Hours | AM17: Hours | AN17: Hours | AO17: Hours | AP17: Hours | AQ17: Hours | AR17: Hours | AS17: Hours | AT17: Hours | AU17: Hours | AV17: Hours | AW17: Hours | AX17: Hours | AY17: Hours | AZ17: Hours | BA17: Hours
B18: 1 | C18: Crew Cab Pickup | D18: 616 | E18: MDR Construction | F18: Bigham | G18: 25-25202A | H18: 2019-08-31 | I18: 2019-09-01 | J18: =IF(AND(H18>='A - Contractor Summary'!$C$36,I18<='A - Contractor Summary'!$C$42),"Yes","No") -> No | K18: =VLOOKUP($C18,'C.1 - Rate Sheets'!H:I,2,FALSE) -> 24.31 | L18: =13+16 -> 29 | BB18: =SUM(L18:BA18) -> 29 | BC18: =BB18*K18 -> 704.99 | BD18: =BC18-BE18 -> 704.99 | BE18: 0 | BF18: 0 | BG18: 0
B19: 2 | C19: Crew Cab Pickup | D19: 827 | E19: MDR Construction | F19: Bigham | G19: 25-25202A | H19: 2019-08-31 | I19: 2019-09-01 | J19: =IF(AND(H19>='A - Contractor Summary'!$C$36,I19<='A - Contractor Summary'!$C$42),"Yes","No") -> No | K19: =VLOOKUP($C19,'C.1 - Rate Sheets'!H:I,2,FALSE) -> 24.31 | L19: =13+16 -> 29 | BB19: =SUM(L19:BA19) -> 29 | BC19: =BB19*K19 -> 704.99 | BD19: =BC19-BE19 -> 704.99 | BE19: 0 | BF19: 0 | BG19: 0
B20: 3 | C20: Service Truck | D20: 617 | E20: MDR Construction | F20: Bigham | G20: 25-25202A | H20: 2019-08-31 | I20: 2019-09-01 | J20: =IF(AND(H20>='A - Contractor Summary'!$C$36,I20<='A - Contractor Summary'!$C$42),"Yes","No") -> No | K20: =VLOOKUP($C20,'C.1 - Rate Sheets'!H:I,2,FALSE) -> 35.75 | L20: 29 | BB20: 29 | BC20: =BB20*K20 -> 1036.75 | BD20: =BC20-BE20 -> 1036.75 | BE20: 0 | BF20: 0 | BG20: 0
B21: 4 | C21: Crew Cab Pickup | D21: 694 | E21: MDR Construction | F21: Bigham | G21: 25-25202A | H21: 2019-08-31 | I21: 2019-09-01 | J21: =IF(AND(H21>='A - Contractor Summary'!$C$36,I21<='A - Contractor Summary'!$C$42),"Yes","No") -> No | K21: =VLOOKUP($C21,'C.1 - Rate Sheets'!H:I,2,FALSE) -> 24.31 | L21: =16+16 -> 32 | BB21: 32 | BC21: 777.92 | BD21: 777.92 | BE21: 0 | BF21: 0 | BG21: 0
B22: 5 | C22: Crew Cab Pickup | D22: 826 | E22: MDR Construction | F22: Bigham | G22: 25-25202A | H22: 2019-08-31 | I22: 2019-09-01 | J22: =IF(AND(H22>='A - Contractor Summary'!$C$36,I22<='A - Contractor Summary'!$C$42),"Yes","No") -> No | K22: =VLOOKUP($C22,'C.1 - Rate Sheets'!H:I,2,FALSE) -> 24.31 | L22: =16+16 -> 32 | BB22: 32 | BC22: 777.92 | BD22: 777.92 | BE22: 0 | BF22: 0 | BG22: 0
B23: 6 | C23: Service Truck | D23: 637 | E23: MDR Construction | F23: Lee | G23: 25-25202A | H23: 2019-08-31 | I23: 2019-09-01 | J23: =IF(AND(H23>='A - Contractor Summary'!$C$36,I23<='A - Contractor Summary'!$C$42),"Yes","No") -> No | K23: =VLOOKUP($C23,'C.1 - Rate Sheets'!H:I,2,FALSE) -> 35.75 | L23: 16 | BB23: 16 | BC23: 572 | BD23: 572 | BE23: 0 | BF23: 0 | BG23: 0
B24: 7 | C24: Back Yard Buggy | D24: 571 | E24: MDR Construction | F24: Lee | G24: 25-25202A | H24: 2019-08-31 | I24: 2019-09-01 | J24: =IF(AND(H24>='A - Contractor Summary'!$C$36,I24<='A - Contractor Summary'!$C$42),"Yes","No") -> No | K24: =VLOOKUP($C24,'C.1 - Rate Sheets'!H:I,2,FALSE) -> 45 | L24: 16 | BB24: 16 | BC24: 720 | BD24: 720 | BE24: 0 | BF24: 0 | BG24: 0
B25: 8 | C25: Tractor Truck | D25: 408 | E25: MDR Construction | F25: Lee | G25: 25-25202A | H25: 2019-08-31 | I25: 2019-09-01 | J25: =IF(AND(H25>='A - Contractor Summary'!$C$36,I25<='A - Contractor Summary'!$C$42),"Yes","No") -> No | K25: =VLOOKUP($C25,'C.1 - Rate Sheets'!H:I,2,FALSE) -> 45.65 | L25: 16 | BB25: 16 | BC25: 730.4 | BD25: 730.4 | BE25: 0 | BF25: 0 | BG25: 0
B26: 9 | C26: LowBoy Trailer Double Axle | D26: 748 | E26: MDR Construction | F26: Lee | G26: 25-25202A | H26: 2019-08-31 | I26: 2019-09-01 | J26: =IF(AND(H26>='A - Contractor Summary'!$C$36,I26<='A - Contractor Summary'!$C$42),"Yes","No") -> No | K26: =VLOOKUP($C26,'C.1 - Rate Sheets'!H:I,2,FALSE) -> 33.55 | L26: 16 | BB26: 16 | BC26: 536.8 | BD26: 536.8 | BE26: 0 | BF26: 0 | BG26: 0
B27: 10 | C27: Go Track Digger | D27: 719 | E27: MDR Construction | F27: Lee | G27: 25-25202A | H27: 2019-08-31 | I27: 2019-09-01 | J27: =IF(AND(H27>='A - Contractor Summary'!$C$36,I27<='A - Contractor Summary'!$C$42),"Yes","No") -> No | K27: =VLOOKUP($C27,'C.1 - Rate Sheets'!H:I,2,FALSE) -> 79.2 | L27: 16 | BB27: 16 | BC27: 1267.2 | BD27: 1267.2 | BE27: 0 | BF27: 0 | BG27: 0
B28: 11 | C28: Tractor Truck | D28: 531 | E28: MDR Construction | F28: Lee | G28: 25-25202A | H28: 2019-08-31 | I28: 2019-09-01 | J28: =IF(AND(H28>='A - Contractor Summary'!$C$36,I28<='A - Contractor Summary'!$C$42),"Yes","No") -> No | K28: =VLOOKUP($C28,'C.1 - Rate Sheets'!H:I,2,FALSE) -> 45.65 | L28: 16 | BB28: 16 | BC28: 730.4 | BD28: 730.4 | BE28: 0 | BF28: 0 | BG28: 0
B29: 12 | C29: LowBoy Trailer Double Axle | D29: 780 | E29: MDR Construction | F29: Lee | G29: 25-25202A | H29: 2019-08-31 | I29: 2019-09-01 | J29: =IF(AND(H29>='A - Contractor Summary'!$C$36,I29<='A - Contractor Summary'!$C$42),"Yes","No") -> No | K29: =VLOOKUP($C29,'C.1 - Rate Sheets'!H:I,2,FALSE) -> 33.55 | L29: 16 | BB29: 16 | BC29: 536.8 | BD29: 536.8 | BE29: 0 | BF29: 0 | BG29: 0
B30: 13 | C30: Go Track Bucket | D30: 621 | E30: MDR Construction | F30: Lee | G30: 25-25202A | H30: 2019-08-31 | I30: 2019-09-01 | J30: =IF(AND(H30>='A - Contractor Summary'!$C$36,I30<='A - Contractor Summary'!$C$42),"Yes","No") -> No | K30: =VLOOKUP($C30,'C.1 - Rate Sheets'!H:I,2,FALSE) -> 79.2 | L30: 16 | BB30: 16 | BC30: 1267.2 | BD30: 1267.2 | BE30: 0 | BF30: 0 | BG30: 0
B31: 14 | C31: Service Truck | D31: 776 | E31: MDR Construction | F31: Lee | G31: 25-25202A | H31: 2019-08-31 | I31: 2019-09-01 | J31: =IF(AND(H31>='A - Contractor Summary'!$C$36,I31<='A - Contractor Summary'!$C$42),"Yes","No") -> No | K31: =VLOOKUP($C31,'C.1 - Rate Sheets'!H:I,2,FALSE) -> 35.75 | L31: 32 | BB31: 32 | BC31: 1144 | BD31: 1144 | BE31: 0 | BF31: 0 | BG31: 0
B32: 15 | C32: Crew Cab Pickup | D32: 550 | E32: MDR Construction | F32: Barnett | G32: 25-25202A | H32: 2019-08-31 | I32: 2019-09-01 | J32: =IF(AND(H32>='A - Contractor Summary'!$C$36,I32<='A - Contractor Summary'!$C$42),"Yes","No") -> No | K32: =VLOOKUP($C32,'C.1 - Rate Sheets'!H:I,2,FALSE) -> 24.31 | L32: 32 | BB32: 32 | BC32: 777.92 | BD32: 777.92 | BE32: 0 | BF32: 0 | BG32: 0
B33: 16 | C33: Material Handler Bucket 57' | D33: 824 | E33: MDR Construction | F33: Barnett | G33: 25-25202A | H33: 2019-08-31 | I33: 2019-09-01 | J33: =IF(AND(H33>='A - Contractor Summary'!$C$36,I33<='A - Contractor Summary'!$C$42),"Yes","No") -> No | K33: =VLOOKUP($C33,'C.1 - Rate Sheets'!H:I,2,FALSE) -> 47.36 | L33: 32 | BB33: 32 | BC33: 1515.52 | BD33: 1515.52 | BE33: 0 | BF33: 0 | BG33: 0
B34: 17 | C34: Material Handler Bucket 57' | D34: 678 | E34: MDR Construction | F34: Barnett | G34: 25-25202A | H34: 2019-08-31 | I34: 2019-09-01 | J34: =IF(AND(H34>='A - Contractor Summary'!$C$36,I34<='A - Contractor Summary'!$C$42),"Yes","No") -> No | K34: =VLOOKUP($C34,'C.1 - Rate Sheets'!H:I,2,FALSE) -> 47.36 | L34: 32 | BB34: 32 | BC34: 1515.52 | BD34: 1515.52 | BE34: 0 | BF34: 0 | BG34: 0
B35: 18 | C35: Digger Truck | D35: 724 | E35: MDR Construction | F35: Barnett | G35: 25-25202A | H35: 2019-08-31 | I35: 2019-09-01 | J35: =IF(AND(H35>='A - Contractor Summary'!$C$36,I35<='A - Contractor Summary'!$C$42),"Yes","No") -> No | K35: =VLOOKUP($C35,'C.1 - Rate Sheets'!H:I,2,FALSE) -> 47.36 | L35: 32 | BB35: 32 | BC35: 1515.52 | BD35: 1515.52 | BE35: 0 | BF35: 0 | BG35: 0
B36: 19 | C36: Pole Trailer | D36: 662 | E36: MDR Construction | F36: Barnett | G36: 25-25202A | H36: 2019-08-31 | I36: 2019-09-01 | J36: =IF(AND(H36>='A - Contractor Summary'!$C$36,I36<='A - Contractor Summary'!$C$42),"Yes","No") -> No | K36: =VLOOKUP($C36,'C.1 - Rate Sheets'!H:I,2,FALSE) -> 17.6 | L36: 32 | BB36: 32 | BC36: 563.2 | BD36: 563.2 | BE36: 0 | BF36: 0 | BG36: 0
B37: 20 | C37: Crew Cab Pickup | D37: 787 | E37: MDR Construction | F37: Baker | G37: 25-25202A | H37: 2019-08-31 | I37: 2019-09-01 | J37: =IF(AND(H37>='A - Contractor Summary'!$C$36,I37<='A - Contractor Summary'!$C$42),"Yes","No") -> No | K37: =VLOOKUP($C37,'C.1 - Rate Sheets'!H:I,2,FALSE) -> 24.31 | L37: =13+16 -> 29 | BB37: 29 | BC37: 704.99 | BD37: 704.99 | BE37: 0 | BF37: 0 | BG37: 0
B38: 21 | C38: Crew Cab Pickup | D38: 753 | E38: MDR Construction | F38: Baker | G38: 25-25202A | H38: 2019-08-31 | I38: 2019-09-01 | J38: =IF(AND(H38>='A - Contractor Summary'!$C$36,I38<='A - Contractor Summary'!$C$42),"Yes","No") -> No | K38: =VLOOKUP($C38,'C.1 - Rate Sheets'!H:I,2,FALSE) -> 24.31 | L38: =13+16 -> 29 | BB38: 29 | BC38: 704.99 | BD38: 704.99 | BE38: 0 | BF38: 0 | BG38: 0
B39: 22 | C39: Material Handler Bucket 57' | D39: 581 | E39: MDR Construction | F39: Baker | G39: 25-25202A | H39: 2019-08-31 | I39: 2019-09-01 | J39: =IF(AND(H39>='A - Contractor Summary'!$C$36,I39<='A - Contractor Summary'!$C$42),"Yes","No") -> No | K39: =VLOOKUP($C39,'C.1 - Rate Sheets'!H:I,2,FALSE) -> 47.36 | L39: 29 | BB39: 29 | BC39: 1373.44 | BD39: 1373.44 | BE39: 0 | BF39: 0 | BG39: 0
B40: 23 | C40: Material Handler Bucket 57' | D40: 579 | E40: MDR Construction | F40: Baker | G40: 25-25202A | H40: 2019-08-31 | I40: 2019-09-01 | J40: =IF(AND(H40>='A - Contractor Summary'!$C$36,I40<='A - Contractor Summary'!$C$42),"Yes","No") -> No | K40: =VLOOKUP($C40,'C.1 - Rate Sheets'!H:I,2,FALSE) -> 47.36 | L40: 29 | BB40: 29 | BC40: 1373.44 | BD40: 1373.44 | BE40: 0 | BF40: 0 | BG40: 0
B41: 24 | C41: Material Handler Bucket 57' | D41: 638 | E41: MDR Construction | F41: Baker | G41: 25-25202A | H41: 2019-08-31 | I41: 2019-09-01 | J41: =IF(AND(H41>='A - Contractor Summary'!$C$36,I41<='A - Contractor Summary'!$C$42),"Yes","No") -> No | K41: =VLOOKUP($C41,'C.1 - Rate Sheets'!H:I,2,FALSE) -> 47.36 | L41: 29 | BB41: 29 | BC41: 1373.44 | BD41: 1373.44 | BE41: 0 | BF41: 0 | BG41: 0
B42: 25 | C42: Digger Truck | D42: 798 | E42: MDR Construction | F42: Baker | G42: 25-25202A | H42: 2019-08-31 | I42: 2019-09-01 | J42: =IF(AND(H42>='A - Contractor Summary'!$C$36,I42<='A - Contractor Summary'!$C$42),"Yes","No") -> No | K42: =VLOOKUP($C42,'C.1 - Rate Sheets'!H:I,2,FALSE) -> 47.36 | L42: 29 | BB42: 29 | BC42: 1373.44 | BD42: 1373.44 | BE42: 0 | BF42: 0 | BG42: 0
B43: 26 | C43: Pole Trailer | D43: 768 | E43: MDR Construction | F43: Baker | G43: 25-25202A | H43: 2019-08-31 | I43: 2019-09-01 | J43: =IF(AND(H43>='A - Contractor Summary'!$C$36,I43<='A - Contractor Summary'!$C$42),"Yes","No") -> No | K43: =VLOOKUP($C43,'C.1 - Rate Sheets'!H:I,2,FALSE) -> 17.6 | L43: 29 | BB43: 29 | BC43: 510.4 | BD43: 510.4 | BE43: 0 | BF43: 0 | BG43: 0
B44: 27 | C44: Crew Cab Pickup | D44: 645 | E44: MDR Construction | F44: Ford | G44: 25-25202A | H44: 2019-08-31 | I44: 2019-09-01 | J44: =IF(AND(H44>='A - Contractor Summary'!$C$36,I44<='A - Contractor Summary'!$C$42),"Yes","No") -> No | K44: =VLOOKUP($C44,'C.1 - Rate Sheets'!H:I,2,FALSE) -> 24.31 | L44: 29 | BB44: 29 | BC44: 704.99 | BD44: 704.99 | BE44: 0 | BF44: 0 | BG44: 0
B45: 28 | C45: Material Handler Bucket 57' | D45: 821 | E45: MDR Construction | F45: Ford | G45: 25-25202A | H45: 2019-08-31 | I45: 2019-09-01 | J45: =IF(AND(H45>='A - Contractor Summary'!$C$36,I45<='A - Contractor Summary'!$C$42),"Yes","No") -> No | K45: =VLOOKUP($C45,'C.1 - Rate Sheets'!H:I,2,FALSE) -> 47.36 | L45: 29 | BB45: 29 | BC45: 1373.44 | BD45: 1373.44 | BE45: 0 | BF45: 0 | BG45: 0
B46: 29 | C46: Material Handler Bucket 57' | D46: 739 | E46: MDR Construction | F46: Ford | G46: 25-25202A | H46: 2019-08-31 | I46: 2019-09-01 | J46: =IF(AND(H46>='A - Contractor Summary'!$C$36,I46<='A - Contractor Summary'!$C$42),"Yes","No") -> No | K46: =VLOOKUP($C46,'C.1 - Rate Sheets'!H:I,2,FALSE) -> 47.36 | L46: 29 | BB46: 29 | BC46: 1373.44 | BD46: 1373.44 | BE46: 0 | BF46: 0 | BG46: 0
B47: 30 | C47: Digger Truck | D47: 650 | E47: MDR Construction | F47: Ford | G47: 25-25202A | H47: 2019-08-31 | I47: 2019-09-01 | J47: =IF(AND(H47>='A - Contractor Summary'!$C$36,I47<='A - Contractor Summary'!$C$42),"Yes","No") -> No | K47: =VLOOKUP($C47,'C.1 - Rate Sheets'!H:I,2,FALSE) -> 47.36 | L47: 29 | BB47: 29 | BC47: 1373.44 | BD47: 1373.44 | BE47: 0 | BF47: 0 | BG47: 0
B48: 31 | C48: Pole Trailer | D48: 569 | E48: MDR Construction | F48: Ford | G48: 25-25202A | H48: 2019-08-31 | I48: 2019-09-01 | J48: =IF(AND(H48>='A - Contractor Summary'!$C$36,I48<='A - Contractor Summary'!$C$42),"Yes","No") -> No | K48: =VLOOKUP($C48,'C.1 - Rate Sheets'!H:I,2,FALSE) -> 17.6 | L48: 29 | BB48: 29 | BC48: 510.4 | BD48: 510.4 | BE48: 0 | BF48: 0 | BG48: 0
B49: 32 | C49: Crew Cab Pickup | D49: 837 | E49: MDR Construction | F49: Hampton | G49: 25-25202A | H49: 2019-08-31 | I49: 2019-09-01 | J49: =IF(AND(H49>='A - Contractor Summary'!$C$36,I49<='A - Contractor Summary'!$C$42),"Yes","No") -> No | K49: =VLOOKUP($C49,'C.1 - Rate Sheets'!H:I,2,FALSE) -> 24.31 | L49: 29 | BB49: 29 | BC49: 704.99 | BD49: 704.99 | BE49: 0 | BF49: 0 | BG49: 0
B50: 33 | C50: Material Handler Bucket 57' | D50: 819 | E50: MDR Construction | F50: Hampton | G50: 25-25202A | H50: 2019-08-31 | I50: 2019-09-01 | J50: =IF(AND(H50>='A - Contractor Summary'!$C$36,I50<='A - Contractor Summary'!$C$42),"Yes","No") -> No | K50: =VLOOKUP($C50,'C.1 - Rate Sheets'!H:I,2,FALSE) -> 47.36 | L50: 29 | BB50: 29 | BC50: 1373.44 | BD50: 1373.44 | BE50: 0 | BF50: 0 | BG50: 0
B51: 34 | C51: Material Handler Bucket 57' | D51: 844 | E51: MDR Construction | F51: Hampton | G51: 25-25202A | H51: 2019-08-31 | I51: 2019-09-01 | J51: =IF(AND(H51>='A - Contractor Summary'!$C$36,I51<='A - Contractor Summary'!$C$42),"Yes","No") -> No | K51: =VLOOKUP($C51,'C.1 - Rate Sheets'!H:I,2,FALSE) -> 47.36 | L51: 29 | BB51: 29 | BC51: 1373.44 | BD51: 1373.44 | BE51: 0 | BF51: 0 | BG51: 0
B52: 35 | C52: Digger Truck | D52: 800 | E52: MDR Construction | F52: Hampton | G52: 25-25202A | H52: 2019-08-31 | I52: 2019-09-01 | J52: =IF(AND(H52>='A - Contractor Summary'!$C$36,I52<='A - Contractor Summary'!$C$42),"Yes","No") -> No | K52: =VLOOKUP($C52,'C.1 - Rate Sheets'!H:I,2,FALSE) -> 47.36 | L52: 29 | BB52: 29 | BC52: 1373.44 | BD52: 1373.44 | BE52: 0 | BF52: 0 | BG52: 0
B53: 36 | C53: Pole Trailer | D53: 807 | E53: MDR Construction | F53: Hampton | G53: 25-25202A | H53: 2019-08-31 | I53: 2019-09-01 | J53: =IF(AND(H53>='A - Contractor Summary'!$C$36,I53<='A - Contractor Summary'!$C$42),"Yes","No") -> No | K53: =VLOOKUP($C53,'C.1 - Rate Sheets'!H:I,2,FALSE) -> 17.6 | L53: 29 | BB53: 29 | BC53: 510.4 | BD53: 510.4 | BE53: 0 | BF53: 0 | BG53: 0
B54: 37 | C54: 18' Material Trailer | D54: 835 | E54: MDR Construction | F54: Hampton | G54: 25-25202A | H54: 2019-08-31 | I54: 2019-09-01 | J54: =IF(AND(H54>='A - Contractor Summary'!$C$36,I54<='A - Contractor Summary'!$C$42),"Yes","No") -> No | K54: =VLOOKUP($C54,'C.1 - Rate Sheets'!H:I,2,FALSE) -> 10 | L54: 29 | BB54: 29 | BC54: 290 | BD54: 290 | BE54: 0 | BF54: 0 | BG54: 0
B55: 38 | C55: Air Compressor | D55: 857 | E55: MDR Construction | F55: Hampton | G55: 25-25202A | H55: 2019-08-31 | I55: 2019-09-01 | J55: =IF(AND(H55>='A - Contractor Summary'!$C$36,I55<='A - Contractor Summary'!$C$42),"Yes","No") -> No | K55: =VLOOKUP($C55,'C.1 - Rate Sheets'!H:I,2,FALSE) -> 25 | L55: 29 | BB55: 29 | BC55: 725 | BD55: 725 | BE55: 0 | BF55: 0 | BG55: 0
B56: 39 | C56: Crew Cab Pickup | D56: 586 | E56: MDR Construction | F56: Brown | G56: 25-25202A | H56: 2019-08-31 | I56: 2019-09-01 | J56: =IF(AND(H56>='A - Contractor Summary'!$C$36,I56<='A - Contractor Summary'!$C$42),"Yes","No") -> No | K56: =VLOOKUP($C56,'C.1 - Rate Sheets'!H:I,2,FALSE) -> 24.31 | L56: 32 | BB56: 32 | BC56: 777.92 | BD56: 777.92 | BE56: 0 | BF56: 0 | BG56: 0
B57: 40 | C57: Material Handler Bucket 57' | D57: 652 | E57: MDR Construction | F57: Brown | G57: 25-25202A | H57: 2019-08-31 | I57: 2019-09-01 | J57: =IF(AND(H57>='A - Contractor Summary'!$C$36,I57<='A - Contractor Summary'!$C$42),"Yes","No") -> No | K57: =VLOOKUP($C57,'C.1 - Rate Sheets'!H:I,2,FALSE) -> 47.36 | L57: 32 | BB57: 32 | BC57: 1515.52 | BD57: 1515.52 | BE57: 0 | BF57: 0 | BG57: 0
B58: 41 | C58: Material Handler Bucket 57' | D58: 689 | E58: MDR Construction | F58: Brown | G58: 25-25202A | H58: 2019-08-31 | I58: 2019-09-01 | J58: =IF(AND(H58>='A - Contractor Summary'!$C$36,I58<='A - Contractor Summary'!$C$42),"Yes","No") -> No | K58: =VLOOKUP($C58,'C.1 - Rate Sheets'!H:I,2,FALSE) -> 47.36 | L58: 32 | BB58: 32 | BC58: 1515.52 | BD58: 1515.52 | BE58: 0 | BF58: 0 | BG58: 0
B59: 42 | C59: Digger Truck | D59: 613 | E59: MDR Construction | F59: Brown | G59: 25-25202A | H59: 2019-08-31 | I59: 2019-09-01 | J59: =IF(AND(H59>='A - Contractor Summary'!$C$36,I59<='A - Contractor Summary'!$C$42),"Yes","No") -> No | K59: =VLOOKUP($C59,'C.1 - Rate Sheets'!H:I,2,FALSE) -> 47.36 | L59: 32 | BB59: 32 | BC59: 1515.52 | BD59: 1515.52 | BE59: 0 | BF59: 0 | BG59: 0
B60: 43 | C60: Pole Trailer | D60: 660 | E60: MDR Construction | F60: Brown | G60: 25-25202A | H60: 2019-08-31 | I60: 2019-09-01 | J60: =IF(AND(H60>='A - Contractor Summary'!$C$36,I60<='A - Contractor Summary'!$C$42),"Yes","No") -> No | K60: =VLOOKUP($C60,'C.1 - Rate Sheets'!H:I,2,FALSE) -> 17.6 | L60: 32 | BB60: 32 | BC60: 563.2 | BD60: 563.2 | BE60: 0 | BF60: 0 | BG60: 0
B61: 44 | C61: Crew Cab Pickup | D61: 783 | E61: MDR Construction | F61: Cullum | G61: 25-25202A | H61: 2019-08-31 | I61: 2019-09-01 | J61: =IF(AND(H61>='A - Contractor Summary'!$C$36,I61<='A - Contractor Summary'!$C$42),"Yes","No") -> No | K61: =VLOOKUP($C61,'C.1 - Rate Sheets'!H:I,2,FALSE) -> 24.31 | L61: =13+16 -> 29 | BB61: 29 | BC61: 704.99 | BD61: 704.99 | BE61: 0 | BF61: 0 | BG61: 0
B62: 45 | C62: Material Handler Bucket 57' | D62: 793 | E62: MDR Construction | F62: Cullum | G62: 25-25202A | H62: 2019-08-31 | I62: 2019-09-01 | J62: =IF(AND(H62>='A - Contractor Summary'!$C$36,I62<='A - Contractor Summary'!$C$42),"Yes","No") -> No | K62: =VLOOKUP($C62,'C.1 - Rate Sheets'!H:I,2,FALSE) -> 47.36 | L62: =13+16 -> 29 | BB62: 29 | BC62: 1373.44 | BD62: 1373.44 | BE62: 0 | BF62: 0 | BG62: 0
B63: 46 | C63: Material Handler Bucket 57' | D63: 794 | E63: MDR Construction | F63: Cullum | G63: 25-25202A | H63: 2019-08-31 | I63: 2019-09-01 | J63: =IF(AND(H63>='A - Contractor Summary'!$C$36,I63<='A - Contractor Summary'!$C$42),"Yes","No") -> No | K63: =VLOOKUP($C63,'C.1 - Rate Sheets'!H:I,2,FALSE) -> 47.36 | L63: 29 | BB63: 29 | BC63: 1373.44 | BD63: 1373.44 | BE63: 0 | BF63: 0 | BG63: 0
B64: 47 | C64: Digger Truck | D64: 831 | E64: MDR Construction | F64: Cullum | G64: 25-25202A | H64: 2019-08-31 | I64: 2019-09-01 | J64: =IF(AND(H64>='A - Contractor Summary'!$C$36,I64<='A - Contractor Summary'!$C$42),"Yes","No") -> No | K64: =VLOOKUP($C64,'C.1 - Rate Sheets'!H:I,2,FALSE) -> 47.36 | L64: 29 | BB64: 29 | BC64: 1373.44 | BD64: 1373.44 | BE64: 0 | BF64: 0 | BG64: 0
B65: 48 | C65: Pole Trailer | D65: 809 | E65: MDR Construction | F65: Cullum | G65: 25-25202A | H65: 2019-08-31 | I65: 2019-09-01 | J65: =IF(AND(H65>='A - Contractor Summary'!$C$36,I65<='A - Contractor Summary'!$C$42),"Yes","No") -> No | K65: =VLOOKUP($C65,'C.1 - Rate Sheets'!H:I,2,FALSE) -> 17.6 | L65: 29 | BB65: 29 | BC65: 510.4 | BD65: 510.4 | BE65: 0 | BF65: 0 | BG65: 0
B66: 49 | C66: 18' Material Trailer | D66: 647 | E66: MDR Construction | F66: Cullum | G66: 25-25202A | H66: 2019-08-31 | I66: 2019-09-01 | J66: =IF(AND(H66>='A - Contractor Summary'!$C$36,I66<='A - Contractor Summary'!$C$42),"Yes","No") -> No | K66: =VLOOKUP($C66,'C.1 - Rate Sheets'!H:I,2,FALSE) -> 10 | L66: 29 | BB66: 29 | BC66: 290 | BD66: 290 | BE66: 0 | BF66: 0 | BG66: 0
B67: 50 | C67: Crew Cab Pickup | D67: 784 | E67: MDR Construction | F67: Wyatt | G67: 25-25202A | H67: 2019-08-31 | I67: 2019-09-01 | J67: =IF(AND(H67>='A - Contractor Summary'!$C$36,I67<='A - Contractor Summary'!$C$42),"Yes","No") -> No | K67: =VLOOKUP($C67,'C.1 - Rate Sheets'!H:I,2,FALSE) -> 24.31 | L67: 29 | BB67: 29 | BC67: 704.99 | BD67: 704.99 | BE67: 0 | BF67: 0 | BG67: 0
B68: 51 | C68: Material Handler Bucket 57' | D68: 602 | E68: MDR Construction | F68: Wyatt | G68: 25-25202A | H68: 2019-08-31 | I68: 2019-09-01 | J68: =IF(AND(H68>='A - Contractor Summary'!$C$36,I68<='A - Contractor Summary'!$C$42),"Yes","No") -> No | K68: =VLOOKUP($C68,'C.1 - Rate Sheets'!H:I,2,FALSE) -> 47.36 | L68: 29 | BB68: 29 | BC68: 1373.44 | BD68: 1373.44 | BE68: 0 | BF68: 0 | BG68: 0
B69: 52 | C69: Material Handler Bucket 57' | D69: 796 | E69: MDR Construction | F69: Wyatt | G69: 25-25202A | H69: 2019-08-31 | I69: 2019-09-01 | J69: =IF(AND(H69>='A - Contractor Summary'!$C$36,I69<='A - Contractor Summary'!$C$42),"Yes","No") -> No | K69: =VLOOKUP($C69,'C.1 - Rate Sheets'!H:I,2,FALSE) -> 47.36 | L69: 29 | BB69: 29 | BC69: 1373.44 | BD69: 1373.44 | BE69: 0 | BF69: 0 | BG69: 0
B70: 53 | C70: Digger Truck | D70: 830 | E70: MDR Construction | F70: Wyatt | G70: 25-25202A | H70: 2019-08-31 | I70: 2019-09-01 | J70: =IF(AND(H70>='A - Contractor Summary'!$C$36,I70<='A - Contractor Summary'!$C$42),"Yes","No") -> No | K70: =VLOOKUP($C70,'C.1 - Rate Sheets'!H:I,2,FALSE) -> 47.36 | L70: 29 | BB70: 29 | BC70: 1373.44 | BD70: 1373.44 | BE70: 0 | BF70: 0 | BG70: 0
B71: 54 | C71: Pole Trailer | D71: 810 | E71: MDR Construction | F71: Wyatt | G71: 25-25202A | H71: 2019-08-31 | I71: 2019-09-01 | J71: =IF(AND(H71>='A - Contractor Summary'!$C$36,I71<='A - Contractor Summary'!$C$42),"Yes","No") -> No | K71: =VLOOKUP($C71,'C.1 - Rate Sheets'!H:I,2,FALSE) -> 17.6 | L71: 29 | BB71: 29 | BC71: 510.4 | BD71: 510.4 | BE71: 0 | BF71: 0 | BG71: 0
B72: 55 | C72: 18' Material Trailer | D72: 812 | E72: MDR Construction | F72: Wyatt | G72: 25-25202A | H72: 2019-08-31 | I72: 2019-09-01 | J72: =IF(AND(H72>='A - Contractor Summary'!$C$36,I72<='A - Contractor Summary'!$C$42),"Yes","No") -> No | K72: =VLOOKUP($C72,'C.1 - Rate Sheets'!H:I,2,FALSE) -> 10 | L72: 29 | BB72: 29 | BC72: 290 | BD72: 290 | BE72: 0 | BF72: 0 | BG72: 0
B73: 56 | C73: Skid Steer | D73: 813 | E73: MDR Construction | F73: Wyatt | G73: 25-25202A | H73: 2019-08-31 | I73: 2019-09-01 | J73: =IF(AND(H73>='A - Contractor Summary'!$C$36,I73<='A - Contractor Summary'!$C$42),"Yes","No") -> No | K73: =VLOOKUP($C73,'C.1 - Rate Sheets'!H:I,2,FALSE) -> 50 | L73: 29 | BB73: 29 | BC73: 1450 | BD73: 1450 | BE73: 0 | BF73: 0 | BG73: 0
B74: 57 | C74: Crew Cab Pickup | D74: 786 | E74: MDR Construction | F74: McKee | G74: 25-25202A | H74: 2019-08-31 | I74: 2019-09-01 | J74: =IF(AND(H74>='A - Contractor Summary'!$C$36,I74<='A - Contractor Summary'!$C$42),"Yes","No") -> No | K74: =VLOOKUP($C74,'C.1 - Rate Sheets'!H:I,2,FALSE) -> 24.31 | L74: 29 | BB74: 29 | BC74: 704.99 | BD74: 704.99 | BE74: 0 | BF74: 0 | BG74: 0
B75: 58 | C75: Material Handler Bucket 57' | D75: 789 | E75: MDR Construction | F75: McKee | G75: 25-25202A | H75: 2019-08-31 | I75: 2019-09-01 | J75: =IF(AND(H75>='A - Contractor Summary'!$C$36,I75<='A - Contractor Summary'!$C$42),"Yes","No") -> No | K75: =VLOOKUP($C75,'C.1 - Rate Sheets'!H:I,2,FALSE) -> 47.36 | L75: 29 | BB75: 29 | BC75: 1373.44 | BD75: 1373.44 | BE75: 0 | BF75: 0 | BG75: 0
B76: 59 | C76: Material Handler Bucket 57' | D76: 790 | E76: MDR Construction | F76: McKee | G76: 25-25202A | H76: 2019-08-31 | I76: 2019-09-01 | J76: =IF(AND(H76>='A - Contractor Summary'!$C$36,I76<='A - Contractor Summary'!$C$42),"Yes","No") -> No | K76: =VLOOKUP($C76,'C.1 - Rate Sheets'!H:I,2,FALSE) -> 47.36 | L76: 29 | BB76: 29 | BC76: 1373.44 | BD76: 1373.44 | BE76: 0 | BF76: 0 | BG76: 0
B77: 60 | C77: Digger Truck | D77: 1 | E77: MDR Construction | F77: McKee | G77: 25-25202A | H77: 2019-08-31 | I77: 2019-09-01 | J77: =IF(AND(H77>='A - Contractor Summary'!$C$36,I77<='A - Contractor Summary'!$C$42),"Yes","No") -> No | K77: =VLOOKUP($C77,'C.1 - Rate Sheets'!H:I,2,FALSE) -> 47.36 | L77: 29 | BB77: 29 | BC77: 1373.44 | BD77: 1373.44 | BE77: 0 | BF77: 0 | BG77: 0
B78: 61 | C78: Pole Trailer | D78: 808 | E78: MDR Construction | F78: McKee | G78: 25-25202A | H78: 2019-08-31 | I78: 2019-09-01 | J78: =IF(AND(H78>='A - Contractor Summary'!$C$36,I78<='A - Contractor Summary'!$C$42),"Yes","No") -> No | K78: =VLOOKUP($C78,'C.1 - Rate Sheets'!H:I,2,FALSE) -> 17.6 | L78: 29 | BB78: 29 | BC78: 510.4 | BD78: 510.4 | BE78: 0 | BF78: 0 | BG78: 0
B79: 62 | C79: 18' Material Trailer | D79: 835 | E79: MDR Construction | F79: McKee | G79: 25-25202A | H79: 2019-08-31 | I79: 2019-09-01 | J79: =IF(AND(H79>='A - Contractor Summary'!$C$36,I79<='A - Contractor Summary'!$C$42),"Yes","No") -> No | K79: =VLOOKUP($C79,'C.1 - Rate Sheets'!H:I,2,FALSE) -> 10 | L79: 29 | BB79: 29 | BC79: 290 | BD79: 290 | BE79: 0 | BF79: 0 | BG79: 0
B80: 63 | C80: Air Compressor | D80: JD7 | E80: MDR Construction | F80: McKee | G80: 25-25202A | H80: 2019-08-31 | I80: 2019-09-01 | J80: =IF(AND(H80>='A - Contractor Summary'!$C$36,I80<='A - Contractor Summary'!$C$42),"Yes","No") -> No | K80: =VLOOKUP($C80,'C.1 - Rate Sheets'!H:I,2,FALSE) -> 25 | L80: 29 | BB80: 29 | BC80: 725 | BD80: 725 | BE80: 0 | BF80: 0 | BG80: 0
B81: 64 | C81: Crew Cab Pickup | D81: 836 | E81: MDR Construction | F81: Wells | G81: 25-25202A | H81: 2019-08-31 | I81: 2019-09-01 | J81: =IF(AND(H81>='A - Contractor Summary'!$C$36,I81<='A - Contractor Summary'!$C$42),"Yes","No") -> No | K81: =VLOOKUP($C81,'C.1 - Rate Sheets'!H:I,2,FALSE) -> 24.31 | L81: 29 | BB81: 29 | BC81: 704.99 | BD81: 704.99 | BE81: 0 | BF81: 0 | BG81: 0
B82: 65 | C82: Material Handler Bucket 57' | D82: 843 | E82: MDR Construction | F82: Wells | G82: 25-25202A | H82: 2019-08-31 | I82: 2019-09-01 | J82: =IF(AND(H82>='A - Contractor Summary'!$C$36,I82<='A - Contractor Summary'!$C$42),"Yes","No") -> No | K82: =VLOOKUP($C82,'C.1 - Rate Sheets'!H:I,2,FALSE) -> 47.36 | L82: 29 | BB82: 29 | BC82: 1373.44 | BD82: 1373.44 | BE82: 0 | BF82: 0 | BG82: 0
B83: 66 | C83: Material Handler Bucket 57' | D83: 792 | E83: MDR Construction | F83: Wells | G83: 25-25202A | H83: 2019-08-31 | I83: 2019-09-01 | J83: =IF(AND(H83>='A - Contractor Summary'!$C$36,I83<='A - Contractor Summary'!$C$42),"Yes","No") -> No | K83: =VLOOKUP($C83,'C.1 - Rate Sheets'!H:I,2,FALSE) -> 47.36 | L83: 29 | BB83: =SUM(L83:BA83) -> 29 | BC83: 1373.44 | BD83: 1373.44 | BE83: 0 | BF83: 0 | BG83: 0
B84: 67 | C84: Digger Truck | D84: 841 | E84: MDR Construction | F84: Wells | G84: 25-25202A | H84: 2019-08-31 | I84: 2019-09-01 | J84: =IF(AND(H84>='A - Contractor Summary'!$C$36,I84<='A - Contractor Summary'!$C$42),"Yes","No") -> No | K84: =VLOOKUP($C84,'C.1 - Rate Sheets'!H:I,2,FALSE) -> 47.36 | L84: 29 | BB84: 29 | BC84: =BB84*K84 -> 1373.44 | BD84: =BC84-BE84 -> 1373.44 | BE84: 0 | BF84: 0 | BG84: 0
B85: 68 | C85: Pole Trailer | D85: 840 | E85: MDR Construction | F85: Wells | G85: 25-25202A | H85: 2019-08-31 | I85: 2019-09-01 | J85: =IF(AND(H85>='A - Contractor Summary'!$C$36,I85<='A - Contractor Summary'!$C$42),"Yes","No") -> No | K85: =VLOOKUP($C85,'C.1 - Rate Sheets'!H:I,2,FALSE) -> 17.6 | L85: 29 | BB85: 29 | BC85: =BB85*K85 -> 510.4 | BD85: =BC85-BE85 -> 510.4 | BE85: 0 | BF85: 0 | BG85: 0
B86: 69 | C86: 18' Material Trailer | D86: 763 | E86: MDR Construction | F86: Wells | G86: 25-25202A | H86: 2019-08-31 | I86: 2019-09-01 | J86: =IF(AND(H86>='A - Contractor Summary'!$C$36,I86<='A - Contractor Summary'!$C$42),"Yes","No") -> No | K86: =VLOOKUP($C86,'C.1 - Rate Sheets'!H:I,2,FALSE) -> 10 | L86: 29 | BB86: 29 | BC86: =BB86*K86 -> 290 | BD86: =BC86-BE86 -> 290 | BE86: 0 | BF86: 0 | BG86: 0
B87: 70 | C87: 18' Material Trailer | D87: 669 | E87: MDR Construction | F87: Wells | G87: 25-25202A | H87: 2019-08-31 | I87: 2019-09-01 | J87: =IF(AND(H87>='A - Contractor Summary'!$C$36,I87<='A - Contractor Summary'!$C$42),"Yes","No") -> No | K87: =VLOOKUP($C87,'C.1 - Rate Sheets'!H:I,2,FALSE) -> 10 | L87: 29 | BB87: 29 | BC87: 290 | BD87: 290 | BE87: 0 | BF87: 0 | BG87: 0
B88: 71 | C88: Crew Cab Pickup | D88: 785 | E88: MDR Construction | F88: Hare | G88: 25-25202A | H88: 2019-08-31 | I88: 2019-09-01 | J88: =IF(AND(H88>='A - Contractor Summary'!$C$36,I88<='A - Contractor Summary'!$C$42),"Yes","No") -> No | K88: =VLOOKUP($C88,'C.1 - Rate Sheets'!H:I,2,FALSE) -> 24.31 | L88: 29 | BB88: 29 | BC88: 704.99 | BD88: 704.99 | BE88: 0 | BF88: 0 | BG88: 0
B89: 72 | C89: Material Handler Bucket 57' | D89: 797 | E89: MDR Construction | F89: Hare | G89: 25-25202A | H89: 2019-08-31 | I89: 2019-09-01 | J89: =IF(AND(H89>='A - Contractor Summary'!$C$36,I89<='A - Contractor Summary'!$C$42),"Yes","No") -> No | K89: =VLOOKUP($C89,'C.1 - Rate Sheets'!H:I,2,FALSE) -> 47.36 | L89: 29 | BB89: 29 | BC89: 1373.44 | BD89: 1373.44 | BE89: 0 | BF89: 0 | BG89: 0
B90: 73 | C90: Material Handler Bucket 57' | D90: 791 | E90: MDR Construction | F90: Hare | G90: 25-25202A | H90: 2019-08-31 | I90: 2019-09-01 | J90: =IF(AND(H90>='A - Contractor Summary'!$C$36,I90<='A - Contractor Summary'!$C$42),"Yes","No") -> No | K90: =VLOOKUP($C90,'C.1 - Rate Sheets'!H:I,2,FALSE) -> 47.36 | L90: 29 | BB90: 29 | BC90: 1373.44 | BD90: 1373.44 | BE90: 0 | BF90: 0 | BG90: 0
B91: 74 | C91: Digger Truck | D91: 593 | E91: MDR Construction | F91: Hare | G91: 25-25202A | H91: 2019-08-31 | I91: 2019-09-01 | J91: =IF(AND(H91>='A - Contractor Summary'!$C$36,I91<='A - Contractor Summary'!$C$42),"Yes","No") -> No | K91: =VLOOKUP($C91,'C.1 - Rate Sheets'!H:I,2,FALSE) -> 47.36 | L91: 29 | BB91: 29 | BC91: 1373.44 | BD91: 1373.44 | BE91: 0 | BF91: 0 | BG91: 0
B92: 75 | C92: Pole Trailer | D92: 527 | E92: MDR Construction | F92: Hare | G92: 25-25202A | H92: 2019-08-31 | I92: 2019-09-01 | J92: =IF(AND(H92>='A - Contractor Summary'!$C$36,I92<='A - Contractor Summary'!$C$42),"Yes","No") -> No | K92: =VLOOKUP($C92,'C.1 - Rate Sheets'!H:I,2,FALSE) -> 17.6 | L92: 29 | BB92: 29 | BC92: 510.4 | BD92: 510.4 | BE92: 0 | BF92: 0 | BG92: 0
B93: 76 | C93: 18' Material Trailer | D93: 764 | E93: MDR Construction | F93: Hare | G93: 25-25202A | H93: 2019-08-31 | I93: 2019-09-01 | J93: =IF(AND(H93>='A - Contractor Summary'!$C$36,I93<='A - Contractor Summary'!$C$42),"Yes","No") -> No | K93: =VLOOKUP($C93,'C.1 - Rate Sheets'!H:I,2,FALSE) -> 10 | L93: 29 | BB93: 29 | BC93: 290 | BD93: 290 | BE93: 0 | BF93: 0 | BG93: 0
B94: 77 | C94: Air Compressor | D94: 713 | E94: MDR Construction | F94: Hare | G94: 25-25202A | H94: 2019-08-31 | I94: 2019-09-01 | J94: =IF(AND(H94>='A - Contractor Summary'!$C$36,I94<='A - Contractor Summary'!$C$42),"Yes","No") -> No | K94: =VLOOKUP($C94,'C.1 - Rate Sheets'!H:I,2,FALSE) -> 25 | L94: 29 | BB94: 29 | BC94: 725 | BD94: 725 | BE94: 0 | BF94: 0 | BG94: 0
B95: 78 | C95: Crew Cab Pickup | D95: 636 | E95: MDR Construction | F95: Chambley | G95: 25-25202A | H95: 2019-08-31 | I95: 2019-09-01 | J95: =IF(AND(H95>='A - Contractor Summary'!$C$36,I95<='A - Contractor Summary'!$C$42),"Yes","No") -> No | K95: =VLOOKUP($C95,'C.1 - Rate Sheets'!H:I,2,FALSE) -> 24.31 | L95: 32 | BB95: 32 | BC95: 777.92 | BD95: 777.92 | BE95: 0 | BF95: 0 | BG95: 0
B96: 79 | C96: Material Handler Bucket 57' | D96: 588 | E96: MDR Construction | F96: Chambley | G96: 25-25202A | H96: 2019-08-31 | I96: 2019-09-01 | J96: =IF(AND(H96>='A - Contractor Summary'!$C$36,I96<='A - Contractor Summary'!$C$42),"Yes","No") -> No | K96: =VLOOKUP($C96,'C.1 - Rate Sheets'!H:I,2,FALSE) -> 47.36 | L96: 32 | BB96: 32 | BC96: 1515.52 | BD96: 1515.52 | BE96: 0 | BF96: 0 | BG96: 0
B97: 80 | C97: Material Handler Bucket 57' | D97: 822 | E97: MDR Construction | F97: Chambley | G97: 25-25202A | H97: 2019-08-31 | I97: 2019-09-01 | J97: =IF(AND(H97>='A - Contractor Summary'!$C$36,I97<='A - Contractor Summary'!$C$42),"Yes","No") -> No | K97: =VLOOKUP($C97,'C.1 - Rate Sheets'!H:I,2,FALSE) -> 47.36 | L97: 32 | BB97: 32 | BC97: 1515.52 | BD97: 1515.52 | BE97: 0 | BF97: 0 | BG97: 0
B98: 81 | C98: Digger Truck | D98: 803 | E98: MDR Construction | F98: Chambley | G98: 25-25202A | H98: 2019-08-31 | I98: 2019-09-01 | J98: =IF(AND(H98>='A - Contractor Summary'!$C$36,I98<='A - Contractor Summary'!$C$42),"Yes","No") -> No | K98: =VLOOKUP($C98,'C.1 - Rate Sheets'!H:I,2,FALSE) -> 47.36 | L98: 32 | BB98: 32 | BC98: 1515.52 | BD98: 1515.52 | BE98: 0 | BF98: 0 | BG98: 0
B99: 82 | C99: Pole Trailer | D99: 646 | E99: MDR Construction | F99: Chambley | G99: 25-25202A | H99: 2019-08-31 | I99: 2019-09-01 | J99: =IF(AND(H99>='A - Contractor Summary'!$C$36,I99<='A - Contractor Summary'!$C$42),"Yes","No") -> No | K99: =VLOOKUP($C99,'C.1 - Rate Sheets'!H:I,2,FALSE) -> 17.6 | L99: 32 | BB99: 32 | BC99: 563.2 | BD99: 563.2 | BE99: 0 | BF99: 0 | BG99: 0
B100: 83 | C100: Back Yard Buggy | D100: 663 | E100: MDR Construction | F100: Chambley | G100: 25-25202A | H100: 2019-08-31 | I100: 2019-09-01 | J100: =IF(AND(H100>='A - Contractor Summary'!$C$36,I100<='A - Contractor Summary'!$C$42),"Yes","No") -> No | K100: =VLOOKUP($C100,'C.1 - Rate Sheets'!H:I,2,FALSE) -> 45 | L100: 32 | BB100: 32 | BC100: 1440 | BD100: 1440 | BE100: 0 | BF100: 0 | BG100: 0
B101: 84 | C101: Crew Cab Pickup | D101: 616 | E101: MDR Construction | F101: Bigham | G101: 25-25227 | H101: 2019-09-02 | I101: 2019-09-08 | J101: =IF(AND(H101>='A - Contractor Summary'!$C$36,I101<='A - Contractor Summary'!$C$42),"Yes","No") -> No | K101: =VLOOKUP($C101,'C.1 - Rate Sheets'!H:I,2,FALSE) -> 24.31 | M101: 52 | BB101: 52 | BC101: 1264.12 | BD101: 1264.12 | BE101: 0 | BF101: 0 | BG101: 0
B102: 85 | C102: Crew Cab Pickup | D102: 827 | E102: MDR Construction | F102: Bigham | G102: 25-25227 | H102: 2019-09-02 | I102: 2019-09-08 | J102: =IF(AND(H102>='A - Contractor Summary'!$C$36,I102<='A - Contractor Summary'!$C$42),"Yes","No") -> No | K102: =VLOOKUP($C102,'C.1 - Rate Sheets'!H:I,2,FALSE) -> 24.31 | M102: 52 | BB102: 52 | BC102: 1264.12 | BD102: 1264.12 | BE102: 0 | BF102: 0 | BG102: 0
B103: 86 | C103: Service Truck | D103: 617 | E103: MDR Construction | F103: Bigham | G103: 25-25227 | H103: 2019-09-02 | I103: 2019-09-08 | J103: =IF(AND(H103>='A - Contractor Summary'!$C$36,I103<='A - Contractor Summary'!$C$42),"Yes","No") -> No | K103: =VLOOKUP($C103,'C.1 - Rate Sheets'!H:I,2,FALSE) -> 35.75 | M103: 52 | BB103: 52 | BC103: 1859 | BD103: 1859 | BE103: 0 | BF103: 0 | BG103: 0
B104: 87 | C104: Crew Cab Pickup | D104: 694 | E104: MDR Construction | F104: Bigham | G104: 25-25227 | H104: 2019-09-02 | I104: 2019-09-08 | J104: =IF(AND(H104>='A - Contractor Summary'!$C$36,I104<='A - Contractor Summary'!$C$42),"Yes","No") -> No | K104: =VLOOKUP($C104,'C.1 - Rate Sheets'!H:I,2,FALSE) -> 24.31 | M104: 52 | BB104: 52 | BC104: 1264.12 | BD104: 1264.12 | BE104: 0 | BF104: 0 | BG104: 0
B105: 88 | C105: Crew Cab Pickup | D105: 826 | E105: MDR Construction | F105: Bigham | G105: 25-25227 | H105: 2019-09-02 | I105: 2019-09-08 | J105: =IF(AND(H105>='A - Contractor Summary'!$C$36,I105<='A - Contractor Summary'!$C$42),"Yes","No") -> No | K105: =VLOOKUP($C105,'C.1 - Rate Sheets'!H:I,2,FALSE) -> 24.31 | M105: 52 | BB105: 52 | BC105: 1264.12 | BD105: 1264.12 | BE105: 0 | BF105: 0 | BG105: 0
B106: 89 | C106: Service Truck | D106: 637 | E106: MDR Construction | F106: Lee | G106: 25-25227 | H106: 2019-09-02 | I106: 2019-09-08 | J106: =IF(AND(H106>='A - Contractor Summary'!$C$36,I106<='A - Contractor Summary'!$C$42),"Yes","No") -> No | K106: =VLOOKUP($C106,'C.1 - Rate Sheets'!H:I,2,FALSE) -> 35.75 | M106: 52 | BB106: 52 | BC106: 1859 | BD106: 1859 | BE106: 0 | BF106: 0 | BG106: 0
B107: 90 | C107: Back Yard Buggy | D107: 571 | E107: MDR Construction | F107: Lee | G107: 25-25227 | H107: 2019-09-02 | I107: 2019-09-08 | J107: =IF(AND(H107>='A - Contractor Summary'!$C$36,I107<='A - Contractor Summary'!$C$42),"Yes","No") -> No | K107: =VLOOKUP($C107,'C.1 - Rate Sheets'!H:I,2,FALSE) -> 45 | M107: 52 | BB107: 52 | BC107: 2340 | BD107: 2340 | BE107: 0 | BF107: 0 | BG107: 0
B108: 91 | C108: Tractor Truck | D108: 408 | E108: MDR Construction | F108: Lee | G108: 25-25227 | H108: 2019-09-02 | I108: 2019-09-08 | J108: =IF(AND(H108>='A - Contractor Summary'!$C$36,I108<='A - Contractor Summary'!$C$42),"Yes","No") -> No | K108: =VLOOKUP($C108,'C.1 - Rate Sheets'!H:I,2,FALSE) -> 45.65 | M108: 52 | BB108: 52 | BC108: 2373.8 | BD108: 2373.8 | BE108: 0 | BF108: 0 | BG108: 0
B109: 92 | C109: LowBoy Trailer Double Axle | D109: 748 | E109: MDR Construction | F109: Lee | G109: 25-25227 | H109: 2019-09-02 | I109: 2019-09-08 | J109: =IF(AND(H109>='A - Contractor Summary'!$C$36,I109<='A - Contractor Summary'!$C$42),"Yes","No") -> No | K109: =VLOOKUP($C109,'C.1 - Rate Sheets'!H:I,2,FALSE) -> 33.55 | M109: 52 | BB109: 52 | BC109: 1744.6 | BD109: 1744.6 | BE109: 0 | BF109: 0 | BG109: 0
B110: 93 | C110: Go Track Digger | D110: 719 | E110: MDR Construction | F110: Lee | G110: 25-25227 | H110: 2019-09-02 | I110: 2019-09-08 | J110: =IF(AND(H110>='A - Contractor Summary'!$C$36,I110<='A - Contractor Summary'!$C$42),"Yes","No") -> No | K110: =VLOOKUP($C110,'C.1 - Rate Sheets'!H:I,2,FALSE) -> 79.2 | M110: 52 | BB110: 52 | BC110: 4118.4 | BD110: 4118.4 | BE110: 0 | BF110: 0 | BG110: 0
B111: 94 | C111: Tractor Truck | D111: 531 | E111: MDR Construction | F111: Lee | G111: 25-25227 | H111: 2019-09-02 | I111: 2019-09-08 | J111: =IF(AND(H111>='A - Contractor Summary'!$C$36,I111<='A - Contractor Summary'!$C$42),"Yes","No") -> No | K111: =VLOOKUP($C111,'C.1 - Rate Sheets'!H:I,2,FALSE) -> 45.65 | M111: 52 | BB111: 52 | BC111: 2373.8 | BD111: 2373.8 | BE111: 0 | BF111: 0 | BG111: 0
B112: 95 | C112: LowBoy Trailer Double Axle | D112: 780 | E112: MDR Construction | F112: Lee | G112: 25-25227 | H112: 2019-09-02 | I112: 2019-09-08 | J112: =IF(AND(H112>='A - Contractor Summary'!$C$36,I112<='A - Contractor Summary'!$C$42),"Yes","No") -> No | K112: =VLOOKUP($C112,'C.1 - Rate Sheets'!H:I,2,FALSE) -> 33.55 | M112: 52 | BB112: 52 | BC112: 1744.6 | BD112: 1744.6 | BE112: 0 | BF112: 0 | BG112: 0
B113: 96 | C113: Go Track Bucket | D113: 621 | E113: MDR Construction | F113: Lee | G113: 25-25227 | H113: 2019-09-02 | I113: 2019-09-08 | J113: =IF(AND(H113>='A - Contractor Summary'!$C$36,I113<='A - Contractor Summary'!$C$42),"Yes","No") -> No | K113: =VLOOKUP($C113,'C.1 - Rate Sheets'!H:I,2,FALSE) -> 79.2 | M113: 52 | BB113: 52 | BC113: 4118.4 | BD113: 4118.4 | BE113: 0 | BF113: 0 | BG113: 0
B114: 97 | C114: Service Truck | D114: 776 | E114: MDR Construction | F114: Lee | G114: 25-25227 | H114: 2019-09-02 | I114: 2019-09-08 | J114: =IF(AND(H114>='A - Contractor Summary'!$C$36,I114<='A - Contractor Summary'!$C$42),"Yes","No") -> No | K114: =VLOOKUP($C114,'C.1 - Rate Sheets'!H:I,2,FALSE) -> 35.75 | M114: 52 | BB114: 52 | BC114: 1859 | BD114: 1859 | BE114: 0 | BF114: 0 | BG114: 0
B115: 98 | C115: Crew Cab Pickup | D115: 550 | E115: MDR Construction | F115: Barnett | G115: 25-25227 | H115: 2019-09-02 | I115: 2019-09-08 | J115: =IF(AND(H115>='A - Contractor Summary'!$C$36,I115<='A - Contractor Summary'!$C$42),"Yes","No") -> No | K115: =VLOOKUP($C115,'C.1 - Rate Sheets'!H:I,2,FALSE) -> 24.31 | M115: 52 | BB115: 52 | BC115: 1264.12 | BD115: 1264.12 | BE115: 0 | BF115: 0 | BG115: 0
B116: 99 | C116: Material Handler Bucket 57' | D116: 824 | E116: MDR Construction | F116: Barnett | G116: 25-25227 | H116: 2019-09-02 | I116: 2019-09-08 | J116: =IF(AND(H116>='A - Contractor Summary'!$C$36,I116<='A - Contractor Summary'!$C$42),"Yes","No") -> No | K116: =VLOOKUP($C116,'C.1 - Rate Sheets'!H:I,2,FALSE) -> 47.36 | M116: 52 | BB116: 52 | BC116: 2462.72 | BD116: 2462.72 | BE116: 0 | BF116: 0 | BG116: 0
B117: 100 | C117: Material Handler Bucket 57' | D117: 678 | E117: MDR Construction | F117: Barnett | G117: 25-25227 | H117: 2019-09-02 | I117: 2019-09-08 | J117: =IF(AND(H117>='A - Contractor Summary'!$C$36,I117<='A - Contractor Summary'!$C$42),"Yes","No") -> No | K117: =VLOOKUP($C117,'C.1 - Rate Sheets'!H:I,2,FALSE) -> 47.36 | M117: 52 | BB117: 52 | BC117: 2462.72 | BD117: 2462.72 | BE117: 0 | BF117: 0 | BG117: 0
B118: 101 | C118: Digger Truck | D118: 724 | E118: MDR Construction | F118: Barnett | G118: 25-25227 | H118: 2019-09-02 | I118: 2019-09-08 | J118: =IF(AND(H118>='A - Contractor Summary'!$C$36,I118<='A - Contractor Summary'!$C$42),"Yes","No") -> No | K118: =VLOOKUP($C118,'C.1 - Rate Sheets'!H:I,2,FALSE) -> 47.36 | M118: 52 | BB118: 52 | BC118: 2462.72 | BD118: 2462.72 | BE118: 0 | BF118: 0 | BG118: 0
B119: 102 | C119: Pole Trailer | D119: 662 | E119: MDR Construction | F119: Barnett | G119: 25-25227 | H119: 2019-09-02 | I119: 2019-09-08 | J119: =IF(AND(H119>='A - Contractor Summary'!$C$36,I119<='A - Contractor Summary'!$C$42),"Yes","No") -> No | K119: =VLOOKUP($C119,'C.1 - Rate Sheets'!H:I,2,FALSE) -> 17.6 | M119: 52 | BB119: 52 | BC119: 915.2 | BD119: 915.2 | BE119: 0 | BF119: 0 | BG119: 0
B120: 103 | C120: Crew Cab Pickup | D120: 787 | E120: MDR Construction | F120: Baker | G120: 25-25227 | H120: 2019-09-02 | I120: 2019-09-08 | J120: =IF(AND(H120>='A - Contractor Summary'!$C$36,I120<='A - Contractor Summary'!$C$42),"Yes","No") -> No | K120: =VLOOKUP($C120,'C.1 - Rate Sheets'!H:I,2,FALSE) -> 24.31 | M120: 52 | BB120: 52 | BC120: 1264.12 | BD120: 1264.12 | BE120: 0 | BF120: 0 | BG120: 0
B121: 104 | C121: Crew Cab Pickup | D121: 753 | E121: MDR Construction | F121: Baker | G121: 25-25227 | H121: 2019-09-02 | I121: 2019-09-08 | J121: =IF(AND(H121>='A - Contractor Summary'!$C$36,I121<='A - Contractor Summary'!$C$42),"Yes","No") -> No | K121: =VLOOKUP($C121,'C.1 - Rate Sheets'!H:I,2,FALSE) -> 24.31 | M121: 52 | BB121: 52 | BC121: 1264.12 | BD121: 1264.12 | BE121: 0 | BF121: 0 | BG121: 0
B122: 105 | C122: Material Handler Bucket 57' | D122: 581 | E122: MDR Construction | F122: Baker | G122: 25-25227 | H122: 2019-09-02 | I122: 2019-09-08 | J122: =IF(AND(H122>='A - Contractor Summary'!$C$36,I122<='A - Contractor Summary'!$C$42),"Yes","No") -> No | K122: =VLOOKUP($C122,'C.1 - Rate Sheets'!H:I,2,FALSE) -> 47.36 | M122: 52 | BB122: 52 | BC122: 2462.72 | BD122: 2462.72 | BE122: 0 | BF122: 0 | BG122: 0
B123: 106 | C123: Material Handler Bucket 57' | D123: 579 | E123: MDR Construction | F123: Baker | G123: 25-25227 | H123: 2019-09-02 | I123: 2019-09-08 | J123: =IF(AND(H123>='A - Contractor Summary'!$C$36,I123<='A - Contractor Summary'!$C$42),"Yes","No") -> No | K123: =VLOOKUP($C123,'C.1 - Rate Sheets'!H:I,2,FALSE) -> 47.36 | M123: 52 | BB123: 52 | BC123: 2462.72 | BD123: 2462.72 | BE123: 0 | BF123: 0 | BG123: 0
B124: 107 | C124: Material Handler Bucket 57' | D124: 638 | E124: MDR Construction | F124: Baker | G124: 25-25227 | H124: 2019-09-02 | I124: 2019-09-08 | J124: =IF(AND(H124>='A - Contractor Summary'!$C$36,I124<='A - Contractor Summary'!$C$42),"Yes","No") -> No | K124: =VLOOKUP($C124,'C.1 - Rate Sheets'!H:I,2,FALSE) -> 47.36 | M124: 52 | BB124: 52 | BC124: 2462.72 | BD124: 2462.72 | BE124: 0 | BF124: 0 | BG124: 0
B125: 108 | C125: Digger Truck | D125: 798 | E125: MDR Construction | F125: Baker | G125: 25-25227 | H125: 2019-09-02 | I125: 2019-09-08 | J125: =IF(AND(H125>='A - Contractor Summary'!$C$36,I125<='A - Contractor Summary'!$C$42),"Yes","No") -> No | K125: =VLOOKUP($C125,'C.1 - Rate Sheets'!H:I,2,FALSE) -> 47.36 | M125: 52 | BB125: 52 | BC125: 2462.72 | BD125: 2462.72 | BE125: 0 | BF125: 0 | BG125: 0
B126: 109 | C126: Pole Trailer | D126: 768 | E126: MDR Construction | F126: Baker | G126: 25-25227 | H126: 2019-09-02 | I126: 2019-09-08 | J126: =IF(AND(H126>='A - Contractor Summary'!$C$36,I126<='A - Contractor Summary'!$C$42),"Yes","No") -> No | K126: =VLOOKUP($C126,'C.1 - Rate Sheets'!H:I,2,FALSE) -> 17.6 | M126: 52 | BB126: 52 | BC126: 915.2 | BD126: 915.2 | BE126: 0 | BF126: 0 | BG126: 0
B127: 110 | C127: Crew Cab Pickup | D127: 645 | E127: MDR Construction | F127: Ford | G127: 25-25227 | H127: 2019-09-02 | I127: 2019-09-08 | J127: =IF(AND(H127>='A - Contractor Summary'!$C$36,I127<='A - Contractor Summary'!$C$42),"Yes","No") -> No | K127: =VLOOKUP($C127,'C.1 - Rate Sheets'!H:I,2,FALSE) -> 24.31 | M127: 52 | BB127: 52 | BC127: 1264.12 | BD127: 1264.12 | BE127: 0 | BF127: 0 | BG127: 0
B128: 111 | C128: Material Handler Bucket 57' | D128: 821 | E128: MDR Construction | F128: Ford | G128: 25-25227 | H128: 2019-09-02 | I128: 2019-09-08 | J128: =IF(AND(H128>='A - Contractor Summary'!$C$36,I128<='A - Contractor Summary'!$C$42),"Yes","No") -> No | K128: =VLOOKUP($C128,'C.1 - Rate Sheets'!H:I,2,FALSE) -> 47.36 | M128: 52 | BB128: 52 | BC128: 2462.72 | BD128: 2462.72 | BE128: 0 | BF128: 0 | BG128: 0
B129: 112 | C129: Material Handler Bucket 57' | D129: 739 | E129: MDR Construction | F129: Ford | G129: 25-25227 | H129: 2019-09-02 | I129: 2019-09-08 | J129: =IF(AND(H129>='A - Contractor Summary'!$C$36,I129<='A - Contractor Summary'!$C$42),"Yes","No") -> No | K129: =VLOOKUP($C129,'C.1 - Rate Sheets'!H:I,2,FALSE) -> 47.36 | M129: 52 | BB129: 52 | BC129: 2462.72 | BD129: 2462.72 | BE129: 0 | BF129: 0 | BG129: 0
B130: 113 | C130: Digger Truck | D130: 650 | E130: MDR Construction | F130: Ford | G130: 25-25227 | H130: 2019-09-02 | I130: 2019-09-08 | J130: =IF(AND(H130>='A - Contractor Summary'!$C$36,I130<='A - Contractor Summary'!$C$42),"Yes","No") -> No | K130: =VLOOKUP($C130,'C.1 - Rate Sheets'!H:I,2,FALSE) -> 47.36 | M130: 52 | BB130: 52 | BC130: 2462.72 | BD130: 2462.72 | BE130: 0 | BF130: 0 | BG130: 0
B131: 114 | C131: Pole Trailer | D131: 569 | E131: MDR Construction | F131: Ford | G131: 25-25227 | H131: 2019-09-02 | I131: 2019-09-08 | J131: =IF(AND(H131>='A - Contractor Summary'!$C$36,I131<='A - Contractor Summary'!$C$42),"Yes","No") -> No | K131: =VLOOKUP($C131,'C.1 - Rate Sheets'!H:I,2,FALSE) -> 17.6 | M131: 52 | BB131: 52 | BC131: 915.2 | BD131: 915.2 | BE131: 0 | BF131: 0 | BG131: 0
B132: 115 | C132: Crew Cab Pickup | D132: 837 | E132: MDR Construction | F132: Hampton | G132: 25-25227 | H132: 2019-09-02 | I132: 2019-09-08 | J132: =IF(AND(H132>='A - Contractor Summary'!$C$36,I132<='A - Contractor Summary'!$C$42),"Yes","No") -> No | K132: =VLOOKUP($C132,'C.1 - Rate Sheets'!H:I,2,FALSE) -> 24.31 | M132: 52 | BB132: 52 | BC132: 1264.12 | BD132: 1264.12 | BE132: 0 | BF132: 0 | BG132: 0
B133: 116 | C133: Material Handler Bucket 57' | D133: 819 | E133: MDR Construction | F133: Hampton | G133: 25-25227 | H133: 2019-09-02 | I133: 2019-09-08 | J133: =IF(AND(H133>='A - Contractor Summary'!$C$36,I133<='A - Contractor Summary'!$C$42),"Yes","No") -> No | K133: =VLOOKUP($C133,'C.1 - Rate Sheets'!H:I,2,FALSE) -> 47.36 | M133: 52 | BB133: 52 | BC133: 2462.72 | BD133: 2462.72 | BE133: 0 | BF133: 0 | BG133: 0
B134: 117 | C134: Material Handler Bucket 57' | D134: 844 | E134: MDR Construction | F134: Hampton | G134: 25-25227 | H134: 2019-09-02 | I134: 2019-09-08 | J134: =IF(AND(H134>='A - Contractor Summary'!$C$36,I134<='A - Contractor Summary'!$C$42),"Yes","No") -> No | K134: =VLOOKUP($C134,'C.1 - Rate Sheets'!H:I,2,FALSE) -> 47.36 | M134: 52 | BB134: 52 | BC134: 2462.72 | BD134: 2462.72 | BE134: 0 | BF134: 0 | BG134: 0
B135: 118 | C135: Digger Truck | D135: 800 | E135: MDR Construction | F135: Hampton | G135: 25-25227 | H135: 2019-09-02 | I135: 2019-09-08 | J135: =IF(AND(H135>='A - Contractor Summary'!$C$36,I135<='A - Contractor Summary'!$C$42),"Yes","No") -> No | K135: =VLOOKUP($C135,'C.1 - Rate Sheets'!H:I,2,FALSE) -> 47.36 | M135: 52 | BB135: 52 | BC135: 2462.72 | BD135: 2462.72 | BE135: 0 | BF135: 0 | BG135: 0
B136: 119 | C136: Pole Trailer | D136: 807 | E136: MDR Construction | F136: Hampton | G136: 25-25227 | H136: 2019-09-02 | I136: 2019-09-08 | J136: =IF(AND(H136>='A - Contractor Summary'!$C$36,I136<='A - Contractor Summary'!$C$42),"Yes","No") -> No | K136: =VLOOKUP($C136,'C.1 - Rate Sheets'!H:I,2,FALSE) -> 17.6 | M136: 52 | BB136: 52 | BC136: 915.2 | BD136: 915.2 | BE136: 0 | BF136: 0 | BG136: 0
B137: 120 | C137: 18' Material Trailer | D137: 835 | E137: MDR Construction | F137: Hampton | G137: 25-25227 | H137: 2019-09-02 | I137: 2019-09-08 | J137: =IF(AND(H137>='A - Contractor Summary'!$C$36,I137<='A - Contractor Summary'!$C$42),"Yes","No") -> No | K137: =VLOOKUP($C137,'C.1 - Rate Sheets'!H:I,2,FALSE) -> 10 | M137: 52 | BB137: 52 | BC137: 520 | BD137: 520 | BE137: 0 | BF137: 0 | BG137: 0
B138: 121 | C138: Air Compressor | D138: 857 | E138: MDR Construction | F138: Hampton | G138: 25-25227 | H138: 2019-09-02 | I138: 2019-09-08 | J138: =IF(AND(H138>='A - Contractor Summary'!$C$36,I138<='A - Contractor Summary'!$C$42),"Yes","No") -> No | K138: =VLOOKUP($C138,'C.1 - Rate Sheets'!H:I,2,FALSE) -> 25 | M138: 52 | BB138: 52 | BC138: 1300 | BD138: 1300 | BE138: 0 | BF138: 0 | BG138: 0
B139: 122 | C139: Crew Cab Pickup | D139: 586 | E139: MDR Construction | F139: Brown | G139: 25-25227 | H139: 2019-09-02 | I139: 2019-09-08 | J139: =IF(AND(H139>='A - Contractor Summary'!$C$36,I139<='A - Contractor Summary'!$C$42),"Yes","No") -> No | K139: =VLOOKUP($C139,'C.1 - Rate Sheets'!H:I,2,FALSE) -> 24.31 | M139: 52 | BB139: 52 | BC139: 1264.12 | BD139: 1264.12 | BE139: 0 | BF139: 0 | BG139: 0
B140: 123 | C140: Material Handler Bucket 57' | D140: 652 | E140: MDR Construction | F140: Brown | G140: 25-25227 | H140: 2019-09-02 | I140: 2019-09-08 | J140: =IF(AND(H140>='A - Contractor Summary'!$C$36,I140<='A - Contractor Summary'!$C$42),"Yes","No") -> No | K140: =VLOOKUP($C140,'C.1 - Rate Sheets'!H:I,2,FALSE) -> 47.36 | M140: 52 | BB140: 52 | BC140: 2462.72 | BD140: 2462.72 | BE140: 0 | BF140: 0 | BG140: 0
B141: 124 | C141: Material Handler Bucket 57' | D141: 689 | E141: MDR Construction | F141: Brown | G141: 25-25227 | H141: 2019-09-02 | I141: 2019-09-08 | J141: =IF(AND(H141>='A - Contractor Summary'!$C$36,I141<='A - Contractor Summary'!$C$42),"Yes","No") -> No | K141: =VLOOKUP($C141,'C.1 - Rate Sheets'!H:I,2,FALSE) -> 47.36 | M141: 52 | BB141: 52 | BC141: 2462.72 | BD141: 2462.72 | BE141: 0 | BF141: 0 | BG141: 0
B142: 125 | C142: Digger Truck | D142: 613 | E142: MDR Construction | F142: Brown | G142: 25-25227 | H142: 2019-09-02 | I142: 2019-09-08 | J142: =IF(AND(H142>='A - Contractor Summary'!$C$36,I142<='A - Contractor Summary'!$C$42),"Yes","No") -> No | K142: =VLOOKUP($C142,'C.1 - Rate Sheets'!H:I,2,FALSE) -> 47.36 | M142: 52 | BB142: 52 | BC142: 2462.72 | BD142: 2462.72 | BE142: 0 | BF142: 0 | BG142: 0
B143: 126 | C143: Pole Trailer | D143: 660 | E143: MDR Construction | F143: Brown | G143: 25-25227 | H143: 2019-09-02 | I143: 2019-09-08 | J143: =IF(AND(H143>='A - Contractor Summary'!$C$36,I143<='A - Contractor Summary'!$C$42),"Yes","No") -> No | K143: =VLOOKUP($C143,'C.1 - Rate Sheets'!H:I,2,FALSE) -> 17.6 | M143: 52 | BB143: 52 | BC143: 915.2 | BD143: 915.2 | BE143: 0 | BF143: 0 | BG143: 0
B144: 127 | C144: Crew Cab Pickup | D144: 783 | E144: MDR Construction | F144: Cullum | G144: 25-25227 | H144: 2019-09-02 | I144: 2019-09-08 | J144: =IF(AND(H144>='A - Contractor Summary'!$C$36,I144<='A - Contractor Summary'!$C$42),"Yes","No") -> No | K144: =VLOOKUP($C144,'C.1 - Rate Sheets'!H:I,2,FALSE) -> 24.31 | M144: 52 | BB144: 52 | BC144: 1264.12 | BD144: 1264.12 | BE144: 0 | BF144: 0 | BG144: 0
B145: 128 | C145: Material Handler Bucket 57' | D145: 793 | E145: MDR Construction | F145: Cullum | G145: 25-25227 | H145: 2019-09-02 | I145: 2019-09-08 | J145: =IF(AND(H145>='A - Contractor Summary'!$C$36,I145<='A - Contractor Summary'!$C$42),"Yes","No") -> No | K145: =VLOOKUP($C145,'C.1 - Rate Sheets'!H:I,2,FALSE) -> 47.36 | M145: 52 | BB145: 52 | BC145: 2462.72 | BD145: 2462.72 | BE145: 0 | BF145: 0 | BG145: 0
B146: 129 | C146: Material Handler Bucket 57' | D146: 794 | E146: MDR Construction | F146: Cullum | G146: 25-25227 | H146: 2019-09-02 | I146: 2019-09-08 | J146: =IF(AND(H146>='A - Contractor Summary'!$C$36,I146<='A - Contractor Summary'!$C$42),"Yes","No") -> No | K146: =VLOOKUP($C146,'C.1 - Rate Sheets'!H:I,2,FALSE) -> 47.36 | M146: 52 | BB146: 52 | BC146: 2462.72 | BD146: 2462.72 | BE146: 0 | BF146: 0 | BG146: 0
B147: 130 | C147: Digger Truck | D147: 831 | E147: MDR Construction | F147: Cullum | G147: 25-25227 | H147: 2019-09-02 | I147: 2019-09-08 | J147: =IF(AND(H147>='A - Contractor Summary'!$C$36,I147<='A - Contractor Summary'!$C$42),"Yes","No") -> No | K147: =VLOOKUP($C147,'C.1 - Rate Sheets'!H:I,2,FALSE) -> 47.36 | M147: 52 | BB147: 52 | BC147: 2462.72 | BD147: 2462.72 | BE147: 0 | BF147: 0 | BG147: 0
B148: 131 | C148: Pole Trailer | D148: 809 | E148: MDR Construction | F148: Cullum | G148: 25-25227 | H148: 2019-09-02 | I148: 2019-09-08 | J148: =IF(AND(H148>='A - Contractor Summary'!$C$36,I148<='A - Contractor Summary'!$C$42),"Yes","No") -> No | K148: =VLOOKUP($C148,'C.1 - Rate Sheets'!H:I,2,FALSE) -> 17.6 | M148: 52 | BB148: =SUM(L148:BA148) -> 52 | BC148: 915.2 | BD148: 915.2 | BE148: 0 | BF148: 0 | BG148: 0
B149: 132 | C149: 18' Material Trailer | D149: 647 | E149: MDR Construction | F149: Cullum | G149: 25-25227 | H149: 2019-09-02 | I149: 2019-09-08 | J149: =IF(AND(H149>='A - Contractor Summary'!$C$36,I149<='A - Contractor Summary'!$C$42),"Yes","No") -> No | K149: =VLOOKUP($C149,'C.1 - Rate Sheets'!H:I,2,FALSE) -> 10 | M149: 52 | BB149: 52 | BC149: 520 | BD149: 520 | BE149: 0 | BF149: 0 | BG149: 0
B150: 133 | C150: Crew Cab Pickup | D150: 784 | E150: MDR Construction | F150: Wyatt | G150: 25-25227 | H150: 2019-09-02 | I150: 2019-09-08 | J150: =IF(AND(H150>='A - Contractor Summary'!$C$36,I150<='A - Contractor Summary'!$C$42),"Yes","No") -> No | K150: =VLOOKUP($C150,'C.1 - Rate Sheets'!H:I,2,FALSE) -> 24.31 | M150: 52 | BB150: 52 | BC150: 1264.12 | BD150: 1264.12 | BE150: 0 | BF150: 0 | BG150: 0
B151: 134 | C151: Material Handler Bucket 57' | D151: 602 | E151: MDR Construction | F151: Wyatt | G151: 25-25227 | H151: 2019-09-02 | I151: 2019-09-08 | J151: =IF(AND(H151>='A - Contractor Summary'!$C$36,I151<='A - Contractor Summary'!$C$42),"Yes","No") -> No | K151: =VLOOKUP($C151,'C.1 - Rate Sheets'!H:I,2,FALSE) -> 47.36 | M151: 52 | BB151: 52 | BC151: 2462.72 | BD151: 2462.72 | BE151: 0 | BF151: 0 | BG151: 0
B152: 135 | C152: Material Handler Bucket 57' | D152: 796 | E152: MDR Construction | F152: Wyatt | G152: 25-25227 | H152: 2019-09-02 | I152: 2019-09-08 | J152: =IF(AND(H152>='A - Contractor Summary'!$C$36,I152<='A - Contractor Summary'!$C$42),"Yes","No") -> No | K152: =VLOOKUP($C152,'C.1 - Rate Sheets'!H:I,2,FALSE) -> 47.36 | M152: 52 | BB152: 52 | BC152: 2462.72 | BD152: 2462.72 | BE152: 0 | BF152: 0 | BG152: 0
B153: 136 | C153: Digger Truck | D153: 830 | E153: MDR Construction | F153: Wyatt | G153: 25-25227 | H153: 2019-09-02 | I153: 2019-09-08 | J153: =IF(AND(H153>='A - Contractor Summary'!$C$36,I153<='A - Contractor Summary'!$C$42),"Yes","No") -> No | K153: =VLOOKUP($C153,'C.1 - Rate Sheets'!H:I,2,FALSE) -> 47.36 | M153: 52 | BB153: 52 | BC153: 2462.72 | BD153: 2462.72 | BE153: 0 | BF153: 0 | BG153: 0
B154: 137 | C154: Pole Trailer | D154: 810 | E154: MDR Construction | F154: Wyatt | G154: 25-25227 | H154: 2019-09-02 | I154: 2019-09-08 | J154: =IF(AND(H154>='A - Contractor Summary'!$C$36,I154<='A - Contractor Summary'!$C$42),"Yes","No") -> No | K154: =VLOOKUP($C154,'C.1 - Rate Sheets'!H:I,2,FALSE) -> 17.6 | M154: 52 | BB154: 52 | BC154: 915.2 | BD154: 915.2 | BE154: 0 | BF154: 0 | BG154: 0
B155: 138 | C155: 18' Material Trailer | D155: 812 | E155: MDR Construction | F155: Wyatt | G155: 25-25227 | H155: 2019-09-02 | I155: 2019-09-08 | J155: =IF(AND(H155>='A - Contractor Summary'!$C$36,I155<='A - Contractor Summary'!$C$42),"Yes","No") -> No | K155: =VLOOKUP($C155,'C.1 - Rate Sheets'!H:I,2,FALSE) -> 10 | M155: 52 | BB155: 52 | BC155: 520 | BD155: 520 | BE155: 0 | BF155: 0 | BG155: 0
B156: 139 | C156: Skid Steer | D156: 813 | E156: MDR Construction | F156: Wyatt | G156: 25-25227 | H156: 2019-09-02 | I156: 2019-09-08 | J156: =IF(AND(H156>='A - Contractor Summary'!$C$36,I156<='A - Contractor Summary'!$C$42),"Yes","No") -> No | K156: =VLOOKUP($C156,'C.1 - Rate Sheets'!H:I,2,FALSE) -> 50 | M156: 52 | BB156: 52 | BC156: 2600 | BD156: 2600 | BE156: 0 | BF156: 0 | BG156: 0
B157: 140 | C157: Crew Cab Pickup | D157: 786 | E157: MDR Construction | F157: McKee | G157: 25-25227 | H157: 2019-09-02 | I157: 2019-09-08 | J157: =IF(AND(H157>='A - Contractor Summary'!$C$36,I157<='A - Contractor Summary'!$C$42),"Yes","No") -> No | K157: =VLOOKUP($C157,'C.1 - Rate Sheets'!H:I,2,FALSE) -> 24.31 | M157: 52 | BB157: 52 | BC157: 1264.12 | BD157: 1264.12 | BE157: 0 | BF157: 0 | BG157: 0
B158: 141 | C158: Material Handler Bucket 57' | D158: 789 | E158: MDR Construction | F158: McKee | G158: 25-25227 | H158: 2019-09-02 | I158: 2019-09-08 | J158: =IF(AND(H158>='A - Contractor Summary'!$C$36,I158<='A - Contractor Summary'!$C$42),"Yes","No") -> No | K158: =VLOOKUP($C158,'C.1 - Rate Sheets'!H:I,2,FALSE) -> 47.36 | M158: 52 | BB158: 52 | BC158: 2462.72 | BD158: 2462.72 | BE158: 0 | BF158: 0 | BG158: 0
B159: 142 | C159: Material Handler Bucket 57' | D159: 790 | E159: MDR Construction | F159: McKee | G159: 25-25227 | H159: 2019-09-02 | I159: 2019-09-08 | J159: =IF(AND(H159>='A - Contractor Summary'!$C$36,I159<='A - Contractor Summary'!$C$42),"Yes","No") -> No | K159: =VLOOKUP($C159,'C.1 - Rate Sheets'!H:I,2,FALSE) -> 47.36 | M159: 52 | BB159: 52 | BC159: 2462.72 | BD159: 2462.72 | BE159: 0 | BF159: 0 | BG159: 0
B160: 143 | C160: Digger Truck | D160: 1 | E160: MDR Construction | F160: McKee | G160: 25-25227 | H160: 2019-09-02 | I160: 2019-09-08 | J160: =IF(AND(H160>='A - Contractor Summary'!$C$36,I160<='A - Contractor Summary'!$C$42),"Yes","No") -> No | K160: =VLOOKUP($C160,'C.1 - Rate Sheets'!H:I,2,FALSE) -> 47.36 | M160: 52 | BB160: 52 | BC160: 2462.72 | BD160: 2462.72 | BE160: 0 | BF160: 0 | BG160: 0
B161: 144 | C161: Pole Trailer | D161: 808 | E161: MDR Construction | F161: McKee | G161: 25-25227 | H161: 2019-09-02 | I161: 2019-09-08 | J161: =IF(AND(H161>='A - Contractor Summary'!$C$36,I161<='A - Contractor Summary'!$C$42),"Yes","No") -> No | K161: =VLOOKUP($C161,'C.1 - Rate Sheets'!H:I,2,FALSE) -> 17.6 | M161: 52 | BB161: 52 | BC161: 915.2 | BD161: 915.2 | BE161: 0 | BF161: 0 | BG161: 0
B162: 145 | C162: 18' Material Trailer | D162: 835 | E162: MDR Construction | F162: McKee | G162: 25-25227 | H162: 2019-09-02 | I162: 2019-09-08 | J162: =IF(AND(H162>='A - Contractor Summary'!$C$36,I162<='A - Contractor Summary'!$C$42),"Yes","No") -> No | K162: =VLOOKUP($C162,'C.1 - Rate Sheets'!H:I,2,FALSE) -> 10 | M162: 52 | BB162: 52 | BC162: 520 | BD162: 520 | BE162: 0 | BF162: 0 | BG162: 0
B163: 146 | C163: Air Compressor | D163: JD7 | E163: MDR Construction | F163: McKee | G163: 25-25227 | H163: 2019-09-02 | I163: 2019-09-08 | J163: =IF(AND(H163>='A - Contractor Summary'!$C$36,I163<='A - Contractor Summary'!$C$42),"Yes","No") -> No | K163: =VLOOKUP($C163,'C.1 - Rate Sheets'!H:I,2,FALSE) -> 25 | M163: 52 | BB163: 52 | BC163: 1300 | BD163: 1300 | BE163: 0 | BF163: 0 | BG163: 0
B164: 147 | C164: Crew Cab Pickup | D164: 836 | E164: MDR Construction | F164: Wells | G164: 25-25227 | H164: 2019-09-02 | I164: 2019-09-08 | J164: =IF(AND(H164>='A - Contractor Summary'!$C$36,I164<='A - Contractor Summary'!$C$42),"Yes","No") -> No | K164: =VLOOKUP($C164,'C.1 - Rate Sheets'!H:I,2,FALSE) -> 24.31 | M164: 52 | BB164: 52 | BC164: 1264.12 | BD164: 1264.12 | BE164: 0 | BF164: 0 | BG164: 0
B165: 148 | C165: Material Handler Bucket 57' | D165: 843 | E165: MDR Construction | F165: Wells | G165: 25-25227 | H165: 2019-09-02 | I165: 2019-09-08 | J165: =IF(AND(H165>='A - Contractor Summary'!$C$36,I165<='A - Contractor Summary'!$C$42),"Yes","No") -> No | K165: =VLOOKUP($C165,'C.1 - Rate Sheets'!H:I,2,FALSE) -> 47.36 | M165: 52 | BB165: 52 | BC165: 2462.72 | BD165: 2462.72 | BE165: 0 | BF165: 0 | BG165: 0
B166: 149 | C166: Material Handler Bucket 57' | D166: 792 | E166: MDR Construction | F166: Wells | G166: 25-25227 | H166: 2019-09-02 | I166: 2019-09-08 | J166: =IF(AND(H166>='A - Contractor Summary'!$C$36,I166<='A - Contractor Summary'!$C$42),"Yes","No") -> No | K166: =VLOOKUP($C166,'C.1 - Rate Sheets'!H:I,2,FALSE) -> 47.36 | M166: 52 | BB166: 52 | BC166: 2462.72 | BD166: 2462.72 | BE166: 0 | BF166: 0 | BG166: 0
B167: 150 | C167: Digger Truck | D167: 841 | E167: MDR Construction | F167: Wells | G167: 25-25227 | H167: 2019-09-02 | I167: 2019-09-08 | J167: =IF(AND(H167>='A - Contractor Summary'!$C$36,I167<='A - Contractor Summary'!$C$42),"Yes","No") -> No | K167: =VLOOKUP($C167,'C.1 - Rate Sheets'!H:I,2,FALSE) -> 47.36 | M167: 52 | BB167: 52 | BC167: 2462.72 | BD167: 2462.72 | BE167: 0 | BF167: 0 | BG167: 0
B168: 151 | C168: Pole Trailer | D168: 840 | E168: MDR Construction | F168: Wells | G168: 25-25227 | H168: 2019-09-02 | I168: 2019-09-08 | J168: =IF(AND(H168>='A - Contractor Summary'!$C$36,I168<='A - Contractor Summary'!$C$42),"Yes","No") -> No | K168: =VLOOKUP($C168,'C.1 - Rate Sheets'!H:I,2,FALSE) -> 17.6 | M168: 52 | BB168: 52 | BC168: 915.2 | BD168: 915.2 | BE168: 0 | BF168: 0 | BG168: 0
B169: 152 | C169: 18' Material Trailer | D169: 763 | E169: MDR Construction | F169: Wells | G169: 25-25227 | H169: 2019-09-02 | I169: 2019-09-08 | J169: =IF(AND(H169>='A - Contractor Summary'!$C$36,I169<='A - Contractor Summary'!$C$42),"Yes","No") -> No | K169: =VLOOKUP($C169,'C.1 - Rate Sheets'!H:I,2,FALSE) -> 10 | M169: 52 | BB169: 52 | BC169: 520 | BD169: 520 | BE169: 0 | BF169: 0 | BG169: 0
B170: 153 | C170: 18' Material Trailer | D170: 669 | E170: MDR Construction | F170: Wells | G170: 25-25227 | H170: 2019-09-02 | I170: 2019-09-08 | J170: =IF(AND(H170>='A - Contractor Summary'!$C$36,I170<='A - Contractor Summary'!$C$42),"Yes","No") -> No | K170: =VLOOKUP($C170,'C.1 - Rate Sheets'!H:I,2,FALSE) -> 10 | M170: 52 | BB170: 52 | BC170: 520 | BD170: 520 | BE170: 0 | BF170: 0 | BG170: 0
B171: 154 | C171: Crew Cab Pickup | D171: 785 | E171: MDR Construction | F171: Hare | G171: 25-25227 | H171: 2019-09-02 | I171: 2019-09-08 | J171: =IF(AND(H171>='A - Contractor Summary'!$C$36,I171<='A - Contractor Summary'!$C$42),"Yes","No") -> No | K171: =VLOOKUP($C171,'C.1 - Rate Sheets'!H:I,2,FALSE) -> 24.31 | M171: 52 | BB171: 52 | BC171: 1264.12 | BD171: 1264.12 | BE171: 0 | BF171: 0 | BG171: 0
B172: 155 | C172: Material Handler Bucket 57' | D172: 797 | E172: MDR Construction | F172: Hare | G172: 25-25227 | H172: 2019-09-02 | I172: 2019-09-08 | J172: =IF(AND(H172>='A - Contractor Summary'!$C$36,I172<='A - Contractor Summary'!$C$42),"Yes","No") -> No | K172: =VLOOKUP($C172,'C.1 - Rate Sheets'!H:I,2,FALSE) -> 47.36 | M172: 52 | BB172: 52 | BC172: 2462.72 | BD172: 2462.72 | BE172: 0 | BF172: 0 | BG172: 0
B173: 156 | C173: Material Handler Bucket 57' | D173: 791 | E173: MDR Construction | F173: Hare | G173: 25-25227 | H173: 2019-09-02 | I173: 2019-09-08 | J173: =IF(AND(H173>='A - Contractor Summary'!$C$36,I173<='A - Contractor Summary'!$C$42),"Yes","No") -> No | K173: =VLOOKUP($C173,'C.1 - Rate Sheets'!H:I,2,FALSE) -> 47.36 | M173: 52 | BB173: 52 | BC173: 2462.72 | BD173: 2462.72 | BE173: 0 | BF173: 0 | BG173: 0
B174: 157 | C174: Digger Truck | D174: 593 | E174: MDR Construction | F174: Hare | G174: 25-25227 | H174: 2019-09-02 | I174: 2019-09-08 | J174: =IF(AND(H174>='A - Contractor Summary'!$C$36,I174<='A - Contractor Summary'!$C$42),"Yes","No") -> No | K174: =VLOOKUP($C174,'C.1 - Rate Sheets'!H:I,2,FALSE) -> 47.36 | M174: 52 | BB174: 52 | BC174: 2462.72 | BD174: 2462.72 | BE174: 0 | BF174: 0 | BG174: 0
B175: 158 | C175: Pole Trailer | D175: 527 | E175: MDR Construction | F175: Hare | G175: 25-25227 | H175: 2019-09-02 | I175: 2019-09-08 | J175: =IF(AND(H175>='A - Contractor Summary'!$C$36,I175<='A - Contractor Summary'!$C$42),"Yes","No") -> No | K175: =VLOOKUP($C175,'C.1 - Rate Sheets'!H:I,2,FALSE) -> 17.6 | M175: 52 | BB175: 52 | BC175: 915.2 | BD175: 915.2 | BE175: 0 | BF175: 0 | BG175: 0
B176: 159 | C176: 18' Material Trailer | D176: 764 | E176: MDR Construction | F176: Hare | G176: 25-25227 | H176: 2019-09-02 | I176: 2019-09-08 | J176: =IF(AND(H176>='A - Contractor Summary'!$C$36,I176<='A - Contractor Summary'!$C$42),"Yes","No") -> No | K176: =VLOOKUP($C176,'C.1 - Rate Sheets'!H:I,2,FALSE) -> 10 | M176: 52 | BB176: 52 | BC176: 520 | BD176: 520 | BE176: 0 | BF176: 0 | BG176: 0
B177: 160 | C177: Air Compressor | D177: 713 | E177: MDR Construction | F177: Hare | G177: 25-25227 | H177: 2019-09-02 | I177: 2019-09-08 | J177: =IF(AND(H177>='A - Contractor Summary'!$C$36,I177<='A - Contractor Summary'!$C$42),"Yes","No") -> No | K177: =VLOOKUP($C177,'C.1 - Rate Sheets'!H:I,2,FALSE) -> 25 | M177: 52 | BB177: =SUM(L177:BA177) -> 52 | BC177: =BB177*K177 -> 1300 | BD177: =BC177-BE177 -> 1300 | BE177: 0 | BF177: 0 | BG177: 0
B178: 161 | C178: Crew Cab Pickup | D178: 636 | E178: MDR Construction | F178: Chambley | G178: 25-25227 | H178: 2019-09-02 | I178: 2019-09-08 | J178: =IF(AND(H178>='A - Contractor Summary'!$C$36,I178<='A - Contractor Summary'!$C$42),"Yes","No") -> No | K178: =VLOOKUP($C178,'C.1 - Rate Sheets'!H:I,2,FALSE) -> 24.31 | M178: 52 | BB178: 52 | BC178: 1264.12 | BD178: 1264.12 | BE178: 0 | BF178: 0 | BG178: 0
B179: 162 | C179: Material Handler Bucket 57' | D179: 588 | E179: MDR Construction | F179: Chambley | G179: 25-25227 | H179: 2019-09-02 | I179: 2019-09-08 | J179: =IF(AND(H179>='A - Contractor Summary'!$C$36,I179<='A - Contractor Summary'!$C$42),"Yes","No") -> No | K179: =VLOOKUP($C179,'C.1 - Rate Sheets'!H:I,2,FALSE) -> 47.36 | M179: 52 | BB179: 52 | BC179: 2462.72 | BD179: 2462.72 | BE179: 0 | BF179: 0 | BG179: 0
B180: 163 | C180: Material Handler Bucket 57' | D180: 822 | E180: MDR Construction | F180: Chambley | G180: 25-25227 | H180: 2019-09-02 | I180: 2019-09-08 | J180: =IF(AND(H180>='A - Contractor Summary'!$C$36,I180<='A - Contractor Summary'!$C$42),"Yes","No") -> No | K180: =VLOOKUP($C180,'C.1 - Rate Sheets'!H:I,2,FALSE) -> 47.36 | M180: 52 | BB180: 52 | BC180: 2462.72 | BD180: 2462.72 | BE180: 0 | BF180: 0 | BG180: 0
B181: 164 | C181: Digger Truck | D181: 803 | E181: MDR Construction | F181: Chambley | G181: 25-25227 | H181: 2019-09-02 | I181: 2019-09-08 | J181: =IF(AND(H181>='A - Contractor Summary'!$C$36,I181<='A - Contractor Summary'!$C$42),"Yes","No") -> No | K181: =VLOOKUP($C181,'C.1 - Rate Sheets'!H:I,2,FALSE) -> 47.36 | M181: 52 | BB181: 52 | BC181: 2462.72 | BD181: 2462.72 | BE181: 0 | BF181: 0 | BG181: 0
B182: 165 | C182: Pole Trailer | D182: 646 | E182: MDR Construction | F182: Chambley | G182: 25-25227 | H182: 2019-09-02 | I182: 2019-09-08 | J182: =IF(AND(H182>='A - Contractor Summary'!$C$36,I182<='A - Contractor Summary'!$C$42),"Yes","No") -> No | K182: =VLOOKUP($C182,'C.1 - Rate Sheets'!H:I,2,FALSE) -> 17.6 | M182: 52 | BB182: 52 | BC182: 915.2 | BD182: 915.2 | BE182: 0 | BF182: 0 | BG182: 0
B183: 166 | C183: Back Yard Buggy | D183: 663 | E183: MDR Construction | F183: Chambley | G183: 25-25227 | H183: 2019-09-02 | I183: 2019-09-08 | J183: =IF(AND(H183>='A - Contractor Summary'!$C$36,I183<='A - Contractor Summary'!$C$42),"Yes","No") -> No | K183: =VLOOKUP($C183,'C.1 - Rate Sheets'!H:I,2,FALSE) -> 45 | M183: 52 | BB183: 52 | BC183: 2340 | BD183: 2340 | BE183: 0 | BF183: 0 | BG183: 0
B184: 167 | E184: MDR Construction | G184: 25-25227 | H184: 2019-08-31 | I184: 2019-09-01 | J184: =IF(AND(H184>='A - Contractor Summary'!$C$36,I184<='A - Contractor Summary'!$C$42),"Yes","No") -> No | K184: =VLOOKUP($C184,'C.1 - Rate Sheets'!H:I,2,FALSE) ->  | BB184: 0 | BE184: 0 | BF184: 0 | BG184: 0
B185: 168 | E185: MDR Construction | G185: 25-25227 | H185: 2019-08-31 | I185: 2019-09-01 | J185: =IF(AND(H185>='A - Contractor Summary'!$C$36,I185<='A - Contractor Summary'!$C$42),"Yes","No") -> No | K185: =VLOOKUP($C185,'C.1 - Rate Sheets'!H:I,2,FALSE) ->  | BB185: 0 | BE185: 0 | BF185: 0 | BG185: 0
B186: 169 | E186: MDR Construction | G186: 25-25227 | H186: 2019-08-31 | I186: 2019-09-01 | J186: =IF(AND(H186>='A - Contractor Summary'!$C$36,I186<='A - Contractor Summary'!$C$42),"Yes","No") -> No | K186: =VLOOKUP($C186,'C.1 - Rate Sheets'!H:I,2,FALSE) ->  | BB186: 0 | BE186: 0 | BF186: 0 | BG186: 0
B187: 170 | E187: MDR Construction | G187: 25-25227 | H187: 2019-08-31 | I187: 2019-09-01 | J187: =IF(AND(H187>='A - Contractor Summary'!$C$36,I187<='A - Contractor Summary'!$C$42),"Yes","No") -> No | K187: =VLOOKUP($C187,'C.1 - Rate Sheets'!H:I,2,FALSE) ->  | BB187: 0 | BE187: 0 | BF187: 0 | BG187: 0
B188: 171 | E188: MDR Construction | G188: 25-25227 | H188: 2019-08-31 | I188: 2019-09-01 | J188: =IF(AND(H188>='A - Contractor Summary'!$C$36,I188<='A - Contractor Summary'!$C$42),"Yes","No") -> No | K188: =VLOOKUP($C188,'C.1 - Rate Sheets'!H:I,2,FALSE) ->  | BB188: 0 | BE188: 0 | BF188: 0 | BG188: 0
B189: 172 | E189: MDR Construction | G189: 25-25227 | H189: 2019-08-31 | I189: 2019-09-01 | J189: =IF(AND(H189>='A - Contractor Summary'!$C$36,I189<='A - Contractor Summary'!$C$42),"Yes","No") -> No | K189: =VLOOKUP($C189,'C.1 - Rate Sheets'!H:I,2,FALSE) ->  | BB189: 0 | BE189: 0 | BF189: 0 | BG189: 0
B190: 173 | E190: MDR Construction | G190: 25-25227 | H190: 2019-08-31 | I190: 2019-09-01 | J190: =IF(AND(H190>='A - Contractor Summary'!$C$36,I190<='A - Contractor Summary'!$C$42),"Yes","No") -> No | K190: =VLOOKUP($C190,'C.1 - Rate Sheets'!H:I,2,FALSE) ->  | BB190: 0 | BE190: 0 | BF190: 0 | BG190: 0
